Workbook

Sheet Time Line
C5: Start | E5: Terminal | H5: End of Second
E6: First | H6: Second
E7: Cycle | H7: Cycle
H8: Compute
H9: Perputity

Sheet Working Capital Analysis
A2: Stable Working Capital
C3: Revenues | E3: 100
C4: Operating Margin | E4: 0.1
C5: Days AR Outstanding | E5: 60
C6: Days AP Outstanding | E6: 10
C7: AR to Sales | E7: =E5/365 -> 0.1643835616
C8: AP to COGS | E8: =E6/365 -> 0.02739726027
C9: Explicit Growth Rate | E9: 0.25
C10: Terminal Growth Rate | E10: 0.02
C11: WACC | E11: 0.1
C12: Length of Explicit Period | E12: 7
A14: True Value
B15: Period | E15: 0 | F15: =E15+1 -> 1 | G15: =F15+1 -> 2 | H15: 3 | I15: 4 | J15: 5 | K15: 6 | L15: 7 | M15: 8 | N15: 9 | O15: 10 | P15: 11 | Q15: 12 | R15: 13 | S15: 14 | T15: 15 | U15: 16 | V15: 17 | W15: 18 | X15: 19 | Y15: 20 | Z15: 21 | AA15: 22 | AB15: 23 | AC15: 24 | AD15: 25 | AE15: 26 | AF15: 27 | AG15: 28 | AH15: 29 | AI15: 30 | AJ15: 31 | AK15: 32 | AL15: 33 | AM15: 34 | AN15: 35 | AO15: 36 | AP15: 37 | AQ15: 38 | AR15: 39 | AS15: 40 | AT15: 41 | AU15: 42 | AV15: 43 | AW15: 44 | AX15: 45 | AY15: 46 | AZ15: 47 | BA15: 48 | BB15: 49 | BC15: 50 | BD15: 51 | BE15: 52 | BF15: 53 | BG15: 54 | BH15: 55 | BI15: 56 | BJ15: 57 | BK15: 58 | BL15: 59 | BM15: 60 | BN15: 61 | BO15: 62 | BP15: 63 | BQ15: 64 | BR15: 65 | BS15: =BR15+1 -> 66 | BT15: 67 | BU15: 68 | BV15: 69 | BW15: 70 | BX15: 71 | BY15: 72 | BZ15: 73 | CA15: 74 | CB15: 75 | CC15: 76 | CD15: 77 | CE15: 78 | CF15: 79 | CG15: 80 | CH15: 81 | CI15: 82 | CJ15: 83 | CK15: 84 | CL15: 85 | CM15: 86 | CN15: 87 | CO15: 88 | CP15: 89 | CQ15: 90 | CR15: 91 | CS15: 92 | CT15: 93 | CU15: 94 | CV15: 95 | CW15: 96 | CX15: 97 | CY15: 98 | CZ15: 99 | DA15: 100 | DB15: 101 | DC15: 102 | DD15: 103 | DE15: 104 | DF15: 105 | DG15: 106 | DH15: 107 | DI15: 108 | DJ15: 109 | DK15: 110 | DL15: 111 | DM15: 112 | DN15: 113 | DO15: 114 | DP15: 115 | DQ15: 116 | DR15: 117 | DS15: 118 | DT15: 119 | DU15: 120 | DV15: 121 | DW15: 122 | DX15: 123 | DY15: 124 | DZ15: 125 | EA15: 126 | EB15: 127 | EC15: 128 | ED15: 129 | EE15: =ED15+1 -> 130 | EF15: 131 | EG15: 132 | EH15: 133 | EI15: 134 | EJ15: 135 | EK15: 136 | EL15: 137 | EM15: 138 | EN15: 139 | EO15: 140 | EP15: 141 | EQ15: 142 | ER15: 143 | ES15: 144 | ET15: 145 | EU15: 146 | EV15: 147 | EW15: 148 | EX15: 149 | EY15: 150 | EZ15: 151 | FA15: 152 | FB15: 153 | FC15: 154 | FD15: 155 | FE15: 156 | FF15: 157 | FG15: 158 | FH15: 159 | FI15: 160 | FJ15: 161 | FK15: 162 | FL15: 163 | FM15: 164 | FN15: 165 | FO15: 166 | FP15: 167 | FQ15: 168 | FR15: 169 | FS15: 170 | FT15: 171 | FU15: 172 | FV15: 173 | FW15: 174 | FX15: 175 | FY15: 176 | FZ15: 177 | GA15: 178 | GB15: 179 | GC15: 180 | GD15: 181 | GE15: 182 | GF15: 183 | GG15: 184 | GH15: 185 | GI15: 186 | GJ15: 187 | GK15: 188 | GL15: 189 | GM15: 190 | GN15: 191 | GO15: 192 | GP15: 193 | GQ15: =GP15+1 -> 194 | GR15: 195 | GS15: 196 | GT15: 197 | GU15: 198 | GV15: 199 | GW15: 200 | GX15: 201 | GY15: 202 | GZ15: 203 | HA15: 204 | HB15: 205 | HC15: 206 | HD15: 207 | HE15: 208 | HF15: 209 | HG15: 210 | HH15: 211 | HI15: 212 | HJ15: 213 | HK15: 214 | HL15: 215 | HM15: 216 | HN15: 217 | HO15: 218 | HP15: 219 | HQ15: 220 | HR15: 221 | HS15: 222 | HT15: 223 | HU15: 224 | HV15: 225 | HW15: 226 | HX15: 227 | HY15: 228 | HZ15: 229 | IA15: 230 | IB15: 231 | IC15: 232 | ID15: 233 | IE15: 234 | IF15: 235 | IG15: 236 | IH15: 237 | II15: 238 | IJ15: 239 | IK15: 240 | IL15: 241 | IM15: 242 | IN15: 243 | IO15: 244 | IP15: 245 | IQ15: 246 | IR15: 247 | IS15: 248 | IT15: 249 | IU15: 250 | IV15: 251 | IW15: 252 | IX15: 253 | IY15: 254 | IZ15: 255 | JA15: 256 | JB15: 257 | JC15: =JB15+1 -> 258 | JD15: 259 | JE15: 260 | JF15: 261 | JG15: 262 | JH15: 263 | JI15: 264 | JJ15: 265 | JK15: 266 | JL15: 267 | JM15: 268 | JN15: 269 | JO15: 270 | JP15: 271 | JQ15: 272 | JR15: 273 | JS15: 274 | JT15: 275 | JU15: 276 | JV15: 277 | JW15: 278 | JX15: 279 | JY15: 280 | JZ15: 281 | KA15: 282 | KB15: 283 | KC15: 284 | KD15: 285 | KE15: 286 | KF15: 287 | KG15: 288 | KH15: 289 | KI15: 290 | KJ15: 291 | KK15: 292 | KL15: 293 | KM15: 294 | KN15: 295 | KO15: 296 | KP15: 297 | KQ15: 298 | KR15: 299 | KS15: 300
B16: Explicit Period | F16: =F15<=$E$12 -> TRUE | G16: =G15<=$E$12 -> TRUE | H16: TRUE | I16: TRUE | J16: TRUE | K16: TRUE | L16: TRUE | M16: FALSE | N16: FALSE | O16: FALSE | P16: FALSE | Q16: FALSE | R16: FALSE | S16: FALSE | T16: FALSE | U16: FALSE | V16: FALSE | W16: FALSE | X16: FALSE | Y16: FALSE | Z16: FALSE | AA16: FALSE | AB16: FALSE | AC16: FALSE | AD16: FALSE | AE16: FALSE | AF16: FALSE | AG16: FALSE | AH16: FALSE | AI16: FALSE | AJ16: FALSE | AK16: FALSE | AL16: FALSE | AM16: FALSE | AN16: FALSE | AO16: FALSE | AP16: FALSE | AQ16: FALSE | AR16: FALSE | AS16: FALSE | AT16: FALSE | AU16: FALSE | AV16: FALSE | AW16: FALSE | AX16: FALSE | AY16: FALSE | AZ16: FALSE | BA16: FALSE | BB16: FALSE | BC16: FALSE | BD16: FALSE | BE16: FALSE | BF16: FALSE | BG16: FALSE | BH16: FALSE | BI16: FALSE | BJ16: FALSE | BK16: FALSE | BL16: FALSE | BM16: FALSE | BN16: FALSE | BO16: FALSE | BP16: FALSE | BQ16: FALSE | BR16: FALSE | BS16: =BS15<=$E$12 -> FALSE | BT16: FALSE | BU16: FALSE | BV16: FALSE | BW16: FALSE | BX16: FALSE | BY16: FALSE | BZ16: FALSE | CA16: FALSE | CB16: FALSE | CC16: FALSE | CD16: FALSE | CE16: FALSE | CF16: FALSE | CG16: FALSE | CH16: FALSE | CI16: FALSE | CJ16: FALSE | CK16: FALSE | CL16: FALSE | CM16: FALSE | CN16: FALSE | CO16: FALSE | CP16: FALSE | CQ16: FALSE | CR16: FALSE | CS16: FALSE | CT16: FALSE | CU16: FALSE | CV16: FALSE | CW16: FALSE | CX16: FALSE | CY16: FALSE | CZ16: FALSE | DA16: FALSE | DB16: FALSE | DC16: FALSE | DD16: FALSE | DE16: FALSE | DF16: FALSE | DG16: FALSE | DH16: FALSE | DI16: FALSE | DJ16: FALSE | DK16: FALSE | DL16: FALSE | DM16: FALSE | DN16: FALSE | DO16: FALSE | DP16: FALSE | DQ16: FALSE | DR16: FALSE | DS16: FALSE | DT16: FALSE | DU16: FALSE | DV16: FALSE | DW16: FALSE | DX16: FALSE | DY16: FALSE | DZ16: FALSE | EA16: FALSE | EB16: FALSE | EC16: FALSE | ED16: FALSE | EE16: =EE15<=$E$12 -> FALSE | EF16: FALSE | EG16: FALSE | EH16: FALSE | EI16: FALSE | EJ16: FALSE | EK16: FALSE | EL16: FALSE | EM16: FALSE | EN16: FALSE | EO16: FALSE | EP16: FALSE | EQ16: FALSE | ER16: FALSE | ES16: FALSE | ET16: FALSE | EU16: FALSE | EV16: FALSE | EW16: FALSE | EX16: FALSE | EY16: FALSE | EZ16: FALSE | FA16: FALSE | FB16: FALSE | FC16: FALSE | FD16: FALSE | FE16: FALSE | FF16: FALSE | FG16: FALSE | FH16: FALSE | FI16: FALSE | FJ16: FALSE | FK16: FALSE | FL16: FALSE | FM16: FALSE | FN16: FALSE | FO16: FALSE | FP16: FALSE | FQ16: FALSE | FR16: FALSE | FS16: FALSE | FT16: FALSE | FU16: FALSE | FV16: FALSE | FW16: FALSE | FX16: FALSE | FY16: FALSE | FZ16: FALSE | GA16: FALSE | GB16: FALSE | GC16: FALSE | GD16: FALSE | GE16: FALSE | GF16: FALSE | GG16: FALSE | GH16: FALSE | GI16: FALSE | GJ16: FALSE | GK16: FALSE | GL16: FALSE | GM16: FALSE | GN16: FALSE | GO16: FALSE | GP16: FALSE | GQ16: =GQ15<=$E$12 -> FALSE | GR16: FALSE | GS16: FALSE | GT16: FALSE | GU16: FALSE | GV16: FALSE | GW16: FALSE | GX16: FALSE | GY16: FALSE | GZ16: FALSE | HA16: FALSE | HB16: FALSE | HC16: FALSE | HD16: FALSE | HE16: FALSE | HF16: FALSE | HG16: FALSE | HH16: FALSE | HI16: FALSE | HJ16: FALSE | HK16: FALSE | HL16: FALSE | HM16: FALSE | HN16: FALSE | HO16: FALSE | HP16: FALSE | HQ16: FALSE | HR16: FALSE | HS16: FALSE | HT16: FALSE | HU16: FALSE | HV16: FALSE | HW16: FALSE | HX16: FALSE | HY16: FALSE | HZ16: FALSE | IA16: FALSE | IB16: FALSE | IC16: FALSE | ID16: FALSE | IE16: FALSE | IF16: FALSE | IG16: FALSE | IH16: FALSE | II16: FALSE | IJ16: FALSE | IK16: FALSE | IL16: FALSE | IM16: FALSE | IN16: FALSE | IO16: FALSE | IP16: FALSE | IQ16: FALSE | IR16: FALSE | IS16: FALSE | IT16: FALSE | IU16: FALSE | IV16: FALSE | IW16: FALSE | IX16: FALSE | IY16: FALSE | IZ16: FALSE | JA16: FALSE | JB16: FALSE | JC16: =JC15<=$E$12 -> FALSE | JD16: FALSE | JE16: FALSE | JF16: FALSE | JG16: FALSE | JH16: FALSE | JI16: FALSE | JJ16: FALSE | JK16: FALSE | JL16: FALSE | JM16: FALSE | JN16: FALSE | JO16: FALSE | JP16: FALSE | JQ16: FALSE | JR16: FALSE | JS16: FALSE | JT16: FALSE | JU16: FALSE | JV16: FALSE | JW16: FALSE | JX16: FALSE | JY16: FALSE | JZ16: FALSE | KA16: FALSE | KB16: FALSE | KC16: FALSE | KD16: FALSE | KE16: FALSE | KF16: FALSE | KG16: FALSE | KH16: FALSE | KI16: FALSE | KJ16: FALSE | KK16: FALSE | KL16: FALSE | KM16: FALSE | KN16: FALSE | KO16: FALSE | KP16: FALSE | KQ16: FALSE | KR16: FALSE | KS16: FALSE
B17: Long-term Period | F17: =NOT(F16) -> FALSE | G17: =NOT(G16) -> FALSE | H17: FALSE | I17: FALSE | J17: FALSE | K17: FALSE | L17: FALSE | M17: TRUE | N17: TRUE | O17: TRUE | P17: TRUE | Q17: TRUE | R17: TRUE | S17: TRUE | T17: TRUE | U17: TRUE | V17: TRUE | W17: TRUE | X17: TRUE | Y17: TRUE | Z17: TRUE | AA17: TRUE | AB17: TRUE | AC17: TRUE | AD17: TRUE | AE17: TRUE | AF17: TRUE | AG17: TRUE | AH17: TRUE | AI17: TRUE | AJ17: TRUE | AK17: TRUE | AL17: TRUE | AM17: TRUE | AN17: TRUE | AO17: TRUE | AP17: TRUE | AQ17: TRUE | AR17: TRUE | AS17: TRUE | AT17: TRUE | AU17: TRUE | AV17: TRUE | AW17: TRUE | AX17: TRUE | AY17: TRUE | AZ17: TRUE | BA17: TRUE | BB17: TRUE | BC17: TRUE | BD17: TRUE | BE17: TRUE | BF17: TRUE | BG17: TRUE | BH17: TRUE | BI17: TRUE | BJ17: TRUE | BK17: TRUE | BL17: TRUE | BM17: TRUE | BN17: TRUE | BO17: TRUE | BP17: TRUE | BQ17: TRUE | BR17: TRUE | BS17: =NOT(BS16) -> TRUE | BT17: TRUE | BU17: TRUE | BV17: TRUE | BW17: TRUE | BX17: TRUE | BY17: TRUE | BZ17: TRUE | CA17: TRUE | CB17: TRUE | CC17: TRUE | CD17: TRUE | CE17: TRUE | CF17: TRUE | CG17: TRUE | CH17: TRUE | CI17: TRUE | CJ17: TRUE | CK17: TRUE | CL17: TRUE | CM17: TRUE | CN17: TRUE | CO17: TRUE | CP17: TRUE | CQ17: TRUE | CR17: TRUE | CS17: TRUE | CT17: TRUE | CU17: TRUE | CV17: TRUE | CW17: TRUE | CX17: TRUE | CY17: TRUE | CZ17: TRUE | DA17: TRUE | DB17: TRUE | DC17: TRUE | DD17: TRUE | DE17: TRUE | DF17: TRUE | DG17: TRUE | DH17: TRUE | DI17: TRUE | DJ17: TRUE | DK17: TRUE | DL17: TRUE | DM17: TRUE | DN17: TRUE | DO17: TRUE | DP17: TRUE | DQ17: TRUE | DR17: TRUE | DS17: TRUE | DT17: TRUE | DU17: TRUE | DV17: TRUE | DW17: TRUE | DX17: TRUE | DY17: TRUE | DZ17: TRUE | EA17: TRUE | EB17: TRUE | EC17: TRUE | ED17: TRUE | EE17: =NOT(EE16) -> TRUE | EF17: TRUE | EG17: TRUE | EH17: TRUE | EI17: TRUE | EJ17: TRUE | EK17: TRUE | EL17: TRUE | EM17: TRUE | EN17: TRUE | EO17: TRUE | EP17: TRUE | EQ17: TRUE | ER17: TRUE | ES17: TRUE | ET17: TRUE | EU17: TRUE | EV17: TRUE | EW17: TRUE | EX17: TRUE | EY17: TRUE | EZ17: TRUE | FA17: TRUE | FB17: TRUE | FC17: TRUE | FD17: TRUE | FE17: TRUE | FF17: TRUE | FG17: TRUE | FH17: TRUE | FI17: TRUE | FJ17: TRUE | FK17: TRUE | FL17: TRUE | FM17: TRUE | FN17: TRUE | FO17: TRUE | FP17: TRUE | FQ17: TRUE | FR17: TRUE | FS17: TRUE | FT17: TRUE | FU17: TRUE | FV17: TRUE | FW17: TRUE | FX17: TRUE | FY17: TRUE | FZ17: TRUE | GA17: TRUE | GB17: TRUE | GC17: TRUE | GD17: TRUE | GE17: TRUE | GF17: TRUE | GG17: TRUE | GH17: TRUE | GI17: TRUE | GJ17: TRUE | GK17: TRUE | GL17: TRUE | GM17: TRUE | GN17: TRUE | GO17: TRUE | GP17: TRUE | GQ17: =NOT(GQ16) -> TRUE | GR17: TRUE | GS17: TRUE | GT17: TRUE | GU17: TRUE | GV17: TRUE | GW17: TRUE | GX17: TRUE | GY17: TRUE | GZ17: TRUE | HA17: TRUE | HB17: TRUE | HC17: TRUE | HD17: TRUE | HE17: TRUE | HF17: TRUE | HG17: TRUE | HH17: TRUE | HI17: TRUE | HJ17: TRUE | HK17: TRUE | HL17: TRUE | HM17: TRUE | HN17: TRUE | HO17: TRUE | HP17: TRUE | HQ17: TRUE | HR17: TRUE | HS17: TRUE | HT17: TRUE | HU17: TRUE | HV17: TRUE | HW17: TRUE | HX17: TRUE | HY17: TRUE | HZ17: TRUE | IA17: TRUE | IB17: TRUE | IC17: TRUE | ID17: TRUE | IE17: TRUE | IF17: TRUE | IG17: TRUE | IH17: TRUE | II17: TRUE | IJ17: TRUE | IK17: TRUE | IL17: TRUE | IM17: TRUE | IN17: TRUE | IO17: TRUE | IP17: TRUE | IQ17: TRUE | IR17: TRUE | IS17: TRUE | IT17: TRUE | IU17: TRUE | IV17: TRUE | IW17: TRUE | IX17: TRUE | IY17: TRUE | IZ17: TRUE | JA17: TRUE | JB17: TRUE | JC17: =NOT(JC16) -> TRUE | JD17: TRUE | JE17: TRUE | JF17: TRUE | JG17: TRUE | JH17: TRUE | JI17: TRUE | JJ17: TRUE | JK17: TRUE | JL17: TRUE | JM17: TRUE | JN17: TRUE | JO17: TRUE | JP17: TRUE | JQ17: TRUE | JR17: TRUE | JS17: TRUE | JT17: TRUE | JU17: TRUE | JV17: TRUE | JW17: TRUE | JX17: TRUE | JY17: TRUE | JZ17: TRUE | KA17: TRUE | KB17: TRUE | KC17: TRUE | KD17: TRUE | KE17: TRUE | KF17: TRUE | KG17: TRUE | KH17: TRUE | KI17: TRUE | KJ17: TRUE | KK17: TRUE | KL17: TRUE | KM17: TRUE | KN17: TRUE | KO17: TRUE | KP17: TRUE | KQ17: TRUE | KR17: TRUE | KS17: TRUE
B18: Terminal Period | F18: =F15=$E$12 -> FALSE | G18: =G15=$E$12 -> FALSE | H18: FALSE | I18: FALSE | J18: FALSE | K18: FALSE | L18: TRUE | M18: FALSE | N18: FALSE | O18: FALSE | P18: FALSE | Q18: FALSE | R18: FALSE | S18: FALSE | T18: FALSE | U18: FALSE | V18: FALSE | W18: FALSE | X18: FALSE | Y18: FALSE | Z18: FALSE | AA18: FALSE | AB18: FALSE | AC18: FALSE | AD18: FALSE | AE18: FALSE | AF18: FALSE | AG18: FALSE | AH18: FALSE | AI18: FALSE | AJ18: FALSE | AK18: FALSE | AL18: FALSE | AM18: FALSE | AN18: FALSE | AO18: FALSE | AP18: FALSE | AQ18: FALSE | AR18: FALSE | AS18: FALSE | AT18: FALSE | AU18: FALSE | AV18: FALSE | AW18: FALSE | AX18: FALSE | AY18: FALSE | AZ18: FALSE | BA18: FALSE | BB18: FALSE | BC18: FALSE | BD18: FALSE | BE18: FALSE | BF18: FALSE | BG18: FALSE | BH18: FALSE | BI18: FALSE | BJ18: FALSE | BK18: FALSE | BL18: FALSE | BM18: FALSE | BN18: FALSE | BO18: FALSE | BP18: FALSE | BQ18: FALSE | BR18: FALSE | BS18: =BS15=$E$12 -> FALSE | BT18: FALSE | BU18: FALSE | BV18: FALSE | BW18: FALSE | BX18: FALSE | BY18: FALSE | BZ18: FALSE | CA18: FALSE | CB18: FALSE | CC18: FALSE | CD18: FALSE | CE18: FALSE | CF18: FALSE | CG18: FALSE | CH18: FALSE | CI18: FALSE | CJ18: FALSE | CK18: FALSE | CL18: FALSE | CM18: FALSE | CN18: FALSE | CO18: FALSE | CP18: FALSE | CQ18: FALSE | CR18: FALSE | CS18: FALSE | CT18: FALSE | CU18: FALSE | CV18: FALSE | CW18: FALSE | CX18: FALSE | CY18: FALSE | CZ18: FALSE | DA18: FALSE | DB18: FALSE | DC18: FALSE | DD18: FALSE | DE18: FALSE | DF18: FALSE | DG18: FALSE | DH18: FALSE | DI18: FALSE | DJ18: FALSE | DK18: FALSE | DL18: FALSE | DM18: FALSE | DN18: FALSE | DO18: FALSE | DP18: FALSE | DQ18: FALSE | DR18: FALSE | DS18: FALSE | DT18: FALSE | DU18: FALSE | DV18: FALSE | DW18: FALSE | DX18: FALSE | DY18: FALSE | DZ18: FALSE | EA18: FALSE | EB18: FALSE | EC18: FALSE | ED18: FALSE | EE18: =EE15=$E$12 -> FALSE | EF18: FALSE | EG18: FALSE | EH18: FALSE | EI18: FALSE | EJ18: FALSE | EK18: FALSE | EL18: FALSE | EM18: FALSE | EN18: FALSE | EO18: FALSE | EP18: FALSE | EQ18: FALSE | ER18: FALSE | ES18: FALSE | ET18: FALSE | EU18: FALSE | EV18: FALSE | EW18: FALSE | EX18: FALSE | EY18: FALSE | EZ18: FALSE | FA18: FALSE | FB18: FALSE | FC18: FALSE | FD18: FALSE | FE18: FALSE | FF18: FALSE | FG18: FALSE | FH18: FALSE | FI18: FALSE | FJ18: FALSE | FK18: FALSE | FL18: FALSE | FM18: FALSE | FN18: FALSE | FO18: FALSE | FP18: FALSE | FQ18: FALSE | FR18: FALSE | FS18: FALSE | FT18: FALSE | FU18: FALSE | FV18: FALSE | FW18: FALSE | FX18: FALSE | FY18: FALSE | FZ18: FALSE | GA18: FALSE | GB18: FALSE | GC18: FALSE | GD18: FALSE | GE18: FALSE | GF18: FALSE | GG18: FALSE | GH18: FALSE | GI18: FALSE | GJ18: FALSE | GK18: FALSE | GL18: FALSE | GM18: FALSE | GN18: FALSE | GO18: FALSE | GP18: FALSE | GQ18: =GQ15=$E$12 -> FALSE | GR18: FALSE | GS18: FALSE | GT18: FALSE | GU18: FALSE | GV18: FALSE | GW18: FALSE | GX18: FALSE | GY18: FALSE | GZ18: FALSE | HA18: FALSE | HB18: FALSE | HC18: FALSE | HD18: FALSE | HE18: FALSE | HF18: FALSE | HG18: FALSE | HH18: FALSE | HI18: FALSE | HJ18: FALSE | HK18: FALSE | HL18: FALSE | HM18: FALSE | HN18: FALSE | HO18: FALSE | HP18: FALSE | HQ18: FALSE | HR18: FALSE | HS18: FALSE | HT18: FALSE | HU18: FALSE | HV18: FALSE | HW18: FALSE | HX18: FALSE | HY18: FALSE | HZ18: FALSE | IA18: FALSE | IB18: FALSE | IC18: FALSE | ID18: FALSE | IE18: FALSE | IF18: FALSE | IG18: FALSE | IH18: FALSE | II18: FALSE | IJ18: FALSE | IK18: FALSE | IL18: FALSE | IM18: FALSE | IN18: FALSE | IO18: FALSE | IP18: FALSE | IQ18: FALSE | IR18: FALSE | IS18: FALSE | IT18: FALSE | IU18: FALSE | IV18: FALSE | IW18: FALSE | IX18: FALSE | IY18: FALSE | IZ18: FALSE | JA18: FALSE | JB18: FALSE | JC18: =JC15=$E$12 -> FALSE | JD18: FALSE | JE18: FALSE | JF18: FALSE | JG18: FALSE | JH18: FALSE | JI18: FALSE | JJ18: FALSE | JK18: FALSE | JL18: FALSE | JM18: FALSE | JN18: FALSE | JO18: FALSE | JP18: FALSE | JQ18: FALSE | JR18: FALSE | JS18: FALSE | JT18: FALSE | JU18: FALSE | JV18: FALSE | JW18: FALSE | JX18: FALSE | JY18: FALSE | JZ18: FALSE | KA18: FALSE | KB18: FALSE | KC18: FALSE | KD18: FALSE | KE18: FALSE | KF18: FALSE | KG18: FALSE | KH18: FALSE | KI18: FALSE | KJ18: FALSE | KK18: FALSE | KL18: FALSE | KM18: FALSE | KN18: FALSE | KO18: FALSE | KP18: FALSE | KQ18: FALSE | KR18: FALSE | KS18: FALSE
B20: Growth Rate | F20: =F16*$E$9+F17*$E$10 -> 0.25 | G20: =G16*$E$9+G17*$E$10 -> 0.25 | H20: 0.25 | I20: 0.25 | J20: 0.25 | K20: 0.25 | L20: 0.25 | M20: 0.02 | N20: 0.02 | O20: 0.02 | P20: 0.02 | Q20: 0.02 | R20: 0.02 | S20: 0.02 | T20: 0.02 | U20: 0.02 | V20: 0.02 | W20: 0.02 | X20: 0.02 | Y20: 0.02 | Z20: 0.02 | AA20: 0.02 | AB20: 0.02 | AC20: 0.02 | AD20: 0.02 | AE20: 0.02 | AF20: 0.02 | AG20: 0.02 | AH20: 0.02 | AI20: 0.02 | AJ20: 0.02 | AK20: 0.02 | AL20: 0.02 | AM20: 0.02 | AN20: 0.02 | AO20: 0.02 | AP20: 0.02 | AQ20: 0.02 | AR20: 0.02 | AS20: 0.02 | AT20: 0.02 | AU20: 0.02 | AV20: 0.02 | AW20: 0.02 | AX20: 0.02 | AY20: 0.02 | AZ20: 0.02 | BA20: 0.02 | BB20: 0.02 | BC20: 0.02 | BD20: 0.02 | BE20: 0.02 | BF20: 0.02 | BG20: 0.02 | BH20: 0.02 | BI20: 0.02 | BJ20: 0.02 | BK20: 0.02 | BL20: 0.02 | BM20: 0.02 | BN20: 0.02 | BO20: 0.02 | BP20: 0.02 | BQ20: 0.02 | BR20: 0.02 | BS20: =BS16*$E$9+BS17*$E$10 -> 0.02 | BT20: 0.02 | BU20: 0.02 | BV20: 0.02 | BW20: 0.02 | BX20: 0.02 | BY20: 0.02 | BZ20: 0.02 | CA20: 0.02 | CB20: 0.02 | CC20: 0.02 | CD20: 0.02 | CE20: 0.02 | CF20: 0.02 | CG20: 0.02 | CH20: 0.02 | CI20: 0.02 | CJ20: 0.02 | CK20: 0.02 | CL20: 0.02 | CM20: 0.02 | CN20: 0.02 | CO20: 0.02 | CP20: 0.02 | CQ20: 0.02 | CR20: 0.02 | CS20: 0.02 | CT20: 0.02 | CU20: 0.02 | CV20: 0.02 | CW20: 0.02 | CX20: 0.02 | CY20: 0.02 | CZ20: 0.02 | DA20: 0.02 | DB20: 0.02 | DC20: 0.02 | DD20: 0.02 | DE20: 0.02 | DF20: 0.02 | DG20: 0.02 | DH20: 0.02 | DI20: 0.02 | DJ20: 0.02 | DK20: 0.02 | DL20: 0.02 | DM20: 0.02 | DN20: 0.02 | DO20: 0.02 | DP20: 0.02 | DQ20: 0.02 | DR20: 0.02 | DS20: 0.02 | DT20: 0.02 | DU20: 0.02 | DV20: 0.02 | DW20: 0.02 | DX20: 0.02 | DY20: 0.02 | DZ20: 0.02 | EA20: 0.02 | EB20: 0.02 | EC20: 0.02 | ED20: 0.02 | EE20: =EE16*$E$9+EE17*$E$10 -> 0.02 | EF20: 0.02 | EG20: 0.02 | EH20: 0.02 | EI20: 0.02 | EJ20: 0.02 | EK20: 0.02 | EL20: 0.02 | EM20: 0.02 | EN20: 0.02 | EO20: 0.02 | EP20: 0.02 | EQ20: 0.02 | ER20: 0.02 | ES20: 0.02 | ET20: 0.02 | EU20: 0.02 | EV20: 0.02 | EW20: 0.02 | EX20: 0.02 | EY20: 0.02 | EZ20: 0.02 | FA20: 0.02 | FB20: 0.02 | FC20: 0.02 | FD20: 0.02 | FE20: 0.02 | FF20: 0.02 | FG20: 0.02 | FH20: 0.02 | FI20: 0.02 | FJ20: 0.02 | FK20: 0.02 | FL20: 0.02 | FM20: 0.02 | FN20: 0.02 | FO20: 0.02 | FP20: 0.02 | FQ20: 0.02 | FR20: 0.02 | FS20: 0.02 | FT20: 0.02 | FU20: 0.02 | FV20: 0.02 | FW20: 0.02 | FX20: 0.02 | FY20: 0.02 | FZ20: 0.02 | GA20: 0.02 | GB20: 0.02 | GC20: 0.02 | GD20: 0.02 | GE20: 0.02 | GF20: 0.02 | GG20: 0.02 | GH20: 0.02 | GI20: 0.02 | GJ20: 0.02 | GK20: 0.02 | GL20: 0.02 | GM20: 0.02 | GN20: 0.02 | GO20: 0.02 | GP20: 0.02 | GQ20: =GQ16*$E$9+GQ17*$E$10 -> 0.02 | GR20: 0.02 | GS20: 0.02 | GT20: 0.02 | GU20: 0.02 | GV20: 0.02 | GW20: 0.02 | GX20: 0.02 | GY20: 0.02 | GZ20: 0.02 | HA20: 0.02 | HB20: 0.02 | HC20: 0.02 | HD20: 0.02 | HE20: 0.02 | HF20: 0.02 | HG20: 0.02 | HH20: 0.02 | HI20: 0.02 | HJ20: 0.02 | HK20: 0.02 | HL20: 0.02 | HM20: 0.02 | HN20: 0.02 | HO20: 0.02 | HP20: 0.02 | HQ20: 0.02 | HR20: 0.02 | HS20: 0.02 | HT20: 0.02 | HU20: 0.02 | HV20: 0.02 | HW20: 0.02 | HX20: 0.02 | HY20: 0.02 | HZ20: 0.02 | IA20: 0.02 | IB20: 0.02 | IC20: 0.02 | ID20: 0.02 | IE20: 0.02 | IF20: 0.02 | IG20: 0.02 | IH20: 0.02 | II20: 0.02 | IJ20: 0.02 | IK20: 0.02 | IL20: 0.02 | IM20: 0.02 | IN20: 0.02 | IO20: 0.02 | IP20: 0.02 | IQ20: 0.02 | IR20: 0.02 | IS20: 0.02 | IT20: 0.02 | IU20: 0.02 | IV20: 0.02 | IW20: 0.02 | IX20: 0.02 | IY20: 0.02 | IZ20: 0.02 | JA20: 0.02 | JB20: 0.02 | JC20: =JC16*$E$9+JC17*$E$10 -> 0.02 | JD20: 0.02 | JE20: 0.02 | JF20: 0.02 | JG20: 0.02 | JH20: 0.02 | JI20: 0.02 | JJ20: 0.02 | JK20: 0.02 | JL20: 0.02 | JM20: 0.02 | JN20: 0.02 | JO20: 0.02 | JP20: 0.02 | JQ20: 0.02 | JR20: 0.02 | JS20: 0.02 | JT20: 0.02 | JU20: 0.02 | JV20: 0.02 | JW20: 0.02 | JX20: 0.02 | JY20: 0.02 | JZ20: 0.02 | KA20: 0.02 | KB20: 0.02 | KC20: 0.02 | KD20: 0.02 | KE20: 0.02 | KF20: 0.02 | KG20: 0.02 | KH20: 0.02 | KI20: 0.02 | KJ20: 0.02 | KK20: 0.02 | KL20: 0.02 | KM20: 0.02 | KN20: 0.02 | KO20: 0.02 | KP20: 0.02 | KQ20: 0.02 | KR20: 0.02 | KS20: 0.02
B21: Revenues | E21: =E3 -> 100 | F21: =E21*(1+F20) -> 125 | G21: =F21*(1+G20) -> 156.25 | H21: 195.3125 | I21: 244.140625 | J21: 305.1757812 | K21: 381.4697266 | L21: 476.8371582 | M21: 486.3739014 | N21: 496.1013794 | O21: 506.023407 | P21: 516.1438751 | Q21: 526.4667526 | R21: 536.9960877 | S21: 547.7360094 | T21: 558.6907296 | U21: 569.8645442 | V21: 581.2618351 | W21: 592.8870718 | X21: 604.7448132 | Y21: 616.8397095 | Z21: 629.1765037 | AA21: 641.7600338 | AB21: 654.5952344 | AC21: 667.6871391 | AD21: 681.0408819 | AE21: 694.6616995 | AF21: 708.5549335 | AG21: 722.7260322 | AH21: 737.1805529 | AI21: 751.9241639 | AJ21: 766.9626472 | AK21: 782.3019001 | AL21: 797.9479381 | AM21: 813.9068969 | AN21: 830.1850348 | AO21: 846.7887355 | AP21: 863.7245102 | AQ21: 880.9990004 | AR21: 898.6189805 | AS21: 916.5913601 | AT21: 934.9231873 | AU21: 953.621651 | AV21: 972.694084 | AW21: 992.1479657 | AX21: 1011.990925 | AY21: 1032.230744 | AZ21: 1052.875358 | BA21: 1073.932866 | BB21: 1095.411523 | BC21: 1117.319753 | BD21: 1139.666148 | BE21: 1162.459471 | BF21: 1185.708661 | BG21: 1209.422834 | BH21: 1233.611291 | BI21: 1258.283517 | BJ21: 1283.449187 | BK21: 1309.118171 | BL21: 1335.300534 | BM21: 1362.006545 | BN21: 1389.246676 | BO21: 1417.031609 | BP21: 1445.372241 | BQ21: 1474.279686 | BR21: 1503.76528 | BS21: =BR21*(1+BS20) -> 1533.840585 | BT21: 1564.517397 | BU21: 1595.807745 | BV21: 1627.7239 | BW21: 1660.278378 | BX21: 1693.483946 | BY21: 1727.353624 | BZ21: 1761.900697 | CA21: 1797.138711 | CB21: 1833.081485 | CC21: 1869.743115 | CD21: 1907.137977 | CE21: 1945.280737 | CF21: 1984.186351 | CG21: 2023.870078 | CH21: 2064.34748 | CI21: 2105.63443 | CJ21: 2147.747118 | CK21: 2190.70206 | CL21: 2234.516102 | CM21: 2279.206424 | CN21: 2324.790552 | CO21: 2371.286363 | CP21: 2418.71209 | CQ21: 2467.086332 | CR21: 2516.428059 | CS21: 2566.75662 | CT21: 2618.091753 | CU21: 2670.453588 | CV21: 2723.862659 | CW21: 2778.339913 | CX21: 2833.906711 | CY21: 2890.584845 | CZ21: 2948.396542 | DA21: 3007.364473 | DB21: 3067.511762 | DC21: 3128.861997 | DD21: 3191.439237 | DE21: 3255.268022 | DF21: 3320.373383 | DG21: 3386.78085 | DH21: 3454.516467 | DI21: 3523.606797 | DJ21: 3594.078932 | DK21: 3665.960511 | DL21: 3739.279721 | DM21: 3814.065316 | DN21: 3890.346622 | DO21: 3968.153555 | DP21: 4047.516626 | DQ21: 4128.466958 | DR21: 4211.036297 | DS21: 4295.257023 | DT21: 4381.162164 | DU21: 4468.785407 | DV21: 4558.161115 | DW21: 4649.324337 | DX21: 4742.310824 | DY21: 4837.157041 | DZ21: 4933.900181 | EA21: 5032.578185 | EB21: 5133.229749 | EC21: 5235.894344 | ED21: 5340.612231 | EE21: =ED21*(1+EE20) -> 5447.424475 | EF21: 5556.372965 | EG21: 5667.500424 | EH21: 5780.850433 | EI21: 5896.467441 | EJ21: 6014.39679 | EK21: 6134.684726 | EL21: 6257.37842 | EM21: 6382.525989 | EN21: 6510.176509 | EO21: 6640.380039 | EP21: 6773.187639 | EQ21: 6908.651392 | ER21: 7046.82442 | ES21: 7187.760909 | ET21: 7331.516127 | EU21: 7478.146449 | EV21: 7627.709378 | EW21: 7780.263566 | EX21: 7935.868837 | EY21: 8094.586214 | EZ21: 8256.477938 | FA21: 8421.607497 | FB21: 8590.039647 | FC21: 8761.84044 | FD21: 8937.077249 | FE21: 9115.818794 | FF21: 9298.135169 | FG21: 9484.097873 | FH21: 9673.77983 | FI21: 9867.255427 | FJ21: 10064.60054 | FK21: 10265.89255 | FL21: 10471.2104 | FM21: 10680.6346 | FN21: 10894.2473 | FO21: 11112.13224 | FP21: 11334.37489 | FQ21: 11561.06239 | FR21: 11792.28363 | FS21: 12028.12931 | FT21: 12268.69189 | FU21: 12514.06573 | FV21: 12764.34704 | FW21: 13019.63399 | FX21: 13280.02667 | FY21: 13545.6272 | FZ21: 13816.53974 | GA21: 14092.87054 | GB21: 14374.72795 | GC21: 14662.22251 | GD21: 14955.46696 | GE21: 15254.5763 | GF21: 15559.66782 | GG21: 15870.86118 | GH21: 16188.2784 | GI21: 16512.04397 | GJ21: 16842.28485 | GK21: 17179.13055 | GL21: 17522.71316 | GM21: 17873.16742 | GN21: 18230.63077 | GO21: 18595.24338 | GP21: 18967.14825 | GQ21: =GP21*(1+GQ20) -> 19346.49122 | GR21: 19733.42104 | GS21: 20128.08946 | GT21: 20530.65125 | GU21: 20941.26428 | GV21: 21360.08956 | GW21: 21787.29135 | GX21: 22223.03718 | GY21: 22667.49792 | GZ21: 23120.84788 | HA21: 23583.26484 | HB21: 24054.93014 | HC21: 24536.02874 | HD21: 25026.74931 | HE21: 25527.2843 | HF21: 26037.82999 | HG21: 26558.58659 | HH21: 27089.75832 | HI21: 27631.55348 | HJ21: 28184.18455 | HK21: 28747.86825 | HL21: 29322.82561 | HM21: 29909.28212 | HN21: 30507.46777 | HO21: 31117.61712 | HP21: 31739.96946 | HQ21: 32374.76885 | HR21: 33022.26423 | HS21: 33682.70951 | HT21: 34356.3637 | HU21: 35043.49098 | HV21: 35744.3608 | HW21: 36459.24801 | HX21: 37188.43297 | HY21: 37932.20163 | HZ21: 38690.84567 | IA21: 39464.66258 | IB21: 40253.95583 | IC21: 41059.03495 | ID21: 41880.21565 | IE21: 42717.81996 | IF21: 43572.17636 | IG21: 44443.61989 | IH21: 45332.49228 | II21: 46239.14213 | IJ21: 47163.92497 | IK21: 48107.20347 | IL21: 49069.34754 | IM21: 50050.73449 | IN21: 51051.74918 | IO21: 52072.78416 | IP21: 53114.23985 | IQ21: 54176.52465 | IR21: 55260.05514 | IS21: 56365.25624 | IT21: 57492.56137 | IU21: 58642.41259 | IV21: 59815.26084 | IW21: 61011.56606 | IX21: 62231.79738 | IY21: 63476.43333 | IZ21: 64745.962 | JA21: 66040.88124 | JB21: 67361.69886 | JC21: =JB21*(1+JC20) -> 68708.93284 | JD21: 70083.1115 | JE21: 71484.77373 | JF21: 72914.4692 | JG21: 74372.75858 | JH21: 75860.21376 | JI21: 77377.41803 | JJ21: 78924.96639 | JK21: 80503.46572 | JL21: 82113.53503 | JM21: 83755.80573 | JN21: 85430.92185 | JO21: 87139.54029 | JP21: 88882.33109 | JQ21: 90659.97771 | JR21: 92473.17727 | JS21: 94322.64081 | JT21: 96209.09363 | JU21: 98133.2755 | JV21: 100095.941 | JW21: 102097.8598 | JX21: 104139.817 | JY21: 106222.6134 | JZ21: 108347.0656 | KA21: 110514.007 | KB21: 112724.2871 | KC21: 114978.7728 | KD21: 117278.3483 | KE21: 119623.9153 | KF21: 122016.3936 | KG21: 124456.7214 | KH21: 126945.8559 | KI21: 129484.773 | KJ21: 132074.4684 | KK21: 134715.9578 | KL21: 137410.277 | KM21: 140158.4825 | KN21: 142961.6521 | KO21: 145820.8852 | KP21: 148737.3029 | KQ21: 151712.049 | KR21: 154746.2899 | KS21: 157841.2157
B22: Operating Costs | E22: =E21*(1-$E$4) -> 90 | F22: =F21*(1-$E$4) -> 112.5 | G22: 140.625 | H22: 175.78125 | I22: 219.7265625 | J22: 274.6582031 | K22: 343.3227539 | L22: 429.1534424 | M22: 437.7365112 | N22: 446.4912415 | O22: 455.4210663 | P22: 464.5294876 | Q22: 473.8200774 | R22: 483.2964789 | S22: 492.9624085 | T22: 502.8216567 | U22: 512.8780898 | V22: 523.1356516 | W22: 533.5983646 | X22: 544.2703319 | Y22: 555.1557385 | Z22: 566.2588533 | AA22: 577.5840304 | AB22: 589.135711 | AC22: 600.9184252 | AD22: 612.9367937 | AE22: 625.1955296 | AF22: 637.6994402 | AG22: 650.453429 | AH22: 663.4624976 | AI22: 676.7317475 | AJ22: 690.2663825 | AK22: 704.0717101 | AL22: 718.1531443 | AM22: 732.5162072 | AN22: 747.1665314 | AO22: 762.109862 | AP22: 777.3520592 | AQ22: 792.8991004 | AR22: 808.7570824 | AS22: 824.9322241 | AT22: 841.4308685 | AU22: 858.2594859 | AV22: 875.4246756 | AW22: 892.9331691 | AX22: 910.7918325 | AY22: 929.0076692 | AZ22: 947.5878226 | BA22: 966.539579 | BB22: 985.8703706 | BC22: 1005.587778 | BD22: 1025.699534 | BE22: 1046.213524 | BF22: 1067.137795 | BG22: 1088.480551 | BH22: 1110.250162 | BI22: 1132.455165 | BJ22: 1155.104268 | BK22: 1178.206354 | BL22: 1201.770481 | BM22: 1225.80589 | BN22: 1250.322008 | BO22: 1275.328448 | BP22: 1300.835017 | BQ22: 1326.851717 | BR22: =BR21*(1-$E$4) -> 1353.388752 | BS22: 1380.456527 | BT22: 1408.065657 | BU22: 1436.226971 | BV22: 1464.95151 | BW22: 1494.25054 | BX22: 1524.135551 | BY22: 1554.618262 | BZ22: 1585.710627 | CA22: 1617.42484 | CB22: 1649.773337 | CC22: 1682.768803 | CD22: 1716.424179 | CE22: 1750.752663 | CF22: 1785.767716 | CG22: 1821.483071 | CH22: 1857.912732 | CI22: 1895.070987 | CJ22: 1932.972406 | CK22: 1971.631854 | CL22: 2011.064492 | CM22: 2051.285781 | CN22: 2092.311497 | CO22: 2134.157727 | CP22: 2176.840881 | CQ22: 2220.377699 | CR22: 2264.785253 | CS22: 2310.080958 | CT22: 2356.282577 | CU22: 2403.408229 | CV22: 2451.476393 | CW22: 2500.505921 | CX22: 2550.51604 | CY22: 2601.52636 | CZ22: 2653.556888 | DA22: 2706.628025 | DB22: 2760.760586 | DC22: 2815.975798 | DD22: 2872.295314 | DE22: 2929.74122 | DF22: 2988.336044 | DG22: 3048.102765 | DH22: 3109.06482 | DI22: 3171.246117 | DJ22: 3234.671039 | DK22: 3299.36446 | DL22: 3365.351749 | DM22: 3432.658784 | DN22: 3501.31196 | DO22: 3571.338199 | DP22: 3642.764963 | DQ22: 3715.620262 | DR22: 3789.932668 | DS22: 3865.731321 | DT22: 3943.045947 | DU22: 4021.906866 | DV22: 4102.345004 | DW22: 4184.391904 | DX22: 4268.079742 | DY22: 4353.441337 | DZ22: 4440.510163 | EA22: 4529.320367 | EB22: 4619.906774 | EC22: 4712.304909 | ED22: =ED21*(1-$E$4) -> 4806.551008 | EE22: 4902.682028 | EF22: 5000.735668 | EG22: 5100.750382 | EH22: 5202.765389 | EI22: 5306.820697 | EJ22: 5412.957111 | EK22: 5521.216253 | EL22: 5631.640578 | EM22: 5744.27339 | EN22: 5859.158858 | EO22: 5976.342035 | EP22: 6095.868876 | EQ22: 6217.786253 | ER22: 6342.141978 | ES22: 6468.984818 | ET22: 6598.364514 | EU22: 6730.331804 | EV22: 6864.93844 | EW22: 7002.237209 | EX22: 7142.281953 | EY22: 7285.127592 | EZ22: 7430.830144 | FA22: 7579.446747 | FB22: 7731.035682 | FC22: 7885.656396 | FD22: 8043.369524 | FE22: 8204.236914 | FF22: 8368.321652 | FG22: 8535.688086 | FH22: 8706.401847 | FI22: 8880.529884 | FJ22: 9058.140482 | FK22: 9239.303291 | FL22: 9424.089357 | FM22: 9612.571144 | FN22: 9804.822567 | FO22: 10000.91902 | FP22: 10200.9374 | FQ22: 10404.95615 | FR22: 10613.05527 | FS22: 10825.31638 | FT22: 11041.8227 | FU22: 11262.65916 | FV22: 11487.91234 | FW22: 11717.67059 | FX22: 11952.024 | FY22: 12191.06448 | FZ22: 12434.88577 | GA22: 12683.58348 | GB22: 12937.25515 | GC22: 13196.00026 | GD22: 13459.92026 | GE22: 13729.11867 | GF22: 14003.70104 | GG22: 14283.77506 | GH22: 14569.45056 | GI22: 14860.83957 | GJ22: 15158.05636 | GK22: 15461.21749 | GL22: 15770.44184 | GM22: 16085.85068 | GN22: 16407.56769 | GO22: 16735.71905 | GP22: =GP21*(1-$E$4) -> 17070.43343 | GQ22: 17411.8421 | GR22: 17760.07894 | GS22: 18115.28052 | GT22: 18477.58613 | GU22: 18847.13785 | GV22: 19224.08061 | GW22: 19608.56222 | GX22: 20000.73346 | GY22: 20400.74813 | GZ22: 20808.76309 | HA22: 21224.93836 | HB22: 21649.43712 | HC22: 22082.42587 | HD22: 22524.07438 | HE22: 22974.55587 | HF22: 23434.04699 | HG22: 23902.72793 | HH22: 24380.78249 | HI22: 24868.39814 | HJ22: 25365.7661 | HK22: 25873.08142 | HL22: 26390.54305 | HM22: 26918.35391 | HN22: 27456.72099 | HO22: 28005.85541 | HP22: 28565.97252 | HQ22: 29137.29197 | HR22: 29720.03781 | HS22: 30314.43856 | HT22: 30920.72733 | HU22: 31539.14188 | HV22: 32169.92472 | HW22: 32813.32321 | HX22: 33469.58968 | HY22: 34138.98147 | HZ22: 34821.7611 | IA22: 35518.19632 | IB22: 36228.56025 | IC22: 36953.13145 | ID22: 37692.19408 | IE22: 38446.03796 | IF22: 39214.95872 | IG22: 39999.2579 | IH22: 40799.24306 | II22: 41615.22792 | IJ22: 42447.53247 | IK22: 43296.48312 | IL22: 44162.41279 | IM22: 45045.66104 | IN22: 45946.57426 | IO22: 46865.50575 | IP22: 47802.81586 | IQ22: 48758.87218 | IR22: 49734.04962 | IS22: 50728.73062 | IT22: 51743.30523 | IU22: 52778.17133 | IV22: 53833.73476 | IW22: 54910.40946 | IX22: 56008.61764 | IY22: 57128.79 | IZ22: 58271.3658 | JA22: 59436.79311 | JB22: =JB21*(1-$E$4) -> 60625.52898 | JC22: 61838.03956 | JD22: 63074.80035 | JE22: 64336.29635 | JF22: 65623.02228 | JG22: 66935.48273 | JH22: 68274.19238 | JI22: 69639.67623 | JJ22: 71032.46975 | JK22: 72453.11915 | JL22: 73902.18153 | JM22: 75380.22516 | JN22: 76887.82966 | JO22: 78425.58626 | JP22: 79994.09798 | JQ22: 81593.97994 | JR22: 83225.85954 | JS22: 84890.37673 | JT22: 86588.18427 | JU22: 88319.94795 | JV22: 90086.34691 | JW22: 91888.07385 | JX22: 93725.83533 | JY22: 95600.35203 | JZ22: 97512.35907 | KA22: 99462.60626 | KB22: 101451.8584 | KC22: 103480.8955 | KD22: 105550.5135 | KE22: 107661.5237 | KF22: 109814.7542 | KG22: 112011.0493 | KH22: 114251.2703 | KI22: 116536.2957 | KJ22: 118867.0216 | KK22: 121244.362 | KL22: 123669.2493 | KM22: 126142.6342 | KN22: 128665.4869 | KO22: 131238.7967 | KP22: 133863.5726 | KQ22: 136540.8441 | KR22: 139271.6609 | KS22: 142057.0942
B23: EBITDA | E23: =E21-E22 -> 10 | F23: =F21-F22 -> 12.5 | G23: 15.625 | H23: 19.53125 | I23: 24.4140625 | J23: 30.51757812 | K23: 38.14697266 | L23: 47.68371582 | M23: 48.63739014 | N23: 49.61013794 | O23: 50.6023407 | P23: 51.61438751 | Q23: 52.64667526 | R23: 53.69960877 | S23: 54.77360094 | T23: 55.86907296 | U23: 56.98645442 | V23: 58.12618351 | W23: 59.28870718 | X23: 60.47448132 | Y23: 61.68397095 | Z23: 62.91765037 | AA23: 64.17600338 | AB23: 65.45952344 | AC23: 66.76871391 | AD23: 68.10408819 | AE23: 69.46616995 | AF23: 70.85549335 | AG23: 72.27260322 | AH23: 73.71805529 | AI23: 75.19241639 | AJ23: 76.69626472 | AK23: 78.23019001 | AL23: 79.79479381 | AM23: 81.39068969 | AN23: 83.01850348 | AO23: 84.67887355 | AP23: 86.37245102 | AQ23: 88.09990004 | AR23: 89.86189805 | AS23: 91.65913601 | AT23: 93.49231873 | AU23: 95.3621651 | AV23: 97.2694084 | AW23: 99.21479657 | AX23: 101.1990925 | AY23: 103.2230744 | AZ23: 105.2875358 | BA23: 107.3932866 | BB23: 109.5411523 | BC23: 111.7319753 | BD23: 113.9666148 | BE23: 116.2459471 | BF23: 118.5708661 | BG23: 120.9422834 | BH23: 123.3611291 | BI23: 125.8283517 | BJ23: 128.3449187 | BK23: 130.9118171 | BL23: 133.5300534 | BM23: 136.2006545 | BN23: 138.9246676 | BO23: 141.7031609 | BP23: 144.5372241 | BQ23: 147.4279686 | BR23: =BR21-BR22 -> 150.376528 | BS23: 153.3840585 | BT23: 156.4517397 | BU23: 159.5807745 | BV23: 162.77239 | BW23: 166.0278378 | BX23: 169.3483946 | BY23: 172.7353624 | BZ23: 176.1900697 | CA23: 179.7138711 | CB23: 183.3081485 | CC23: 186.9743115 | CD23: 190.7137977 | CE23: 194.5280737 | CF23: 198.4186351 | CG23: 202.3870078 | CH23: 206.434748 | CI23: 210.563443 | CJ23: 214.7747118 | CK23: 219.070206 | CL23: 223.4516102 | CM23: 227.9206424 | CN23: 232.4790552 | CO23: 237.1286363 | CP23: 241.871209 | CQ23: 246.7086332 | CR23: 251.6428059 | CS23: 256.675662 | CT23: 261.8091753 | CU23: 267.0453588 | CV23: 272.3862659 | CW23: 277.8339913 | CX23: 283.3906711 | CY23: 289.0584845 | CZ23: 294.8396542 | DA23: 300.7364473 | DB23: 306.7511762 | DC23: 312.8861997 | DD23: 319.1439237 | DE23: 325.5268022 | DF23: 332.0373383 | DG23: 338.678085 | DH23: 345.4516467 | DI23: 352.3606797 | DJ23: 359.4078932 | DK23: 366.5960511 | DL23: 373.9279721 | DM23: 381.4065316 | DN23: 389.0346622 | DO23: 396.8153555 | DP23: 404.7516626 | DQ23: 412.8466958 | DR23: 421.1036297 | DS23: 429.5257023 | DT23: 438.1162164 | DU23: 446.8785407 | DV23: 455.8161115 | DW23: 464.9324337 | DX23: 474.2310824 | DY23: 483.7157041 | DZ23: 493.3900181 | EA23: 503.2578185 | EB23: 513.3229749 | EC23: 523.5894344 | ED23: =ED21-ED22 -> 534.0612231 | EE23: 544.7424475 | EF23: 555.6372965 | EG23: 566.7500424 | EH23: 578.0850433 | EI23: 589.6467441 | EJ23: 601.439679 | EK23: 613.4684726 | EL23: 625.737842 | EM23: 638.2525989 | EN23: 651.0176509 | EO23: 664.0380039 | EP23: 677.3187639 | EQ23: 690.8651392 | ER23: 704.682442 | ES23: 718.7760909 | ET23: 733.1516127 | EU23: 747.8146449 | EV23: 762.7709378 | EW23: 778.0263566 | EX23: 793.5868837 | EY23: 809.4586214 | EZ23: 825.6477938 | FA23: 842.1607497 | FB23: 859.0039647 | FC23: 876.184044 | FD23: 893.7077249 | FE23: 911.5818794 | FF23: 929.8135169 | FG23: 948.4097873 | FH23: 967.377983 | FI23: 986.7255427 | FJ23: 1006.460054 | FK23: 1026.589255 | FL23: 1047.12104 | FM23: 1068.06346 | FN23: 1089.42473 | FO23: 1111.213224 | FP23: 1133.437489 | FQ23: 1156.106239 | FR23: 1179.228363 | FS23: 1202.812931 | FT23: 1226.869189 | FU23: 1251.406573 | FV23: 1276.434704 | FW23: 1301.963399 | FX23: 1328.002667 | FY23: 1354.56272 | FZ23: 1381.653974 | GA23: 1409.287054 | GB23: 1437.472795 | GC23: 1466.222251 | GD23: 1495.546696 | GE23: 1525.45763 | GF23: 1555.966782 | GG23: 1587.086118 | GH23: 1618.82784 | GI23: 1651.204397 | GJ23: 1684.228485 | GK23: 1717.913055 | GL23: 1752.271316 | GM23: 1787.316742 | GN23: 1823.063077 | GO23: 1859.524338 | GP23: =GP21-GP22 -> 1896.714825 | GQ23: 1934.649122 | GR23: 1973.342104 | GS23: 2012.808946 | GT23: 2053.065125 | GU23: 2094.126428 | GV23: 2136.008956 | GW23: 2178.729135 | GX23: 2222.303718 | GY23: 2266.749792 | GZ23: 2312.084788 | HA23: 2358.326484 | HB23: 2405.493014 | HC23: 2453.602874 | HD23: 2502.674931 | HE23: 2552.72843 | HF23: 2603.782999 | HG23: 2655.858659 | HH23: 2708.975832 | HI23: 2763.155348 | HJ23: 2818.418455 | HK23: 2874.786825 | HL23: 2932.282561 | HM23: 2990.928212 | HN23: 3050.746777 | HO23: 3111.761712 | HP23: 3173.996946 | HQ23: 3237.476885 | HR23: 3302.226423 | HS23: 3368.270951 | HT23: 3435.63637 | HU23: 3504.349098 | HV23: 3574.43608 | HW23: 3645.924801 | HX23: 3718.843297 | HY23: 3793.220163 | HZ23: 3869.084567 | IA23: 3946.466258 | IB23: 4025.395583 | IC23: 4105.903495 | ID23: 4188.021565 | IE23: 4271.781996 | IF23: 4357.217636 | IG23: 4444.361989 | IH23: 4533.249228 | II23: 4623.914213 | IJ23: 4716.392497 | IK23: 4810.720347 | IL23: 4906.934754 | IM23: 5005.073449 | IN23: 5105.174918 | IO23: 5207.278416 | IP23: 5311.423985 | IQ23: 5417.652465 | IR23: 5526.005514 | IS23: 5636.525624 | IT23: 5749.256137 | IU23: 5864.241259 | IV23: 5981.526084 | IW23: 6101.156606 | IX23: 6223.179738 | IY23: 6347.643333 | IZ23: 6474.5962 | JA23: 6604.088124 | JB23: =JB21-JB22 -> 6736.169886 | JC23: 6870.893284 | JD23: 7008.31115 | JE23: 7148.477373 | JF23: 7291.44692 | JG23: 7437.275858 | JH23: 7586.021376 | JI23: 7737.741803 | JJ23: 7892.496639 | JK23: 8050.346572 | JL23: 8211.353503 | JM23: 8375.580573 | JN23: 8543.092185 | JO23: 8713.954029 | JP23: 8888.233109 | JQ23: 9065.997771 | JR23: 9247.317727 | JS23: 9432.264081 | JT23: 9620.909363 | JU23: 9813.32755 | JV23: 10009.5941 | JW23: 10209.78598 | JX23: 10413.9817 | JY23: 10622.26134 | JZ23: 10834.70656 | KA23: 11051.4007 | KB23: 11272.42871 | KC23: 11497.87728 | KD23: 11727.83483 | KE23: 11962.39153 | KF23: 12201.63936 | KG23: 12445.67214 | KH23: 12694.58559 | KI23: 12948.4773 | KJ23: 13207.44684 | KK23: 13471.59578 | KL23: 13741.0277 | KM23: 14015.84825 | KN23: 14296.16521 | KO23: 14582.08852 | KP23: 14873.73029 | KQ23: 15171.2049 | KR23: 15474.62899 | KS23: 15784.12157
B25: AR Level | E25: =E21*$E$7 -> 16.43835616 | F25: =F21*$E$7 -> 20.54794521 | G25: 25.68493151 | H25: 32.10616438 | I25: 40.13270548 | J25: 50.16588185 | K25: 62.70735231 | L25: 78.38419039 | M25: 79.9518742 | N25: 81.55091168 | O25: 83.18192991 | P25: 84.84556851 | Q25: 86.54247988 | R25: 88.27332948 | S25: 90.03879607 | T25: 91.83957199 | U25: 93.67636343 | V25: 95.5498907 | W25: 97.46088851 | X25: 99.41010628 | Y25: 101.3983084 | Z25: 103.4262746 | AA25: 105.4948001 | AB25: 107.6046961 | AC25: 109.75679 | AD25: 111.9519258 | AE25: 114.1909643 | AF25: 116.4747836 | AG25: 118.8042793 | AH25: 121.1803649 | AI25: 123.6039721 | AJ25: 126.0760516 | AK25: 128.5975726 | AL25: 131.1695241 | AM25: 133.7929146 | AN25: 136.4687728 | AO25: 139.1981483 | AP25: 141.9821113 | AQ25: 144.8217535 | AR25: 147.7181886 | AS25: 150.6725523 | AT25: 153.6860034 | AU25: 156.7597235 | AV25: 159.8949179 | AW25: 163.0928163 | AX25: 166.3546726 | AY25: 169.6817661 | AZ25: 173.0754014 | BA25: 176.5369094 | BB25: 180.0676476 | BC25: 183.6690005 | BD25: 187.3423806 | BE25: 191.0892282 | BF25: 194.9110127 | BG25: 198.809233 | BH25: 202.7854176 | BI25: 206.841126 | BJ25: 210.9779485 | BK25: 215.1975075 | BL25: 219.5014576 | BM25: 223.8914868 | BN25: 228.3693165 | BO25: 232.9367029 | BP25: 237.5954369 | BQ25: 242.3473457 | BR25: =BR21*$E$7 -> 247.1942926 | BS25: 252.1381784 | BT25: 257.180942 | BU25: 262.3245608 | BV25: 267.571052 | BW25: 272.9224731 | BX25: 278.3809225 | BY25: 283.948541 | BZ25: 289.6275118 | CA25: 295.4200621 | CB25: 301.3284633 | CC25: 307.3550326 | CD25: 313.5021332 | CE25: 319.7721759 | CF25: 326.1676194 | CG25: 332.6909718 | CH25: 339.3447912 | CI25: 346.131687 | CJ25: 353.0543208 | CK25: 360.1154072 | CL25: 367.3177153 | CM25: 374.6640697 | CN25: 382.157351 | CO25: 389.8004981 | CP25: 397.596508 | CQ25: 405.5484382 | CR25: 413.659407 | CS25: 421.9325951 | CT25: 430.371247 | CU25: 438.9786719 | CV25: 447.7582454 | CW25: 456.7134103 | CX25: 465.8476785 | CY25: 475.1646321 | CZ25: 484.6679247 | DA25: 494.3612832 | DB25: 504.2485089 | DC25: 514.333479 | DD25: 524.6201486 | DE25: 535.1125516 | DF25: 545.8148026 | DG25: 556.7310987 | DH25: 567.8657206 | DI25: 579.2230351 | DJ25: 590.8074958 | DK25: 602.6236457 | DL25: 614.6761186 | DM25: 626.969641 | DN25: 639.5090338 | DO25: 652.2992144 | DP25: 665.3451987 | DQ25: 678.6521027 | DR25: 692.2251448 | DS25: 706.0696477 | DT25: 720.1910406 | DU25: 734.5948614 | DV25: 749.2867587 | DW25: 764.2724938 | DX25: 779.5579437 | DY25: 795.1491026 | DZ25: 811.0520846 | EA25: 827.2731263 | EB25: 843.8185888 | EC25: 860.6949606 | ED25: =ED21*$E$7 -> 877.9088598 | EE25: 895.467037 | EF25: 913.3763778 | EG25: 931.6439053 | EH25: 950.2767834 | EI25: 969.2823191 | EJ25: 988.6679655 | EK25: 1008.441325 | EL25: 1028.610151 | EM25: 1049.182354 | EN25: 1070.166001 | EO25: 1091.569321 | EP25: 1113.400708 | EQ25: 1135.668722 | ER25: 1158.382096 | ES25: 1181.549738 | ET25: 1205.180733 | EU25: 1229.284348 | EV25: 1253.870035 | EW25: 1278.947435 | EX25: 1304.526384 | EY25: 1330.616912 | EZ25: 1357.22925 | FA25: 1384.373835 | FB25: 1412.061312 | FC25: 1440.302538 | FD25: 1469.108589 | FE25: 1498.490761 | FF25: 1528.460576 | FG25: 1559.029787 | FH25: 1590.210383 | FI25: 1622.014591 | FJ25: 1654.454883 | FK25: 1687.54398 | FL25: 1721.29486 | FM25: 1755.720757 | FN25: 1790.835172 | FO25: 1826.651876 | FP25: 1863.184913 | FQ25: 1900.448611 | FR25: 1938.457584 | FS25: 1977.226735 | FT25: 2016.77127 | FU25: 2057.106695 | FV25: 2098.248829 | FW25: 2140.213806 | FX25: 2183.018082 | FY25: 2226.678444 | FZ25: 2271.212012 | GA25: 2316.636253 | GB25: 2362.968978 | GC25: 2410.228357 | GD25: 2458.432924 | GE25: 2507.601583 | GF25: 2557.753615 | GG25: 2608.908687 | GH25: 2661.086861 | GI25: 2714.308598 | GJ25: 2768.59477 | GK25: 2823.966665 | GL25: 2880.445999 | GM25: 2938.054918 | GN25: 2996.816017 | GO25: 3056.752337 | GP25: =GP21*$E$7 -> 3117.887384 | GQ25: 3180.245132 | GR25: 3243.850034 | GS25: 3308.727035 | GT25: 3374.901576 | GU25: 3442.399607 | GV25: 3511.247599 | GW25: 3581.472551 | GX25: 3653.102002 | GY25: 3726.164042 | GZ25: 3800.687323 | HA25: 3876.70107 | HB25: 3954.235091 | HC25: 4033.319793 | HD25: 4113.986189 | HE25: 4196.265912 | HF25: 4280.191231 | HG25: 4365.795055 | HH25: 4453.110956 | HI25: 4542.173176 | HJ25: 4633.016639 | HK25: 4725.676972 | HL25: 4820.190511 | HM25: 4916.594322 | HN25: 5014.926208 | HO25: 5115.224732 | HP25: 5217.529227 | HQ25: 5321.879811 | HR25: 5428.317408 | HS25: 5536.883756 | HT25: 5647.621431 | HU25: 5760.573859 | HV25: 5875.785337 | HW25: 5993.301043 | HX25: 6113.167064 | HY25: 6235.430405 | HZ25: 6360.139014 | IA25: 6487.341794 | IB25: 6617.08863 | IC25: 6749.430402 | ID25: 6884.41901 | IE25: 7022.107391 | IF25: 7162.549538 | IG25: 7305.800529 | IH25: 7451.91654 | II25: 7600.954871 | IJ25: 7752.973968 | IK25: 7908.033447 | IL25: 8066.194116 | IM25: 8227.517999 | IN25: 8392.068359 | IO25: 8559.909726 | IP25: 8731.10792 | IQ25: 8905.730079 | IR25: 9083.84468 | IS25: 9265.521574 | IT25: 9450.832005 | IU25: 9639.848645 | IV25: 9832.645618 | IW25: 10029.29853 | IX25: 10229.8845 | IY25: 10434.48219 | IZ25: 10643.17184 | JA25: 10856.03527 | JB25: =JB21*$E$7 -> 11073.15598 | JC25: 11294.6191 | JD25: 11520.51148 | JE25: 11750.92171 | JF25: 11985.94014 | JG25: 12225.65895 | JH25: 12470.17212 | JI25: 12719.57557 | JJ25: 12973.96708 | JK25: 13233.44642 | JL25: 13498.11535 | JM25: 13768.07766 | JN25: 14043.43921 | JO25: 14324.30799 | JP25: 14610.79415 | JQ25: 14903.01004 | JR25: 15201.07024 | JS25: 15505.09164 | JT25: 15815.19347 | JU25: 16131.49734 | JV25: 16454.12729 | JW25: 16783.20984 | JX25: 17118.87403 | JY25: 17461.25151 | JZ25: 17810.47654 | KA25: 18166.68607 | KB25: 18530.0198 | KC25: 18900.62019 | KD25: 19278.6326 | KE25: 19664.20525 | KF25: 20057.48935 | KG25: 20458.63914 | KH25: 20867.81192 | KI25: 21285.16816 | KJ25: 21710.87152 | KK25: 22145.08895 | KL25: 22587.99073 | KM25: 23039.75055 | KN25: 23500.54556 | KO25: 23970.55647 | KP25: 24449.9676 | KQ25: 24938.96695 | KR25: 25437.74629 | KS25: 25946.50122
B26: AP Level | E26: =E22*$E$8 -> 2.465753425 | F26: =F22*$E$8 -> 3.082191781 | G26: 3.852739726 | H26: 4.815924658 | I26: 6.019905822 | J26: 7.524882277 | K26: 9.406102847 | L26: 11.75762856 | M26: 11.99278113 | N26: 12.23263675 | O26: 12.47728949 | P26: 12.72683528 | Q26: 12.98137198 | R26: 13.24099942 | S26: 13.50581941 | T26: 13.7759358 | U26: 14.05145451 | V26: 14.33248361 | W26: 14.61913328 | X26: 14.91151594 | Y26: 15.20974626 | Z26: 15.51394119 | AA26: 15.82422001 | AB26: 16.14070441 | AC26: 16.4635185 | AD26: 16.79278887 | AE26: 17.12864465 | AF26: 17.47121754 | AG26: 17.82064189 | AH26: 18.17705473 | AI26: 18.54059582 | AJ26: 18.91140774 | AK26: 19.28963589 | AL26: 19.67542861 | AM26: 20.06893718 | AN26: 20.47031593 | AO26: 20.87972225 | AP26: 21.29731669 | AQ26: 21.72326302 | AR26: 22.15772829 | AS26: 22.60088285 | AT26: 23.05290051 | AU26: 23.51395852 | AV26: 23.98423769 | AW26: 24.46392244 | AX26: 24.95320089 | AY26: 25.45226491 | AZ26: 25.96131021 | BA26: 26.48053641 | BB26: 27.01014714 | BC26: 27.55035008 | BD26: 28.10135708 | BE26: 28.66338423 | BF26: 29.23665191 | BG26: 29.82138495 | BH26: 30.41781265 | BI26: 31.0261689 | BJ26: 31.64669228 | BK26: 32.27962612 | BL26: 32.92521865 | BM26: 33.58372302 | BN26: 34.25539748 | BO26: 34.94050543 | BP26: 35.63931554 | BQ26: 36.35210185 | BR26: =BR22*$E$8 -> 37.07914389 | BS26: 37.82072676 | BT26: 38.5771413 | BU26: 39.34868412 | BV26: 40.13565781 | BW26: 40.93837096 | BX26: 41.75713838 | BY26: 42.59228115 | BZ26: 43.44412677 | CA26: 44.31300931 | CB26: 45.19926949 | CC26: 46.10325488 | CD26: 47.02531998 | CE26: 47.96582638 | CF26: 48.92514291 | CG26: 49.90364577 | CH26: 50.90171868 | CI26: 51.91975306 | CJ26: 52.95814812 | CK26: 54.01731108 | CL26: 55.0976573 | CM26: 56.19961045 | CN26: 57.32360266 | CO26: 58.47007471 | CP26: 59.6394762 | CQ26: 60.83226573 | CR26: 62.04891104 | CS26: 63.28988926 | CT26: 64.55568705 | CU26: 65.84680079 | CV26: 67.16373681 | CW26: 68.50701154 | CX26: 69.87715177 | CY26: 71.27469481 | CZ26: 72.7001887 | DA26: 74.15419248 | DB26: 75.63727633 | DC26: 77.15002185 | DD26: 78.69302229 | DE26: 80.26688274 | DF26: 81.87222039 | DG26: 83.5096648 | DH26: 85.1798581 | DI26: 86.88345526 | DJ26: 88.62112436 | DK26: 90.39354685 | DL26: 92.20141779 | DM26: 94.04544614 | DN26: 95.92635507 | DO26: 97.84488217 | DP26: 99.80177981 | DQ26: 101.7978154 | DR26: 103.8337717 | DS26: 105.9104471 | DT26: 108.0286561 | DU26: 110.1892292 | DV26: 112.3930138 | DW26: 114.6408741 | DX26: 116.9336916 | DY26: 119.2723654 | DZ26: 121.6578127 | EA26: 124.0909689 | EB26: 126.5727883 | EC26: 129.1042441 | ED26: =ED22*$E$8 -> 131.686329 | EE26: 134.3200556 | EF26: 137.0064567 | EG26: 139.7465858 | EH26: 142.5415175 | EI26: 145.3923479 | EJ26: 148.3001948 | EK26: 151.2661987 | EL26: 154.2915227 | EM26: 157.3773531 | EN26: 160.5249002 | EO26: 163.7353982 | EP26: 167.0101062 | EQ26: 170.3503083 | ER26: 173.7573145 | ES26: 177.2324608 | ET26: 180.77711 | EU26: 184.3926522 | EV26: 188.0805052 | EW26: 191.8421153 | EX26: 195.6789576 | EY26: 199.5925368 | EZ26: 203.5843875 | FA26: 207.6560753 | FB26: 211.8091968 | FC26: 216.0453807 | FD26: 220.3662883 | FE26: 224.7736141 | FF26: 229.2690864 | FG26: 233.8544681 | FH26: 238.5315575 | FI26: 243.3021886 | FJ26: 248.1682324 | FK26: 253.131597 | FL26: 258.194229 | FM26: 263.3581135 | FN26: 268.6252758 | FO26: 273.9977813 | FP26: 279.477737 | FQ26: 285.0672917 | FR26: 290.7686375 | FS26: 296.5840103 | FT26: 302.5156905 | FU26: 308.5660043 | FV26: 314.7373244 | FW26: 321.0320709 | FX26: 327.4527123 | FY26: 334.0017665 | FZ26: 340.6818019 | GA26: 347.4954379 | GB26: 354.4453467 | GC26: 361.5342536 | GD26: 368.7649387 | GE26: 376.1402374 | GF26: 383.6630422 | GG26: 391.336303 | GH26: 399.1630291 | GI26: 407.1462897 | GJ26: 415.2892155 | GK26: 423.5949998 | GL26: 432.0668998 | GM26: 440.7082378 | GN26: 449.5224025 | GO26: 458.5128506 | GP26: =GP22*$E$8 -> 467.6831076 | GQ26: 477.0367697 | GR26: 486.5775051 | GS26: 496.3090552 | GT26: 506.2352363 | GU26: 516.3599411 | GV26: 526.6871399 | GW26: 537.2208827 | GX26: 547.9653003 | GY26: 558.9246063 | GZ26: 570.1030985 | HA26: 581.5051604 | HB26: 593.1352637 | HC26: 604.9979689 | HD26: 617.0979283 | HE26: 629.4398869 | HF26: 642.0286846 | HG26: 654.8692583 | HH26: 667.9666435 | HI26: 681.3259763 | HJ26: 694.9524959 | HK26: 708.8515458 | HL26: 723.0285767 | HM26: 737.4891482 | HN26: 752.2389312 | HO26: 767.2837098 | HP26: 782.629384 | HQ26: 798.2819717 | HR26: 814.2476111 | HS26: 830.5325634 | HT26: 847.1432146 | HU26: 864.0860789 | HV26: 881.3678005 | HW26: 898.9951565 | HX26: 916.9750596 | HY26: 935.3145608 | HZ26: 954.020852 | IA26: 973.1012691 | IB26: 992.5632945 | IC26: 1012.41456 | ID26: 1032.662852 | IE26: 1053.316109 | IF26: 1074.382431 | IG26: 1095.870079 | IH26: 1117.787481 | II26: 1140.143231 | IJ26: 1162.946095 | IK26: 1186.205017 | IL26: 1209.929117 | IM26: 1234.1277 | IN26: 1258.810254 | IO26: 1283.986459 | IP26: 1309.666188 | IQ26: 1335.859512 | IR26: 1362.576702 | IS26: 1389.828236 | IT26: 1417.624801 | IU26: 1445.977297 | IV26: 1474.896843 | IW26: 1504.39478 | IX26: 1534.482675 | IY26: 1565.172329 | IZ26: 1596.475775 | JA26: 1628.405291 | JB26: =JB22*$E$8 -> 1660.973397 | JC26: 1694.192865 | JD26: 1728.076722 | JE26: 1762.638256 | JF26: 1797.891021 | JG26: 1833.848842 | JH26: 1870.525819 | JI26: 1907.936335 | JJ26: 1946.095062 | JK26: 1985.016963 | JL26: 2024.717302 | JM26: 2065.211648 | JN26: 2106.515881 | JO26: 2148.646199 | JP26: 2191.619123 | JQ26: 2235.451505 | JR26: 2280.160535 | JS26: 2325.763746 | JT26: 2372.279021 | JU26: 2419.724601 | JV26: 2468.119093 | JW26: 2517.481475 | JX26: 2567.831105 | JY26: 2619.187727 | JZ26: 2671.571481 | KA26: 2725.002911 | KB26: 2779.502969 | KC26: 2835.093029 | KD26: 2891.794889 | KE26: 2949.630787 | KF26: 3008.623403 | KG26: 3068.795871 | KH26: 3130.171788 | KI26: 3192.775224 | KJ26: 3256.630729 | KK26: 3321.763343 | KL26: 3388.19861 | KM26: 3455.962582 | KN26: 3525.081834 | KO26: 3595.58347 | KP26: 3667.49514 | KQ26: 3740.845043 | KR26: 3815.661944 | KS26: 3891.975182
B28: Working Capital | E28: =E25-E26 -> 13.97260274 | F28: =F25-F26 -> 17.46575342 | G28: 21.83219178 | H28: 27.29023973 | I28: 34.11279966 | J28: 42.64099957 | K28: 53.30124946 | L28: 66.62656183 | M28: 67.95909307 | N28: 69.31827493 | O28: 70.70464043 | P28: 72.11873324 | Q28: 73.5611079 | R28: 75.03233006 | S28: 76.53297666 | T28: 78.06363619 | U28: 79.62490892 | V28: 81.2174071 | W28: 82.84175524 | X28: 84.49859034 | Y28: 86.18856215 | Z28: 87.91233339 | AA28: 89.67058006 | AB28: 91.46399166 | AC28: 93.29327149 | AD28: 95.15913692 | AE28: 97.06231966 | AF28: 99.00356606 | AG28: 100.9836374 | AH28: 103.0033101 | AI28: 105.0633763 | AJ28: 107.1646439 | AK28: 109.3079367 | AL28: 111.4940955 | AM28: 113.7239774 | AN28: 115.9984569 | AO28: 118.3184261 | AP28: 120.6847946 | AQ28: 123.0984905 | AR28: 125.5604603 | AS28: 128.0716695 | AT28: 130.6331029 | AU28: 133.2457649 | AV28: 135.9106802 | AW28: 138.6288938 | AX28: 141.4014717 | AY28: 144.2295012 | AZ28: 147.1140912 | BA28: 150.056373 | BB28: 153.0575005 | BC28: 156.1186505 | BD28: 159.2410235 | BE28: 162.4258439 | BF28: 165.6743608 | BG28: 168.987848 | BH28: 172.367605 | BI28: 175.8149571 | BJ28: 179.3312562 | BK28: 182.9178814 | BL28: 186.576239 | BM28: 190.3077638 | BN28: 194.1139191 | BO28: 197.9961974 | BP28: 201.9561214 | BQ28: 205.9952438 | BR28: =BR25-BR26 -> 210.1151487 | BS28: 214.3174517 | BT28: 218.6038007 | BU28: 222.9758767 | BV28: 227.4353942 | BW28: 231.9841021 | BX28: 236.6237842 | BY28: 241.3562598 | BZ28: 246.183385 | CA28: 251.1070527 | CB28: 256.1291938 | CC28: 261.2517777 | CD28: 266.4768132 | CE28: 271.8063495 | CF28: 277.2424765 | CG28: 282.787326 | CH28: 288.4430725 | CI28: 294.211934 | CJ28: 300.0961727 | CK28: 306.0980961 | CL28: 312.220058 | CM28: 318.4644592 | CN28: 324.8337484 | CO28: 331.3304234 | CP28: 337.9570318 | CQ28: 344.7161725 | CR28: 351.6104959 | CS28: 358.6427058 | CT28: 365.8155599 | CU28: 373.1318711 | CV28: 380.5945086 | CW28: 388.2063987 | CX28: 395.9705267 | CY28: 403.8899372 | CZ28: 411.967736 | DA28: 420.2070907 | DB28: 428.6112325 | DC28: 437.1834572 | DD28: 445.9271263 | DE28: 454.8456688 | DF28: 463.9425822 | DG28: 473.2214339 | DH28: 482.6858625 | DI28: 492.3395798 | DJ28: 502.1863714 | DK28: 512.2300988 | DL28: 522.4747008 | DM28: 532.9241948 | DN28: 543.5826787 | DO28: 554.4543323 | DP28: 565.5434189 | DQ28: 576.8542873 | DR28: 588.391373 | DS28: 600.1592005 | DT28: 612.1623845 | DU28: 624.4056322 | DV28: 636.8937449 | DW28: 649.6316198 | DX28: 662.6242521 | DY28: 675.8767372 | DZ28: 689.3942719 | EA28: 703.1821574 | EB28: 717.2458005 | EC28: 731.5907165 | ED28: =ED25-ED26 -> 746.2225309 | EE28: 761.1469815 | EF28: 776.3699211 | EG28: 791.8973195 | EH28: 807.7352659 | EI28: 823.8899712 | EJ28: 840.3677707 | EK28: 857.1751261 | EL28: 874.3186286 | EM28: 891.8050012 | EN28: 909.6411012 | EO28: 927.8339232 | EP28: 946.3906017 | EQ28: 965.3184137 | ER28: 984.624782 | ES28: 1004.317278 | ET28: 1024.403623 | EU28: 1044.891696 | EV28: 1065.78953 | EW28: 1087.10532 | EX28: 1108.847427 | EY28: 1131.024375 | EZ28: 1153.644863 | FA28: 1176.71776 | FB28: 1200.252115 | FC28: 1224.257157 | FD28: 1248.7423 | FE28: 1273.717146 | FF28: 1299.191489 | FG28: 1325.175319 | FH28: 1351.678826 | FI28: 1378.712402 | FJ28: 1406.28665 | FK28: 1434.412383 | FL28: 1463.100631 | FM28: 1492.362643 | FN28: 1522.209896 | FO28: 1552.654094 | FP28: 1583.707176 | FQ28: 1615.38132 | FR28: 1647.688946 | FS28: 1680.642725 | FT28: 1714.255579 | FU28: 1748.540691 | FV28: 1783.511505 | FW28: 1819.181735 | FX28: 1855.56537 | FY28: 1892.676677 | FZ28: 1930.530211 | GA28: 1969.140815 | GB28: 2008.523631 | GC28: 2048.694104 | GD28: 2089.667986 | GE28: 2131.461346 | GF28: 2174.090572 | GG28: 2217.572384 | GH28: 2261.923832 | GI28: 2307.162308 | GJ28: 2353.305554 | GK28: 2400.371665 | GL28: 2448.379099 | GM28: 2497.346681 | GN28: 2547.293614 | GO28: 2598.239487 | GP28: =GP25-GP26 -> 2650.204276 | GQ28: 2703.208362 | GR28: 2757.272529 | GS28: 2812.41798 | GT28: 2868.666339 | GU28: 2926.039666 | GV28: 2984.560459 | GW28: 3044.251669 | GX28: 3105.136702 | GY28: 3167.239436 | GZ28: 3230.584225 | HA28: 3295.195909 | HB28: 3361.099827 | HC28: 3428.321824 | HD28: 3496.88826 | HE28: 3566.826026 | HF28: 3638.162546 | HG28: 3710.925797 | HH28: 3785.144313 | HI28: 3860.847199 | HJ28: 3938.064143 | HK28: 4016.825426 | HL28: 4097.161935 | HM28: 4179.105173 | HN28: 4262.687277 | HO28: 4347.941022 | HP28: 4434.899843 | HQ28: 4523.59784 | HR28: 4614.069796 | HS28: 4706.351192 | HT28: 4800.478216 | HU28: 4896.487781 | HV28: 4994.417536 | HW28: 5094.305887 | HX28: 5196.192005 | HY28: 5300.115845 | HZ28: 5406.118162 | IA28: 5514.240525 | IB28: 5624.525335 | IC28: 5737.015842 | ID28: 5851.756159 | IE28: 5968.791282 | IF28: 6088.167108 | IG28: 6209.93045 | IH28: 6334.129059 | II28: 6460.81164 | IJ28: 6590.027873 | IK28: 6721.82843 | IL28: 6856.264999 | IM28: 6993.390299 | IN28: 7133.258105 | IO28: 7275.923267 | IP28: 7421.441732 | IQ28: 7569.870567 | IR28: 7721.267978 | IS28: 7875.693338 | IT28: 8033.207205 | IU28: 8193.871349 | IV28: 8357.748776 | IW28: 8524.903751 | IX28: 8695.401826 | IY28: 8869.309863 | IZ28: 9046.69606 | JA28: 9227.629981 | JB28: =JB25-JB26 -> 9412.182581 | JC28: 9600.426232 | JD28: 9792.434757 | JE28: 9988.283452 | JF28: 10188.04912 | JG28: 10391.8101 | JH28: 10599.64631 | JI28: 10811.63923 | JJ28: 11027.87202 | JK28: 11248.42946 | JL28: 11473.39805 | JM28: 11702.86601 | JN28: 11936.92333 | JO28: 12175.66179 | JP28: 12419.17503 | JQ28: 12667.55853 | JR28: 12920.9097 | JS28: 13179.32789 | JT28: 13442.91445 | JU28: 13711.77274 | JV28: 13986.0082 | JW28: 14265.72836 | JX28: 14551.04293 | JY28: 14842.06379 | JZ28: 15138.90506 | KA28: 15441.68316 | KB28: 15750.51683 | KC28: 16065.52716 | KD28: 16386.83771 | KE28: 16714.57446 | KF28: 17048.86595 | KG28: 17389.84327 | KH28: 17737.64013 | KI28: 18092.39294 | KJ28: 18454.2408 | KK28: 18823.32561 | KL28: 19199.79212 | KM28: 19583.78797 | KN28: 19975.46372 | KO28: 20374.973 | KP28: 20782.47246 | KQ28: 21198.12191 | KR28: 21622.08435 | KS28: 22054.52603
B29: Change in WC | F29: =F28-E28 -> 3.493150685 | G29: =G28-F28 -> 4.366438356 | H29: 5.458047945 | I29: 6.822559932 | J29: 8.528199914 | K29: 10.66024989 | L29: 13.32531237 | M29: 1.332531237 | N29: 1.359181861 | O29: 1.386365499 | P29: 1.414092809 | Q29: 1.442374665 | R29: 1.471222158 | S29: 1.500646601 | T29: 1.530659533 | U29: 1.561272724 | V29: 1.592498178 | W29: 1.624348142 | X29: 1.656835105 | Y29: 1.689971807 | Z29: 1.723771243 | AA29: 1.758246668 | AB29: 1.793411601 | AC29: 1.829279833 | AD29: 1.86586543 | AE29: 1.903182738 | AF29: 1.941246393 | AG29: 1.980071321 | AH29: 2.019672748 | AI29: 2.060066202 | AJ29: 2.101267527 | AK29: 2.143292877 | AL29: 2.186158735 | AM29: 2.229881909 | AN29: 2.274479547 | AO29: 2.319969138 | AP29: 2.366368521 | AQ29: 2.413695892 | AR29: 2.461969809 | AS29: 2.511209206 | AT29: 2.56143339 | AU29: 2.612662058 | AV29: 2.664915299 | AW29: 2.718213605 | AX29: 2.772577877 | AY29: 2.828029434 | AZ29: 2.884590023 | BA29: 2.942281823 | BB29: 3.00112746 | BC29: 3.061150009 | BD29: 3.122373009 | BE29: 3.18482047 | BF29: 3.248516879 | BG29: 3.313487216 | BH29: 3.379756961 | BI29: 3.4473521 | BJ29: 3.516299142 | BK29: 3.586625125 | BL29: 3.658357627 | BM29: 3.73152478 | BN29: 3.806155276 | BO29: 3.882278381 | BP29: 3.959923949 | BQ29: 4.039122428 | BR29: 4.119904876 | BS29: =BS28-BR28 -> 4.202302974 | BT29: 4.286349033 | BU29: 4.372076014 | BV29: 4.459517534 | BW29: 4.548707885 | BX29: 4.639682042 | BY29: 4.732475683 | BZ29: 4.827125197 | CA29: 4.923667701 | CB29: 5.022141055 | CC29: 5.122583876 | CD29: 5.225035554 | CE29: 5.329536265 | CF29: 5.43612699 | CG29: 5.54484953 | CH29: 5.65574652 | CI29: 5.768861451 | CJ29: 5.88423868 | CK29: 6.001923453 | CL29: 6.121961922 | CM29: 6.244401161 | CN29: 6.369289184 | CO29: 6.496674968 | CP29: 6.626608467 | CQ29: 6.759140636 | CR29: 6.894323449 | CS29: 7.032209918 | CT29: 7.172854117 | CU29: 7.316311199 | CV29: 7.462637423 | CW29: 7.611890171 | CX29: 7.764127975 | CY29: 7.919410534 | CZ29: 8.077798745 | DA29: 8.23935472 | DB29: 8.404141814 | DC29: 8.57222465 | DD29: 8.743669143 | DE29: 8.918542526 | DF29: 9.096913377 | DG29: 9.278851644 | DH29: 9.464428677 | DI29: 9.653717251 | DJ29: 9.846791596 | DK29: 10.04372743 | DL29: 10.24460198 | DM29: 10.44949402 | DN29: 10.6584839 | DO29: 10.87165357 | DP29: 11.08908665 | DQ29: 11.31086838 | DR29: 11.53708575 | DS29: 11.76782746 | DT29: 12.00318401 | DU29: 12.24324769 | DV29: 12.48811264 | DW29: 12.7378749 | DX29: 12.9926324 | DY29: 13.25248504 | DZ29: 13.51753474 | EA29: 13.78788544 | EB29: 14.06364315 | EC29: 14.34491601 | ED29: 14.63181433 | EE29: =EE28-ED28 -> 14.92445062 | EF29: 15.22293963 | EG29: 15.52739842 | EH29: 15.83794639 | EI29: 16.15470532 | EJ29: 16.47779942 | EK29: 16.80735541 | EL29: 17.14350252 | EM29: 17.48637257 | EN29: 17.83610002 | EO29: 18.19282202 | EP29: 18.55667846 | EQ29: 18.92781203 | ER29: 19.30636827 | ES29: 19.69249564 | ET29: 20.08634555 | EU29: 20.48807246 | EV29: 20.89783391 | EW29: 21.31579059 | EX29: 21.7421064 | EY29: 22.17694853 | EZ29: 22.6204875 | FA29: 23.07289725 | FB29: 23.5343552 | FC29: 24.0050423 | FD29: 24.48514315 | FE29: 24.97484601 | FF29: 25.47434293 | FG29: 25.98382979 | FH29: 26.50350638 | FI29: 27.03357651 | FJ29: 27.57424804 | FK29: 28.125733 | FL29: 28.68824766 | FM29: 29.26201262 | FN29: 29.84725287 | FO29: 30.44419793 | FP29: 31.05308188 | FQ29: 31.67414352 | FR29: 32.30762639 | FS29: 32.95377892 | FT29: 33.6128545 | FU29: 34.28511159 | FV29: 34.97081382 | FW29: 35.6702301 | FX29: 36.3836347 | FY29: 37.11130739 | FZ29: 37.85353354 | GA29: 38.61060421 | GB29: 39.3828163 | GC29: 40.17047262 | GD29: 40.97388207 | GE29: 41.79335972 | GF29: 42.62922691 | GG29: 43.48181145 | GH29: 44.35144768 | GI29: 45.23847663 | GJ29: 46.14324616 | GK29: 47.06611109 | GL29: 48.00743331 | GM29: 48.96758197 | GN29: 49.94693361 | GO29: 50.94587229 | GP29: 51.96478973 | GQ29: =GQ28-GP28 -> 53.00408553 | GR29: 54.06416724 | GS29: 55.14545058 | GT29: 56.24835959 | GU29: 57.37332679 | GV29: 58.52079332 | GW29: 59.69120919 | GX29: 60.88503337 | GY29: 62.10273404 | GZ29: 63.34478872 | HA29: 64.61168449 | HB29: 65.90391818 | HC29: 67.22199655 | HD29: 68.56643648 | HE29: 69.93776521 | HF29: 71.33652051 | HG29: 72.76325092 | HH29: 74.21851594 | HI29: 75.70288626 | HJ29: 77.21694398 | HK29: 78.76128286 | HL29: 80.33650852 | HM29: 81.94323869 | HN29: 83.58210347 | HO29: 85.25374554 | HP29: 86.95882045 | HQ29: 88.69799686 | HR29: 90.47195679 | HS29: 92.28139593 | HT29: 94.12702385 | HU29: 96.00956432 | HV29: 97.92975561 | HW29: 99.88835072 | HX29: 101.8861177 | HY29: 103.9238401 | HZ29: 106.0023169 | IA29: 108.1223632 | IB29: 110.2848105 | IC29: 112.4905067 | ID29: 114.7403168 | IE29: 117.0351232 | IF29: 119.3758256 | IG29: 121.7633422 | IH29: 124.198609 | II29: 126.6825812 | IJ29: 129.2162328 | IK29: 131.8005575 | IL29: 134.4365686 | IM29: 137.1253 | IN29: 139.867806 | IO29: 142.6651621 | IP29: 145.5184653 | IQ29: 148.4288346 | IR29: 151.3974113 | IS29: 154.4253596 | IT29: 157.5138668 | IU29: 160.6641441 | IV29: 163.877427 | IW29: 167.1549755 | IX29: 170.498075 | IY29: 173.9080365 | IZ29: 177.3861973 | JA29: 180.9339212 | JB29: 184.5525996 | JC29: =JC28-JB28 -> 188.2436516 | JD29: 192.0085246 | JE29: 195.8486951 | JF29: 199.765669 | JG29: 203.7609824 | JH29: 207.8362021 | JI29: 211.9929261 | JJ29: 216.2327846 | JK29: 220.5574403 | JL29: 224.9685891 | JM29: 229.4679609 | JN29: 234.0573201 | JO29: 238.7384665 | JP29: 243.5132359 | JQ29: 248.3835006 | JR29: 253.3511706 | JS29: 258.418194 | JT29: 263.5865579 | JU29: 268.858289 | JV29: 274.2354548 | JW29: 279.7201639 | JX29: 285.3145672 | JY29: 291.0208585 | JZ29: 296.8412757 | KA29: 302.7781012 | KB29: 308.8336633 | KC29: 315.0103365 | KD29: 321.3105433 | KE29: 327.7367541 | KF29: 334.2914892 | KG29: 340.977319 | KH29: 347.7968654 | KI29: 354.7528027 | KJ29: 361.8478587 | KK29: 369.0848159 | KL29: 376.4665122 | KM29: 383.9958425 | KN29: 391.6757593 | KO29: 399.5092745 | KP29: 407.49946 | KQ29: 415.6494492 | KR29: 423.9624382 | KS29: 432.4416869
B30: WC to EBITDA Ratio | E30: =E28/E23 -> 1.397260274 | F30: =F28/F23 -> 1.397260274 | G30: 1.397260274 | H30: 1.397260274 | I30: 1.397260274 | J30: 1.397260274 | K30: 1.397260274 | L30: 1.397260274 | M30: 1.397260274 | N30: 1.397260274 | O30: 1.397260274 | P30: 1.397260274 | Q30: 1.397260274 | R30: 1.397260274 | S30: 1.397260274 | T30: 1.397260274 | U30: 1.397260274 | V30: 1.397260274 | W30: 1.397260274 | X30: 1.397260274 | Y30: 1.397260274 | Z30: 1.397260274 | AA30: 1.397260274 | AB30: 1.397260274 | AC30: 1.397260274 | AD30: 1.397260274 | AE30: 1.397260274 | AF30: 1.397260274 | AG30: 1.397260274 | AH30: 1.397260274 | AI30: 1.397260274 | AJ30: 1.397260274 | AK30: 1.397260274 | AL30: 1.397260274 | AM30: 1.397260274 | AN30: 1.397260274 | AO30: 1.397260274 | AP30: 1.397260274 | AQ30: 1.397260274 | AR30: 1.397260274 | AS30: 1.397260274 | AT30: 1.397260274 | AU30: 1.397260274 | AV30: 1.397260274 | AW30: 1.397260274 | AX30: 1.397260274 | AY30: 1.397260274 | AZ30: 1.397260274 | BA30: 1.397260274 | BB30: 1.397260274 | BC30: 1.397260274 | BD30: 1.397260274 | BE30: 1.397260274 | BF30: 1.397260274 | BG30: 1.397260274 | BH30: 1.397260274 | BI30: 1.397260274 | BJ30: 1.397260274 | BK30: 1.397260274 | BL30: 1.397260274 | BM30: 1.397260274 | BN30: 1.397260274 | BO30: 1.397260274 | BP30: 1.397260274 | BQ30: 1.397260274 | BR30: =BR28/BR23 -> 1.397260274 | BS30: 1.397260274 | BT30: 1.397260274 | BU30: 1.397260274 | BV30: 1.397260274 | BW30: 1.397260274 | BX30: 1.397260274 | BY30: 1.397260274 | BZ30: 1.397260274 | CA30: 1.397260274 | CB30: 1.397260274 | CC30: 1.397260274 | CD30: 1.397260274 | CE30: 1.397260274 | CF30: 1.397260274 | CG30: 1.397260274 | CH30: 1.397260274 | CI30: 1.397260274 | CJ30: 1.397260274 | CK30: 1.397260274 | CL30: 1.397260274 | CM30: 1.397260274 | CN30: 1.397260274 | CO30: 1.397260274 | CP30: 1.397260274 | CQ30: 1.397260274 | CR30: 1.397260274 | CS30: 1.397260274 | CT30: 1.397260274 | CU30: 1.397260274 | CV30: 1.397260274 | CW30: 1.397260274 | CX30: 1.397260274 | CY30: 1.397260274 | CZ30: 1.397260274 | DA30: 1.397260274 | DB30: 1.397260274 | DC30: 1.397260274 | DD30: 1.397260274 | DE30: 1.397260274 | DF30: 1.397260274 | DG30: 1.397260274 | DH30: 1.397260274 | DI30: 1.397260274 | DJ30: 1.397260274 | DK30: 1.397260274 | DL30: 1.397260274 | DM30: 1.397260274 | DN30: 1.397260274 | DO30: 1.397260274 | DP30: 1.397260274 | DQ30: 1.397260274 | DR30: 1.397260274 | DS30: 1.397260274 | DT30: 1.397260274 | DU30: 1.397260274 | DV30: 1.397260274 | DW30: 1.397260274 | DX30: 1.397260274 | DY30: 1.397260274 | DZ30: 1.397260274 | EA30: 1.397260274 | EB30: 1.397260274 | EC30: 1.397260274 | ED30: =ED28/ED23 -> 1.397260274 | EE30: 1.397260274 | EF30: 1.397260274 | EG30: 1.397260274 | EH30: 1.397260274 | EI30: 1.397260274 | EJ30: 1.397260274 | EK30: 1.397260274 | EL30: 1.397260274 | EM30: 1.397260274 | EN30: 1.397260274 | EO30: 1.397260274 | EP30: 1.397260274 | EQ30: 1.397260274 | ER30: 1.397260274 | ES30: 1.397260274 | ET30: 1.397260274 | EU30: 1.397260274 | EV30: 1.397260274 | EW30: 1.397260274 | EX30: 1.397260274 | EY30: 1.397260274 | EZ30: 1.397260274 | FA30: 1.397260274 | FB30: 1.397260274 | FC30: 1.397260274 | FD30: 1.397260274 | FE30: 1.397260274 | FF30: 1.397260274 | FG30: 1.397260274 | FH30: 1.397260274 | FI30: 1.397260274 | FJ30: 1.397260274 | FK30: 1.397260274 | FL30: 1.397260274 | FM30: 1.397260274 | FN30: 1.397260274 | FO30: 1.397260274 | FP30: 1.397260274 | FQ30: 1.397260274 | FR30: 1.397260274 | FS30: 1.397260274 | FT30: 1.397260274 | FU30: 1.397260274 | FV30: 1.397260274 | FW30: 1.397260274 | FX30: 1.397260274 | FY30: 1.397260274 | FZ30: 1.397260274 | GA30: 1.397260274 | GB30: 1.397260274 | GC30: 1.397260274 | GD30: 1.397260274 | GE30: 1.397260274 | GF30: 1.397260274 | GG30: 1.397260274 | GH30: 1.397260274 | GI30: 1.397260274 | GJ30: 1.397260274 | GK30: 1.397260274 | GL30: 1.397260274 | GM30: 1.397260274 | GN30: 1.397260274 | GO30: 1.397260274 | GP30: =GP28/GP23 -> 1.397260274 | GQ30: 1.397260274 | GR30: 1.397260274 | GS30: 1.397260274 | GT30: 1.397260274 | GU30: 1.397260274 | GV30: 1.397260274 | GW30: 1.397260274 | GX30: 1.397260274 | GY30: 1.397260274 | GZ30: 1.397260274 | HA30: 1.397260274 | HB30: 1.397260274 | HC30: 1.397260274 | HD30: 1.397260274 | HE30: 1.397260274 | HF30: 1.397260274 | HG30: 1.397260274 | HH30: 1.397260274 | HI30: 1.397260274 | HJ30: 1.397260274 | HK30: 1.397260274 | HL30: 1.397260274 | HM30: 1.397260274 | HN30: 1.397260274 | HO30: 1.397260274 | HP30: 1.397260274 | HQ30: 1.397260274 | HR30: 1.397260274 | HS30: 1.397260274 | HT30: 1.397260274 | HU30: 1.397260274 | HV30: 1.397260274 | HW30: 1.397260274 | HX30: 1.397260274 | HY30: 1.397260274 | HZ30: 1.397260274 | IA30: 1.397260274 | IB30: 1.397260274 | IC30: 1.397260274 | ID30: 1.397260274 | IE30: 1.397260274 | IF30: 1.397260274 | IG30: 1.397260274 | IH30: 1.397260274 | II30: 1.397260274 | IJ30: 1.397260274 | IK30: 1.397260274 | IL30: 1.397260274 | IM30: 1.397260274 | IN30: 1.397260274 | IO30: 1.397260274 | IP30: 1.397260274 | IQ30: 1.397260274 | IR30: 1.397260274 | IS30: 1.397260274 | IT30: 1.397260274 | IU30: 1.397260274 | IV30: 1.397260274 | IW30: 1.397260274 | IX30: 1.397260274 | IY30: 1.397260274 | IZ30: 1.397260274 | JA30: 1.397260274 | JB30: =JB28/JB23 -> 1.397260274 | JC30: 1.397260274 | JD30: 1.397260274 | JE30: 1.397260274 | JF30: 1.397260274 | JG30: 1.397260274 | JH30: 1.397260274 | JI30: 1.397260274 | JJ30: 1.397260274 | JK30: 1.397260274 | JL30: 1.397260274 | JM30: 1.397260274 | JN30: 1.397260274 | JO30: 1.397260274 | JP30: 1.397260274 | JQ30: 1.397260274 | JR30: 1.397260274 | JS30: 1.397260274 | JT30: 1.397260274 | JU30: 1.397260274 | JV30: 1.397260274 | JW30: 1.397260274 | JX30: 1.397260274 | JY30: 1.397260274 | JZ30: 1.397260274 | KA30: 1.397260274 | KB30: 1.397260274 | KC30: 1.397260274 | KD30: 1.397260274 | KE30: 1.397260274 | KF30: 1.397260274 | KG30: 1.397260274 | KH30: 1.397260274 | KI30: 1.397260274 | KJ30: 1.397260274 | KK30: 1.397260274 | KL30: 1.397260274 | KM30: 1.397260274 | KN30: 1.397260274 | KO30: 1.397260274 | KP30: 1.397260274 | KQ30: 1.397260274 | KR30: 1.397260274 | KS30: 1.397260274
B32: Free Cash Flow
C33: EBITDA | F33: =F23 -> 12.5 | G33: 15.625 | H33: 19.53125 | I33: 24.4140625 | J33: 30.51757812 | K33: 38.14697266 | L33: =L23 -> 47.68371582 | M33: 48.63739014 | N33: 49.61013794 | O33: 50.6023407 | P33: 51.61438751 | Q33: 52.64667526 | R33: 53.69960877 | S33: 54.77360094 | T33: 55.86907296 | U33: 56.98645442 | V33: 58.12618351 | W33: 59.28870718 | X33: 60.47448132 | Y33: 61.68397095 | Z33: 62.91765037 | AA33: 64.17600338 | AB33: 65.45952344 | AC33: 66.76871391 | AD33: 68.10408819 | AE33: 69.46616995 | AF33: 70.85549335 | AG33: 72.27260322 | AH33: 73.71805529 | AI33: 75.19241639 | AJ33: 76.69626472 | AK33: 78.23019001 | AL33: 79.79479381 | AM33: 81.39068969 | AN33: 83.01850348 | AO33: 84.67887355 | AP33: 86.37245102 | AQ33: 88.09990004 | AR33: 89.86189805 | AS33: 91.65913601 | AT33: 93.49231873 | AU33: 95.3621651 | AV33: 97.2694084 | AW33: 99.21479657 | AX33: 101.1990925 | AY33: 103.2230744 | AZ33: 105.2875358 | BA33: 107.3932866 | BB33: 109.5411523 | BC33: 111.7319753 | BD33: 113.9666148 | BE33: 116.2459471 | BF33: 118.5708661 | BG33: 120.9422834 | BH33: 123.3611291 | BI33: 125.8283517 | BJ33: 128.3449187 | BK33: 130.9118171 | BL33: 133.5300534 | BM33: 136.2006545 | BN33: 138.9246676 | BO33: 141.7031609 | BP33: 144.5372241 | BQ33: 147.4279686 | BR33: =BR23 -> 150.376528 | BS33: 153.3840585 | BT33: 156.4517397 | BU33: 159.5807745 | BV33: 162.77239 | BW33: 166.0278378 | BX33: 169.3483946 | BY33: 172.7353624 | BZ33: 176.1900697 | CA33: 179.7138711 | CB33: 183.3081485 | CC33: 186.9743115 | CD33: 190.7137977 | CE33: 194.5280737 | CF33: 198.4186351 | CG33: 202.3870078 | CH33: 206.434748 | CI33: 210.563443 | CJ33: 214.7747118 | CK33: 219.070206 | CL33: 223.4516102 | CM33: 227.9206424 | CN33: 232.4790552 | CO33: 237.1286363 | CP33: 241.871209 | CQ33: 246.7086332 | CR33: 251.6428059 | CS33: 256.675662 | CT33: 261.8091753 | CU33: 267.0453588 | CV33: 272.3862659 | CW33: 277.8339913 | CX33: 283.3906711 | CY33: 289.0584845 | CZ33: 294.8396542 | DA33: 300.7364473 | DB33: 306.7511762 | DC33: 312.8861997 | DD33: 319.1439237 | DE33: 325.5268022 | DF33: 332.0373383 | DG33: 338.678085 | DH33: 345.4516467 | DI33: 352.3606797 | DJ33: 359.4078932 | DK33: 366.5960511 | DL33: 373.9279721 | DM33: 381.4065316 | DN33: 389.0346622 | DO33: 396.8153555 | DP33: 404.7516626 | DQ33: 412.8466958 | DR33: 421.1036297 | DS33: 429.5257023 | DT33: 438.1162164 | DU33: 446.8785407 | DV33: 455.8161115 | DW33: 464.9324337 | DX33: 474.2310824 | DY33: 483.7157041 | DZ33: 493.3900181 | EA33: 503.2578185 | EB33: 513.3229749 | EC33: 523.5894344 | ED33: =ED23 -> 534.0612231 | EE33: 544.7424475 | EF33: 555.6372965 | EG33: 566.7500424 | EH33: 578.0850433 | EI33: 589.6467441 | EJ33: 601.439679 | EK33: 613.4684726 | EL33: 625.737842 | EM33: 638.2525989 | EN33: 651.0176509 | EO33: 664.0380039 | EP33: 677.3187639 | EQ33: 690.8651392 | ER33: 704.682442 | ES33: 718.7760909 | ET33: 733.1516127 | EU33: 747.8146449 | EV33: 762.7709378 | EW33: 778.0263566 | EX33: 793.5868837 | EY33: 809.4586214 | EZ33: 825.6477938 | FA33: 842.1607497 | FB33: 859.0039647 | FC33: 876.184044 | FD33: 893.7077249 | FE33: 911.5818794 | FF33: 929.8135169 | FG33: 948.4097873 | FH33: 967.377983 | FI33: 986.7255427 | FJ33: 1006.460054 | FK33: 1026.589255 | FL33: 1047.12104 | FM33: 1068.06346 | FN33: 1089.42473 | FO33: 1111.213224 | FP33: 1133.437489 | FQ33: 1156.106239 | FR33: 1179.228363 | FS33: 1202.812931 | FT33: 1226.869189 | FU33: 1251.406573 | FV33: 1276.434704 | FW33: 1301.963399 | FX33: 1328.002667 | FY33: 1354.56272 | FZ33: 1381.653974 | GA33: 1409.287054 | GB33: 1437.472795 | GC33: 1466.222251 | GD33: 1495.546696 | GE33: 1525.45763 | GF33: 1555.966782 | GG33: 1587.086118 | GH33: 1618.82784 | GI33: 1651.204397 | GJ33: 1684.228485 | GK33: 1717.913055 | GL33: 1752.271316 | GM33: 1787.316742 | GN33: 1823.063077 | GO33: 1859.524338 | GP33: =GP23 -> 1896.714825 | GQ33: 1934.649122 | GR33: 1973.342104 | GS33: 2012.808946 | GT33: 2053.065125 | GU33: 2094.126428 | GV33: 2136.008956 | GW33: 2178.729135 | GX33: 2222.303718 | GY33: 2266.749792 | GZ33: 2312.084788 | HA33: 2358.326484 | HB33: 2405.493014 | HC33: 2453.602874 | HD33: 2502.674931 | HE33: 2552.72843 | HF33: 2603.782999 | HG33: 2655.858659 | HH33: 2708.975832 | HI33: 2763.155348 | HJ33: 2818.418455 | HK33: 2874.786825 | HL33: 2932.282561 | HM33: 2990.928212 | HN33: 3050.746777 | HO33: 3111.761712 | HP33: 3173.996946 | HQ33: 3237.476885 | HR33: 3302.226423 | HS33: 3368.270951 | HT33: 3435.63637 | HU33: 3504.349098 | HV33: 3574.43608 | HW33: 3645.924801 | HX33: 3718.843297 | HY33: 3793.220163 | HZ33: 3869.084567 | IA33: 3946.466258 | IB33: 4025.395583 | IC33: 4105.903495 | ID33: 4188.021565 | IE33: 4271.781996 | IF33: 4357.217636 | IG33: 4444.361989 | IH33: 4533.249228 | II33: 4623.914213 | IJ33: 4716.392497 | IK33: 4810.720347 | IL33: 4906.934754 | IM33: 5005.073449 | IN33: 5105.174918 | IO33: 5207.278416 | IP33: 5311.423985 | IQ33: 5417.652465 | IR33: 5526.005514 | IS33: 5636.525624 | IT33: 5749.256137 | IU33: 5864.241259 | IV33: 5981.526084 | IW33: 6101.156606 | IX33: 6223.179738 | IY33: 6347.643333 | IZ33: 6474.5962 | JA33: 6604.088124 | JB33: =JB23 -> 6736.169886 | JC33: 6870.893284 | JD33: 7008.31115 | JE33: 7148.477373 | JF33: 7291.44692 | JG33: 7437.275858 | JH33: 7586.021376 | JI33: 7737.741803 | JJ33: 7892.496639 | JK33: 8050.346572 | JL33: 8211.353503 | JM33: 8375.580573 | JN33: 8543.092185 | JO33: 8713.954029 | JP33: 8888.233109 | JQ33: 9065.997771 | JR33: 9247.317727 | JS33: 9432.264081 | JT33: 9620.909363 | JU33: 9813.32755 | JV33: 10009.5941 | JW33: 10209.78598 | JX33: 10413.9817 | JY33: 10622.26134 | JZ33: 10834.70656 | KA33: 11051.4007 | KB33: 11272.42871 | KC33: 11497.87728 | KD33: 11727.83483 | KE33: 11962.39153 | KF33: 12201.63936 | KG33: 12445.67214 | KH33: 12694.58559 | KI33: 12948.4773 | KJ33: 13207.44684 | KK33: 13471.59578 | KL33: 13741.0277 | KM33: 14015.84825 | KN33: 14296.16521 | KO33: 14582.08852 | KP33: 14873.73029 | KQ33: 15171.2049 | KR33: 15474.62899 | KS33: 15784.12157
C34: Less: Change in WC | F34: =F29 -> 3.493150685 | G34: 4.366438356 | H34: 5.458047945 | I34: 6.822559932 | J34: 8.528199914 | K34: 10.66024989 | L34: 13.32531237 | M34: 1.332531237 | N34: 1.359181861 | O34: 1.386365499 | P34: 1.414092809 | Q34: 1.442374665 | R34: 1.471222158 | S34: 1.500646601 | T34: 1.530659533 | U34: 1.561272724 | V34: 1.592498178 | W34: 1.624348142 | X34: 1.656835105 | Y34: 1.689971807 | Z34: 1.723771243 | AA34: 1.758246668 | AB34: 1.793411601 | AC34: 1.829279833 | AD34: 1.86586543 | AE34: 1.903182738 | AF34: 1.941246393 | AG34: 1.980071321 | AH34: 2.019672748 | AI34: 2.060066202 | AJ34: 2.101267527 | AK34: 2.143292877 | AL34: 2.186158735 | AM34: 2.229881909 | AN34: 2.274479547 | AO34: 2.319969138 | AP34: 2.366368521 | AQ34: 2.413695892 | AR34: 2.461969809 | AS34: 2.511209206 | AT34: 2.56143339 | AU34: 2.612662058 | AV34: 2.664915299 | AW34: 2.718213605 | AX34: 2.772577877 | AY34: 2.828029434 | AZ34: 2.884590023 | BA34: 2.942281823 | BB34: 3.00112746 | BC34: 3.061150009 | BD34: 3.122373009 | BE34: 3.18482047 | BF34: 3.248516879 | BG34: 3.313487216 | BH34: 3.379756961 | BI34: 3.4473521 | BJ34: 3.516299142 | BK34: 3.586625125 | BL34: 3.658357627 | BM34: 3.73152478 | BN34: 3.806155276 | BO34: 3.882278381 | BP34: 3.959923949 | BQ34: 4.039122428 | BR34: =BR29 -> 4.119904876 | BS34: 4.202302974 | BT34: 4.286349033 | BU34: 4.372076014 | BV34: 4.459517534 | BW34: 4.548707885 | BX34: 4.639682042 | BY34: 4.732475683 | BZ34: 4.827125197 | CA34: 4.923667701 | CB34: 5.022141055 | CC34: 5.122583876 | CD34: 5.225035554 | CE34: 5.329536265 | CF34: 5.43612699 | CG34: 5.54484953 | CH34: 5.65574652 | CI34: 5.768861451 | CJ34: 5.88423868 | CK34: 6.001923453 | CL34: 6.121961922 | CM34: 6.244401161 | CN34: 6.369289184 | CO34: 6.496674968 | CP34: 6.626608467 | CQ34: 6.759140636 | CR34: 6.894323449 | CS34: 7.032209918 | CT34: 7.172854117 | CU34: 7.316311199 | CV34: 7.462637423 | CW34: 7.611890171 | CX34: 7.764127975 | CY34: 7.919410534 | CZ34: 8.077798745 | DA34: 8.23935472 | DB34: 8.404141814 | DC34: 8.57222465 | DD34: 8.743669143 | DE34: 8.918542526 | DF34: 9.096913377 | DG34: 9.278851644 | DH34: 9.464428677 | DI34: 9.653717251 | DJ34: 9.846791596 | DK34: 10.04372743 | DL34: 10.24460198 | DM34: 10.44949402 | DN34: 10.6584839 | DO34: 10.87165357 | DP34: 11.08908665 | DQ34: 11.31086838 | DR34: 11.53708575 | DS34: 11.76782746 | DT34: 12.00318401 | DU34: 12.24324769 | DV34: 12.48811264 | DW34: 12.7378749 | DX34: 12.9926324 | DY34: 13.25248504 | DZ34: 13.51753474 | EA34: 13.78788544 | EB34: 14.06364315 | EC34: 14.34491601 | ED34: =ED29 -> 14.63181433 | EE34: 14.92445062 | EF34: 15.22293963 | EG34: 15.52739842 | EH34: 15.83794639 | EI34: 16.15470532 | EJ34: 16.47779942 | EK34: 16.80735541 | EL34: 17.14350252 | EM34: 17.48637257 | EN34: 17.83610002 | EO34: 18.19282202 | EP34: 18.55667846 | EQ34: 18.92781203 | ER34: 19.30636827 | ES34: 19.69249564 | ET34: 20.08634555 | EU34: 20.48807246 | EV34: 20.89783391 | EW34: 21.31579059 | EX34: 21.7421064 | EY34: 22.17694853 | EZ34: 22.6204875 | FA34: 23.07289725 | FB34: 23.5343552 | FC34: 24.0050423 | FD34: 24.48514315 | FE34: 24.97484601 | FF34: 25.47434293 | FG34: 25.98382979 | FH34: 26.50350638 | FI34: 27.03357651 | FJ34: 27.57424804 | FK34: 28.125733 | FL34: 28.68824766 | FM34: 29.26201262 | FN34: 29.84725287 | FO34: 30.44419793 | FP34: 31.05308188 | FQ34: 31.67414352 | FR34: 32.30762639 | FS34: 32.95377892 | FT34: 33.6128545 | FU34: 34.28511159 | FV34: 34.97081382 | FW34: 35.6702301 | FX34: 36.3836347 | FY34: 37.11130739 | FZ34: 37.85353354 | GA34: 38.61060421 | GB34: 39.3828163 | GC34: 40.17047262 | GD34: 40.97388207 | GE34: 41.79335972 | GF34: 42.62922691 | GG34: 43.48181145 | GH34: 44.35144768 | GI34: 45.23847663 | GJ34: 46.14324616 | GK34: 47.06611109 | GL34: 48.00743331 | GM34: 48.96758197 | GN34: 49.94693361 | GO34: 50.94587229 | GP34: =GP29 -> 51.96478973 | GQ34: 53.00408553 | GR34: 54.06416724 | GS34: 55.14545058 | GT34: 56.24835959 | GU34: 57.37332679 | GV34: 58.52079332 | GW34: 59.69120919 | GX34: 60.88503337 | GY34: 62.10273404 | GZ34: 63.34478872 | HA34: 64.61168449 | HB34: 65.90391818 | HC34: 67.22199655 | HD34: 68.56643648 | HE34: 69.93776521 | HF34: 71.33652051 | HG34: 72.76325092 | HH34: 74.21851594 | HI34: 75.70288626 | HJ34: 77.21694398 | HK34: 78.76128286 | HL34: 80.33650852 | HM34: 81.94323869 | HN34: 83.58210347 | HO34: 85.25374554 | HP34: 86.95882045 | HQ34: 88.69799686 | HR34: 90.47195679 | HS34: 92.28139593 | HT34: 94.12702385 | HU34: 96.00956432 | HV34: 97.92975561 | HW34: 99.88835072 | HX34: 101.8861177 | HY34: 103.9238401 | HZ34: 106.0023169 | IA34: 108.1223632 | IB34: 110.2848105 | IC34: 112.4905067 | ID34: 114.7403168 | IE34: 117.0351232 | IF34: 119.3758256 | IG34: 121.7633422 | IH34: 124.198609 | II34: 126.6825812 | IJ34: 129.2162328 | IK34: 131.8005575 | IL34: 134.4365686 | IM34: 137.1253 | IN34: 139.867806 | IO34: 142.6651621 | IP34: 145.5184653 | IQ34: 148.4288346 | IR34: 151.3974113 | IS34: 154.4253596 | IT34: 157.5138668 | IU34: 160.6641441 | IV34: 163.877427 | IW34: 167.1549755 | IX34: 170.498075 | IY34: 173.9080365 | IZ34: 177.3861973 | JA34: 180.9339212 | JB34: =JB29 -> 184.5525996 | JC34: 188.2436516 | JD34: 192.0085246 | JE34: 195.8486951 | JF34: 199.765669 | JG34: 203.7609824 | JH34: 207.8362021 | JI34: 211.9929261 | JJ34: 216.2327846 | JK34: 220.5574403 | JL34: 224.9685891 | JM34: 229.4679609 | JN34: 234.0573201 | JO34: 238.7384665 | JP34: 243.5132359 | JQ34: 248.3835006 | JR34: 253.3511706 | JS34: 258.418194 | JT34: 263.5865579 | JU34: 268.858289 | JV34: 274.2354548 | JW34: 279.7201639 | JX34: 285.3145672 | JY34: 291.0208585 | JZ34: 296.8412757 | KA34: 302.7781012 | KB34: 308.8336633 | KC34: 315.0103365 | KD34: 321.3105433 | KE34: 327.7367541 | KF34: 334.2914892 | KG34: 340.977319 | KH34: 347.7968654 | KI34: 354.7528027 | KJ34: 361.8478587 | KK34: 369.0848159 | KL34: 376.4665122 | KM34: 383.9958425 | KN34: 391.6757593 | KO34: 399.5092745 | KP34: 407.49946 | KQ34: 415.6494492 | KR34: 423.9624382 | KS34: 432.4416869
C35: Free Cash Flow to Firm | F35: =F33-F34 -> 9.006849315 | G35: =G33-G34 -> 11.25856164 | H35: 14.07320205 | I35: 17.59150257 | J35: 21.98937821 | K35: 27.48672276 | L35: 34.35840345 | M35: 47.3048589 | N35: 48.25095608 | O35: 49.2159752 | P35: 50.2002947 | Q35: 51.2043006 | R35: 52.22838661 | S35: 53.27295434 | T35: 54.33841343 | U35: 55.4251817 | V35: 56.53368533 | W35: 57.66435904 | X35: 58.81764622 | Y35: 59.99399914 | Z35: 61.19387913 | AA35: 62.41775671 | AB35: 63.66611184 | AC35: 64.93943408 | AD35: 66.23822276 | AE35: 67.56298722 | AF35: 68.91424696 | AG35: 70.2925319 | AH35: 71.69838254 | AI35: 73.13235019 | AJ35: 74.59499719 | AK35: 76.08689714 | AL35: 77.60863508 | AM35: 79.16080778 | AN35: 80.74402394 | AO35: 82.35890441 | AP35: 84.0060825 | AQ35: 85.68620415 | AR35: 87.39992824 | AS35: 89.1479268 | AT35: 90.93088534 | AU35: 92.74950304 | AV35: 94.6044931 | AW35: 96.49658297 | AX35: 98.42651463 | AY35: 100.3950449 | AZ35: 102.4029458 | BA35: 104.4510047 | BB35: 106.5400248 | BC35: 108.6708253 | BD35: 110.8442418 | BE35: 113.0611267 | BF35: 115.3223492 | BG35: 117.6287962 | BH35: 119.9813721 | BI35: 122.3809996 | BJ35: 124.8286195 | BK35: 127.3251919 | BL35: 129.8716958 | BM35: 132.4691297 | BN35: 135.1185123 | BO35: 137.8208825 | BP35: 140.5773002 | BQ35: 143.3888462 | BR35: 146.2566231 | BS35: =BS33-BS34 -> 149.1817556 | BT35: 152.1653907 | BU35: 155.2086985 | BV35: 158.3128725 | BW35: 161.4791299 | BX35: 164.7087125 | BY35: 168.0028868 | BZ35: 171.3629445 | CA35: 174.7902034 | CB35: 178.2860075 | CC35: 181.8517276 | CD35: 185.4887622 | CE35: 189.1985374 | CF35: 192.9825081 | CG35: 196.8421583 | CH35: 200.7790015 | CI35: 204.7945815 | CJ35: 208.8904731 | CK35: 213.0682826 | CL35: 217.3296482 | CM35: 221.6762412 | CN35: 226.109766 | CO35: 230.6319614 | CP35: 235.2446006 | CQ35: 239.9494926 | CR35: 244.7484824 | CS35: 249.6434521 | CT35: 254.6363211 | CU35: 259.7290476 | CV35: 264.9236285 | CW35: 270.2221011 | CX35: 275.6265431 | CY35: 281.139074 | CZ35: 286.7618554 | DA35: 292.4970926 | DB35: 298.3470344 | DC35: 304.3139751 | DD35: 310.4002546 | DE35: 316.6082597 | DF35: 322.9404249 | DG35: 329.3992334 | DH35: 335.987218 | DI35: 342.7069624 | DJ35: 349.5611017 | DK35: 356.5523237 | DL35: 363.6833702 | DM35: 370.9570376 | DN35: 378.3761783 | DO35: 385.9437019 | DP35: 393.6625759 | DQ35: 401.5358274 | DR35: 409.566544 | DS35: 417.7578749 | DT35: 426.1130324 | DU35: 434.635293 | DV35: 443.3279989 | DW35: 452.1945588 | DX35: 461.23845 | DY35: 470.463219 | DZ35: 479.8724834 | EA35: 489.4699331 | EB35: 499.2593317 | EC35: 509.2445184 | ED35: 519.4294087 | EE35: =EE33-EE34 -> 529.8179969 | EF35: 540.4143568 | EG35: 551.222644 | EH35: 562.2470969 | EI35: 573.4920388 | EJ35: 584.9618796 | EK35: 596.6611172 | EL35: 608.5943395 | EM35: 620.7662263 | EN35: 633.1815508 | EO35: 645.8451818 | EP35: 658.7620855 | EQ35: 671.9373272 | ER35: 685.3760737 | ES35: 699.0835952 | ET35: 713.0652671 | EU35: 727.3265725 | EV35: 741.8731039 | EW35: 756.710566 | EX35: 771.8447773 | EY35: 787.2816729 | EZ35: 803.0273063 | FA35: 819.0878524 | FB35: 835.4696095 | FC35: 852.1790017 | FD35: 869.2225817 | FE35: 886.6070333 | FF35: 904.339174 | FG35: 922.4259575 | FH35: 940.8744766 | FI35: 959.6919662 | FJ35: 978.8858055 | FK35: 998.4635216 | FL35: 1018.432792 | FM35: 1038.801448 | FN35: 1059.577477 | FO35: 1080.769026 | FP35: 1102.384407 | FQ35: 1124.432095 | FR35: 1146.920737 | FS35: 1169.859152 | FT35: 1193.256335 | FU35: 1217.121461 | FV35: 1241.463891 | FW35: 1266.293168 | FX35: 1291.619032 | FY35: 1317.451412 | FZ35: 1343.800441 | GA35: 1370.67645 | GB35: 1398.089979 | GC35: 1426.051778 | GD35: 1454.572814 | GE35: 1483.66427 | GF35: 1513.337555 | GG35: 1543.604306 | GH35: 1574.476393 | GI35: 1605.96592 | GJ35: 1638.085239 | GK35: 1670.846944 | GL35: 1704.263882 | GM35: 1738.34916 | GN35: 1773.116143 | GO35: 1808.578466 | GP35: 1844.750035 | GQ35: =GQ33-GQ34 -> 1881.645036 | GR35: 1919.277937 | GS35: 1957.663496 | GT35: 1996.816766 | GU35: 2036.753101 | GV35: 2077.488163 | GW35: 2119.037926 | GX35: 2161.418685 | GY35: 2204.647058 | GZ35: 2248.74 | HA35: 2293.7148 | HB35: 2339.589096 | HC35: 2386.380877 | HD35: 2434.108495 | HE35: 2482.790665 | HF35: 2532.446478 | HG35: 2583.095408 | HH35: 2634.757316 | HI35: 2687.452462 | HJ35: 2741.201511 | HK35: 2796.025542 | HL35: 2851.946053 | HM35: 2908.984974 | HN35: 2967.164673 | HO35: 3026.507967 | HP35: 3087.038126 | HQ35: 3148.778888 | HR35: 3211.754466 | HS35: 3275.989555 | HT35: 3341.509347 | HU35: 3408.339533 | HV35: 3476.506324 | HW35: 3546.036451 | HX35: 3616.95718 | HY35: 3689.296323 | HZ35: 3763.08225 | IA35: 3838.343895 | IB35: 3915.110773 | IC35: 3993.412988 | ID35: 4073.281248 | IE35: 4154.746873 | IF35: 4237.84181 | IG35: 4322.598646 | IH35: 4409.050619 | II35: 4497.231632 | IJ35: 4587.176264 | IK35: 4678.91979 | IL35: 4772.498185 | IM35: 4867.948149 | IN35: 4965.307112 | IO35: 5064.613254 | IP35: 5165.905519 | IQ35: 5269.22363 | IR35: 5374.608102 | IS35: 5482.100265 | IT35: 5591.74227 | IU35: 5703.577115 | IV35: 5817.648658 | IW35: 5934.001631 | IX35: 6052.681663 | IY35: 6173.735297 | IZ35: 6297.210002 | JA35: 6423.154203 | JB35: 6551.617287 | JC35: =JC33-JC34 -> 6682.649632 | JD35: 6816.302625 | JE35: 6952.628677 | JF35: 7091.681251 | JG35: 7233.514876 | JH35: 7378.185174 | JI35: 7525.748877 | JJ35: 7676.263855 | JK35: 7829.789132 | JL35: 7986.384914 | JM35: 8146.112613 | JN35: 8309.034865 | JO35: 8475.215562 | JP35: 8644.719873 | JQ35: 8817.614271 | JR35: 8993.966556 | JS35: 9173.845887 | JT35: 9357.322805 | JU35: 9544.469261 | JV35: 9735.358646 | JW35: 9930.065819 | JX35: 10128.66714 | JY35: 10331.24048 | JZ35: 10537.86529 | KA35: 10748.62259 | KB35: 10963.59505 | KC35: 11182.86695 | KD35: 11406.52429 | KE35: 11634.65477 | KF35: 11867.34787 | KG35: 12104.69482 | KH35: 12346.78872 | KI35: 12593.72449 | KJ35: 12845.59898 | KK35: 13102.51096 | KL35: 13364.56118 | KM35: 13631.85241 | KN35: 13904.48946 | KO35: 14182.57924 | KP35: 14466.23083 | KQ35: 14755.55545 | KR35: 15050.66656 | KS35: 15351.67989
B37: NPV of FCFF | E37: =NPV($E$11,F35:KS35) -> 390.3176897
A39: Value from TV without Stable Ratio Adjustment
B40: FCFF Explicit | F40: =F35*F16 -> 9.006849315 | G40: 11.25856164 | H40: 14.07320205 | I40: 17.59150257 | J40: 21.98937821 | K40: 27.48672276 | L40: 34.35840345 | M40: 0 | N40: 0 | O40: 0 | P40: 0 | Q40: 0 | R40: 0 | S40: 0 | T40: 0 | U40: 0 | V40: 0 | W40: 0 | X40: 0 | Y40: 0 | Z40: 0 | AA40: 0 | AB40: 0 | AC40: 0 | AD40: 0 | AE40: 0 | AF40: 0 | AG40: 0 | AH40: 0 | AI40: 0 | AJ40: 0 | AK40: 0 | AL40: 0 | AM40: 0 | AN40: 0 | AO40: 0 | AP40: 0 | AQ40: 0 | AR40: 0 | AS40: 0 | AT40: 0 | AU40: 0 | AV40: 0 | AW40: 0 | AX40: 0 | AY40: 0 | AZ40: 0 | BA40: 0 | BB40: 0 | BC40: 0 | BD40: 0 | BE40: 0 | BF40: 0 | BG40: 0 | BH40: 0 | BI40: 0 | BJ40: 0 | BK40: 0 | BL40: 0 | BM40: 0 | BN40: 0 | BO40: 0 | BP40: 0 | BQ40: 0 | BR40: =BR35*BR16 -> 0 | BS40: 0 | BT40: 0 | BU40: 0 | BV40: 0 | BW40: 0 | BX40: 0 | BY40: 0 | BZ40: 0 | CA40: 0 | CB40: 0 | CC40: 0 | CD40: 0 | CE40: 0 | CF40: 0 | CG40: 0 | CH40: 0 | CI40: 0 | CJ40: 0 | CK40: 0 | CL40: 0 | CM40: 0 | CN40: 0 | CO40: 0 | CP40: 0 | CQ40: 0 | CR40: 0 | CS40: 0 | CT40: 0 | CU40: 0 | CV40: 0 | CW40: 0 | CX40: 0 | CY40: 0 | CZ40: 0 | DA40: 0 | DB40: 0 | DC40: 0 | DD40: 0 | DE40: 0 | DF40: 0 | DG40: 0 | DH40: 0 | DI40: 0 | DJ40: 0 | DK40: 0 | DL40: 0 | DM40: 0 | DN40: 0 | DO40: 0 | DP40: 0 | DQ40: 0 | DR40: 0 | DS40: 0 | DT40: 0 | DU40: 0 | DV40: 0 | DW40: 0 | DX40: 0 | DY40: 0 | DZ40: 0 | EA40: 0 | EB40: 0 | EC40: 0 | ED40: =ED35*ED16 -> 0 | EE40: 0 | EF40: 0 | EG40: 0 | EH40: 0 | EI40: 0 | EJ40: 0 | EK40: 0 | EL40: 0 | EM40: 0 | EN40: 0 | EO40: 0 | EP40: 0 | EQ40: 0 | ER40: 0 | ES40: 0 | ET40: 0 | EU40: 0 | EV40: 0 | EW40: 0 | EX40: 0 | EY40: 0 | EZ40: 0 | FA40: 0 | FB40: 0 | FC40: 0 | FD40: 0 | FE40: 0 | FF40: 0 | FG40: 0 | FH40: 0 | FI40: 0 | FJ40: 0 | FK40: 0 | FL40: 0 | FM40: 0 | FN40: 0 | FO40: 0 | FP40: 0 | FQ40: 0 | FR40: 0 | FS40: 0 | FT40: 0 | FU40: 0 | FV40: 0 | FW40: 0 | FX40: 0 | FY40: 0 | FZ40: 0 | GA40: 0 | GB40: 0 | GC40: 0 | GD40: 0 | GE40: 0 | GF40: 0 | GG40: 0 | GH40: 0 | GI40: 0 | GJ40: 0 | GK40: 0 | GL40: 0 | GM40: 0 | GN40: 0 | GO40: 0 | GP40: =GP35*GP16 -> 0 | GQ40: 0 | GR40: 0 | GS40: 0 | GT40: 0 | GU40: 0 | GV40: 0 | GW40: 0 | GX40: 0 | GY40: 0 | GZ40: 0 | HA40: 0 | HB40: 0 | HC40: 0 | HD40: 0 | HE40: 0 | HF40: 0 | HG40: 0 | HH40: 0 | HI40: 0 | HJ40: 0 | HK40: 0 | HL40: 0 | HM40: 0 | HN40: 0 | HO40: 0 | HP40: 0 | HQ40: 0 | HR40: 0 | HS40: 0 | HT40: 0 | HU40: 0 | HV40: 0 | HW40: 0 | HX40: 0 | HY40: 0 | HZ40: 0 | IA40: 0 | IB40: 0 | IC40: 0 | ID40: 0 | IE40: 0 | IF40: 0 | IG40: 0 | IH40: 0 | II40: 0 | IJ40: 0 | IK40: 0 | IL40: 0 | IM40: 0 | IN40: 0 | IO40: 0 | IP40: 0 | IQ40: 0 | IR40: 0 | IS40: 0 | IT40: 0 | IU40: 0 | IV40: 0 | IW40: 0 | IX40: 0 | IY40: 0 | IZ40: 0 | JA40: 0 | JB40: =JB35*JB16 -> 0 | JC40: 0 | JD40: 0 | JE40: 0 | JF40: 0 | JG40: 0 | JH40: 0 | JI40: 0 | JJ40: 0 | JK40: 0 | JL40: 0 | JM40: 0 | JN40: 0 | JO40: 0 | JP40: 0 | JQ40: 0 | JR40: 0 | JS40: 0 | JT40: 0 | JU40: 0 | JV40: 0 | JW40: 0 | JX40: 0 | JY40: 0 | JZ40: 0 | KA40: 0 | KB40: 0 | KC40: 0 | KD40: 0 | KE40: 0 | KF40: 0 | KG40: 0 | KH40: 0 | KI40: 0 | KJ40: 0 | KK40: 0 | KL40: 0 | KM40: 0 | KN40: 0 | KO40: 0 | KP40: 0 | KQ40: 0 | KR40: 0 | KS40: 0
B41: NPV of FCFF Explicit | E41: =NPV($E$11,F40:KS40) -> 86.88178508
B42: PV of TV | E42: =NPV($E$11,F42:KS42) -> 224.7989942 | F42: =F40*(1+$E$10)/($E$11-$E$10)*F18 -> 0 | G42: 0 | H42: 0 | I42: 0 | J42: 0 | K42: 0 | L42: 438.069644 | M42: 0 | N42: 0 | O42: 0 | P42: 0 | Q42: 0 | R42: 0 | S42: 0 | T42: 0 | U42: 0 | V42: 0 | W42: 0 | X42: 0 | Y42: 0 | Z42: 0 | AA42: 0 | AB42: 0 | AC42: 0 | AD42: 0 | AE42: 0 | AF42: 0 | AG42: 0 | AH42: 0 | AI42: 0 | AJ42: 0 | AK42: 0 | AL42: 0 | AM42: 0 | AN42: 0 | AO42: 0 | AP42: 0 | AQ42: 0 | AR42: 0 | AS42: 0 | AT42: 0 | AU42: 0 | AV42: 0 | AW42: 0 | AX42: 0 | AY42: 0 | AZ42: 0 | BA42: 0 | BB42: 0 | BC42: 0 | BD42: 0 | BE42: 0 | BF42: 0 | BG42: 0 | BH42: 0 | BI42: 0 | BJ42: 0 | BK42: 0 | BL42: 0 | BM42: 0 | BN42: 0 | BO42: 0 | BP42: 0 | BQ42: 0 | BR42: =BR40*(1+$E$10)/($E$11-$E$10)*BR18 -> 0 | BS42: 0 | BT42: 0 | BU42: 0 | BV42: 0 | BW42: 0 | BX42: 0 | BY42: 0 | BZ42: 0 | CA42: 0 | CB42: 0 | CC42: 0 | CD42: 0 | CE42: 0 | CF42: 0 | CG42: 0 | CH42: 0 | CI42: 0 | CJ42: 0 | CK42: 0 | CL42: 0 | CM42: 0 | CN42: 0 | CO42: 0 | CP42: 0 | CQ42: 0 | CR42: 0 | CS42: 0 | CT42: 0 | CU42: 0 | CV42: 0 | CW42: 0 | CX42: 0 | CY42: 0 | CZ42: 0 | DA42: 0 | DB42: 0 | DC42: 0 | DD42: 0 | DE42: 0 | DF42: 0 | DG42: 0 | DH42: 0 | DI42: 0 | DJ42: 0 | DK42: 0 | DL42: 0 | DM42: 0 | DN42: 0 | DO42: 0 | DP42: 0 | DQ42: 0 | DR42: 0 | DS42: 0 | DT42: 0 | DU42: 0 | DV42: 0 | DW42: 0 | DX42: 0 | DY42: 0 | DZ42: 0 | EA42: 0 | EB42: 0 | EC42: 0 | ED42: =ED40*(1+$E$10)/($E$11-$E$10)*ED18 -> 0 | EE42: 0 | EF42: 0 | EG42: 0 | EH42: 0 | EI42: 0 | EJ42: 0 | EK42: 0 | EL42: 0 | EM42: 0 | EN42: 0 | EO42: 0 | EP42: 0 | EQ42: 0 | ER42: 0 | ES42: 0 | ET42: 0 | EU42: 0 | EV42: 0 | EW42: 0 | EX42: 0 | EY42: 0 | EZ42: 0 | FA42: 0 | FB42: 0 | FC42: 0 | FD42: 0 | FE42: 0 | FF42: 0 | FG42: 0 | FH42: 0 | FI42: 0 | FJ42: 0 | FK42: 0 | FL42: 0 | FM42: 0 | FN42: 0 | FO42: 0 | FP42: 0 | FQ42: 0 | FR42: 0 | FS42: 0 | FT42: 0 | FU42: 0 | FV42: 0 | FW42: 0 | FX42: 0 | FY42: 0 | FZ42: 0 | GA42: 0 | GB42: 0 | GC42: 0 | GD42: 0 | GE42: 0 | GF42: 0 | GG42: 0 | GH42: 0 | GI42: 0 | GJ42: 0 | GK42: 0 | GL42: 0 | GM42: 0 | GN42: 0 | GO42: 0 | GP42: =GP40*(1+$E$10)/($E$11-$E$10)*GP18 -> 0 | GQ42: 0 | GR42: 0 | GS42: 0 | GT42: 0 | GU42: 0 | GV42: 0 | GW42: 0 | GX42: 0 | GY42: 0 | GZ42: 0 | HA42: 0 | HB42: 0 | HC42: 0 | HD42: 0 | HE42: 0 | HF42: 0 | HG42: 0 | HH42: 0 | HI42: 0 | HJ42: 0 | HK42: 0 | HL42: 0 | HM42: 0 | HN42: 0 | HO42: 0 | HP42: 0 | HQ42: 0 | HR42: 0 | HS42: 0 | HT42: 0 | HU42: 0 | HV42: 0 | HW42: 0 | HX42: 0 | HY42: 0 | HZ42: 0 | IA42: 0 | IB42: 0 | IC42: 0 | ID42: 0 | IE42: 0 | IF42: 0 | IG42: 0 | IH42: 0 | II42: 0 | IJ42: 0 | IK42: 0 | IL42: 0 | IM42: 0 | IN42: 0 | IO42: 0 | IP42: 0 | IQ42: 0 | IR42: 0 | IS42: 0 | IT42: 0 | IU42: 0 | IV42: 0 | IW42: 0 | IX42: 0 | IY42: 0 | IZ42: 0 | JA42: 0 | JB42: =JB40*(1+$E$10)/($E$11-$E$10)*JB18 -> 0 | JC42: 0 | JD42: 0 | JE42: 0 | JF42: 0 | JG42: 0 | JH42: 0 | JI42: 0 | JJ42: 0 | JK42: 0 | JL42: 0 | JM42: 0 | JN42: 0 | JO42: 0 | JP42: 0 | JQ42: 0 | JR42: 0 | JS42: 0 | JT42: 0 | JU42: 0 | JV42: 0 | JW42: 0 | JX42: 0 | JY42: 0 | JZ42: 0 | KA42: 0 | KB42: 0 | KC42: 0 | KD42: 0 | KE42: 0 | KF42: 0 | KG42: 0 | KH42: 0 | KI42: 0 | KJ42: 0 | KK42: 0 | KL42: 0 | KM42: 0 | KN42: 0 | KO42: 0 | KP42: 0 | KQ42: 0 | KR42: 0 | KS42: 0
B43: NPV of FCFF (Explicit + TV) | E43: =E41+E42 -> 311.6807793
A45: Stable Ratio
B46: Stable Ratio of WC Change to EBITDA from Terminal Growth | E46: =E30*$E$10/(1+$E$10) -> 0.02739726027 | F46: =F30*$E$10/(1+$E$10) -> 0.02739726027 | G46: 0.02739726027 | H46: 0.02739726027 | I46: 0.02739726027 | J46: 0.02739726027 | K46: 0.02739726027 | L46: 0.02739726027 | M46: 0.02739726027 | N46: 0.02739726027 | O46: 0.02739726027 | P46: 0.02739726027 | Q46: 0.02739726027 | R46: 0.02739726027 | S46: 0.02739726027 | T46: 0.02739726027 | U46: 0.02739726027 | V46: 0.02739726027 | W46: 0.02739726027 | X46: 0.02739726027 | Y46: 0.02739726027 | Z46: 0.02739726027 | AA46: 0.02739726027 | AB46: 0.02739726027 | AC46: 0.02739726027 | AD46: 0.02739726027 | AE46: 0.02739726027 | AF46: 0.02739726027 | AG46: 0.02739726027 | AH46: 0.02739726027 | AI46: 0.02739726027 | AJ46: 0.02739726027 | AK46: 0.02739726027 | AL46: 0.02739726027 | AM46: 0.02739726027 | AN46: 0.02739726027 | AO46: 0.02739726027 | AP46: 0.02739726027 | AQ46: 0.02739726027 | AR46: 0.02739726027 | AS46: 0.02739726027 | AT46: 0.02739726027 | AU46: 0.02739726027 | AV46: 0.02739726027 | AW46: 0.02739726027 | AX46: 0.02739726027 | AY46: 0.02739726027 | AZ46: 0.02739726027 | BA46: 0.02739726027 | BB46: 0.02739726027 | BC46: 0.02739726027 | BD46: 0.02739726027 | BE46: 0.02739726027 | BF46: 0.02739726027 | BG46: 0.02739726027 | BH46: 0.02739726027 | BI46: 0.02739726027 | BJ46: 0.02739726027 | BK46: 0.02739726027 | BL46: 0.02739726027 | BM46: 0.02739726027 | BN46: 0.02739726027 | BO46: 0.02739726027 | BP46: 0.02739726027 | BQ46: =BQ30*$E$10/(1+$E$10) -> 0.02739726027 | BR46: 0.02739726027 | BS46: 0.02739726027 | BT46: 0.02739726027 | BU46: 0.02739726027 | BV46: 0.02739726027 | BW46: 0.02739726027 | BX46: 0.02739726027 | BY46: 0.02739726027 | BZ46: 0.02739726027 | CA46: 0.02739726027 | CB46: 0.02739726027 | CC46: 0.02739726027 | CD46: 0.02739726027 | CE46: 0.02739726027 | CF46: 0.02739726027 | CG46: 0.02739726027 | CH46: 0.02739726027 | CI46: 0.02739726027 | CJ46: 0.02739726027 | CK46: 0.02739726027 | CL46: 0.02739726027 | CM46: 0.02739726027 | CN46: 0.02739726027 | CO46: 0.02739726027 | CP46: 0.02739726027 | CQ46: 0.02739726027 | CR46: 0.02739726027 | CS46: 0.02739726027 | CT46: 0.02739726027 | CU46: 0.02739726027 | CV46: 0.02739726027 | CW46: 0.02739726027 | CX46: 0.02739726027 | CY46: 0.02739726027 | CZ46: 0.02739726027 | DA46: 0.02739726027 | DB46: 0.02739726027 | DC46: 0.02739726027 | DD46: 0.02739726027 | DE46: 0.02739726027 | DF46: 0.02739726027 | DG46: 0.02739726027 | DH46: 0.02739726027 | DI46: 0.02739726027 | DJ46: 0.02739726027 | DK46: 0.02739726027 | DL46: 0.02739726027 | DM46: 0.02739726027 | DN46: 0.02739726027 | DO46: 0.02739726027 | DP46: 0.02739726027 | DQ46: 0.02739726027 | DR46: 0.02739726027 | DS46: 0.02739726027 | DT46: 0.02739726027 | DU46: 0.02739726027 | DV46: 0.02739726027 | DW46: 0.02739726027 | DX46: 0.02739726027 | DY46: 0.02739726027 | DZ46: 0.02739726027 | EA46: 0.02739726027 | EB46: 0.02739726027 | EC46: =EC30*$E$10/(1+$E$10) -> 0.02739726027 | ED46: 0.02739726027 | EE46: 0.02739726027 | EF46: 0.02739726027 | EG46: 0.02739726027 | EH46: 0.02739726027 | EI46: 0.02739726027 | EJ46: 0.02739726027 | EK46: 0.02739726027 | EL46: 0.02739726027 | EM46: 0.02739726027 | EN46: 0.02739726027 | EO46: 0.02739726027 | EP46: 0.02739726027 | EQ46: 0.02739726027 | ER46: 0.02739726027 | ES46: 0.02739726027 | ET46: 0.02739726027 | EU46: 0.02739726027 | EV46: 0.02739726027 | EW46: 0.02739726027 | EX46: 0.02739726027 | EY46: 0.02739726027 | EZ46: 0.02739726027 | FA46: 0.02739726027 | FB46: 0.02739726027 | FC46: 0.02739726027 | FD46: 0.02739726027 | FE46: 0.02739726027 | FF46: 0.02739726027 | FG46: 0.02739726027 | FH46: 0.02739726027 | FI46: 0.02739726027 | FJ46: 0.02739726027 | FK46: 0.02739726027 | FL46: 0.02739726027 | FM46: 0.02739726027 | FN46: 0.02739726027 | FO46: 0.02739726027 | FP46: 0.02739726027 | FQ46: 0.02739726027 | FR46: 0.02739726027 | FS46: 0.02739726027 | FT46: 0.02739726027 | FU46: 0.02739726027 | FV46: 0.02739726027 | FW46: 0.02739726027 | FX46: 0.02739726027 | FY46: 0.02739726027 | FZ46: 0.02739726027 | GA46: 0.02739726027 | GB46: 0.02739726027 | GC46: 0.02739726027 | GD46: 0.02739726027 | GE46: 0.02739726027 | GF46: 0.02739726027 | GG46: 0.02739726027 | GH46: 0.02739726027 | GI46: 0.02739726027 | GJ46: 0.02739726027 | GK46: 0.02739726027 | GL46: 0.02739726027 | GM46: 0.02739726027 | GN46: 0.02739726027 | GO46: =GO30*$E$10/(1+$E$10) -> 0.02739726027 | GP46: 0.02739726027 | GQ46: 0.02739726027 | GR46: 0.02739726027 | GS46: 0.02739726027 | GT46: 0.02739726027 | GU46: 0.02739726027 | GV46: 0.02739726027 | GW46: 0.02739726027 | GX46: 0.02739726027 | GY46: 0.02739726027 | GZ46: 0.02739726027 | HA46: 0.02739726027 | HB46: 0.02739726027 | HC46: 0.02739726027 | HD46: 0.02739726027 | HE46: 0.02739726027 | HF46: 0.02739726027 | HG46: 0.02739726027 | HH46: 0.02739726027 | HI46: 0.02739726027 | HJ46: 0.02739726027 | HK46: 0.02739726027 | HL46: 0.02739726027 | HM46: 0.02739726027 | HN46: 0.02739726027 | HO46: 0.02739726027 | HP46: 0.02739726027 | HQ46: 0.02739726027 | HR46: 0.02739726027 | HS46: 0.02739726027 | HT46: 0.02739726027 | HU46: 0.02739726027 | HV46: 0.02739726027 | HW46: 0.02739726027 | HX46: 0.02739726027 | HY46: 0.02739726027 | HZ46: 0.02739726027 | IA46: 0.02739726027 | IB46: 0.02739726027 | IC46: 0.02739726027 | ID46: 0.02739726027 | IE46: 0.02739726027 | IF46: 0.02739726027 | IG46: 0.02739726027 | IH46: 0.02739726027 | II46: 0.02739726027 | IJ46: 0.02739726027 | IK46: 0.02739726027 | IL46: 0.02739726027 | IM46: 0.02739726027 | IN46: 0.02739726027 | IO46: 0.02739726027 | IP46: 0.02739726027 | IQ46: 0.02739726027 | IR46: 0.02739726027 | IS46: 0.02739726027 | IT46: 0.02739726027 | IU46: 0.02739726027 | IV46: 0.02739726027 | IW46: 0.02739726027 | IX46: 0.02739726027 | IY46: 0.02739726027 | IZ46: 0.02739726027 | JA46: =JA30*$E$10/(1+$E$10) -> 0.02739726027 | JB46: 0.02739726027 | JC46: 0.02739726027 | JD46: 0.02739726027 | JE46: 0.02739726027 | JF46: 0.02739726027 | JG46: 0.02739726027 | JH46: 0.02739726027 | JI46: 0.02739726027 | JJ46: 0.02739726027 | JK46: 0.02739726027 | JL46: 0.02739726027 | JM46: 0.02739726027 | JN46: 0.02739726027 | JO46: 0.02739726027 | JP46: 0.02739726027 | JQ46: 0.02739726027 | JR46: 0.02739726027 | JS46: 0.02739726027 | JT46: 0.02739726027 | JU46: 0.02739726027 | JV46: 0.02739726027 | JW46: 0.02739726027 | JX46: 0.02739726027 | JY46: 0.02739726027 | JZ46: 0.02739726027 | KA46: 0.02739726027 | KB46: 0.02739726027 | KC46: 0.02739726027 | KD46: 0.02739726027 | KE46: 0.02739726027 | KF46: 0.02739726027 | KG46: 0.02739726027 | KH46: 0.02739726027 | KI46: 0.02739726027 | KJ46: 0.02739726027 | KK46: 0.02739726027 | KL46: 0.02739726027 | KM46: 0.02739726027 | KN46: 0.02739726027 | KO46: 0.02739726027 | KP46: 0.02739726027 | KQ46: 0.02739726027 | KR46: 0.02739726027 | KS46: 0.02739726027
B47: Stable Level of WC Change | E47: =E46*E23 -> 0.2739726027 | F47: 0.3424657534 | G47: 0.4280821918 | H47: 0.5351027397 | I47: 0.6688784247 | J47: 0.8360980308 | K47: 1.045122539 | L47: 1.306403173 | M47: 1.332531237 | N47: 1.359181861 | O47: 1.386365499 | P47: 1.414092809 | Q47: 1.442374665 | R47: 1.471222158 | S47: 1.500646601 | T47: 1.530659533 | U47: 1.561272724 | V47: 1.592498178 | W47: 1.624348142 | X47: 1.656835105 | Y47: 1.689971807 | Z47: 1.723771243 | AA47: 1.758246668 | AB47: 1.793411601 | AC47: 1.829279833 | AD47: 1.86586543 | AE47: 1.903182738 | AF47: 1.941246393 | AG47: 1.980071321 | AH47: 2.019672748 | AI47: 2.060066202 | AJ47: 2.101267527 | AK47: 2.143292877 | AL47: 2.186158735 | AM47: 2.229881909 | AN47: 2.274479547 | AO47: 2.319969138 | AP47: 2.366368521 | AQ47: 2.413695892 | AR47: 2.461969809 | AS47: 2.511209206 | AT47: 2.56143339 | AU47: 2.612662058 | AV47: 2.664915299 | AW47: 2.718213605 | AX47: 2.772577877 | AY47: 2.828029434 | AZ47: 2.884590023 | BA47: 2.942281823 | BB47: 3.00112746 | BC47: 3.061150009 | BD47: 3.122373009 | BE47: 3.18482047 | BF47: 3.248516879 | BG47: 3.313487216 | BH47: 3.379756961 | BI47: 3.4473521 | BJ47: 3.516299142 | BK47: 3.586625125 | BL47: 3.658357627 | BM47: 3.73152478 | BN47: 3.806155276 | BO47: 3.882278381 | BP47: 3.959923949 | BQ47: =BQ46*BQ23 -> 4.039122428 | BR47: 4.119904876 | BS47: 4.202302974 | BT47: 4.286349033 | BU47: 4.372076014 | BV47: 4.459517534 | BW47: 4.548707885 | BX47: 4.639682042 | BY47: 4.732475683 | BZ47: 4.827125197 | CA47: 4.923667701 | CB47: 5.022141055 | CC47: 5.122583876 | CD47: 5.225035554 | CE47: 5.329536265 | CF47: 5.43612699 | CG47: 5.54484953 | CH47: 5.65574652 | CI47: 5.768861451 | CJ47: 5.88423868 | CK47: 6.001923453 | CL47: 6.121961922 | CM47: 6.244401161 | CN47: 6.369289184 | CO47: 6.496674968 | CP47: 6.626608467 | CQ47: 6.759140636 | CR47: 6.894323449 | CS47: 7.032209918 | CT47: 7.172854117 | CU47: 7.316311199 | CV47: 7.462637423 | CW47: 7.611890171 | CX47: 7.764127975 | CY47: 7.919410534 | CZ47: 8.077798745 | DA47: 8.23935472 | DB47: 8.404141814 | DC47: 8.57222465 | DD47: 8.743669143 | DE47: 8.918542526 | DF47: 9.096913377 | DG47: 9.278851644 | DH47: 9.464428677 | DI47: 9.653717251 | DJ47: 9.846791596 | DK47: 10.04372743 | DL47: 10.24460198 | DM47: 10.44949402 | DN47: 10.6584839 | DO47: 10.87165357 | DP47: 11.08908665 | DQ47: 11.31086838 | DR47: 11.53708575 | DS47: 11.76782746 | DT47: 12.00318401 | DU47: 12.24324769 | DV47: 12.48811264 | DW47: 12.7378749 | DX47: 12.9926324 | DY47: 13.25248504 | DZ47: 13.51753474 | EA47: 13.78788544 | EB47: 14.06364315 | EC47: =EC46*EC23 -> 14.34491601 | ED47: 14.63181433 | EE47: 14.92445062 | EF47: 15.22293963 | EG47: 15.52739842 | EH47: 15.83794639 | EI47: 16.15470532 | EJ47: 16.47779942 | EK47: 16.80735541 | EL47: 17.14350252 | EM47: 17.48637257 | EN47: 17.83610002 | EO47: 18.19282202 | EP47: 18.55667846 | EQ47: 18.92781203 | ER47: 19.30636827 | ES47: 19.69249564 | ET47: 20.08634555 | EU47: 20.48807246 | EV47: 20.89783391 | EW47: 21.31579059 | EX47: 21.7421064 | EY47: 22.17694853 | EZ47: 22.6204875 | FA47: 23.07289725 | FB47: 23.5343552 | FC47: 24.0050423 | FD47: 24.48514315 | FE47: 24.97484601 | FF47: 25.47434293 | FG47: 25.98382979 | FH47: 26.50350638 | FI47: 27.03357651 | FJ47: 27.57424804 | FK47: 28.125733 | FL47: 28.68824766 | FM47: 29.26201262 | FN47: 29.84725287 | FO47: 30.44419793 | FP47: 31.05308188 | FQ47: 31.67414352 | FR47: 32.30762639 | FS47: 32.95377892 | FT47: 33.6128545 | FU47: 34.28511159 | FV47: 34.97081382 | FW47: 35.6702301 | FX47: 36.3836347 | FY47: 37.11130739 | FZ47: 37.85353354 | GA47: 38.61060421 | GB47: 39.3828163 | GC47: 40.17047262 | GD47: 40.97388207 | GE47: 41.79335972 | GF47: 42.62922691 | GG47: 43.48181145 | GH47: 44.35144768 | GI47: 45.23847663 | GJ47: 46.14324616 | GK47: 47.06611109 | GL47: 48.00743331 | GM47: 48.96758197 | GN47: 49.94693361 | GO47: =GO46*GO23 -> 50.94587229 | GP47: 51.96478973 | GQ47: 53.00408553 | GR47: 54.06416724 | GS47: 55.14545058 | GT47: 56.24835959 | GU47: 57.37332679 | GV47: 58.52079332 | GW47: 59.69120919 | GX47: 60.88503337 | GY47: 62.10273404 | GZ47: 63.34478872 | HA47: 64.61168449 | HB47: 65.90391818 | HC47: 67.22199655 | HD47: 68.56643648 | HE47: 69.93776521 | HF47: 71.33652051 | HG47: 72.76325092 | HH47: 74.21851594 | HI47: 75.70288626 | HJ47: 77.21694398 | HK47: 78.76128286 | HL47: 80.33650852 | HM47: 81.94323869 | HN47: 83.58210347 | HO47: 85.25374554 | HP47: 86.95882045 | HQ47: 88.69799686 | HR47: 90.47195679 | HS47: 92.28139593 | HT47: 94.12702385 | HU47: 96.00956432 | HV47: 97.92975561 | HW47: 99.88835072 | HX47: 101.8861177 | HY47: 103.9238401 | HZ47: 106.0023169 | IA47: 108.1223632 | IB47: 110.2848105 | IC47: 112.4905067 | ID47: 114.7403168 | IE47: 117.0351232 | IF47: 119.3758256 | IG47: 121.7633422 | IH47: 124.198609 | II47: 126.6825812 | IJ47: 129.2162328 | IK47: 131.8005575 | IL47: 134.4365686 | IM47: 137.1253 | IN47: 139.867806 | IO47: 142.6651621 | IP47: 145.5184653 | IQ47: 148.4288346 | IR47: 151.3974113 | IS47: 154.4253596 | IT47: 157.5138668 | IU47: 160.6641441 | IV47: 163.877427 | IW47: 167.1549755 | IX47: 170.498075 | IY47: 173.9080365 | IZ47: 177.3861973 | JA47: =JA46*JA23 -> 180.9339212 | JB47: 184.5525996 | JC47: 188.2436516 | JD47: 192.0085246 | JE47: 195.8486951 | JF47: 199.765669 | JG47: 203.7609824 | JH47: 207.8362021 | JI47: 211.9929261 | JJ47: 216.2327846 | JK47: 220.5574403 | JL47: 224.9685891 | JM47: 229.4679609 | JN47: 234.0573201 | JO47: 238.7384665 | JP47: 243.5132359 | JQ47: 248.3835006 | JR47: 253.3511706 | JS47: 258.418194 | JT47: 263.5865579 | JU47: 268.858289 | JV47: 274.2354548 | JW47: 279.7201639 | JX47: 285.3145672 | JY47: 291.0208585 | JZ47: 296.8412757 | KA47: 302.7781012 | KB47: 308.8336633 | KC47: 315.0103365 | KD47: 321.3105433 | KE47: 327.7367541 | KF47: 334.2914892 | KG47: 340.977319 | KH47: 347.7968654 | KI47: 354.7528027 | KJ47: 361.8478587 | KK47: 369.0848159 | KL47: 376.4665122 | KM47: 383.9958425 | KN47: 391.6757593 | KO47: 399.5092745 | KP47: 407.49946 | KQ47: 415.6494492 | KR47: 423.9624382 | KS47: 432.4416869
B48: WC Change in FCFF | F48: =IF(F18,F47,F34) -> 3.493150685 | G48: 4.366438356 | H48: 5.458047945 | I48: 6.822559932 | J48: 8.528199914 | K48: 10.66024989 | L48: 1.306403173 | M48: =IF(M18,M47,M34) -> 1.332531237 | N48: 1.359181861 | O48: 1.386365499 | P48: 1.414092809 | Q48: 1.442374665 | R48: 1.471222158 | S48: 1.500646601 | T48: 1.530659533 | U48: 1.561272724 | V48: 1.592498178 | W48: 1.624348142 | X48: 1.656835105 | Y48: 1.689971807 | Z48: 1.723771243 | AA48: 1.758246668 | AB48: 1.793411601 | AC48: 1.829279833 | AD48: 1.86586543 | AE48: 1.903182738 | AF48: 1.941246393 | AG48: 1.980071321 | AH48: 2.019672748 | AI48: 2.060066202 | AJ48: 2.101267527 | AK48: 2.143292877 | AL48: 2.186158735 | AM48: 2.229881909 | AN48: 2.274479547 | AO48: 2.319969138 | AP48: 2.366368521 | AQ48: 2.413695892 | AR48: 2.461969809 | AS48: 2.511209206 | AT48: 2.56143339 | AU48: 2.612662058 | AV48: 2.664915299 | AW48: 2.718213605 | AX48: 2.772577877 | AY48: 2.828029434 | AZ48: 2.884590023 | BA48: 2.942281823 | BB48: 3.00112746 | BC48: 3.061150009 | BD48: 3.122373009 | BE48: 3.18482047 | BF48: 3.248516879 | BG48: 3.313487216 | BH48: 3.379756961 | BI48: 3.4473521 | BJ48: 3.516299142 | BK48: 3.586625125 | BL48: 3.658357627 | BM48: 3.73152478 | BN48: 3.806155276 | BO48: 3.882278381 | BP48: 3.959923949 | BQ48: 4.039122428 | BR48: =IF(BR18,BR47,BR34) -> 4.119904876 | BS48: 4.202302974 | BT48: 4.286349033 | BU48: 4.372076014 | BV48: 4.459517534 | BW48: 4.548707885 | BX48: 4.639682042 | BY48: 4.732475683 | BZ48: 4.827125197 | CA48: 4.923667701 | CB48: 5.022141055 | CC48: 5.122583876 | CD48: 5.225035554 | CE48: 5.329536265 | CF48: 5.43612699 | CG48: 5.54484953 | CH48: 5.65574652 | CI48: 5.768861451 | CJ48: 5.88423868 | CK48: 6.001923453 | CL48: 6.121961922 | CM48: 6.244401161 | CN48: 6.369289184 | CO48: 6.496674968 | CP48: 6.626608467 | CQ48: 6.759140636 | CR48: 6.894323449 | CS48: 7.032209918 | CT48: 7.172854117 | CU48: 7.316311199 | CV48: 7.462637423 | CW48: 7.611890171 | CX48: 7.764127975 | CY48: 7.919410534 | CZ48: 8.077798745 | DA48: 8.23935472 | DB48: 8.404141814 | DC48: 8.57222465 | DD48: 8.743669143 | DE48: 8.918542526 | DF48: 9.096913377 | DG48: 9.278851644 | DH48: 9.464428677 | DI48: 9.653717251 | DJ48: 9.846791596 | DK48: 10.04372743 | DL48: 10.24460198 | DM48: 10.44949402 | DN48: 10.6584839 | DO48: 10.87165357 | DP48: 11.08908665 | DQ48: 11.31086838 | DR48: 11.53708575 | DS48: 11.76782746 | DT48: 12.00318401 | DU48: 12.24324769 | DV48: 12.48811264 | DW48: 12.7378749 | DX48: 12.9926324 | DY48: 13.25248504 | DZ48: 13.51753474 | EA48: 13.78788544 | EB48: 14.06364315 | EC48: 14.34491601 | ED48: =IF(ED18,ED47,ED34) -> 14.63181433 | EE48: 14.92445062 | EF48: 15.22293963 | EG48: 15.52739842 | EH48: 15.83794639 | EI48: 16.15470532 | EJ48: 16.47779942 | EK48: 16.80735541 | EL48: 17.14350252 | EM48: 17.48637257 | EN48: 17.83610002 | EO48: 18.19282202 | EP48: 18.55667846 | EQ48: 18.92781203 | ER48: 19.30636827 | ES48: 19.69249564 | ET48: 20.08634555 | EU48: 20.48807246 | EV48: 20.89783391 | EW48: 21.31579059 | EX48: 21.7421064 | EY48: 22.17694853 | EZ48: 22.6204875 | FA48: 23.07289725 | FB48: 23.5343552 | FC48: 24.0050423 | FD48: 24.48514315 | FE48: 24.97484601 | FF48: 25.47434293 | FG48: 25.98382979 | FH48: 26.50350638 | FI48: 27.03357651 | FJ48: 27.57424804 | FK48: 28.125733 | FL48: 28.68824766 | FM48: 29.26201262 | FN48: 29.84725287 | FO48: 30.44419793 | FP48: 31.05308188 | FQ48: 31.67414352 | FR48: 32.30762639 | FS48: 32.95377892 | FT48: 33.6128545 | FU48: 34.28511159 | FV48: 34.97081382 | FW48: 35.6702301 | FX48: 36.3836347 | FY48: 37.11130739 | FZ48: 37.85353354 | GA48: 38.61060421 | GB48: 39.3828163 | GC48: 40.17047262 | GD48: 40.97388207 | GE48: 41.79335972 | GF48: 42.62922691 | GG48: 43.48181145 | GH48: 44.35144768 | GI48: 45.23847663 | GJ48: 46.14324616 | GK48: 47.06611109 | GL48: 48.00743331 | GM48: 48.96758197 | GN48: 49.94693361 | GO48: 50.94587229 | GP48: =IF(GP18,GP47,GP34) -> 51.96478973 | GQ48: 53.00408553 | GR48: 54.06416724 | GS48: 55.14545058 | GT48: 56.24835959 | GU48: 57.37332679 | GV48: 58.52079332 | GW48: 59.69120919 | GX48: 60.88503337 | GY48: 62.10273404 | GZ48: 63.34478872 | HA48: 64.61168449 | HB48: 65.90391818 | HC48: 67.22199655 | HD48: 68.56643648 | HE48: 69.93776521 | HF48: 71.33652051 | HG48: 72.76325092 | HH48: 74.21851594 | HI48: 75.70288626 | HJ48: 77.21694398 | HK48: 78.76128286 | HL48: 80.33650852 | HM48: 81.94323869 | HN48: 83.58210347 | HO48: 85.25374554 | HP48: 86.95882045 | HQ48: 88.69799686 | HR48: 90.47195679 | HS48: 92.28139593 | HT48: 94.12702385 | HU48: 96.00956432 | HV48: 97.92975561 | HW48: 99.88835072 | HX48: 101.8861177 | HY48: 103.9238401 | HZ48: 106.0023169 | IA48: 108.1223632 | IB48: 110.2848105 | IC48: 112.4905067 | ID48: 114.7403168 | IE48: 117.0351232 | IF48: 119.3758256 | IG48: 121.7633422 | IH48: 124.198609 | II48: 126.6825812 | IJ48: 129.2162328 | IK48: 131.8005575 | IL48: 134.4365686 | IM48: 137.1253 | IN48: 139.867806 | IO48: 142.6651621 | IP48: 145.5184653 | IQ48: 148.4288346 | IR48: 151.3974113 | IS48: 154.4253596 | IT48: 157.5138668 | IU48: 160.6641441 | IV48: 163.877427 | IW48: 167.1549755 | IX48: 170.498075 | IY48: 173.9080365 | IZ48: 177.3861973 | JA48: 180.9339212 | JB48: =IF(JB18,JB47,JB34) -> 184.5525996 | JC48: 188.2436516 | JD48: 192.0085246 | JE48: 195.8486951 | JF48: 199.765669 | JG48: 203.7609824 | JH48: 207.8362021 | JI48: 211.9929261 | JJ48: 216.2327846 | JK48: 220.5574403 | JL48: 224.9685891 | JM48: 229.4679609 | JN48: 234.0573201 | JO48: 238.7384665 | JP48: 243.5132359 | JQ48: 248.3835006 | JR48: 253.3511706 | JS48: 258.418194 | JT48: 263.5865579 | JU48: 268.858289 | JV48: 274.2354548 | JW48: 279.7201639 | JX48: 285.3145672 | JY48: 291.0208585 | JZ48: 296.8412757 | KA48: 302.7781012 | KB48: 308.8336633 | KC48: 315.0103365 | KD48: 321.3105433 | KE48: 327.7367541 | KF48: 334.2914892 | KG48: 340.977319 | KH48: 347.7968654 | KI48: 354.7528027 | KJ48: 361.8478587 | KK48: 369.0848159 | KL48: 376.4665122 | KM48: 383.9958425 | KN48: 391.6757593 | KO48: 399.5092745 | KP48: 407.49946 | KQ48: 415.6494492 | KR48: 423.9624382 | KS48: 432.4416869
B49: FCFF with Stable WC Change | F49: =F33-F48 -> 9.006849315 | G49: =G33-G48 -> 11.25856164 | H49: 14.07320205 | I49: 17.59150257 | J49: 21.98937821 | K49: 27.48672276 | L49: =L33-L48 -> 46.37731265 | M49: 47.3048589 | N49: 48.25095608 | O49: 49.2159752 | P49: 50.2002947 | Q49: 51.2043006 | R49: 52.22838661 | S49: 53.27295434 | T49: 54.33841343 | U49: 55.4251817 | V49: 56.53368533 | W49: 57.66435904 | X49: 58.81764622 | Y49: 59.99399914 | Z49: 61.19387913 | AA49: 62.41775671 | AB49: 63.66611184 | AC49: 64.93943408 | AD49: 66.23822276 | AE49: 67.56298722 | AF49: 68.91424696 | AG49: 70.2925319 | AH49: 71.69838254 | AI49: 73.13235019 | AJ49: 74.59499719 | AK49: 76.08689714 | AL49: 77.60863508 | AM49: 79.16080778 | AN49: 80.74402394 | AO49: 82.35890441 | AP49: 84.0060825 | AQ49: 85.68620415 | AR49: 87.39992824 | AS49: 89.1479268 | AT49: 90.93088534 | AU49: 92.74950304 | AV49: 94.6044931 | AW49: 96.49658297 | AX49: 98.42651463 | AY49: 100.3950449 | AZ49: 102.4029458 | BA49: 104.4510047 | BB49: 106.5400248 | BC49: 108.6708253 | BD49: 110.8442418 | BE49: 113.0611267 | BF49: 115.3223492 | BG49: 117.6287962 | BH49: 119.9813721 | BI49: 122.3809996 | BJ49: 124.8286195 | BK49: 127.3251919 | BL49: 129.8716958 | BM49: 132.4691297 | BN49: 135.1185123 | BO49: 137.8208825 | BP49: 140.5773002 | BQ49: 143.3888462 | BR49: 146.2566231 | BS49: =BS33-BS48 -> 149.1817556 | BT49: 152.1653907 | BU49: 155.2086985 | BV49: 158.3128725 | BW49: 161.4791299 | BX49: 164.7087125 | BY49: 168.0028868 | BZ49: 171.3629445 | CA49: 174.7902034 | CB49: 178.2860075 | CC49: 181.8517276 | CD49: 185.4887622 | CE49: 189.1985374 | CF49: 192.9825081 | CG49: 196.8421583 | CH49: 200.7790015 | CI49: 204.7945815 | CJ49: 208.8904731 | CK49: 213.0682826 | CL49: 217.3296482 | CM49: 221.6762412 | CN49: 226.109766 | CO49: 230.6319614 | CP49: 235.2446006 | CQ49: 239.9494926 | CR49: 244.7484824 | CS49: 249.6434521 | CT49: 254.6363211 | CU49: 259.7290476 | CV49: 264.9236285 | CW49: 270.2221011 | CX49: 275.6265431 | CY49: 281.139074 | CZ49: 286.7618554 | DA49: 292.4970926 | DB49: 298.3470344 | DC49: 304.3139751 | DD49: 310.4002546 | DE49: 316.6082597 | DF49: 322.9404249 | DG49: 329.3992334 | DH49: 335.987218 | DI49: 342.7069624 | DJ49: 349.5611017 | DK49: 356.5523237 | DL49: 363.6833702 | DM49: 370.9570376 | DN49: 378.3761783 | DO49: 385.9437019 | DP49: 393.6625759 | DQ49: 401.5358274 | DR49: 409.566544 | DS49: 417.7578749 | DT49: 426.1130324 | DU49: 434.635293 | DV49: 443.3279989 | DW49: 452.1945588 | DX49: 461.23845 | DY49: 470.463219 | DZ49: 479.8724834 | EA49: 489.4699331 | EB49: 499.2593317 | EC49: 509.2445184 | ED49: 519.4294087 | EE49: =EE33-EE48 -> 529.8179969 | EF49: 540.4143568 | EG49: 551.222644 | EH49: 562.2470969 | EI49: 573.4920388 | EJ49: 584.9618796 | EK49: 596.6611172 | EL49: 608.5943395 | EM49: 620.7662263 | EN49: 633.1815508 | EO49: 645.8451818 | EP49: 658.7620855 | EQ49: 671.9373272 | ER49: 685.3760737 | ES49: 699.0835952 | ET49: 713.0652671 | EU49: 727.3265725 | EV49: 741.8731039 | EW49: 756.710566 | EX49: 771.8447773 | EY49: 787.2816729 | EZ49: 803.0273063 | FA49: 819.0878524 | FB49: 835.4696095 | FC49: 852.1790017 | FD49: 869.2225817 | FE49: 886.6070333 | FF49: 904.339174 | FG49: 922.4259575 | FH49: 940.8744766 | FI49: 959.6919662 | FJ49: 978.8858055 | FK49: 998.4635216 | FL49: 1018.432792 | FM49: 1038.801448 | FN49: 1059.577477 | FO49: 1080.769026 | FP49: 1102.384407 | FQ49: 1124.432095 | FR49: 1146.920737 | FS49: 1169.859152 | FT49: 1193.256335 | FU49: 1217.121461 | FV49: 1241.463891 | FW49: 1266.293168 | FX49: 1291.619032 | FY49: 1317.451412 | FZ49: 1343.800441 | GA49: 1370.67645 | GB49: 1398.089979 | GC49: 1426.051778 | GD49: 1454.572814 | GE49: 1483.66427 | GF49: 1513.337555 | GG49: 1543.604306 | GH49: 1574.476393 | GI49: 1605.96592 | GJ49: 1638.085239 | GK49: 1670.846944 | GL49: 1704.263882 | GM49: 1738.34916 | GN49: 1773.116143 | GO49: 1808.578466 | GP49: 1844.750035 | GQ49: =GQ33-GQ48 -> 1881.645036 | GR49: 1919.277937 | GS49: 1957.663496 | GT49: 1996.816766 | GU49: 2036.753101 | GV49: 2077.488163 | GW49: 2119.037926 | GX49: 2161.418685 | GY49: 2204.647058 | GZ49: 2248.74 | HA49: 2293.7148 | HB49: 2339.589096 | HC49: 2386.380877 | HD49: 2434.108495 | HE49: 2482.790665 | HF49: 2532.446478 | HG49: 2583.095408 | HH49: 2634.757316 | HI49: 2687.452462 | HJ49: 2741.201511 | HK49: 2796.025542 | HL49: 2851.946053 | HM49: 2908.984974 | HN49: 2967.164673 | HO49: 3026.507967 | HP49: 3087.038126 | HQ49: 3148.778888 | HR49: 3211.754466 | HS49: 3275.989555 | HT49: 3341.509347 | HU49: 3408.339533 | HV49: 3476.506324 | HW49: 3546.036451 | HX49: 3616.95718 | HY49: 3689.296323 | HZ49: 3763.08225 | IA49: 3838.343895 | IB49: 3915.110773 | IC49: 3993.412988 | ID49: 4073.281248 | IE49: 4154.746873 | IF49: 4237.84181 | IG49: 4322.598646 | IH49: 4409.050619 | II49: 4497.231632 | IJ49: 4587.176264 | IK49: 4678.91979 | IL49: 4772.498185 | IM49: 4867.948149 | IN49: 4965.307112 | IO49: 5064.613254 | IP49: 5165.905519 | IQ49: 5269.22363 | IR49: 5374.608102 | IS49: 5482.100265 | IT49: 5591.74227 | IU49: 5703.577115 | IV49: 5817.648658 | IW49: 5934.001631 | IX49: 6052.681663 | IY49: 6173.735297 | IZ49: 6297.210002 | JA49: 6423.154203 | JB49: 6551.617287 | JC49: =JC33-JC48 -> 6682.649632 | JD49: 6816.302625 | JE49: 6952.628677 | JF49: 7091.681251 | JG49: 7233.514876 | JH49: 7378.185174 | JI49: 7525.748877 | JJ49: 7676.263855 | JK49: 7829.789132 | JL49: 7986.384914 | JM49: 8146.112613 | JN49: 8309.034865 | JO49: 8475.215562 | JP49: 8644.719873 | JQ49: 8817.614271 | JR49: 8993.966556 | JS49: 9173.845887 | JT49: 9357.322805 | JU49: 9544.469261 | JV49: 9735.358646 | JW49: 9930.065819 | JX49: 10128.66714 | JY49: 10331.24048 | JZ49: 10537.86529 | KA49: 10748.62259 | KB49: 10963.59505 | KC49: 11182.86695 | KD49: 11406.52429 | KE49: 11634.65477 | KF49: 11867.34787 | KG49: 12104.69482 | KH49: 12346.78872 | KI49: 12593.72449 | KJ49: 12845.59898 | KK49: 13102.51096 | KL49: 13364.56118 | KM49: 13631.85241 | KN49: 13904.48946 | KO49: 14182.57924 | KP49: 14466.23083 | KQ49: 14755.55545 | KR49: 15050.66656 | KS49: 15351.67989
B51: PV of TV | E51: =NPV($E$11,F51:KS51) -> 303.4359047 | F51: =F49*(1+$E$10)/($E$11-$E$10)*F18 -> 0 | G51: 0 | H51: 0 | I51: 0 | J51: 0 | K51: 0 | L51: =L49*(1+$E$10)/($E$11-$E$10)*L18 -> 591.3107363 | M51: 0 | N51: 0 | O51: 0 | P51: 0 | Q51: 0 | R51: 0 | S51: 0 | T51: 0 | U51: 0 | V51: 0 | W51: 0 | X51: 0 | Y51: 0 | Z51: 0 | AA51: 0 | AB51: 0 | AC51: 0 | AD51: 0 | AE51: 0 | AF51: 0 | AG51: 0 | AH51: 0 | AI51: 0 | AJ51: 0 | AK51: 0 | AL51: 0 | AM51: 0 | AN51: 0 | AO51: 0 | AP51: 0 | AQ51: 0 | AR51: 0 | AS51: 0 | AT51: 0 | AU51: 0 | AV51: 0 | AW51: 0 | AX51: 0 | AY51: 0 | AZ51: 0 | BA51: 0 | BB51: 0 | BC51: 0 | BD51: 0 | BE51: 0 | BF51: 0 | BG51: 0 | BH51: 0 | BI51: 0 | BJ51: 0 | BK51: 0 | BL51: 0 | BM51: 0 | BN51: 0 | BO51: 0 | BP51: 0 | BQ51: 0 | BR51: =BR49*(1+$E$10)/($E$11-$E$10)*BR18 -> 0 | BS51: 0 | BT51: 0 | BU51: 0 | BV51: 0 | BW51: 0 | BX51: 0 | BY51: 0 | BZ51: 0 | CA51: 0 | CB51: 0 | CC51: 0 | CD51: 0 | CE51: 0 | CF51: 0 | CG51: 0 | CH51: 0 | CI51: 0 | CJ51: 0 | CK51: 0 | CL51: 0 | CM51: 0 | CN51: 0 | CO51: 0 | CP51: 0 | CQ51: 0 | CR51: 0 | CS51: 0 | CT51: 0 | CU51: 0 | CV51: 0 | CW51: 0 | CX51: 0 | CY51: 0 | CZ51: 0 | DA51: 0 | DB51: 0 | DC51: 0 | DD51: 0 | DE51: 0 | DF51: 0 | DG51: 0 | DH51: 0 | DI51: 0 | DJ51: 0 | DK51: 0 | DL51: 0 | DM51: 0 | DN51: 0 | DO51: 0 | DP51: 0 | DQ51: 0 | DR51: 0 | DS51: 0 | DT51: 0 | DU51: 0 | DV51: 0 | DW51: 0 | DX51: 0 | DY51: 0 | DZ51: 0 | EA51: 0 | EB51: 0 | EC51: 0 | ED51: =ED49*(1+$E$10)/($E$11-$E$10)*ED18 -> 0 | EE51: 0 | EF51: 0 | EG51: 0 | EH51: 0 | EI51: 0 | EJ51: 0 | EK51: 0 | EL51: 0 | EM51: 0 | EN51: 0 | EO51: 0 | EP51: 0 | EQ51: 0 | ER51: 0 | ES51: 0 | ET51: 0 | EU51: 0 | EV51: 0 | EW51: 0 | EX51: 0 | EY51: 0 | EZ51: 0 | FA51: 0 | FB51: 0 | FC51: 0 | FD51: 0 | FE51: 0 | FF51: 0 | FG51: 0 | FH51: 0 | FI51: 0 | FJ51: 0 | FK51: 0 | FL51: 0 | FM51: 0 | FN51: 0 | FO51: 0 | FP51: 0 | FQ51: 0 | FR51: 0 | FS51: 0 | FT51: 0 | FU51: 0 | FV51: 0 | FW51: 0 | FX51: 0 | FY51: 0 | FZ51: 0 | GA51: 0 | GB51: 0 | GC51: 0 | GD51: 0 | GE51: 0 | GF51: 0 | GG51: 0 | GH51: 0 | GI51: 0 | GJ51: 0 | GK51: 0 | GL51: 0 | GM51: 0 | GN51: 0 | GO51: 0 | GP51: =GP49*(1+$E$10)/($E$11-$E$10)*GP18 -> 0 | GQ51: 0 | GR51: 0 | GS51: 0 | GT51: 0 | GU51: 0 | GV51: 0 | GW51: 0 | GX51: 0 | GY51: 0 | GZ51: 0 | HA51: 0 | HB51: 0 | HC51: 0 | HD51: 0 | HE51: 0 | HF51: 0 | HG51: 0 | HH51: 0 | HI51: 0 | HJ51: 0 | HK51: 0 | HL51: 0 | HM51: 0 | HN51: 0 | HO51: 0 | HP51: 0 | HQ51: 0 | HR51: 0 | HS51: 0 | HT51: 0 | HU51: 0 | HV51: 0 | HW51: 0 | HX51: 0 | HY51: 0 | HZ51: 0 | IA51: 0 | IB51: 0 | IC51: 0 | ID51: 0 | IE51: 0 | IF51: 0 | IG51: 0 | IH51: 0 | II51: 0 | IJ51: 0 | IK51: 0 | IL51: 0 | IM51: 0 | IN51: 0 | IO51: 0 | IP51: 0 | IQ51: 0 | IR51: 0 | IS51: 0 | IT51: 0 | IU51: 0 | IV51: 0 | IW51: 0 | IX51: 0 | IY51: 0 | IZ51: 0 | JA51: 0 | JB51: =JB49*(1+$E$10)/($E$11-$E$10)*JB18 -> 0 | JC51: 0 | JD51: 0 | JE51: 0 | JF51: 0 | JG51: 0 | JH51: 0 | JI51: 0 | JJ51: 0 | JK51: 0 | JL51: 0 | JM51: 0 | JN51: 0 | JO51: 0 | JP51: 0 | JQ51: 0 | JR51: 0 | JS51: 0 | JT51: 0 | JU51: 0 | JV51: 0 | JW51: 0 | JX51: 0 | JY51: 0 | JZ51: 0 | KA51: 0 | KB51: 0 | KC51: 0 | KD51: 0 | KE51: 0 | KF51: 0 | KG51: 0 | KH51: 0 | KI51: 0 | KJ51: 0 | KK51: 0 | KL51: 0 | KM51: 0 | KN51: 0 | KO51: 0 | KP51: 0 | KQ51: 0 | KR51: 0 | KS51: 0
B52: NPV of FCFF (Explicit + TV) | E52: =E41+E51 -> 390.3176898

Sheet Plant Analysis
A2: Assumptions
L3: Graph of Levelised Depreciation and Nominal in Second Cycle
B4: Ratio of Depreciation to Net Plant | E4: 0.181 | H4: =dep_rate(E8,E7) -> 0.1724549358 | I4: =E4/E5 -> 1.629
B5: Ratio of Depreciation to Gross Plant | E5: =1/E7 -> 0.1111111111 | H5: =cap_exp_dep(E8,E7) -> 1.753820118 | L5: Notes: If the first cycle stabilises, then consistent with terminal period
B7: Plant Life | E7: 9 | H7: Yrs of Stable Growth | I7: 15 | L7: Need Depreciation to Net Plant -- Establishes Stable Depreciation
B8: Historic Cap Exp Growth | E8: =H8/100 -> 0.13 | H8: 13 | L8: Need Cap Exp to Depreciation
B9: Future Cap Exp Growth | E9: =H9/100 -> 0.02 | H9: 2 | L9: Need Def Tax to Cap Exp
B10: Stable Years Before New Growth | E10: =I7 -> 15
B11: Ending Years | E11: 40 | H11: =find_growth(I4,E7) -> 0.09 | M11: =E14 -> 15 | N11: =E21 -> 24
B12: Stable WACC | E12: 0.07 | L12: Present | M12: Dep w/o | N12: Dep Stable | O12: Dep Level
M13: =INDEX(58:58,M11) -> 0.1724549358 | N13: =INDEX(58:58,N11) -> 0.1724549358
B14: Match | E14: =MATCH(E7,33:33) -> 15
B15: Stable Net Depreciation Rate | E15: =INDEX(58:58,E14) -> 0.1724549358 | M15: Cap Exp w/o | N15: Cap Exp Stable | O15: Cap Exp Level
B16: Stable Cap Exp to Depreciation | E16: =INDEX(59:59,E14) -> 1.753820118 | M16: =INDEX(59:59,M11) -> 1.753820118 | N16: =INDEX(59:59,N11) -> 1.753820118
B17: Acc Dep to Gross Plant | E17: =INDEX(63:63,E14) -> 0.3557093012 | H17: 0.4
B18: Acc Dep to Net Plant | E18: =E17/(1-E17) -> 0.5520944223
M19: 1000 | N19: 1000
B20: Second Cycle | E20: =E7*2 -> 18 | M20: =M19*M13 -> 172.4549358 | N20: =N19*N13 -> 172.4549358
B21: Column | E21: =MATCH(E20,33:33) -> 24 | M21: =M20*M16 -> 302.4549358 | N21: =N20*N16 -> 302.4549358
B23: ROIC | E23: 0.1 | L23: Prove that works at every stage
B24: ROIC Long-term | E24: 0.1 | M24: use the level ratio
M25: use the 300 year model
B26: Tax Rate | E26: 0
B27: WC to EBITDA | E27: 0 | L27: First Assume Simple EBITDA Growth Consistent with CapExp
B28: Initial EBITDA | E28: 200 | L28: Then constant ROiC
A31: Case 1: Growth Driven by Capital Expenditures with Implied EBITDA Growth
B33: Year | F33: 0 | G33: =F33+1 -> 1 | H33: =G33+1 -> 2 | I33: 3 | J33: 4 | K33: 5 | L33: 6 | M33: 7 | N33: 8 | O33: 9 | P33: 10 | Q33: 11 | R33: 12 | S33: 13 | T33: 14 | U33: 15 | V33: 16 | W33: 17 | X33: 18 | Y33: 19 | Z33: 20 | AA33: 21 | AB33: 22 | AC33: 23 | AD33: 24 | AE33: 25 | AF33: 26 | AG33: 27 | AH33: 28 | AI33: 29 | AJ33: 30 | AK33: 31 | AL33: 32 | AM33: 33 | AN33: 34 | AO33: 35 | AP33: 36 | AQ33: 37 | AR33: 38 | AS33: 39 | AT33: 40 | AU33: 41 | AV33: 42 | AW33: 43 | AX33: 44 | AY33: 45 | AZ33: 46 | BA33: 47 | BB33: 48 | BC33: 49 | BD33: 50 | BE33: 51 | BF33: 52 | BG33: 53 | BH33: 54 | BI33: 55 | BJ33: 56 | BK33: 57 | BL33: 58 | BM33: 59 | BN33: 60 | BO33: 61 | BP33: 62 | BQ33: 63 | BR33: 64 | BS33: 65 | BT33: =BS33+1 -> 66 | BU33: 67 | BV33: 68 | BW33: 69 | BX33: 70 | BY33: 71 | BZ33: 72 | CA33: 73 | CB33: 74 | CC33: 75 | CD33: 76 | CE33: 77 | CF33: 78 | CG33: 79 | CH33: 80 | CI33: 81 | CJ33: 82 | CK33: 83 | CL33: 84 | CM33: 85 | CN33: 86 | CO33: 87 | CP33: 88 | CQ33: 89 | CR33: 90 | CS33: 91 | CT33: 92 | CU33: 93 | CV33: 94 | CW33: 95 | CX33: 96 | CY33: 97 | CZ33: 98 | DA33: 99 | DB33: 100 | DC33: 101 | DD33: 102 | DE33: 103 | DF33: 104 | DG33: 105 | DH33: 106 | DI33: 107 | DJ33: 108 | DK33: 109 | DL33: 110 | DM33: 111 | DN33: 112 | DO33: 113 | DP33: 114 | DQ33: 115 | DR33: 116 | DS33: 117 | DT33: 118 | DU33: 119 | DV33: 120 | DW33: 121 | DX33: 122 | DY33: 123 | DZ33: 124 | EA33: 125 | EB33: 126 | EC33: 127 | ED33: 128 | EE33: 129 | EF33: =EE33+1 -> 130 | EG33: 131 | EH33: 132 | EI33: 133 | EJ33: 134 | EK33: 135 | EL33: 136 | EM33: 137 | EN33: 138 | EO33: 139 | EP33: 140 | EQ33: 141 | ER33: 142 | ES33: 143 | ET33: 144 | EU33: 145 | EV33: 146 | EW33: 147 | EX33: 148 | EY33: 149 | EZ33: 150 | FA33: 151 | FB33: 152 | FC33: 153 | FD33: 154 | FE33: 155 | FF33: 156 | FG33: 157 | FH33: 158 | FI33: 159 | FJ33: 160 | FK33: 161 | FL33: 162 | FM33: 163 | FN33: 164 | FO33: 165 | FP33: 166 | FQ33: 167 | FR33: 168 | FS33: 169 | FT33: 170 | FU33: 171 | FV33: 172 | FW33: 173 | FX33: 174 | FY33: 175 | FZ33: 176 | GA33: 177 | GB33: 178 | GC33: 179 | GD33: 180 | GE33: 181 | GF33: 182 | GG33: 183 | GH33: 184 | GI33: 185 | GJ33: 186 | GK33: 187 | GL33: 188 | GM33: 189 | GN33: 190 | GO33: 191 | GP33: 192 | GQ33: 193 | GR33: =GQ33+1 -> 194 | GS33: 195 | GT33: 196 | GU33: 197 | GV33: 198 | GW33: 199 | GX33: 200 | GY33: 201 | GZ33: 202 | HA33: 203 | HB33: 204 | HC33: 205 | HD33: 206 | HE33: 207 | HF33: 208 | HG33: 209 | HH33: 210 | HI33: 211 | HJ33: 212 | HK33: 213 | HL33: 214 | HM33: 215 | HN33: 216 | HO33: 217 | HP33: 218 | HQ33: 219 | HR33: 220 | HS33: 221 | HT33: 222 | HU33: 223 | HV33: 224 | HW33: 225 | HX33: 226 | HY33: 227 | HZ33: 228 | IA33: 229 | IB33: 230 | IC33: 231 | ID33: 232 | IE33: 233 | IF33: 234 | IG33: 235 | IH33: 236 | II33: 237 | IJ33: 238 | IK33: 239 | IL33: 240 | IM33: 241 | IN33: 242 | IO33: 243 | IP33: 244 | IQ33: 245 | IR33: 246 | IS33: 247 | IT33: 248 | IU33: 249 | IV33: 250 | IW33: 251 | IX33: 252 | IY33: 253 | IZ33: 254 | JA33: 255 | JB33: 256 | JC33: 257 | JD33: =JC33+1 -> 258 | JE33: 259 | JF33: 260 | JG33: 261 | JH33: 262 | JI33: 263 | JJ33: 264 | JK33: 265 | JL33: 266 | JM33: 267 | JN33: 268 | JO33: 269 | JP33: 270 | JQ33: 271 | JR33: 272 | JS33: 273 | JT33: 274 | JU33: 275 | JV33: 276 | JW33: 277 | JX33: 278 | JY33: 279 | JZ33: 280 | KA33: 281 | KB33: 282 | KC33: 283 | KD33: 284 | KE33: 285 | KF33: 286 | KG33: 287 | KH33: 288 | KI33: 289 | KJ33: 290 | KK33: 291 | KL33: 292 | KM33: 293 | KN33: 294 | KO33: 295 | KP33: 296 | KQ33: 297 | KR33: 298 | KS33: 299 | KT33: 300
B35: First Cycle | F35: =F33<$E$7+$E$10 -> TRUE | G35: TRUE | H35: TRUE | I35: TRUE | J35: TRUE | K35: TRUE | L35: TRUE | M35: TRUE | N35: TRUE | O35: TRUE | P35: TRUE | Q35: TRUE | R35: TRUE | S35: TRUE | T35: TRUE | U35: TRUE | V35: TRUE | W35: TRUE | X35: TRUE | Y35: TRUE | Z35: TRUE | AA35: TRUE | AB35: TRUE | AC35: TRUE | AD35: FALSE | AE35: FALSE | AF35: FALSE | AG35: FALSE | AH35: FALSE | AI35: FALSE | AJ35: FALSE | AK35: FALSE | AL35: FALSE | AM35: FALSE | AN35: FALSE | AO35: FALSE | AP35: FALSE | AQ35: FALSE | AR35: FALSE | AS35: FALSE | AT35: FALSE | AU35: FALSE | AV35: FALSE | AW35: FALSE | AX35: FALSE | AY35: FALSE | AZ35: FALSE | BA35: FALSE | BB35: FALSE | BC35: FALSE | BD35: FALSE | BE35: FALSE | BF35: FALSE | BG35: FALSE | BH35: FALSE | BI35: FALSE | BJ35: FALSE | BK35: FALSE | BL35: FALSE | BM35: FALSE | BN35: FALSE | BO35: FALSE | BP35: FALSE | BQ35: FALSE | BR35: =BR33<$E$7+$E$10 -> FALSE | BS35: FALSE | BT35: FALSE | BU35: FALSE | BV35: FALSE | BW35: FALSE | BX35: FALSE | BY35: FALSE | BZ35: FALSE | CA35: FALSE | CB35: FALSE | CC35: FALSE | CD35: FALSE | CE35: FALSE | CF35: FALSE | CG35: FALSE | CH35: FALSE | CI35: FALSE | CJ35: FALSE | CK35: FALSE | CL35: FALSE | CM35: FALSE | CN35: FALSE | CO35: FALSE | CP35: FALSE | CQ35: FALSE | CR35: FALSE | CS35: FALSE | CT35: FALSE | CU35: FALSE | CV35: FALSE | CW35: FALSE | CX35: FALSE | CY35: FALSE | CZ35: FALSE | DA35: FALSE | DB35: FALSE | DC35: FALSE | DD35: FALSE | DE35: FALSE | DF35: FALSE | DG35: FALSE | DH35: FALSE | DI35: FALSE | DJ35: FALSE | DK35: FALSE | DL35: FALSE | DM35: FALSE | DN35: FALSE | DO35: FALSE | DP35: FALSE | DQ35: FALSE | DR35: FALSE | DS35: FALSE | DT35: FALSE | DU35: FALSE | DV35: FALSE | DW35: FALSE | DX35: FALSE | DY35: FALSE | DZ35: FALSE | EA35: FALSE | EB35: FALSE | EC35: FALSE | ED35: =ED33<$E$7+$E$10 -> FALSE | EE35: FALSE | EF35: FALSE | EG35: FALSE | EH35: FALSE | EI35: FALSE | EJ35: FALSE | EK35: FALSE | EL35: FALSE | EM35: FALSE | EN35: FALSE | EO35: FALSE | EP35: FALSE | EQ35: FALSE | ER35: FALSE | ES35: FALSE | ET35: FALSE | EU35: FALSE | EV35: FALSE | EW35: FALSE | EX35: FALSE | EY35: FALSE | EZ35: FALSE | FA35: FALSE | FB35: FALSE | FC35: FALSE | FD35: FALSE | FE35: FALSE | FF35: FALSE | FG35: FALSE | FH35: FALSE | FI35: FALSE | FJ35: FALSE | FK35: FALSE | FL35: FALSE | FM35: FALSE | FN35: FALSE | FO35: FALSE | FP35: FALSE | FQ35: FALSE | FR35: FALSE | FS35: FALSE | FT35: FALSE | FU35: FALSE | FV35: FALSE | FW35: FALSE | FX35: FALSE | FY35: FALSE | FZ35: FALSE | GA35: FALSE | GB35: FALSE | GC35: FALSE | GD35: FALSE | GE35: FALSE | GF35: FALSE | GG35: FALSE | GH35: FALSE | GI35: FALSE | GJ35: FALSE | GK35: FALSE | GL35: FALSE | GM35: FALSE | GN35: FALSE | GO35: FALSE | GP35: =GP33<$E$7+$E$10 -> FALSE | GQ35: FALSE | GR35: FALSE | GS35: FALSE | GT35: FALSE | GU35: FALSE | GV35: FALSE | GW35: FALSE | GX35: FALSE | GY35: FALSE | GZ35: FALSE | HA35: FALSE | HB35: FALSE | HC35: FALSE | HD35: FALSE | HE35: FALSE | HF35: FALSE | HG35: FALSE | HH35: FALSE | HI35: FALSE | HJ35: FALSE | HK35: FALSE | HL35: FALSE | HM35: FALSE | HN35: FALSE | HO35: FALSE | HP35: FALSE | HQ35: FALSE | HR35: FALSE | HS35: FALSE | HT35: FALSE | HU35: FALSE | HV35: FALSE | HW35: FALSE | HX35: FALSE | HY35: FALSE | HZ35: FALSE | IA35: FALSE | IB35: FALSE | IC35: FALSE | ID35: FALSE | IE35: FALSE | IF35: FALSE | IG35: FALSE | IH35: FALSE | II35: FALSE | IJ35: FALSE | IK35: FALSE | IL35: FALSE | IM35: FALSE | IN35: FALSE | IO35: FALSE | IP35: FALSE | IQ35: FALSE | IR35: FALSE | IS35: FALSE | IT35: FALSE | IU35: FALSE | IV35: FALSE | IW35: FALSE | IX35: FALSE | IY35: FALSE | IZ35: FALSE | JA35: FALSE | JB35: =JB33<$E$7+$E$10 -> FALSE | JC35: FALSE | JD35: FALSE | JE35: FALSE | JF35: FALSE | JG35: FALSE | JH35: FALSE | JI35: FALSE | JJ35: FALSE | JK35: FALSE | JL35: FALSE | JM35: FALSE | JN35: FALSE | JO35: FALSE | JP35: FALSE | JQ35: FALSE | JR35: FALSE | JS35: FALSE | JT35: FALSE | JU35: FALSE | JV35: FALSE | JW35: FALSE | JX35: FALSE | JY35: FALSE | JZ35: FALSE | KA35: FALSE | KB35: FALSE | KC35: FALSE | KD35: FALSE | KE35: FALSE | KF35: FALSE | KG35: FALSE | KH35: FALSE | KI35: FALSE | KJ35: FALSE | KK35: FALSE | KL35: FALSE | KM35: FALSE | KN35: FALSE | KO35: FALSE | KP35: FALSE | KQ35: FALSE | KR35: FALSE | KS35: FALSE | KT35: FALSE
B36: Second Cycle | F36: =NOT(F35) -> FALSE | G36: =NOT(G35) -> FALSE | H36: =NOT(H35) -> FALSE | I36: FALSE | J36: FALSE | K36: FALSE | L36: FALSE | M36: FALSE | N36: FALSE | O36: FALSE | P36: FALSE | Q36: FALSE | R36: FALSE | S36: FALSE | T36: FALSE | U36: FALSE | V36: FALSE | W36: FALSE | X36: FALSE | Y36: FALSE | Z36: FALSE | AA36: FALSE | AB36: FALSE | AC36: FALSE | AD36: TRUE | AE36: TRUE | AF36: TRUE | AG36: TRUE | AH36: TRUE | AI36: TRUE | AJ36: TRUE | AK36: TRUE | AL36: TRUE | AM36: TRUE | AN36: TRUE | AO36: TRUE | AP36: TRUE | AQ36: TRUE | AR36: TRUE | AS36: TRUE | AT36: TRUE | AU36: TRUE | AV36: TRUE | AW36: TRUE | AX36: TRUE | AY36: TRUE | AZ36: TRUE | BA36: TRUE | BB36: TRUE | BC36: TRUE | BD36: TRUE | BE36: TRUE | BF36: TRUE | BG36: TRUE | BH36: TRUE | BI36: TRUE | BJ36: TRUE | BK36: TRUE | BL36: TRUE | BM36: TRUE | BN36: TRUE | BO36: TRUE | BP36: TRUE | BQ36: TRUE | BR36: TRUE | BS36: TRUE | BT36: =NOT(BT35) -> TRUE | BU36: TRUE | BV36: TRUE | BW36: TRUE | BX36: TRUE | BY36: TRUE | BZ36: TRUE | CA36: TRUE | CB36: TRUE | CC36: TRUE | CD36: TRUE | CE36: TRUE | CF36: TRUE | CG36: TRUE | CH36: TRUE | CI36: TRUE | CJ36: TRUE | CK36: TRUE | CL36: TRUE | CM36: TRUE | CN36: TRUE | CO36: TRUE | CP36: TRUE | CQ36: TRUE | CR36: TRUE | CS36: TRUE | CT36: TRUE | CU36: TRUE | CV36: TRUE | CW36: TRUE | CX36: TRUE | CY36: TRUE | CZ36: TRUE | DA36: TRUE | DB36: TRUE | DC36: TRUE | DD36: TRUE | DE36: TRUE | DF36: TRUE | DG36: TRUE | DH36: TRUE | DI36: TRUE | DJ36: TRUE | DK36: TRUE | DL36: TRUE | DM36: TRUE | DN36: TRUE | DO36: TRUE | DP36: TRUE | DQ36: TRUE | DR36: TRUE | DS36: TRUE | DT36: TRUE | DU36: TRUE | DV36: TRUE | DW36: TRUE | DX36: TRUE | DY36: TRUE | DZ36: TRUE | EA36: TRUE | EB36: TRUE | EC36: TRUE | ED36: TRUE | EE36: TRUE | EF36: =NOT(EF35) -> TRUE | EG36: TRUE | EH36: TRUE | EI36: TRUE | EJ36: TRUE | EK36: TRUE | EL36: TRUE | EM36: TRUE | EN36: TRUE | EO36: TRUE | EP36: TRUE | EQ36: TRUE | ER36: TRUE | ES36: TRUE | ET36: TRUE | EU36: TRUE | EV36: TRUE | EW36: TRUE | EX36: TRUE | EY36: TRUE | EZ36: TRUE | FA36: TRUE | FB36: TRUE | FC36: TRUE | FD36: TRUE | FE36: TRUE | FF36: TRUE | FG36: TRUE | FH36: TRUE | FI36: TRUE | FJ36: TRUE | FK36: TRUE | FL36: TRUE | FM36: TRUE | FN36: TRUE | FO36: TRUE | FP36: TRUE | FQ36: TRUE | FR36: TRUE | FS36: TRUE | FT36: TRUE | FU36: TRUE | FV36: TRUE | FW36: TRUE | FX36: TRUE | FY36: TRUE | FZ36: TRUE | GA36: TRUE | GB36: TRUE | GC36: TRUE | GD36: TRUE | GE36: TRUE | GF36: TRUE | GG36: TRUE | GH36: TRUE | GI36: TRUE | GJ36: TRUE | GK36: TRUE | GL36: TRUE | GM36: TRUE | GN36: TRUE | GO36: TRUE | GP36: TRUE | GQ36: TRUE | GR36: =NOT(GR35) -> TRUE | GS36: TRUE | GT36: TRUE | GU36: TRUE | GV36: TRUE | GW36: TRUE | GX36: TRUE | GY36: TRUE | GZ36: TRUE | HA36: TRUE | HB36: TRUE | HC36: TRUE | HD36: TRUE | HE36: TRUE | HF36: TRUE | HG36: TRUE | HH36: TRUE | HI36: TRUE | HJ36: TRUE | HK36: TRUE | HL36: TRUE | HM36: TRUE | HN36: TRUE | HO36: TRUE | HP36: TRUE | HQ36: TRUE | HR36: TRUE | HS36: TRUE | HT36: TRUE | HU36: TRUE | HV36: TRUE | HW36: TRUE | HX36: TRUE | HY36: TRUE | HZ36: TRUE | IA36: TRUE | IB36: TRUE | IC36: TRUE | ID36: TRUE | IE36: TRUE | IF36: TRUE | IG36: TRUE | IH36: TRUE | II36: TRUE | IJ36: TRUE | IK36: TRUE | IL36: TRUE | IM36: TRUE | IN36: TRUE | IO36: TRUE | IP36: TRUE | IQ36: TRUE | IR36: TRUE | IS36: TRUE | IT36: TRUE | IU36: TRUE | IV36: TRUE | IW36: TRUE | IX36: TRUE | IY36: TRUE | IZ36: TRUE | JA36: TRUE | JB36: TRUE | JC36: TRUE | JD36: =NOT(JD35) -> TRUE | JE36: TRUE | JF36: TRUE | JG36: TRUE | JH36: TRUE | JI36: TRUE | JJ36: TRUE | JK36: TRUE | JL36: TRUE | JM36: TRUE | JN36: TRUE | JO36: TRUE | JP36: TRUE | JQ36: TRUE | JR36: TRUE | JS36: TRUE | JT36: TRUE | JU36: TRUE | JV36: TRUE | JW36: TRUE | JX36: TRUE | JY36: TRUE | JZ36: TRUE | KA36: TRUE | KB36: TRUE | KC36: TRUE | KD36: TRUE | KE36: TRUE | KF36: TRUE | KG36: TRUE | KH36: TRUE | KI36: TRUE | KJ36: TRUE | KK36: TRUE | KL36: TRUE | KM36: TRUE | KN36: TRUE | KO36: TRUE | KP36: TRUE | KQ36: TRUE | KR36: TRUE | KS36: TRUE | KT36: TRUE
B37: Full Cash Flow Period | F37: =F33>=$E$7+$E$10 -> FALSE | G37: FALSE | H37: FALSE | I37: FALSE | J37: FALSE | K37: FALSE | L37: FALSE | M37: FALSE | N37: FALSE | O37: FALSE | P37: FALSE | Q37: FALSE | R37: FALSE | S37: FALSE | T37: FALSE | U37: FALSE | V37: FALSE | W37: FALSE | X37: FALSE | Y37: FALSE | Z37: FALSE | AA37: FALSE | AB37: FALSE | AC37: FALSE | AD37: TRUE | AE37: TRUE | AF37: TRUE | AG37: TRUE | AH37: TRUE | AI37: TRUE | AJ37: TRUE | AK37: TRUE | AL37: TRUE | AM37: TRUE | AN37: TRUE | AO37: TRUE | AP37: TRUE | AQ37: TRUE | AR37: TRUE | AS37: TRUE | AT37: TRUE | AU37: TRUE | AV37: TRUE | AW37: TRUE | AX37: TRUE | AY37: TRUE | AZ37: TRUE | BA37: TRUE | BB37: TRUE | BC37: TRUE | BD37: TRUE | BE37: TRUE | BF37: TRUE | BG37: TRUE | BH37: TRUE | BI37: TRUE | BJ37: TRUE | BK37: TRUE | BL37: TRUE | BM37: TRUE | BN37: TRUE | BO37: TRUE | BP37: TRUE | BQ37: TRUE | BR37: =BR33>=$E$7+$E$10 -> TRUE | BS37: TRUE | BT37: TRUE | BU37: TRUE | BV37: TRUE | BW37: TRUE | BX37: TRUE | BY37: TRUE | BZ37: TRUE | CA37: TRUE | CB37: TRUE | CC37: TRUE | CD37: TRUE | CE37: TRUE | CF37: TRUE | CG37: TRUE | CH37: TRUE | CI37: TRUE | CJ37: TRUE | CK37: TRUE | CL37: TRUE | CM37: TRUE | CN37: TRUE | CO37: TRUE | CP37: TRUE | CQ37: TRUE | CR37: TRUE | CS37: TRUE | CT37: TRUE | CU37: TRUE | CV37: TRUE | CW37: TRUE | CX37: TRUE | CY37: TRUE | CZ37: TRUE | DA37: TRUE | DB37: TRUE | DC37: TRUE | DD37: TRUE | DE37: TRUE | DF37: TRUE | DG37: TRUE | DH37: TRUE | DI37: TRUE | DJ37: TRUE | DK37: TRUE | DL37: TRUE | DM37: TRUE | DN37: TRUE | DO37: TRUE | DP37: TRUE | DQ37: TRUE | DR37: TRUE | DS37: TRUE | DT37: TRUE | DU37: TRUE | DV37: TRUE | DW37: TRUE | DX37: TRUE | DY37: TRUE | DZ37: TRUE | EA37: TRUE | EB37: TRUE | EC37: TRUE | ED37: =ED33>=$E$7+$E$10 -> TRUE | EE37: TRUE | EF37: TRUE | EG37: TRUE | EH37: TRUE | EI37: TRUE | EJ37: TRUE | EK37: TRUE | EL37: TRUE | EM37: TRUE | EN37: TRUE | EO37: TRUE | EP37: TRUE | EQ37: TRUE | ER37: TRUE | ES37: TRUE | ET37: TRUE | EU37: TRUE | EV37: TRUE | EW37: TRUE | EX37: TRUE | EY37: TRUE | EZ37: TRUE | FA37: TRUE | FB37: TRUE | FC37: TRUE | FD37: TRUE | FE37: TRUE | FF37: TRUE | FG37: TRUE | FH37: TRUE | FI37: TRUE | FJ37: TRUE | FK37: TRUE | FL37: TRUE | FM37: TRUE | FN37: TRUE | FO37: TRUE | FP37: TRUE | FQ37: TRUE | FR37: TRUE | FS37: TRUE | FT37: TRUE | FU37: TRUE | FV37: TRUE | FW37: TRUE | FX37: TRUE | FY37: TRUE | FZ37: TRUE | GA37: TRUE | GB37: TRUE | GC37: TRUE | GD37: TRUE | GE37: TRUE | GF37: TRUE | GG37: TRUE | GH37: TRUE | GI37: TRUE | GJ37: TRUE | GK37: TRUE | GL37: TRUE | GM37: TRUE | GN37: TRUE | GO37: TRUE | GP37: =GP33>=$E$7+$E$10 -> TRUE | GQ37: TRUE | GR37: TRUE | GS37: TRUE | GT37: TRUE | GU37: TRUE | GV37: TRUE | GW37: TRUE | GX37: TRUE | GY37: TRUE | GZ37: TRUE | HA37: TRUE | HB37: TRUE | HC37: TRUE | HD37: TRUE | HE37: TRUE | HF37: TRUE | HG37: TRUE | HH37: TRUE | HI37: TRUE | HJ37: TRUE | HK37: TRUE | HL37: TRUE | HM37: TRUE | HN37: TRUE | HO37: TRUE | HP37: TRUE | HQ37: TRUE | HR37: TRUE | HS37: TRUE | HT37: TRUE | HU37: TRUE | HV37: TRUE | HW37: TRUE | HX37: TRUE | HY37: TRUE | HZ37: TRUE | IA37: TRUE | IB37: TRUE | IC37: TRUE | ID37: TRUE | IE37: TRUE | IF37: TRUE | IG37: TRUE | IH37: TRUE | II37: TRUE | IJ37: TRUE | IK37: TRUE | IL37: TRUE | IM37: TRUE | IN37: TRUE | IO37: TRUE | IP37: TRUE | IQ37: TRUE | IR37: TRUE | IS37: TRUE | IT37: TRUE | IU37: TRUE | IV37: TRUE | IW37: TRUE | IX37: TRUE | IY37: TRUE | IZ37: TRUE | JA37: TRUE | JB37: =JB33>=$E$7+$E$10 -> TRUE | JC37: TRUE | JD37: TRUE | JE37: TRUE | JF37: TRUE | JG37: TRUE | JH37: TRUE | JI37: TRUE | JJ37: TRUE | JK37: TRUE | JL37: TRUE | JM37: TRUE | JN37: TRUE | JO37: TRUE | JP37: TRUE | JQ37: TRUE | JR37: TRUE | JS37: TRUE | JT37: TRUE | JU37: TRUE | JV37: TRUE | JW37: TRUE | JX37: TRUE | JY37: TRUE | JZ37: TRUE | KA37: TRUE | KB37: TRUE | KC37: TRUE | KD37: TRUE | KE37: TRUE | KF37: TRUE | KG37: TRUE | KH37: TRUE | KI37: TRUE | KJ37: TRUE | KK37: TRUE | KL37: TRUE | KM37: TRUE | KN37: TRUE | KO37: TRUE | KP37: TRUE | KQ37: TRUE | KR37: TRUE | KS37: TRUE | KT37: TRUE
B39: Capital Expenditure Growth Rate | G39: =G35*$E$8+G36*$E$9 -> 0.13 | H39: 0.13 | I39: 0.13 | J39: 0.13 | K39: 0.13 | L39: 0.13 | M39: 0.13 | N39: 0.13 | O39: 0.13 | P39: 0.13 | Q39: 0.13 | R39: 0.13 | S39: 0.13 | T39: 0.13 | U39: 0.13 | V39: 0.13 | W39: 0.13 | X39: 0.13 | Y39: 0.13 | Z39: 0.13 | AA39: 0.13 | AB39: 0.13 | AC39: 0.13 | AD39: 0.02 | AE39: 0.02 | AF39: 0.02 | AG39: 0.02 | AH39: 0.02 | AI39: 0.02 | AJ39: 0.02 | AK39: 0.02 | AL39: 0.02 | AM39: 0.02 | AN39: 0.02 | AO39: 0.02 | AP39: 0.02 | AQ39: 0.02 | AR39: 0.02 | AS39: 0.02 | AT39: 0.02 | AU39: 0.02 | AV39: 0.02 | AW39: 0.02 | AX39: 0.02 | AY39: 0.02 | AZ39: 0.02 | BA39: 0.02 | BB39: 0.02 | BC39: 0.02 | BD39: 0.02 | BE39: 0.02 | BF39: 0.02 | BG39: 0.02 | BH39: 0.02 | BI39: 0.02 | BJ39: 0.02 | BK39: 0.02 | BL39: 0.02 | BM39: 0.02 | BN39: 0.02 | BO39: 0.02 | BP39: 0.02 | BQ39: 0.02 | BR39: 0.02 | BS39: =BS35*$E$8+BS36*$E$9 -> 0.02 | BT39: 0.02 | BU39: 0.02 | BV39: 0.02 | BW39: 0.02 | BX39: 0.02 | BY39: 0.02 | BZ39: 0.02 | CA39: 0.02 | CB39: 0.02 | CC39: 0.02 | CD39: 0.02 | CE39: 0.02 | CF39: 0.02 | CG39: 0.02 | CH39: 0.02 | CI39: 0.02 | CJ39: 0.02 | CK39: 0.02 | CL39: 0.02 | CM39: 0.02 | CN39: 0.02 | CO39: 0.02 | CP39: 0.02 | CQ39: 0.02 | CR39: 0.02 | CS39: 0.02 | CT39: 0.02 | CU39: 0.02 | CV39: 0.02 | CW39: 0.02 | CX39: 0.02 | CY39: 0.02 | CZ39: 0.02 | DA39: 0.02 | DB39: 0.02 | DC39: 0.02 | DD39: 0.02 | DE39: 0.02 | DF39: 0.02 | DG39: 0.02 | DH39: 0.02 | DI39: 0.02 | DJ39: 0.02 | DK39: 0.02 | DL39: 0.02 | DM39: 0.02 | DN39: 0.02 | DO39: 0.02 | DP39: 0.02 | DQ39: 0.02 | DR39: 0.02 | DS39: 0.02 | DT39: 0.02 | DU39: 0.02 | DV39: 0.02 | DW39: 0.02 | DX39: 0.02 | DY39: 0.02 | DZ39: 0.02 | EA39: 0.02 | EB39: 0.02 | EC39: 0.02 | ED39: 0.02 | EE39: =EE35*$E$8+EE36*$E$9 -> 0.02 | EF39: 0.02 | EG39: 0.02 | EH39: 0.02 | EI39: 0.02 | EJ39: 0.02 | EK39: 0.02 | EL39: 0.02 | EM39: 0.02 | EN39: 0.02 | EO39: 0.02 | EP39: 0.02 | EQ39: 0.02 | ER39: 0.02 | ES39: 0.02 | ET39: 0.02 | EU39: 0.02 | EV39: 0.02 | EW39: 0.02 | EX39: 0.02 | EY39: 0.02 | EZ39: 0.02 | FA39: 0.02 | FB39: 0.02 | FC39: 0.02 | FD39: 0.02 | FE39: 0.02 | FF39: 0.02 | FG39: 0.02 | FH39: 0.02 | FI39: 0.02 | FJ39: 0.02 | FK39: 0.02 | FL39: 0.02 | FM39: 0.02 | FN39: 0.02 | FO39: 0.02 | FP39: 0.02 | FQ39: 0.02 | FR39: 0.02 | FS39: 0.02 | FT39: 0.02 | FU39: 0.02 | FV39: 0.02 | FW39: 0.02 | FX39: 0.02 | FY39: 0.02 | FZ39: 0.02 | GA39: 0.02 | GB39: 0.02 | GC39: 0.02 | GD39: 0.02 | GE39: 0.02 | GF39: 0.02 | GG39: 0.02 | GH39: 0.02 | GI39: 0.02 | GJ39: 0.02 | GK39: 0.02 | GL39: 0.02 | GM39: 0.02 | GN39: 0.02 | GO39: 0.02 | GP39: 0.02 | GQ39: =GQ35*$E$8+GQ36*$E$9 -> 0.02 | GR39: 0.02 | GS39: 0.02 | GT39: 0.02 | GU39: 0.02 | GV39: 0.02 | GW39: 0.02 | GX39: 0.02 | GY39: 0.02 | GZ39: 0.02 | HA39: 0.02 | HB39: 0.02 | HC39: 0.02 | HD39: 0.02 | HE39: 0.02 | HF39: 0.02 | HG39: 0.02 | HH39: 0.02 | HI39: 0.02 | HJ39: 0.02 | HK39: 0.02 | HL39: 0.02 | HM39: 0.02 | HN39: 0.02 | HO39: 0.02 | HP39: 0.02 | HQ39: 0.02 | HR39: 0.02 | HS39: 0.02 | HT39: 0.02 | HU39: 0.02 | HV39: 0.02 | HW39: 0.02 | HX39: 0.02 | HY39: 0.02 | HZ39: 0.02 | IA39: 0.02 | IB39: 0.02 | IC39: 0.02 | ID39: 0.02 | IE39: 0.02 | IF39: 0.02 | IG39: 0.02 | IH39: 0.02 | II39: 0.02 | IJ39: 0.02 | IK39: 0.02 | IL39: 0.02 | IM39: 0.02 | IN39: 0.02 | IO39: 0.02 | IP39: 0.02 | IQ39: 0.02 | IR39: 0.02 | IS39: 0.02 | IT39: 0.02 | IU39: 0.02 | IV39: 0.02 | IW39: 0.02 | IX39: 0.02 | IY39: 0.02 | IZ39: 0.02 | JA39: 0.02 | JB39: 0.02 | JC39: =JC35*$E$8+JC36*$E$9 -> 0.02 | JD39: 0.02 | JE39: 0.02 | JF39: 0.02 | JG39: 0.02 | JH39: 0.02 | JI39: 0.02 | JJ39: 0.02 | JK39: 0.02 | JL39: 0.02 | JM39: 0.02 | JN39: 0.02 | JO39: 0.02 | JP39: 0.02 | JQ39: 0.02 | JR39: 0.02 | JS39: 0.02 | JT39: 0.02 | JU39: 0.02 | JV39: 0.02 | JW39: 0.02 | JX39: 0.02 | JY39: 0.02 | JZ39: 0.02 | KA39: 0.02 | KB39: 0.02 | KC39: 0.02 | KD39: 0.02 | KE39: 0.02 | KF39: 0.02 | KG39: 0.02 | KH39: 0.02 | KI39: 0.02 | KJ39: 0.02 | KK39: 0.02 | KL39: 0.02 | KM39: 0.02 | KN39: 0.02 | KO39: 0.02 | KP39: 0.02 | KQ39: 0.02 | KR39: 0.02 | KS39: 0.02 | KT39: 0.02
B41: Opening Balance | G41: =F44 -> 100 | H41: =G44 -> 213 | I41: 340.69 | J41: 484.9797 | K41: 648.027061 | L41: 832.2705789 | M41: 1040.465754 | N41: 1275.726302 | O41: 1541.570722 | P41: 1741.974915 | Q41: 1968.431654 | R41: 2224.327769 | S41: 2513.490379 | T41: 2840.244129 | U41: 3209.475865 | V41: 3626.707728 | W41: 4098.179733 | X41: 4630.943098 | Y41: 5232.965701 | Z41: 5913.251242 | AA41: 6681.973903 | AB41: 7550.63051 | AC41: 8532.212477 | AD41: 9641.400099 | AE41: 10711.8892 | AF41: 11734.9911 | AG41: 12700.81446 | AH41: 13598.10743 | AI41: 14414.07932 | AJ41: 15134.19899 | AK41: 15741.96709 | AL41: 16218.65857 | AM41: 16543.03174 | AN41: 16873.89237 | AO41: 17211.37022 | AP41: 17555.59763 | AQ41: 17906.70958 | AR41: 18264.84377 | AS41: 18630.14065 | AT41: 19002.74346 | AU41: 19382.79833 | AV41: 19770.45429 | AW41: 20165.86338 | AX41: 20569.18065 | AY41: 20980.56426 | AZ41: 21400.17555 | BA41: 21828.17906 | BB41: 22264.74264 | BC41: 22710.03749 | BD41: 23164.23824 | BE41: 23627.52301 | BF41: 24100.07347 | BG41: 24582.07493 | BH41: 25073.71643 | BI41: 25575.19076 | BJ41: 26086.69458 | BK41: 26608.42847 | BL41: 27140.59704 | BM41: 27683.40898 | BN41: 28237.07716 | BO41: 28801.8187 | BP41: 29377.85508 | BQ41: 29965.41218 | BR41: 30564.72042 | BS41: 31176.01483 | BT41: =BS44 -> 31799.53513 | BU41: 32435.52583 | BV41: 33084.23634 | BW41: 33745.92107 | BX41: 34420.83949 | BY41: 35109.25628 | BZ41: 35811.44141 | CA41: 36527.67024 | CB41: 37258.22364 | CC41: 38003.38811 | CD41: 38763.45588 | CE41: 39538.72499 | CF41: 40329.49949 | CG41: 41136.08948 | CH41: 41958.81127 | CI41: 42797.9875 | CJ41: 43653.94725 | CK41: 44527.02619 | CL41: 45417.56672 | CM41: 46325.91805 | CN41: 47252.43641 | CO41: 48197.48514 | CP41: 49161.43484 | CQ41: 50144.66354 | CR41: 51147.55681 | CS41: 52170.50795 | CT41: 53213.91811 | CU41: 54278.19647 | CV41: 55363.7604 | CW41: 56471.03561 | CX41: 57600.45632 | CY41: 58752.46545 | CZ41: 59927.51475 | DA41: 61126.06505 | DB41: 62348.58635 | DC41: 63595.55808 | DD41: 64867.46924 | DE41: 66164.81862 | DF41: 67488.115 | DG41: 68837.8773 | DH41: 70214.63484 | DI41: 71618.92754 | DJ41: 73051.30609 | DK41: 74512.33221 | DL41: 76002.57886 | DM41: 77522.63043 | DN41: 79073.08304 | DO41: 80654.5447 | DP41: 82267.6356 | DQ41: 83912.98831 | DR41: 85591.24807 | DS41: 87303.07304 | DT41: 89049.1345 | DU41: 90830.11719 | DV41: 92646.71953 | DW41: 94499.65392 | DX41: 96389.647 | DY41: 98317.43994 | DZ41: 100283.7887 | EA41: 102289.4645 | EB41: 104335.2538 | EC41: 106421.9589 | ED41: 108550.3981 | EE41: 110721.406 | EF41: =EE44 -> 112935.8341 | EG41: 115194.5508 | EH41: 117498.4418 | EI41: 119848.4107 | EJ41: 122245.3789 | EK41: 124690.2865 | EL41: 127184.0922 | EM41: 129727.774 | EN41: 132322.3295 | EO41: 134968.7761 | EP41: 137668.1516 | EQ41: 140421.5147 | ER41: 143229.945 | ES41: 146094.5439 | ET41: 149016.4347 | EU41: 151996.7634 | EV41: 155036.6987 | EW41: 158137.4327 | EX41: 161300.1813 | EY41: 164526.185 | EZ41: 167816.7086 | FA41: 171173.0428 | FB41: 174596.5037 | FC41: 178088.4338 | FD41: 181650.2024 | FE41: 185283.2065 | FF41: 188988.8706 | FG41: 192768.648 | FH41: 196624.021 | FI41: 200556.5014 | FJ41: 204567.6314 | FK41: 208658.9841 | FL41: 212832.1637 | FM41: 217088.807 | FN41: 221430.5832 | FO41: 225859.1948 | FP41: 230376.3787 | FQ41: 234983.9063 | FR41: 239683.5844 | FS41: 244477.2561 | FT41: 249366.8012 | FU41: 254354.1372 | FV41: 259441.22 | FW41: 264630.0444 | FX41: 269922.6453 | FY41: 275321.0982 | FZ41: 280827.5201 | GA41: 286444.0705 | GB41: 292172.952 | GC41: 298016.411 | GD41: 303976.7392 | GE41: 310056.274 | GF41: 316257.3995 | GG41: 322582.5475 | GH41: 329034.1984 | GI41: 335614.8824 | GJ41: 342327.18 | GK41: 349173.7236 | GL41: 356157.1981 | GM41: 363280.3421 | GN41: 370545.9489 | GO41: 377956.8679 | GP41: 385516.0053 | GQ41: 393226.3254 | GR41: =GQ44 -> 401090.8519 | GS41: 409112.6689 | GT41: 417294.9223 | GU41: 425640.8207 | GV41: 434153.6371 | GW41: 442836.7099 | GX41: 451693.4441 | GY41: 460727.313 | GZ41: 469941.8592 | HA41: 479340.6964 | HB41: 488927.5103 | HC41: 498706.0605 | HD41: 508680.1818 | HE41: 518853.7854 | HF41: 529230.8611 | HG41: 539815.4783 | HH41: 550611.7879 | HI41: 561624.0236 | HJ41: 572856.5041 | HK41: 584313.6342 | HL41: 595999.9069 | HM41: 607919.905 | HN41: 620078.3031 | HO41: 632479.8692 | HP41: 645129.4666 | HQ41: 658032.0559 | HR41: 671192.697 | HS41: 684616.551 | HT41: 698308.882 | HU41: 712275.0596 | HV41: 726520.5608 | HW41: 741050.972 | HX41: 755871.9915 | HY41: 770989.4313 | HZ41: 786409.2199 | IA41: 802137.4043 | IB41: 818180.1524 | IC41: 834543.7554 | ID41: 851234.6306 | IE41: 868259.3232 | IF41: 885624.5096 | IG41: 903336.9998 | IH41: 921403.7398 | II41: 939831.8146 | IJ41: 958628.4509 | IK41: 977801.0199 | IL41: 997357.0403 | IM41: 1017304.181 | IN41: 1037650.265 | IO41: 1058403.27 | IP41: 1079571.335 | IQ41: 1101162.762 | IR41: 1123186.017 | IS41: 1145649.738 | IT41: 1168562.733 | IU41: 1191933.987 | IV41: 1215772.667 | IW41: 1240088.12 | IX41: 1264889.883 | IY41: 1290187.68 | IZ41: 1315991.434 | JA41: 1342311.263 | JB41: 1369157.488 | JC41: 1396540.638 | JD41: =JC44 -> 1424471.45 | JE41: 1452960.879 | JF41: 1482020.097 | JG41: 1511660.499 | JH41: 1541893.709 | JI41: 1572731.583 | JJ41: 1604186.215 | JK41: 1636269.939 | JL41: 1668995.338 | JM41: 1702375.245 | JN41: 1736422.749 | JO41: 1771151.204 | JP41: 1806574.228 | JQ41: 1842705.713 | JR41: 1879559.827 | JS41: 1917151.024 | JT41: 1955494.044 | JU41: 1994603.925 | JV41: 2034496.004 | JW41: 2075185.924 | JX41: 2116689.642 | JY41: 2159023.435 | JZ41: 2202203.904 | KA41: 2246247.982 | KB41: 2291172.942 | KC41: 2336996.4 | KD41: 2383736.328 | KE41: 2431411.055 | KF41: 2480039.276 | KG41: 2529640.062 | KH41: 2580232.863 | KI41: 2631837.52 | KJ41: 2684474.27 | KK41: 2738163.756 | KL41: 2792927.031 | KM41: 2848785.572 | KN41: 2905761.283 | KO41: 2963876.509 | KP41: 3023154.039 | KQ41: 3083617.12 | KR41: 3145289.462 | KS41: 3208195.251 | KT41: 3272359.156
B42: Capital Expendtitures | F42: 100 | G42: =F42*(1+G39) -> 113 | H42: =G42*(1+H39) -> 127.69 | I42: 144.2897 | J42: 163.047361 | K42: 184.2435179 | L42: 208.1951753 | M42: 235.260548 | N42: 265.8444193 | O42: 300.4041938 | P42: 339.456739 | Q42: 383.5861151 | R42: 433.45231 | S42: 489.8011103 | T42: 553.4752547 | U42: 625.4270378 | V42: 706.7325527 | W42: 798.6077845 | X42: 902.4267965 | Y42: 1019.74228 | Z42: 1152.308776 | AA42: 1302.108917 | AB42: 1471.383077 | AC42: 1662.662877 | AD42: 1695.916134 | AE42: 1729.834457 | AF42: 1764.431146 | AG42: 1799.719769 | AH42: 1835.714164 | AI42: 1872.428448 | AJ42: 1909.877017 | AK42: 1948.074557 | AL42: 1987.036048 | AM42: 2026.776769 | AN42: 2067.312304 | AO42: 2108.65855 | AP42: 2150.831721 | AQ42: 2193.848356 | AR42: 2237.725323 | AS42: 2282.479829 | AT42: 2328.129426 | AU42: 2374.692015 | AV42: 2422.185855 | AW42: 2470.629572 | AX42: 2520.042163 | AY42: 2570.443007 | AZ42: 2621.851867 | BA42: 2674.288904 | BB42: 2727.774682 | BC42: 2782.330176 | BD42: 2837.976779 | BE42: 2894.736315 | BF42: 2952.631041 | BG42: 3011.683662 | BH42: 3071.917335 | BI42: 3133.355682 | BJ42: 3196.022796 | BK42: 3259.943252 | BL42: 3325.142117 | BM42: 3391.644959 | BN42: 3459.477858 | BO42: 3528.667415 | BP42: 3599.240764 | BQ42: 3671.225579 | BR42: 3744.65009 | BS42: 3819.543092 | BT42: =BS42*(1+BT39) -> 3895.933954 | BU42: 3973.852633 | BV42: 4053.329686 | BW42: 4134.39628 | BX42: 4217.084205 | BY42: 4301.425889 | BZ42: 4387.454407 | CA42: 4475.203495 | CB42: 4564.707565 | CC42: 4656.001716 | CD42: 4749.121751 | CE42: 4844.104186 | CF42: 4940.986269 | CG42: 5039.805995 | CH42: 5140.602115 | CI42: 5243.414157 | CJ42: 5348.28244 | CK42: 5455.248089 | CL42: 5564.353051 | CM42: 5675.640112 | CN42: 5789.152914 | CO42: 5904.935972 | CP42: 6023.034692 | CQ42: 6143.495386 | CR42: 6266.365293 | CS42: 6391.692599 | CT42: 6519.526451 | CU42: 6649.91698 | CV42: 6782.91532 | CW42: 6918.573626 | CX42: 7056.945099 | CY42: 7198.084001 | CZ42: 7342.045681 | DA42: 7488.886594 | DB42: 7638.664326 | DC42: 7791.437613 | DD42: 7947.266365 | DE42: 8106.211692 | DF42: 8268.335926 | DG42: 8433.702645 | DH42: 8602.376697 | DI42: 8774.424231 | DJ42: 8949.912716 | DK42: 9128.91097 | DL42: 9311.48919 | DM42: 9497.718974 | DN42: 9687.673353 | DO42: 9881.42682 | DP42: 10079.05536 | DQ42: 10280.63646 | DR42: 10486.24919 | DS42: 10695.97418 | DT42: 10909.89366 | DU42: 11128.09153 | DV42: 11350.65336 | DW42: 11577.66643 | DX42: 11809.21976 | DY42: 12045.40416 | DZ42: 12286.31224 | EA42: 12532.03848 | EB42: 12782.67925 | EC42: 13038.33284 | ED42: 13299.09949 | EE42: 13565.08148 | EF42: =EE42*(1+EF39) -> 13836.38311 | EG42: 14113.11078 | EH42: 14395.37299 | EI42: 14683.28045 | EJ42: 14976.94606 | EK42: 15276.48498 | EL42: 15582.01468 | EM42: 15893.65498 | EN42: 16211.52807 | EO42: 16535.75864 | EP42: 16866.47381 | EQ42: 17203.80329 | ER42: 17547.87935 | ES42: 17898.83694 | ET42: 18256.81368 | EU42: 18621.94995 | EV42: 18994.38895 | EW42: 19374.27673 | EX42: 19761.76226 | EY42: 20156.99751 | EZ42: 20560.13746 | FA42: 20971.34021 | FB42: 21390.76701 | FC42: 21818.58235 | FD42: 22254.954 | FE42: 22700.05308 | FF42: 23154.05414 | FG42: 23617.13522 | FH42: 24089.47793 | FI42: 24571.26749 | FJ42: 25062.69284 | FK42: 25563.94669 | FL42: 26075.22563 | FM42: 26596.73014 | FN42: 27128.66474 | FO42: 27671.23804 | FP42: 28224.6628 | FQ42: 28789.15605 | FR42: 29364.93917 | FS42: 29952.23796 | FT42: 30551.28272 | FU42: 31162.30837 | FV42: 31785.55454 | FW42: 32421.26563 | FX42: 33069.69094 | FY42: 33731.08476 | FZ42: 34405.70646 | GA42: 35093.82059 | GB42: 35795.697 | GC42: 36511.61094 | GD42: 37241.84316 | GE42: 37986.68002 | GF42: 38746.41362 | GG42: 39521.34189 | GH42: 40311.76873 | GI42: 41118.0041 | GJ42: 41940.36419 | GK42: 42779.17147 | GL42: 43634.7549 | GM42: 44507.45 | GN42: 45397.599 | GO42: 46305.55098 | GP42: 47231.662 | GQ42: 48176.29524 | GR42: =GQ42*(1+GR39) -> 49139.82114 | GS42: 50122.61756 | GT42: 51125.06992 | GU42: 52147.57131 | GV42: 53190.52274 | GW42: 54254.33319 | GX42: 55339.41986 | GY42: 56446.20826 | GZ42: 57575.13242 | HA42: 58726.63507 | HB42: 59901.16777 | HC42: 61099.19113 | HD42: 62321.17495 | HE42: 63567.59845 | HF42: 64838.95042 | HG42: 66135.72943 | HH42: 67458.44401 | HI42: 68807.61289 | HJ42: 70183.76515 | HK42: 71587.44045 | HL42: 73019.18926 | HM42: 74479.57305 | HN42: 75969.16451 | HO42: 77488.5478 | HP42: 79038.31876 | HQ42: 80619.08513 | HR42: 82231.46683 | HS42: 83876.09617 | HT42: 85553.61809 | HU42: 87264.69046 | HV42: 89009.98427 | HW42: 90790.18395 | HX42: 92605.98763 | HY42: 94458.10738 | HZ42: 96347.26953 | IA42: 98274.21492 | IB42: 100239.6992 | IC42: 102244.4932 | ID42: 104289.3831 | IE42: 106375.1707 | IF42: 108502.6741 | IG42: 110672.7276 | IH42: 112886.1822 | II42: 115143.9058 | IJ42: 117446.7839 | IK42: 119795.7196 | IL42: 122191.634 | IM42: 124635.4667 | IN42: 127128.176 | IO42: 129670.7395 | IP42: 132264.1543 | IQ42: 134909.4374 | IR42: 137607.6262 | IS42: 140359.7787 | IT42: 143166.9743 | IU42: 146030.3138 | IV42: 148950.92 | IW42: 151929.9384 | IX42: 154968.5372 | IY42: 158067.9079 | IZ42: 161229.2661 | JA42: 164453.8514 | JB42: 167742.9285 | JC42: 171097.787 | JD42: =JC42*(1+JD39) -> 174519.7428 | JE42: 178010.1376 | JF42: 181570.3404 | JG42: 185201.7472 | JH42: 188905.7821 | JI42: 192683.8978 | JJ42: 196537.5757 | JK42: 200468.3272 | JL42: 204477.6938 | JM42: 208567.2476 | JN42: 212738.5926 | JO42: 216993.3645 | JP42: 221333.2317 | JQ42: 225759.8964 | JR42: 230275.0943 | JS42: 234880.5962 | JT42: 239578.2081 | JU42: 244369.7723 | JV42: 249257.1677 | JW42: 254242.3111 | JX42: 259327.1573 | JY42: 264513.7004 | JZ42: 269803.9745 | KA42: 275200.0539 | KB42: 280704.055 | KC42: 286318.1361 | KD42: 292044.4988 | KE42: 297885.3888 | KF42: 303843.0966 | KG42: 309919.9585 | KH42: 316118.3577 | KI42: 322440.7249 | KJ42: 328889.5394 | KK42: 335467.3301 | KL42: 342176.6767 | KM42: 349020.2103 | KN42: 356000.6145 | KO42: 363120.6268 | KP42: 370383.0393 | KQ42: 377790.7001 | KR42: 385346.5141 | KS42: 393053.4444 | KT42: 400914.5133
B43: Retirements | F43: =IF(F33>=$E$7,OFFSET(F42,0,-$E$7)) -> FALSE | G43: FALSE | H43: FALSE | I43: FALSE | J43: FALSE | K43: FALSE | L43: FALSE | M43: FALSE | N43: FALSE | O43: 100 | P43: 113 | Q43: 127.69 | R43: 144.2897 | S43: 163.047361 | T43: 184.2435179 | U43: 208.1951753 | V43: 235.260548 | W43: 265.8444193 | X43: 300.4041938 | Y43: 339.456739 | Z43: 383.5861151 | AA43: 433.45231 | AB43: 489.8011103 | AC43: 553.4752547 | AD43: 625.4270378 | AE43: 706.7325527 | AF43: 798.6077845 | AG43: 902.4267965 | AH43: 1019.74228 | AI43: 1152.308776 | AJ43: 1302.108917 | AK43: 1471.383077 | AL43: 1662.662877 | AM43: 1695.916134 | AN43: 1729.834457 | AO43: 1764.431146 | AP43: 1799.719769 | AQ43: 1835.714164 | AR43: 1872.428448 | AS43: 1909.877017 | AT43: 1948.074557 | AU43: 1987.036048 | AV43: 2026.776769 | AW43: 2067.312304 | AX43: 2108.65855 | AY43: 2150.831721 | AZ43: 2193.848356 | BA43: 2237.725323 | BB43: 2282.479829 | BC43: 2328.129426 | BD43: 2374.692015 | BE43: 2422.185855 | BF43: 2470.629572 | BG43: 2520.042163 | BH43: 2570.443007 | BI43: 2621.851867 | BJ43: 2674.288904 | BK43: 2727.774682 | BL43: 2782.330176 | BM43: 2837.976779 | BN43: 2894.736315 | BO43: 2952.631041 | BP43: 3011.683662 | BQ43: 3071.917335 | BR43: =IF(BR33>=$E$7,OFFSET(BR42,0,-$E$7)) -> 3133.355682 | BS43: 3196.022796 | BT43: 3259.943252 | BU43: 3325.142117 | BV43: 3391.644959 | BW43: 3459.477858 | BX43: 3528.667415 | BY43: 3599.240764 | BZ43: 3671.225579 | CA43: 3744.65009 | CB43: 3819.543092 | CC43: 3895.933954 | CD43: 3973.852633 | CE43: 4053.329686 | CF43: 4134.39628 | CG43: 4217.084205 | CH43: 4301.425889 | CI43: 4387.454407 | CJ43: 4475.203495 | CK43: 4564.707565 | CL43: 4656.001716 | CM43: 4749.121751 | CN43: 4844.104186 | CO43: 4940.986269 | CP43: 5039.805995 | CQ43: 5140.602115 | CR43: 5243.414157 | CS43: 5348.28244 | CT43: 5455.248089 | CU43: 5564.353051 | CV43: 5675.640112 | CW43: 5789.152914 | CX43: 5904.935972 | CY43: 6023.034692 | CZ43: 6143.495386 | DA43: 6266.365293 | DB43: 6391.692599 | DC43: 6519.526451 | DD43: 6649.91698 | DE43: 6782.91532 | DF43: 6918.573626 | DG43: 7056.945099 | DH43: 7198.084001 | DI43: 7342.045681 | DJ43: 7488.886594 | DK43: 7638.664326 | DL43: 7791.437613 | DM43: 7947.266365 | DN43: 8106.211692 | DO43: 8268.335926 | DP43: 8433.702645 | DQ43: 8602.376697 | DR43: 8774.424231 | DS43: 8949.912716 | DT43: 9128.91097 | DU43: 9311.48919 | DV43: 9497.718974 | DW43: 9687.673353 | DX43: 9881.42682 | DY43: 10079.05536 | DZ43: 10280.63646 | EA43: 10486.24919 | EB43: 10695.97418 | EC43: 10909.89366 | ED43: =IF(ED33>=$E$7,OFFSET(ED42,0,-$E$7)) -> 11128.09153 | EE43: 11350.65336 | EF43: 11577.66643 | EG43: 11809.21976 | EH43: 12045.40416 | EI43: 12286.31224 | EJ43: 12532.03848 | EK43: 12782.67925 | EL43: 13038.33284 | EM43: 13299.09949 | EN43: 13565.08148 | EO43: 13836.38311 | EP43: 14113.11078 | EQ43: 14395.37299 | ER43: 14683.28045 | ES43: 14976.94606 | ET43: 15276.48498 | EU43: 15582.01468 | EV43: 15893.65498 | EW43: 16211.52807 | EX43: 16535.75864 | EY43: 16866.47381 | EZ43: 17203.80329 | FA43: 17547.87935 | FB43: 17898.83694 | FC43: 18256.81368 | FD43: 18621.94995 | FE43: 18994.38895 | FF43: 19374.27673 | FG43: 19761.76226 | FH43: 20156.99751 | FI43: 20560.13746 | FJ43: 20971.34021 | FK43: 21390.76701 | FL43: 21818.58235 | FM43: 22254.954 | FN43: 22700.05308 | FO43: 23154.05414 | FP43: 23617.13522 | FQ43: 24089.47793 | FR43: 24571.26749 | FS43: 25062.69284 | FT43: 25563.94669 | FU43: 26075.22563 | FV43: 26596.73014 | FW43: 27128.66474 | FX43: 27671.23804 | FY43: 28224.6628 | FZ43: 28789.15605 | GA43: 29364.93917 | GB43: 29952.23796 | GC43: 30551.28272 | GD43: 31162.30837 | GE43: 31785.55454 | GF43: 32421.26563 | GG43: 33069.69094 | GH43: 33731.08476 | GI43: 34405.70646 | GJ43: 35093.82059 | GK43: 35795.697 | GL43: 36511.61094 | GM43: 37241.84316 | GN43: 37986.68002 | GO43: 38746.41362 | GP43: =IF(GP33>=$E$7,OFFSET(GP42,0,-$E$7)) -> 39521.34189 | GQ43: 40311.76873 | GR43: 41118.0041 | GS43: 41940.36419 | GT43: 42779.17147 | GU43: 43634.7549 | GV43: 44507.45 | GW43: 45397.599 | GX43: 46305.55098 | GY43: 47231.662 | GZ43: 48176.29524 | HA43: 49139.82114 | HB43: 50122.61756 | HC43: 51125.06992 | HD43: 52147.57131 | HE43: 53190.52274 | HF43: 54254.33319 | HG43: 55339.41986 | HH43: 56446.20826 | HI43: 57575.13242 | HJ43: 58726.63507 | HK43: 59901.16777 | HL43: 61099.19113 | HM43: 62321.17495 | HN43: 63567.59845 | HO43: 64838.95042 | HP43: 66135.72943 | HQ43: 67458.44401 | HR43: 68807.61289 | HS43: 70183.76515 | HT43: 71587.44045 | HU43: 73019.18926 | HV43: 74479.57305 | HW43: 75969.16451 | HX43: 77488.5478 | HY43: 79038.31876 | HZ43: 80619.08513 | IA43: 82231.46683 | IB43: 83876.09617 | IC43: 85553.61809 | ID43: 87264.69046 | IE43: 89009.98427 | IF43: 90790.18395 | IG43: 92605.98763 | IH43: 94458.10738 | II43: 96347.26953 | IJ43: 98274.21492 | IK43: 100239.6992 | IL43: 102244.4932 | IM43: 104289.3831 | IN43: 106375.1707 | IO43: 108502.6741 | IP43: 110672.7276 | IQ43: 112886.1822 | IR43: 115143.9058 | IS43: 117446.7839 | IT43: 119795.7196 | IU43: 122191.634 | IV43: 124635.4667 | IW43: 127128.176 | IX43: 129670.7395 | IY43: 132264.1543 | IZ43: 134909.4374 | JA43: 137607.6262 | JB43: =IF(JB33>=$E$7,OFFSET(JB42,0,-$E$7)) -> 140359.7787 | JC43: 143166.9743 | JD43: 146030.3138 | JE43: 148950.92 | JF43: 151929.9384 | JG43: 154968.5372 | JH43: 158067.9079 | JI43: 161229.2661 | JJ43: 164453.8514 | JK43: 167742.9285 | JL43: 171097.787 | JM43: 174519.7428 | JN43: 178010.1376 | JO43: 181570.3404 | JP43: 185201.7472 | JQ43: 188905.7821 | JR43: 192683.8978 | JS43: 196537.5757 | JT43: 200468.3272 | JU43: 204477.6938 | JV43: 208567.2476 | JW43: 212738.5926 | JX43: 216993.3645 | JY43: 221333.2317 | JZ43: 225759.8964 | KA43: 230275.0943 | KB43: 234880.5962 | KC43: 239578.2081 | KD43: 244369.7723 | KE43: 249257.1677 | KF43: 254242.3111 | KG43: 259327.1573 | KH43: 264513.7004 | KI43: 269803.9745 | KJ43: 275200.0539 | KK43: 280704.055 | KL43: 286318.1361 | KM43: 292044.4988 | KN43: 297885.3888 | KO43: 303843.0966 | KP43: 309919.9585 | KQ43: 316118.3577 | KR43: 322440.7249 | KS43: 328889.5394 | KT43: 335467.3301
B44: Closing Balance | F44: =F41+F42-F43 -> 100 | G44: =G41+G42-G43 -> 213 | H44: 340.69 | I44: 484.9797 | J44: 648.027061 | K44: 832.2705789 | L44: 1040.465754 | M44: 1275.726302 | N44: 1541.570722 | O44: 1741.974915 | P44: 1968.431654 | Q44: 2224.327769 | R44: 2513.490379 | S44: 2840.244129 | T44: 3209.475865 | U44: 3626.707728 | V44: 4098.179733 | W44: 4630.943098 | X44: 5232.965701 | Y44: 5913.251242 | Z44: 6681.973903 | AA44: 7550.63051 | AB44: 8532.212477 | AC44: 9641.400099 | AD44: 10711.8892 | AE44: 11734.9911 | AF44: 12700.81446 | AG44: 13598.10743 | AH44: 14414.07932 | AI44: 15134.19899 | AJ44: 15741.96709 | AK44: 16218.65857 | AL44: 16543.03174 | AM44: 16873.89237 | AN44: 17211.37022 | AO44: 17555.59763 | AP44: 17906.70958 | AQ44: 18264.84377 | AR44: 18630.14065 | AS44: 19002.74346 | AT44: 19382.79833 | AU44: 19770.45429 | AV44: 20165.86338 | AW44: 20569.18065 | AX44: 20980.56426 | AY44: 21400.17555 | AZ44: 21828.17906 | BA44: 22264.74264 | BB44: 22710.03749 | BC44: 23164.23824 | BD44: 23627.52301 | BE44: 24100.07347 | BF44: 24582.07493 | BG44: 25073.71643 | BH44: 25575.19076 | BI44: 26086.69458 | BJ44: 26608.42847 | BK44: 27140.59704 | BL44: 27683.40898 | BM44: 28237.07716 | BN44: 28801.8187 | BO44: 29377.85508 | BP44: 29965.41218 | BQ44: 30564.72042 | BR44: 31176.01483 | BS44: =BS41+BS42-BS43 -> 31799.53513 | BT44: 32435.52583 | BU44: 33084.23634 | BV44: 33745.92107 | BW44: 34420.83949 | BX44: 35109.25628 | BY44: 35811.44141 | BZ44: 36527.67024 | CA44: 37258.22364 | CB44: 38003.38811 | CC44: 38763.45588 | CD44: 39538.72499 | CE44: 40329.49949 | CF44: 41136.08948 | CG44: 41958.81127 | CH44: 42797.9875 | CI44: 43653.94725 | CJ44: 44527.02619 | CK44: 45417.56672 | CL44: 46325.91805 | CM44: 47252.43641 | CN44: 48197.48514 | CO44: 49161.43484 | CP44: 50144.66354 | CQ44: 51147.55681 | CR44: 52170.50795 | CS44: 53213.91811 | CT44: 54278.19647 | CU44: 55363.7604 | CV44: 56471.03561 | CW44: 57600.45632 | CX44: 58752.46545 | CY44: 59927.51475 | CZ44: 61126.06505 | DA44: 62348.58635 | DB44: 63595.55808 | DC44: 64867.46924 | DD44: 66164.81862 | DE44: 67488.115 | DF44: 68837.8773 | DG44: 70214.63484 | DH44: 71618.92754 | DI44: 73051.30609 | DJ44: 74512.33221 | DK44: 76002.57886 | DL44: 77522.63043 | DM44: 79073.08304 | DN44: 80654.5447 | DO44: 82267.6356 | DP44: 83912.98831 | DQ44: 85591.24807 | DR44: 87303.07304 | DS44: 89049.1345 | DT44: 90830.11719 | DU44: 92646.71953 | DV44: 94499.65392 | DW44: 96389.647 | DX44: 98317.43994 | DY44: 100283.7887 | DZ44: 102289.4645 | EA44: 104335.2538 | EB44: 106421.9589 | EC44: 108550.3981 | ED44: 110721.406 | EE44: =EE41+EE42-EE43 -> 112935.8341 | EF44: 115194.5508 | EG44: 117498.4418 | EH44: 119848.4107 | EI44: 122245.3789 | EJ44: 124690.2865 | EK44: 127184.0922 | EL44: 129727.774 | EM44: 132322.3295 | EN44: 134968.7761 | EO44: 137668.1516 | EP44: 140421.5147 | EQ44: 143229.945 | ER44: 146094.5439 | ES44: 149016.4347 | ET44: 151996.7634 | EU44: 155036.6987 | EV44: 158137.4327 | EW44: 161300.1813 | EX44: 164526.185 | EY44: 167816.7086 | EZ44: 171173.0428 | FA44: 174596.5037 | FB44: 178088.4338 | FC44: 181650.2024 | FD44: 185283.2065 | FE44: 188988.8706 | FF44: 192768.648 | FG44: 196624.021 | FH44: 200556.5014 | FI44: 204567.6314 | FJ44: 208658.9841 | FK44: 212832.1637 | FL44: 217088.807 | FM44: 221430.5832 | FN44: 225859.1948 | FO44: 230376.3787 | FP44: 234983.9063 | FQ44: 239683.5844 | FR44: 244477.2561 | FS44: 249366.8012 | FT44: 254354.1372 | FU44: 259441.22 | FV44: 264630.0444 | FW44: 269922.6453 | FX44: 275321.0982 | FY44: 280827.5201 | FZ44: 286444.0705 | GA44: 292172.952 | GB44: 298016.411 | GC44: 303976.7392 | GD44: 310056.274 | GE44: 316257.3995 | GF44: 322582.5475 | GG44: 329034.1984 | GH44: 335614.8824 | GI44: 342327.18 | GJ44: 349173.7236 | GK44: 356157.1981 | GL44: 363280.3421 | GM44: 370545.9489 | GN44: 377956.8679 | GO44: 385516.0053 | GP44: 393226.3254 | GQ44: =GQ41+GQ42-GQ43 -> 401090.8519 | GR44: 409112.6689 | GS44: 417294.9223 | GT44: 425640.8207 | GU44: 434153.6371 | GV44: 442836.7099 | GW44: 451693.4441 | GX44: 460727.313 | GY44: 469941.8592 | GZ44: 479340.6964 | HA44: 488927.5103 | HB44: 498706.0605 | HC44: 508680.1818 | HD44: 518853.7854 | HE44: 529230.8611 | HF44: 539815.4783 | HG44: 550611.7879 | HH44: 561624.0236 | HI44: 572856.5041 | HJ44: 584313.6342 | HK44: 595999.9069 | HL44: 607919.905 | HM44: 620078.3031 | HN44: 632479.8692 | HO44: 645129.4666 | HP44: 658032.0559 | HQ44: 671192.697 | HR44: 684616.551 | HS44: 698308.882 | HT44: 712275.0596 | HU44: 726520.5608 | HV44: 741050.972 | HW44: 755871.9915 | HX44: 770989.4313 | HY44: 786409.2199 | HZ44: 802137.4043 | IA44: 818180.1524 | IB44: 834543.7554 | IC44: 851234.6306 | ID44: 868259.3232 | IE44: 885624.5096 | IF44: 903336.9998 | IG44: 921403.7398 | IH44: 939831.8146 | II44: 958628.4509 | IJ44: 977801.0199 | IK44: 997357.0403 | IL44: 1017304.181 | IM44: 1037650.265 | IN44: 1058403.27 | IO44: 1079571.335 | IP44: 1101162.762 | IQ44: 1123186.017 | IR44: 1145649.738 | IS44: 1168562.733 | IT44: 1191933.987 | IU44: 1215772.667 | IV44: 1240088.12 | IW44: 1264889.883 | IX44: 1290187.68 | IY44: 1315991.434 | IZ44: 1342311.263 | JA44: 1369157.488 | JB44: 1396540.638 | JC44: =JC41+JC42-JC43 -> 1424471.45 | JD44: 1452960.879 | JE44: 1482020.097 | JF44: 1511660.499 | JG44: 1541893.709 | JH44: 1572731.583 | JI44: 1604186.215 | JJ44: 1636269.939 | JK44: 1668995.338 | JL44: 1702375.245 | JM44: 1736422.749 | JN44: 1771151.204 | JO44: 1806574.228 | JP44: 1842705.713 | JQ44: 1879559.827 | JR44: 1917151.024 | JS44: 1955494.044 | JT44: 1994603.925 | JU44: 2034496.004 | JV44: 2075185.924 | JW44: 2116689.642 | JX44: 2159023.435 | JY44: 2202203.904 | JZ44: 2246247.982 | KA44: 2291172.942 | KB44: 2336996.4 | KC44: 2383736.328 | KD44: 2431411.055 | KE44: 2480039.276 | KF44: 2529640.062 | KG44: 2580232.863 | KH44: 2631837.52 | KI44: 2684474.27 | KJ44: 2738163.756 | KK44: 2792927.031 | KL44: 2848785.572 | KM44: 2905761.283 | KN44: 2963876.509 | KO44: 3023154.039 | KP44: 3083617.12 | KQ44: 3145289.462 | KR44: 3208195.251 | KS44: 3272359.156 | KT44: 3337806.339
B46: Depreciation Rate | F46: =E5 -> 0.1111111111 | G46: =F46 -> 0.1111111111 | H46: =G46 -> 0.1111111111 | I46: 0.1111111111 | J46: 0.1111111111 | K46: 0.1111111111 | L46: 0.1111111111 | M46: 0.1111111111 | N46: 0.1111111111 | O46: 0.1111111111 | P46: 0.1111111111 | Q46: 0.1111111111 | R46: 0.1111111111 | S46: 0.1111111111 | T46: 0.1111111111 | U46: 0.1111111111 | V46: 0.1111111111 | W46: 0.1111111111 | X46: 0.1111111111 | Y46: 0.1111111111 | Z46: 0.1111111111 | AA46: 0.1111111111 | AB46: 0.1111111111 | AC46: 0.1111111111 | AD46: 0.1111111111 | AE46: 0.1111111111 | AF46: 0.1111111111 | AG46: 0.1111111111 | AH46: 0.1111111111 | AI46: 0.1111111111 | AJ46: 0.1111111111 | AK46: 0.1111111111 | AL46: 0.1111111111 | AM46: 0.1111111111 | AN46: 0.1111111111 | AO46: 0.1111111111 | AP46: 0.1111111111 | AQ46: 0.1111111111 | AR46: 0.1111111111 | AS46: 0.1111111111 | AT46: 0.1111111111 | AU46: 0.1111111111 | AV46: 0.1111111111 | AW46: 0.1111111111 | AX46: 0.1111111111 | AY46: 0.1111111111 | AZ46: 0.1111111111 | BA46: 0.1111111111 | BB46: 0.1111111111 | BC46: 0.1111111111 | BD46: 0.1111111111 | BE46: 0.1111111111 | BF46: 0.1111111111 | BG46: 0.1111111111 | BH46: 0.1111111111 | BI46: 0.1111111111 | BJ46: 0.1111111111 | BK46: 0.1111111111 | BL46: 0.1111111111 | BM46: 0.1111111111 | BN46: 0.1111111111 | BO46: 0.1111111111 | BP46: 0.1111111111 | BQ46: 0.1111111111 | BR46: 0.1111111111 | BS46: 0.1111111111 | BT46: =BS46 -> 0.1111111111 | BU46: 0.1111111111 | BV46: 0.1111111111 | BW46: 0.1111111111 | BX46: 0.1111111111 | BY46: 0.1111111111 | BZ46: 0.1111111111 | CA46: 0.1111111111 | CB46: 0.1111111111 | CC46: 0.1111111111 | CD46: 0.1111111111 | CE46: 0.1111111111 | CF46: 0.1111111111 | CG46: 0.1111111111 | CH46: 0.1111111111 | CI46: 0.1111111111 | CJ46: 0.1111111111 | CK46: 0.1111111111 | CL46: 0.1111111111 | CM46: 0.1111111111 | CN46: 0.1111111111 | CO46: 0.1111111111 | CP46: 0.1111111111 | CQ46: 0.1111111111 | CR46: 0.1111111111 | CS46: 0.1111111111 | CT46: 0.1111111111 | CU46: 0.1111111111 | CV46: 0.1111111111 | CW46: 0.1111111111 | CX46: 0.1111111111 | CY46: 0.1111111111 | CZ46: 0.1111111111 | DA46: 0.1111111111 | DB46: 0.1111111111 | DC46: 0.1111111111 | DD46: 0.1111111111 | DE46: 0.1111111111 | DF46: 0.1111111111 | DG46: 0.1111111111 | DH46: 0.1111111111 | DI46: 0.1111111111 | DJ46: 0.1111111111 | DK46: 0.1111111111 | DL46: 0.1111111111 | DM46: 0.1111111111 | DN46: 0.1111111111 | DO46: 0.1111111111 | DP46: 0.1111111111 | DQ46: 0.1111111111 | DR46: 0.1111111111 | DS46: 0.1111111111 | DT46: 0.1111111111 | DU46: 0.1111111111 | DV46: 0.1111111111 | DW46: 0.1111111111 | DX46: 0.1111111111 | DY46: 0.1111111111 | DZ46: 0.1111111111 | EA46: 0.1111111111 | EB46: 0.1111111111 | EC46: 0.1111111111 | ED46: 0.1111111111 | EE46: 0.1111111111 | EF46: =EE46 -> 0.1111111111 | EG46: 0.1111111111 | EH46: 0.1111111111 | EI46: 0.1111111111 | EJ46: 0.1111111111 | EK46: 0.1111111111 | EL46: 0.1111111111 | EM46: 0.1111111111 | EN46: 0.1111111111 | EO46: 0.1111111111 | EP46: 0.1111111111 | EQ46: 0.1111111111 | ER46: 0.1111111111 | ES46: 0.1111111111 | ET46: 0.1111111111 | EU46: 0.1111111111 | EV46: 0.1111111111 | EW46: 0.1111111111 | EX46: 0.1111111111 | EY46: 0.1111111111 | EZ46: 0.1111111111 | FA46: 0.1111111111 | FB46: 0.1111111111 | FC46: 0.1111111111 | FD46: 0.1111111111 | FE46: 0.1111111111 | FF46: 0.1111111111 | FG46: 0.1111111111 | FH46: 0.1111111111 | FI46: 0.1111111111 | FJ46: 0.1111111111 | FK46: 0.1111111111 | FL46: 0.1111111111 | FM46: 0.1111111111 | FN46: 0.1111111111 | FO46: 0.1111111111 | FP46: 0.1111111111 | FQ46: 0.1111111111 | FR46: 0.1111111111 | FS46: 0.1111111111 | FT46: 0.1111111111 | FU46: 0.1111111111 | FV46: 0.1111111111 | FW46: 0.1111111111 | FX46: 0.1111111111 | FY46: 0.1111111111 | FZ46: 0.1111111111 | GA46: 0.1111111111 | GB46: 0.1111111111 | GC46: 0.1111111111 | GD46: 0.1111111111 | GE46: 0.1111111111 | GF46: 0.1111111111 | GG46: 0.1111111111 | GH46: 0.1111111111 | GI46: 0.1111111111 | GJ46: 0.1111111111 | GK46: 0.1111111111 | GL46: 0.1111111111 | GM46: 0.1111111111 | GN46: 0.1111111111 | GO46: 0.1111111111 | GP46: 0.1111111111 | GQ46: 0.1111111111 | GR46: =GQ46 -> 0.1111111111 | GS46: 0.1111111111 | GT46: 0.1111111111 | GU46: 0.1111111111 | GV46: 0.1111111111 | GW46: 0.1111111111 | GX46: 0.1111111111 | GY46: 0.1111111111 | GZ46: 0.1111111111 | HA46: 0.1111111111 | HB46: 0.1111111111 | HC46: 0.1111111111 | HD46: 0.1111111111 | HE46: 0.1111111111 | HF46: 0.1111111111 | HG46: 0.1111111111 | HH46: 0.1111111111 | HI46: 0.1111111111 | HJ46: 0.1111111111 | HK46: 0.1111111111 | HL46: 0.1111111111 | HM46: 0.1111111111 | HN46: 0.1111111111 | HO46: 0.1111111111 | HP46: 0.1111111111 | HQ46: 0.1111111111 | HR46: 0.1111111111 | HS46: 0.1111111111 | HT46: 0.1111111111 | HU46: 0.1111111111 | HV46: 0.1111111111 | HW46: 0.1111111111 | HX46: 0.1111111111 | HY46: 0.1111111111 | HZ46: 0.1111111111 | IA46: 0.1111111111 | IB46: 0.1111111111 | IC46: 0.1111111111 | ID46: 0.1111111111 | IE46: 0.1111111111 | IF46: 0.1111111111 | IG46: 0.1111111111 | IH46: 0.1111111111 | II46: 0.1111111111 | IJ46: 0.1111111111 | IK46: 0.1111111111 | IL46: 0.1111111111 | IM46: 0.1111111111 | IN46: 0.1111111111 | IO46: 0.1111111111 | IP46: 0.1111111111 | IQ46: 0.1111111111 | IR46: 0.1111111111 | IS46: 0.1111111111 | IT46: 0.1111111111 | IU46: 0.1111111111 | IV46: 0.1111111111 | IW46: 0.1111111111 | IX46: 0.1111111111 | IY46: 0.1111111111 | IZ46: 0.1111111111 | JA46: 0.1111111111 | JB46: 0.1111111111 | JC46: 0.1111111111 | JD46: =JC46 -> 0.1111111111 | JE46: 0.1111111111 | JF46: 0.1111111111 | JG46: 0.1111111111 | JH46: 0.1111111111 | JI46: 0.1111111111 | JJ46: 0.1111111111 | JK46: 0.1111111111 | JL46: 0.1111111111 | JM46: 0.1111111111 | JN46: 0.1111111111 | JO46: 0.1111111111 | JP46: 0.1111111111 | JQ46: 0.1111111111 | JR46: 0.1111111111 | JS46: 0.1111111111 | JT46: 0.1111111111 | JU46: 0.1111111111 | JV46: 0.1111111111 | JW46: 0.1111111111 | JX46: 0.1111111111 | JY46: 0.1111111111 | JZ46: 0.1111111111 | KA46: 0.1111111111 | KB46: 0.1111111111 | KC46: 0.1111111111 | KD46: 0.1111111111 | KE46: 0.1111111111 | KF46: 0.1111111111 | KG46: 0.1111111111 | KH46: 0.1111111111 | KI46: 0.1111111111 | KJ46: 0.1111111111 | KK46: 0.1111111111 | KL46: 0.1111111111 | KM46: 0.1111111111 | KN46: 0.1111111111 | KO46: 0.1111111111 | KP46: 0.1111111111 | KQ46: 0.1111111111 | KR46: 0.1111111111 | KS46: 0.1111111111 | KT46: 0.1111111111
B47: Depreciation Expense | F47: =F46*F41 -> 0 | G47: 11.11111111 | H47: 23.66666667 | I47: 37.85444444 | J47: 53.88663333 | K47: 72.00300678 | L47: 92.47450877 | M47: 115.607306 | N47: 141.7473669 | O47: 171.2856357 | P47: 193.5527684 | Q47: 218.7146283 | R47: 247.1475299 | S47: 279.2767088 | T47: 315.582681 | U47: 356.6084295 | V47: 402.9675253 | W47: 455.3533036 | X47: 514.5492331 | Y47: 581.4406334 | Z47: 657.0279157 | AA47: 742.4415448 | AB47: 838.9589456 | AC47: 948.0236085 | AD47: 1071.266678 | AE47: 1190.209911 | AF47: 1303.8879 | AG47: 1411.201607 | AH47: 1510.900826 | AI47: 1601.564369 | AJ47: 1681.577665 | AK47: 1749.107454 | AL47: 1802.073174 | AM47: 1838.114638 | AN47: 1874.87693 | AO47: 1912.374469 | AP47: 1950.621958 | AQ47: 1989.634398 | AR47: 2029.427086 | AS47: 2070.015627 | AT47: 2111.41594 | AU47: 2153.644259 | AV47: 2196.717144 | AW47: 2240.651487 | AX47: 2285.464516 | AY47: 2331.173807 | AZ47: 2377.797283 | BA47: 2425.353229 | BB47: 2473.860293 | BC47: 2523.337499 | BD47: 2573.804249 | BE47: 2625.280334 | BF47: 2677.785941 | BG47: 2731.341659 | BH47: 2785.968493 | BI47: 2841.687862 | BJ47: 2898.52162 | BK47: 2956.492052 | BL47: 3015.621893 | BM47: 3075.934331 | BN47: 3137.453018 | BO47: 3200.202078 | BP47: 3264.20612 | BQ47: 3329.490242 | BR47: 3396.080047 | BS47: =BS46*BS41 -> 3464.001648 | BT47: 3533.281681 | BU47: 3603.947314 | BV47: 3676.026261 | BW47: 3749.546786 | BX47: 3824.537721 | BY47: 3901.028476 | BZ47: 3979.049045 | CA47: 4058.630026 | CB47: 4139.802627 | CC47: 4222.598679 | CD47: 4307.050653 | CE47: 4393.191666 | CF47: 4481.055499 | CG47: 4570.676609 | CH47: 4662.090142 | CI47: 4755.331944 | CJ47: 4850.438583 | CK47: 4947.447355 | CL47: 5046.396302 | CM47: 5147.324228 | CN47: 5250.270713 | CO47: 5355.276127 | CP47: 5462.381649 | CQ47: 5571.629282 | CR47: 5683.061868 | CS47: 5796.723105 | CT47: 5912.657567 | CU47: 6030.910719 | CV47: 6151.528933 | CW47: 6274.559512 | CX47: 6400.050702 | CY47: 6528.051716 | CZ47: 6658.61275 | DA47: 6791.785005 | DB47: 6927.620706 | DC47: 7066.17312 | DD47: 7207.496582 | DE47: 7351.646514 | DF47: 7498.679444 | DG47: 7648.653033 | DH47: 7801.626094 | DI47: 7957.658615 | DJ47: 8116.811788 | DK47: 8279.148023 | DL47: 8444.730984 | DM47: 8613.625604 | DN47: 8785.898116 | DO47: 8961.616078 | DP47: 9140.8484 | DQ47: 9323.665368 | DR47: 9510.138675 | DS47: 9700.341448 | DT47: 9894.348277 | DU47: 10092.23524 | DV47: 10294.07995 | DW47: 10499.96155 | DX47: 10709.96078 | DY47: 10924.15999 | DZ47: 11142.64319 | EA47: 11365.49606 | EB47: 11592.80598 | EC47: 11824.6621 | ED47: 12061.15534 | EE47: =EE46*EE41 -> 12302.37845 | EF47: 12548.42602 | EG47: 12799.39454 | EH47: 13055.38243 | EI47: 13316.49007 | EJ47: 13582.81988 | EK47: 13854.47627 | EL47: 14131.5658 | EM47: 14414.19712 | EN47: 14702.48106 | EO47: 14996.53068 | EP47: 15296.46129 | EQ47: 15602.39052 | ER47: 15914.43833 | ES47: 16232.7271 | ET47: 16557.38164 | EU47: 16888.52927 | EV47: 17226.29986 | EW47: 17570.82585 | EX47: 17922.24237 | EY47: 18280.68722 | EZ47: 18646.30096 | FA47: 19019.22698 | FB47: 19399.61152 | FC47: 19787.60375 | FD47: 20183.35583 | FE47: 20587.02294 | FF47: 20998.7634 | FG47: 21418.73867 | FH47: 21847.11344 | FI47: 22284.05571 | FJ47: 22729.73683 | FK47: 23184.33156 | FL47: 23648.01819 | FM47: 24120.97856 | FN47: 24603.39813 | FO47: 25095.46609 | FP47: 25597.37541 | FQ47: 26109.32292 | FR47: 26631.50938 | FS47: 27164.13957 | FT47: 27707.42236 | FU47: 28261.5708 | FV47: 28826.80222 | FW47: 29403.33827 | FX47: 29991.40503 | FY47: 30591.23313 | FZ47: 31203.05779 | GA47: 31827.11895 | GB47: 32463.66133 | GC47: 33112.93456 | GD47: 33775.19325 | GE47: 34450.69711 | GF47: 35139.71105 | GG47: 35842.50527 | GH47: 36559.35538 | GI47: 37290.54249 | GJ47: 38036.35334 | GK47: 38797.0804 | GL47: 39573.02201 | GM47: 40364.48245 | GN47: 41171.7721 | GO47: 41995.20754 | GP47: 42835.11169 | GQ47: =GQ46*GQ41 -> 43691.81393 | GR47: 44565.65021 | GS47: 45456.96321 | GT47: 46366.10248 | GU47: 47293.42453 | GV47: 48239.29302 | GW47: 49204.07888 | GX47: 50188.16045 | GY47: 51191.92366 | GZ47: 52215.76214 | HA47: 53260.07738 | HB47: 54325.27893 | HC47: 55411.7845 | HD47: 56520.02019 | HE47: 57650.4206 | HF47: 58803.42901 | HG47: 59979.49759 | HH47: 61179.08754 | HI47: 62402.66929 | HJ47: 63650.72268 | HK47: 64923.73713 | HL47: 66222.21188 | HM47: 67546.65611 | HN47: 68897.58924 | HO47: 70275.54102 | HP47: 71681.05184 | HQ47: 73114.67288 | HR47: 74576.96633 | HS47: 76068.50566 | HT47: 77589.87577 | HU47: 79141.67329 | HV47: 80724.50676 | HW47: 82338.99689 | HX47: 83985.77683 | HY47: 85665.49237 | HZ47: 87378.80221 | IA47: 89126.37826 | IB47: 90908.90582 | IC47: 92727.08394 | ID47: 94581.62562 | IE47: 96473.25813 | IF47: 98402.72329 | IG47: 100370.7778 | IH47: 102378.1933 | II47: 104425.7572 | IJ47: 106514.2723 | IK47: 108644.5578 | IL47: 110817.4489 | IM47: 113033.7979 | IN47: 115294.4739 | IO47: 117600.3633 | IP47: 119952.3706 | IQ47: 122351.418 | IR47: 124798.4464 | IS47: 127294.4153 | IT47: 129840.3036 | IU47: 132437.1097 | IV47: 135085.8519 | IW47: 137787.5689 | IX47: 140543.3203 | IY47: 143354.1867 | IZ47: 146221.2704 | JA47: 149145.6958 | JB47: 152128.6098 | JC47: =JC46*JC41 -> 155171.182 | JD47: 158274.6056 | JE47: 161440.0977 | JF47: 164668.8997 | JG47: 167962.2777 | JH47: 171321.5232 | JI47: 174747.9537 | JJ47: 178242.9127 | JK47: 181807.771 | JL47: 185443.9264 | JM47: 189152.8049 | JN47: 192935.861 | JO47: 196794.5783 | JP47: 200730.4698 | JQ47: 204745.0792 | JR47: 208839.9808 | JS47: 213016.7804 | JT47: 217277.116 | JU47: 221622.6584 | JV47: 226055.1115 | JW47: 230576.2138 | JX47: 235187.738 | JY47: 239891.4928 | JZ47: 244689.3226 | KA47: 249583.1091 | KB47: 254574.7713 | KC47: 259666.2667 | KD47: 264859.592 | KE47: 270156.7839 | KF47: 275559.9196 | KG47: 281071.118 | KH47: 286692.5403 | KI47: 292426.3911 | KJ47: 298274.9189 | KK47: 304240.4173 | KL47: 310325.2257 | KM47: 316531.7302 | KN47: 322862.3648 | KO47: 329319.6121 | KP47: 335906.0043 | KQ47: 342624.1244 | KR47: 349476.6069 | KS47: 356466.139 | KT47: 363595.4618
B49: Accumulted Depreciation
B50: Opening Balance | F50: =D53 -> 0 | G50: =F53 -> 0 | H50: 11.11111111 | I50: 34.77777778 | J50: 72.63222222 | K50: 126.5188556 | L50: 198.5218623 | M50: 290.9963711 | N50: 406.6036771 | O50: 548.351044 | P50: 619.6366798 | Q50: 700.1894481 | R50: 791.2140764 | S50: 894.0719063 | T50: 1010.301254 | U50: 1141.640417 | V50: 1290.053671 | W50: 1457.760649 | X50: 1647.269533 | Y50: 1861.414572 | Z50: 2103.398467 | AA50: 2376.840267 | AB50: 2685.829502 | AC50: 3034.987337 | AD50: 3429.535691 | AE50: 3875.375331 | AF50: 4358.852689 | AG50: 4864.132804 | AH50: 5372.907615 | AI50: 5864.066161 | AJ50: 6313.321753 | AK50: 6692.790501 | AL50: 6970.514878 | AM50: 7109.925176 | AN50: 7252.123679 | AO50: 7397.166153 | AP50: 7545.109476 | AQ50: 7696.011665 | AR50: 7849.931899 | AS50: 8006.930537 | AT50: 8167.069147 | AU50: 8330.41053 | AV50: 8497.018741 | AW50: 8666.959116 | AX50: 8840.298298 | AY50: 9017.104264 | AZ50: 9197.446349 | BA50: 9381.395276 | BB50: 9569.023182 | BC50: 9760.403646 | BD50: 9955.611718 | BE50: 10154.72395 | BF50: 10357.81843 | BG50: 10564.9748 | BH50: 10776.2743 | BI50: 10991.79978 | BJ50: 11211.63578 | BK50: 11435.86849 | BL50: 11664.58586 | BM50: 11897.87758 | BN50: 12135.83513 | BO50: 12378.55184 | BP50: 12626.12287 | BQ50: 12878.64533 | BR50: 13136.21824 | BS50: =BR53 -> 13398.9426 | BT50: 13666.92145 | BU50: 13940.25988 | BV50: 14219.06508 | BW50: 14503.44638 | BX50: 14793.51531 | BY50: 15089.38561 | BZ50: 15391.17333 | CA50: 15698.99679 | CB50: 16012.97673 | CC50: 16333.23626 | CD50: 16659.90099 | CE50: 16993.09901 | CF50: 17332.96099 | CG50: 17679.62021 | CH50: 18033.21261 | CI50: 18393.87687 | CJ50: 18761.7544 | CK50: 19136.98949 | CL50: 19519.72928 | CM50: 19910.12387 | CN50: 20308.32634 | CO50: 20714.49287 | CP50: 21128.78273 | CQ50: 21551.35838 | CR50: 21982.38555 | CS50: 22422.03326 | CT50: 22870.47393 | CU50: 23327.8834 | CV50: 23794.44107 | CW50: 24270.32989 | CX50: 24755.73649 | CY50: 25250.85122 | CZ50: 25755.86825 | DA50: 26270.98561 | DB50: 26796.40532 | DC50: 27332.33343 | DD50: 27878.9801 | DE50: 28436.5597 | DF50: 29005.29089 | DG50: 29585.39671 | DH50: 30177.10465 | DI50: 30780.64674 | DJ50: 31396.25967 | DK50: 32024.18487 | DL50: 32664.66857 | DM50: 33317.96194 | DN50: 33984.32118 | DO50: 34664.0076 | DP50: 35357.28775 | DQ50: 36064.43351 | DR50: 36785.72218 | DS50: 37521.43662 | DT50: 38271.86535 | DU50: 39037.30266 | DV50: 39818.04871 | DW50: 40614.40969 | DX50: 41426.69788 | DY50: 42255.23184 | DZ50: 43100.33647 | EA50: 43962.3432 | EB50: 44841.59007 | EC50: 45738.42187 | ED50: 46653.19031 | EE50: =ED53 -> 47586.25411 | EF50: 48537.9792 | EG50: 49508.73878 | EH50: 50498.91355 | EI50: 51508.89183 | EJ50: 52539.06966 | EK50: 53589.85106 | EL50: 54661.64808 | EM50: 55754.88104 | EN50: 56869.97866 | EO50: 58007.37823 | EP50: 59167.5258 | EQ50: 60350.87631 | ER50: 61557.89384 | ES50: 62789.05172 | ET50: 64044.83275 | EU50: 65325.7294 | EV50: 66632.24399 | EW50: 67964.88887 | EX50: 69324.18665 | EY50: 70710.67038 | EZ50: 72124.88379 | FA50: 73567.38147 | FB50: 75038.7291 | FC50: 76539.50368 | FD50: 78070.29375 | FE50: 79631.69963 | FF50: 81224.33362 | FG50: 82848.82029 | FH50: 84505.7967 | FI50: 86195.91263 | FJ50: 87919.83088 | FK50: 89678.2275 | FL50: 91471.79205 | FM50: 93301.22789 | FN50: 95167.25245 | FO50: 97070.5975 | FP50: 99012.00945 | FQ50: 100992.2496 | FR50: 103012.0946 | FS50: 105072.3365 | FT50: 107173.7833 | FU50: 109317.2589 | FV50: 111503.6041 | FW50: 113733.6762 | FX50: 116008.3497 | FY50: 118328.5167 | FZ50: 120695.087 | GA50: 123108.9888 | GB50: 125571.1685 | GC50: 128082.5919 | GD50: 130644.2438 | GE50: 133257.1286 | GF50: 135922.2712 | GG50: 138640.7166 | GH50: 141413.531 | GI50: 144241.8016 | GJ50: 147126.6376 | GK50: 150069.1704 | GL50: 153070.5538 | GM50: 156131.9648 | GN50: 159254.6041 | GO50: 162439.6962 | GP50: 165688.4902 | GQ50: =GP53 -> 169002.26 | GR50: 172382.3052 | GS50: 175829.9513 | GT50: 179346.5503 | GU50: 182933.4813 | GV50: 186592.1509 | GW50: 190323.9939 | GX50: 194130.4738 | GY50: 198013.0833 | GZ50: 201973.345 | HA50: 206012.8119 | HB50: 210133.0681 | HC50: 214335.7295 | HD50: 218622.444 | HE50: 222994.8929 | HF50: 227454.7908 | HG50: 232003.8866 | HH50: 236643.9643 | HI50: 241376.8436 | HJ50: 246204.3805 | HK50: 251128.4681 | HL50: 256151.0375 | HM50: 261274.0582 | HN50: 266499.5394 | HO50: 271829.5302 | HP50: 277266.1208 | HQ50: 282811.4432 | HR50: 288467.672 | HS50: 294237.0255 | HT50: 300121.766 | HU50: 306124.2013 | HV50: 312246.6853 | HW50: 318491.619 | HX50: 324861.4514 | HY50: 331358.6805 | HZ50: 337985.8541 | IA50: 344745.5711 | IB50: 351640.4826 | IC50: 358673.2922 | ID50: 365846.7581 | IE50: 373163.6932 | IF50: 380626.9671 | IG50: 388239.5064 | IH50: 396004.2966 | II50: 403924.3825 | IJ50: 412002.8701 | IK50: 420242.9275 | IL50: 428647.7861 | IM50: 437220.7418 | IN50: 445965.1566 | IO50: 454884.4598 | IP50: 463982.149 | IQ50: 473261.792 | IR50: 482727.0278 | IS50: 492381.5684 | IT50: 502229.1997 | IU50: 512273.7837 | IV50: 522519.2594 | IW50: 532969.6446 | IX50: 543629.0375 | IY50: 554501.6182 | IZ50: 565591.6506 | JA50: 576903.4836 | JB50: 588441.5533 | JC50: =JB53 -> 600210.3843 | JD50: 612214.592 | JE50: 624458.8839 | JF50: 636948.0615 | JG50: 649687.0228 | JH50: 662680.7632 | JI50: 675934.3785 | JJ50: 689453.0661 | JK50: 703242.1274 | JL50: 717306.9699 | JM50: 731653.1093 | JN50: 746286.1715 | JO50: 761211.8949 | JP50: 776436.1328 | JQ50: 791964.8555 | JR50: 807804.1526 | JS50: 823960.2357 | JT50: 840439.4404 | JU50: 857248.2292 | JV50: 874393.1938 | JW50: 891881.0576 | JX50: 909718.6788 | JY50: 927913.0524 | JZ50: 946471.3134 | KA50: 965400.7397 | KB50: 984708.7545 | KC50: 1004402.93 | KD50: 1024490.988 | KE50: 1044980.808 | KF50: 1065880.424 | KG50: 1087198.033 | KH50: 1108941.993 | KI50: 1131120.833 | KJ50: 1153743.25 | KK50: 1176818.115 | KL50: 1200354.477 | KM50: 1224361.567 | KN50: 1248848.798 | KO50: 1273825.774 | KP50: 1299302.289 | KQ50: 1325288.335 | KR50: 1351794.102 | KS50: 1378829.984 | KT50: 1406406.584
B51: Add: Depreciation Expense | F51: =F47 -> 0 | G51: =G47 -> 11.11111111 | H51: 23.66666667 | I51: 37.85444444 | J51: 53.88663333 | K51: 72.00300678 | L51: 92.47450877 | M51: 115.607306 | N51: 141.7473669 | O51: 171.2856357 | P51: 193.5527684 | Q51: 218.7146283 | R51: 247.1475299 | S51: 279.2767088 | T51: 315.582681 | U51: 356.6084295 | V51: 402.9675253 | W51: 455.3533036 | X51: 514.5492331 | Y51: 581.4406334 | Z51: 657.0279157 | AA51: 742.4415448 | AB51: 838.9589456 | AC51: 948.0236085 | AD51: 1071.266678 | AE51: 1190.209911 | AF51: 1303.8879 | AG51: 1411.201607 | AH51: 1510.900826 | AI51: 1601.564369 | AJ51: 1681.577665 | AK51: 1749.107454 | AL51: 1802.073174 | AM51: 1838.114638 | AN51: 1874.87693 | AO51: 1912.374469 | AP51: 1950.621958 | AQ51: 1989.634398 | AR51: 2029.427086 | AS51: 2070.015627 | AT51: 2111.41594 | AU51: 2153.644259 | AV51: 2196.717144 | AW51: 2240.651487 | AX51: 2285.464516 | AY51: 2331.173807 | AZ51: 2377.797283 | BA51: 2425.353229 | BB51: 2473.860293 | BC51: 2523.337499 | BD51: 2573.804249 | BE51: 2625.280334 | BF51: 2677.785941 | BG51: 2731.341659 | BH51: 2785.968493 | BI51: 2841.687862 | BJ51: 2898.52162 | BK51: 2956.492052 | BL51: 3015.621893 | BM51: 3075.934331 | BN51: 3137.453018 | BO51: 3200.202078 | BP51: 3264.20612 | BQ51: 3329.490242 | BR51: 3396.080047 | BS51: =BS47 -> 3464.001648 | BT51: 3533.281681 | BU51: 3603.947314 | BV51: 3676.026261 | BW51: 3749.546786 | BX51: 3824.537721 | BY51: 3901.028476 | BZ51: 3979.049045 | CA51: 4058.630026 | CB51: 4139.802627 | CC51: 4222.598679 | CD51: 4307.050653 | CE51: 4393.191666 | CF51: 4481.055499 | CG51: 4570.676609 | CH51: 4662.090142 | CI51: 4755.331944 | CJ51: 4850.438583 | CK51: 4947.447355 | CL51: 5046.396302 | CM51: 5147.324228 | CN51: 5250.270713 | CO51: 5355.276127 | CP51: 5462.381649 | CQ51: 5571.629282 | CR51: 5683.061868 | CS51: 5796.723105 | CT51: 5912.657567 | CU51: 6030.910719 | CV51: 6151.528933 | CW51: 6274.559512 | CX51: 6400.050702 | CY51: 6528.051716 | CZ51: 6658.61275 | DA51: 6791.785005 | DB51: 6927.620706 | DC51: 7066.17312 | DD51: 7207.496582 | DE51: 7351.646514 | DF51: 7498.679444 | DG51: 7648.653033 | DH51: 7801.626094 | DI51: 7957.658615 | DJ51: 8116.811788 | DK51: 8279.148023 | DL51: 8444.730984 | DM51: 8613.625604 | DN51: 8785.898116 | DO51: 8961.616078 | DP51: 9140.8484 | DQ51: 9323.665368 | DR51: 9510.138675 | DS51: 9700.341448 | DT51: 9894.348277 | DU51: 10092.23524 | DV51: 10294.07995 | DW51: 10499.96155 | DX51: 10709.96078 | DY51: 10924.15999 | DZ51: 11142.64319 | EA51: 11365.49606 | EB51: 11592.80598 | EC51: 11824.6621 | ED51: 12061.15534 | EE51: =EE47 -> 12302.37845 | EF51: 12548.42602 | EG51: 12799.39454 | EH51: 13055.38243 | EI51: 13316.49007 | EJ51: 13582.81988 | EK51: 13854.47627 | EL51: 14131.5658 | EM51: 14414.19712 | EN51: 14702.48106 | EO51: 14996.53068 | EP51: 15296.46129 | EQ51: 15602.39052 | ER51: 15914.43833 | ES51: 16232.7271 | ET51: 16557.38164 | EU51: 16888.52927 | EV51: 17226.29986 | EW51: 17570.82585 | EX51: 17922.24237 | EY51: 18280.68722 | EZ51: 18646.30096 | FA51: 19019.22698 | FB51: 19399.61152 | FC51: 19787.60375 | FD51: 20183.35583 | FE51: 20587.02294 | FF51: 20998.7634 | FG51: 21418.73867 | FH51: 21847.11344 | FI51: 22284.05571 | FJ51: 22729.73683 | FK51: 23184.33156 | FL51: 23648.01819 | FM51: 24120.97856 | FN51: 24603.39813 | FO51: 25095.46609 | FP51: 25597.37541 | FQ51: 26109.32292 | FR51: 26631.50938 | FS51: 27164.13957 | FT51: 27707.42236 | FU51: 28261.5708 | FV51: 28826.80222 | FW51: 29403.33827 | FX51: 29991.40503 | FY51: 30591.23313 | FZ51: 31203.05779 | GA51: 31827.11895 | GB51: 32463.66133 | GC51: 33112.93456 | GD51: 33775.19325 | GE51: 34450.69711 | GF51: 35139.71105 | GG51: 35842.50527 | GH51: 36559.35538 | GI51: 37290.54249 | GJ51: 38036.35334 | GK51: 38797.0804 | GL51: 39573.02201 | GM51: 40364.48245 | GN51: 41171.7721 | GO51: 41995.20754 | GP51: 42835.11169 | GQ51: =GQ47 -> 43691.81393 | GR51: 44565.65021 | GS51: 45456.96321 | GT51: 46366.10248 | GU51: 47293.42453 | GV51: 48239.29302 | GW51: 49204.07888 | GX51: 50188.16045 | GY51: 51191.92366 | GZ51: 52215.76214 | HA51: 53260.07738 | HB51: 54325.27893 | HC51: 55411.7845 | HD51: 56520.02019 | HE51: 57650.4206 | HF51: 58803.42901 | HG51: 59979.49759 | HH51: 61179.08754 | HI51: 62402.66929 | HJ51: 63650.72268 | HK51: 64923.73713 | HL51: 66222.21188 | HM51: 67546.65611 | HN51: 68897.58924 | HO51: 70275.54102 | HP51: 71681.05184 | HQ51: 73114.67288 | HR51: 74576.96633 | HS51: 76068.50566 | HT51: 77589.87577 | HU51: 79141.67329 | HV51: 80724.50676 | HW51: 82338.99689 | HX51: 83985.77683 | HY51: 85665.49237 | HZ51: 87378.80221 | IA51: 89126.37826 | IB51: 90908.90582 | IC51: 92727.08394 | ID51: 94581.62562 | IE51: 96473.25813 | IF51: 98402.72329 | IG51: 100370.7778 | IH51: 102378.1933 | II51: 104425.7572 | IJ51: 106514.2723 | IK51: 108644.5578 | IL51: 110817.4489 | IM51: 113033.7979 | IN51: 115294.4739 | IO51: 117600.3633 | IP51: 119952.3706 | IQ51: 122351.418 | IR51: 124798.4464 | IS51: 127294.4153 | IT51: 129840.3036 | IU51: 132437.1097 | IV51: 135085.8519 | IW51: 137787.5689 | IX51: 140543.3203 | IY51: 143354.1867 | IZ51: 146221.2704 | JA51: 149145.6958 | JB51: 152128.6098 | JC51: =JC47 -> 155171.182 | JD51: 158274.6056 | JE51: 161440.0977 | JF51: 164668.8997 | JG51: 167962.2777 | JH51: 171321.5232 | JI51: 174747.9537 | JJ51: 178242.9127 | JK51: 181807.771 | JL51: 185443.9264 | JM51: 189152.8049 | JN51: 192935.861 | JO51: 196794.5783 | JP51: 200730.4698 | JQ51: 204745.0792 | JR51: 208839.9808 | JS51: 213016.7804 | JT51: 217277.116 | JU51: 221622.6584 | JV51: 226055.1115 | JW51: 230576.2138 | JX51: 235187.738 | JY51: 239891.4928 | JZ51: 244689.3226 | KA51: 249583.1091 | KB51: 254574.7713 | KC51: 259666.2667 | KD51: 264859.592 | KE51: 270156.7839 | KF51: 275559.9196 | KG51: 281071.118 | KH51: 286692.5403 | KI51: 292426.3911 | KJ51: 298274.9189 | KK51: 304240.4173 | KL51: 310325.2257 | KM51: 316531.7302 | KN51: 322862.3648 | KO51: 329319.6121 | KP51: 335906.0043 | KQ51: 342624.1244 | KR51: 349476.6069 | KS51: 356466.139 | KT51: 363595.4618
B52: Less: Retirements | F52: =F43 -> FALSE | G52: =G43 -> FALSE | H52: FALSE | I52: FALSE | J52: FALSE | K52: FALSE | L52: FALSE | M52: FALSE | N52: FALSE | O52: 100 | P52: 113 | Q52: 127.69 | R52: 144.2897 | S52: 163.047361 | T52: 184.2435179 | U52: 208.1951753 | V52: 235.260548 | W52: 265.8444193 | X52: 300.4041938 | Y52: 339.456739 | Z52: 383.5861151 | AA52: 433.45231 | AB52: 489.8011103 | AC52: 553.4752547 | AD52: 625.4270378 | AE52: 706.7325527 | AF52: 798.6077845 | AG52: 902.4267965 | AH52: 1019.74228 | AI52: 1152.308776 | AJ52: 1302.108917 | AK52: 1471.383077 | AL52: 1662.662877 | AM52: 1695.916134 | AN52: 1729.834457 | AO52: 1764.431146 | AP52: 1799.719769 | AQ52: 1835.714164 | AR52: 1872.428448 | AS52: 1909.877017 | AT52: 1948.074557 | AU52: 1987.036048 | AV52: 2026.776769 | AW52: 2067.312304 | AX52: 2108.65855 | AY52: 2150.831721 | AZ52: 2193.848356 | BA52: 2237.725323 | BB52: 2282.479829 | BC52: 2328.129426 | BD52: 2374.692015 | BE52: 2422.185855 | BF52: 2470.629572 | BG52: 2520.042163 | BH52: 2570.443007 | BI52: 2621.851867 | BJ52: 2674.288904 | BK52: 2727.774682 | BL52: 2782.330176 | BM52: 2837.976779 | BN52: 2894.736315 | BO52: 2952.631041 | BP52: 3011.683662 | BQ52: 3071.917335 | BR52: 3133.355682 | BS52: =BS43 -> 3196.022796 | BT52: 3259.943252 | BU52: 3325.142117 | BV52: 3391.644959 | BW52: 3459.477858 | BX52: 3528.667415 | BY52: 3599.240764 | BZ52: 3671.225579 | CA52: 3744.65009 | CB52: 3819.543092 | CC52: 3895.933954 | CD52: 3973.852633 | CE52: 4053.329686 | CF52: 4134.39628 | CG52: 4217.084205 | CH52: 4301.425889 | CI52: 4387.454407 | CJ52: 4475.203495 | CK52: 4564.707565 | CL52: 4656.001716 | CM52: 4749.121751 | CN52: 4844.104186 | CO52: 4940.986269 | CP52: 5039.805995 | CQ52: 5140.602115 | CR52: 5243.414157 | CS52: 5348.28244 | CT52: 5455.248089 | CU52: 5564.353051 | CV52: 5675.640112 | CW52: 5789.152914 | CX52: 5904.935972 | CY52: 6023.034692 | CZ52: 6143.495386 | DA52: 6266.365293 | DB52: 6391.692599 | DC52: 6519.526451 | DD52: 6649.91698 | DE52: 6782.91532 | DF52: 6918.573626 | DG52: 7056.945099 | DH52: 7198.084001 | DI52: 7342.045681 | DJ52: 7488.886594 | DK52: 7638.664326 | DL52: 7791.437613 | DM52: 7947.266365 | DN52: 8106.211692 | DO52: 8268.335926 | DP52: 8433.702645 | DQ52: 8602.376697 | DR52: 8774.424231 | DS52: 8949.912716 | DT52: 9128.91097 | DU52: 9311.48919 | DV52: 9497.718974 | DW52: 9687.673353 | DX52: 9881.42682 | DY52: 10079.05536 | DZ52: 10280.63646 | EA52: 10486.24919 | EB52: 10695.97418 | EC52: 10909.89366 | ED52: 11128.09153 | EE52: =EE43 -> 11350.65336 | EF52: 11577.66643 | EG52: 11809.21976 | EH52: 12045.40416 | EI52: 12286.31224 | EJ52: 12532.03848 | EK52: 12782.67925 | EL52: 13038.33284 | EM52: 13299.09949 | EN52: 13565.08148 | EO52: 13836.38311 | EP52: 14113.11078 | EQ52: 14395.37299 | ER52: 14683.28045 | ES52: 14976.94606 | ET52: 15276.48498 | EU52: 15582.01468 | EV52: 15893.65498 | EW52: 16211.52807 | EX52: 16535.75864 | EY52: 16866.47381 | EZ52: 17203.80329 | FA52: 17547.87935 | FB52: 17898.83694 | FC52: 18256.81368 | FD52: 18621.94995 | FE52: 18994.38895 | FF52: 19374.27673 | FG52: 19761.76226 | FH52: 20156.99751 | FI52: 20560.13746 | FJ52: 20971.34021 | FK52: 21390.76701 | FL52: 21818.58235 | FM52: 22254.954 | FN52: 22700.05308 | FO52: 23154.05414 | FP52: 23617.13522 | FQ52: 24089.47793 | FR52: 24571.26749 | FS52: 25062.69284 | FT52: 25563.94669 | FU52: 26075.22563 | FV52: 26596.73014 | FW52: 27128.66474 | FX52: 27671.23804 | FY52: 28224.6628 | FZ52: 28789.15605 | GA52: 29364.93917 | GB52: 29952.23796 | GC52: 30551.28272 | GD52: 31162.30837 | GE52: 31785.55454 | GF52: 32421.26563 | GG52: 33069.69094 | GH52: 33731.08476 | GI52: 34405.70646 | GJ52: 35093.82059 | GK52: 35795.697 | GL52: 36511.61094 | GM52: 37241.84316 | GN52: 37986.68002 | GO52: 38746.41362 | GP52: 39521.34189 | GQ52: =GQ43 -> 40311.76873 | GR52: 41118.0041 | GS52: 41940.36419 | GT52: 42779.17147 | GU52: 43634.7549 | GV52: 44507.45 | GW52: 45397.599 | GX52: 46305.55098 | GY52: 47231.662 | GZ52: 48176.29524 | HA52: 49139.82114 | HB52: 50122.61756 | HC52: 51125.06992 | HD52: 52147.57131 | HE52: 53190.52274 | HF52: 54254.33319 | HG52: 55339.41986 | HH52: 56446.20826 | HI52: 57575.13242 | HJ52: 58726.63507 | HK52: 59901.16777 | HL52: 61099.19113 | HM52: 62321.17495 | HN52: 63567.59845 | HO52: 64838.95042 | HP52: 66135.72943 | HQ52: 67458.44401 | HR52: 68807.61289 | HS52: 70183.76515 | HT52: 71587.44045 | HU52: 73019.18926 | HV52: 74479.57305 | HW52: 75969.16451 | HX52: 77488.5478 | HY52: 79038.31876 | HZ52: 80619.08513 | IA52: 82231.46683 | IB52: 83876.09617 | IC52: 85553.61809 | ID52: 87264.69046 | IE52: 89009.98427 | IF52: 90790.18395 | IG52: 92605.98763 | IH52: 94458.10738 | II52: 96347.26953 | IJ52: 98274.21492 | IK52: 100239.6992 | IL52: 102244.4932 | IM52: 104289.3831 | IN52: 106375.1707 | IO52: 108502.6741 | IP52: 110672.7276 | IQ52: 112886.1822 | IR52: 115143.9058 | IS52: 117446.7839 | IT52: 119795.7196 | IU52: 122191.634 | IV52: 124635.4667 | IW52: 127128.176 | IX52: 129670.7395 | IY52: 132264.1543 | IZ52: 134909.4374 | JA52: 137607.6262 | JB52: 140359.7787 | JC52: =JC43 -> 143166.9743 | JD52: 146030.3138 | JE52: 148950.92 | JF52: 151929.9384 | JG52: 154968.5372 | JH52: 158067.9079 | JI52: 161229.2661 | JJ52: 164453.8514 | JK52: 167742.9285 | JL52: 171097.787 | JM52: 174519.7428 | JN52: 178010.1376 | JO52: 181570.3404 | JP52: 185201.7472 | JQ52: 188905.7821 | JR52: 192683.8978 | JS52: 196537.5757 | JT52: 200468.3272 | JU52: 204477.6938 | JV52: 208567.2476 | JW52: 212738.5926 | JX52: 216993.3645 | JY52: 221333.2317 | JZ52: 225759.8964 | KA52: 230275.0943 | KB52: 234880.5962 | KC52: 239578.2081 | KD52: 244369.7723 | KE52: 249257.1677 | KF52: 254242.3111 | KG52: 259327.1573 | KH52: 264513.7004 | KI52: 269803.9745 | KJ52: 275200.0539 | KK52: 280704.055 | KL52: 286318.1361 | KM52: 292044.4988 | KN52: 297885.3888 | KO52: 303843.0966 | KP52: 309919.9585 | KQ52: 316118.3577 | KR52: 322440.7249 | KS52: 328889.5394 | KT52: 335467.3301
B53: Closing Balance | F53: =F50+F51-F52 -> 0 | G53: =G50+G51-G52 -> 11.11111111 | H53: 34.77777778 | I53: 72.63222222 | J53: 126.5188556 | K53: 198.5218623 | L53: 290.9963711 | M53: 406.6036771 | N53: 548.351044 | O53: 619.6366798 | P53: 700.1894481 | Q53: 791.2140764 | R53: 894.0719063 | S53: 1010.301254 | T53: 1141.640417 | U53: 1290.053671 | V53: 1457.760649 | W53: 1647.269533 | X53: 1861.414572 | Y53: 2103.398467 | Z53: 2376.840267 | AA53: 2685.829502 | AB53: 3034.987337 | AC53: 3429.535691 | AD53: 3875.375331 | AE53: 4358.852689 | AF53: 4864.132804 | AG53: 5372.907615 | AH53: 5864.066161 | AI53: 6313.321753 | AJ53: 6692.790501 | AK53: 6970.514878 | AL53: 7109.925176 | AM53: 7252.123679 | AN53: 7397.166153 | AO53: 7545.109476 | AP53: 7696.011665 | AQ53: 7849.931899 | AR53: 8006.930537 | AS53: 8167.069147 | AT53: 8330.41053 | AU53: 8497.018741 | AV53: 8666.959116 | AW53: 8840.298298 | AX53: 9017.104264 | AY53: 9197.446349 | AZ53: 9381.395276 | BA53: 9569.023182 | BB53: 9760.403646 | BC53: 9955.611718 | BD53: 10154.72395 | BE53: 10357.81843 | BF53: 10564.9748 | BG53: 10776.2743 | BH53: 10991.79978 | BI53: 11211.63578 | BJ53: 11435.86849 | BK53: 11664.58586 | BL53: 11897.87758 | BM53: 12135.83513 | BN53: 12378.55184 | BO53: 12626.12287 | BP53: 12878.64533 | BQ53: 13136.21824 | BR53: 13398.9426 | BS53: =BS50+BS51-BS52 -> 13666.92145 | BT53: 13940.25988 | BU53: 14219.06508 | BV53: 14503.44638 | BW53: 14793.51531 | BX53: 15089.38561 | BY53: 15391.17333 | BZ53: 15698.99679 | CA53: 16012.97673 | CB53: 16333.23626 | CC53: 16659.90099 | CD53: 16993.09901 | CE53: 17332.96099 | CF53: 17679.62021 | CG53: 18033.21261 | CH53: 18393.87687 | CI53: 18761.7544 | CJ53: 19136.98949 | CK53: 19519.72928 | CL53: 19910.12387 | CM53: 20308.32634 | CN53: 20714.49287 | CO53: 21128.78273 | CP53: 21551.35838 | CQ53: 21982.38555 | CR53: 22422.03326 | CS53: 22870.47393 | CT53: 23327.8834 | CU53: 23794.44107 | CV53: 24270.32989 | CW53: 24755.73649 | CX53: 25250.85122 | CY53: 25755.86825 | CZ53: 26270.98561 | DA53: 26796.40532 | DB53: 27332.33343 | DC53: 27878.9801 | DD53: 28436.5597 | DE53: 29005.29089 | DF53: 29585.39671 | DG53: 30177.10465 | DH53: 30780.64674 | DI53: 31396.25967 | DJ53: 32024.18487 | DK53: 32664.66857 | DL53: 33317.96194 | DM53: 33984.32118 | DN53: 34664.0076 | DO53: 35357.28775 | DP53: 36064.43351 | DQ53: 36785.72218 | DR53: 37521.43662 | DS53: 38271.86535 | DT53: 39037.30266 | DU53: 39818.04871 | DV53: 40614.40969 | DW53: 41426.69788 | DX53: 42255.23184 | DY53: 43100.33647 | DZ53: 43962.3432 | EA53: 44841.59007 | EB53: 45738.42187 | EC53: 46653.19031 | ED53: 47586.25411 | EE53: =EE50+EE51-EE52 -> 48537.9792 | EF53: 49508.73878 | EG53: 50498.91355 | EH53: 51508.89183 | EI53: 52539.06966 | EJ53: 53589.85106 | EK53: 54661.64808 | EL53: 55754.88104 | EM53: 56869.97866 | EN53: 58007.37823 | EO53: 59167.5258 | EP53: 60350.87631 | EQ53: 61557.89384 | ER53: 62789.05172 | ES53: 64044.83275 | ET53: 65325.7294 | EU53: 66632.24399 | EV53: 67964.88887 | EW53: 69324.18665 | EX53: 70710.67038 | EY53: 72124.88379 | EZ53: 73567.38147 | FA53: 75038.7291 | FB53: 76539.50368 | FC53: 78070.29375 | FD53: 79631.69963 | FE53: 81224.33362 | FF53: 82848.82029 | FG53: 84505.7967 | FH53: 86195.91263 | FI53: 87919.83088 | FJ53: 89678.2275 | FK53: 91471.79205 | FL53: 93301.22789 | FM53: 95167.25245 | FN53: 97070.5975 | FO53: 99012.00945 | FP53: 100992.2496 | FQ53: 103012.0946 | FR53: 105072.3365 | FS53: 107173.7833 | FT53: 109317.2589 | FU53: 111503.6041 | FV53: 113733.6762 | FW53: 116008.3497 | FX53: 118328.5167 | FY53: 120695.087 | FZ53: 123108.9888 | GA53: 125571.1685 | GB53: 128082.5919 | GC53: 130644.2438 | GD53: 133257.1286 | GE53: 135922.2712 | GF53: 138640.7166 | GG53: 141413.531 | GH53: 144241.8016 | GI53: 147126.6376 | GJ53: 150069.1704 | GK53: 153070.5538 | GL53: 156131.9648 | GM53: 159254.6041 | GN53: 162439.6962 | GO53: 165688.4902 | GP53: 169002.26 | GQ53: =GQ50+GQ51-GQ52 -> 172382.3052 | GR53: 175829.9513 | GS53: 179346.5503 | GT53: 182933.4813 | GU53: 186592.1509 | GV53: 190323.9939 | GW53: 194130.4738 | GX53: 198013.0833 | GY53: 201973.345 | GZ53: 206012.8119 | HA53: 210133.0681 | HB53: 214335.7295 | HC53: 218622.444 | HD53: 222994.8929 | HE53: 227454.7908 | HF53: 232003.8866 | HG53: 236643.9643 | HH53: 241376.8436 | HI53: 246204.3805 | HJ53: 251128.4681 | HK53: 256151.0375 | HL53: 261274.0582 | HM53: 266499.5394 | HN53: 271829.5302 | HO53: 277266.1208 | HP53: 282811.4432 | HQ53: 288467.672 | HR53: 294237.0255 | HS53: 300121.766 | HT53: 306124.2013 | HU53: 312246.6853 | HV53: 318491.619 | HW53: 324861.4514 | HX53: 331358.6805 | HY53: 337985.8541 | HZ53: 344745.5711 | IA53: 351640.4826 | IB53: 358673.2922 | IC53: 365846.7581 | ID53: 373163.6932 | IE53: 380626.9671 | IF53: 388239.5064 | IG53: 396004.2966 | IH53: 403924.3825 | II53: 412002.8701 | IJ53: 420242.9275 | IK53: 428647.7861 | IL53: 437220.7418 | IM53: 445965.1566 | IN53: 454884.4598 | IO53: 463982.149 | IP53: 473261.792 | IQ53: 482727.0278 | IR53: 492381.5684 | IS53: 502229.1997 | IT53: 512273.7837 | IU53: 522519.2594 | IV53: 532969.6446 | IW53: 543629.0375 | IX53: 554501.6182 | IY53: 565591.6506 | IZ53: 576903.4836 | JA53: 588441.5533 | JB53: 600210.3843 | JC53: =JC50+JC51-JC52 -> 612214.592 | JD53: 624458.8839 | JE53: 636948.0615 | JF53: 649687.0228 | JG53: 662680.7632 | JH53: 675934.3785 | JI53: 689453.0661 | JJ53: 703242.1274 | JK53: 717306.9699 | JL53: 731653.1093 | JM53: 746286.1715 | JN53: 761211.8949 | JO53: 776436.1328 | JP53: 791964.8555 | JQ53: 807804.1526 | JR53: 823960.2357 | JS53: 840439.4404 | JT53: 857248.2292 | JU53: 874393.1938 | JV53: 891881.0576 | JW53: 909718.6788 | JX53: 927913.0524 | JY53: 946471.3134 | JZ53: 965400.7397 | KA53: 984708.7545 | KB53: 1004402.93 | KC53: 1024490.988 | KD53: 1044980.808 | KE53: 1065880.424 | KF53: 1087198.033 | KG53: 1108941.993 | KH53: 1131120.833 | KI53: 1153743.25 | KJ53: 1176818.115 | KK53: 1200354.477 | KL53: 1224361.567 | KM53: 1248848.798 | KN53: 1273825.774 | KO53: 1299302.289 | KP53: 1325288.335 | KQ53: 1351794.102 | KR53: 1378829.984 | KS53: 1406406.584 | KT53: 1434534.715
B55: Net Plant | F55: =F44-F53 -> 100 | G55: =G44-G53 -> 201.8888889 | H55: 305.9122222 | I55: 412.3474778 | J55: 521.5082054 | K55: 633.7487166 | L55: 749.4693831 | M55: 869.1226251 | N55: 993.2196775 | O55: 1122.338236 | P55: 1268.242206 | Q55: 1433.113693 | R55: 1619.418473 | S55: 1829.942875 | T55: 2067.835448 | U55: 2336.654057 | V55: 2640.419084 | W55: 2983.673565 | X55: 3371.551128 | Y55: 3809.852775 | Z55: 4305.133636 | AA55: 4864.801008 | AB55: 5497.225139 | AC55: 6211.864407 | AD55: 6836.513864 | AE55: 7376.13841 | AF55: 7836.681656 | AG55: 8225.199819 | AH55: 8550.013157 | AI55: 8820.877236 | AJ55: 9049.176587 | AK55: 9248.14369 | AL55: 9433.106563 | AM55: 9621.768695 | AN55: 9814.204069 | AO55: 10010.48815 | AP55: 10210.69791 | AQ55: 10414.91187 | AR55: 10623.21011 | AS55: 10835.67431 | AT55: 11052.3878 | AU55: 11273.43555 | AV55: 11498.90426 | AW55: 11728.88235 | AX55: 11963.46 | AY55: 12202.7292 | AZ55: 12446.78378 | BA55: 12695.71946 | BB55: 12949.63384 | BC55: 13208.62652 | BD55: 13472.79905 | BE55: 13742.25503 | BF55: 14017.10013 | BG55: 14297.44214 | BH55: 14583.39098 | BI55: 14875.0588 | BJ55: 15172.55997 | BK55: 15476.01117 | BL55: 15785.5314 | BM55: 16101.24203 | BN55: 16423.26687 | BO55: 16751.7322 | BP55: 17086.76685 | BQ55: 17428.50218 | BR55: 17777.07223 | BS55: =BS44-BS53 -> 18132.61367 | BT55: 18495.26595 | BU55: 18865.17127 | BV55: 19242.47469 | BW55: 19627.32418 | BX55: 20019.87067 | BY55: 20420.26808 | BZ55: 20828.67344 | CA55: 21245.24691 | CB55: 21670.15185 | CC55: 22103.55489 | CD55: 22545.62599 | CE55: 22996.5385 | CF55: 23456.46927 | CG55: 23925.59866 | CH55: 24404.11063 | CI55: 24892.19285 | CJ55: 25390.0367 | CK55: 25897.83744 | CL55: 26415.79419 | CM55: 26944.11007 | CN55: 27482.99227 | CO55: 28032.65212 | CP55: 28593.30516 | CQ55: 29165.17126 | CR55: 29748.47469 | CS55: 30343.44418 | CT55: 30950.31306 | CU55: 31569.31933 | CV55: 32200.70571 | CW55: 32844.71983 | CX55: 33501.61422 | CY55: 34171.64651 | CZ55: 34855.07944 | DA55: 35552.18103 | DB55: 36263.22465 | DC55: 36988.48914 | DD55: 37728.25892 | DE55: 38482.8241 | DF55: 39252.48058 | DG55: 40037.5302 | DH55: 40838.2808 | DI55: 41655.04641 | DJ55: 42488.14734 | DK55: 43337.91029 | DL55: 44204.6685 | DM55: 45088.76187 | DN55: 45990.5371 | DO55: 46910.34785 | DP55: 47848.5548 | DQ55: 48805.5259 | DR55: 49781.63642 | DS55: 50777.26914 | DT55: 51792.81453 | DU55: 52828.67082 | DV55: 53885.24423 | DW55: 54962.94912 | DX55: 56062.2081 | DY55: 57183.45226 | DZ55: 58327.12131 | EA55: 59493.66373 | EB55: 60683.53701 | EC55: 61897.20775 | ED55: 63135.1519 | EE55: =EE44-EE53 -> 64397.85494 | EF55: 65685.81204 | EG55: 66999.52828 | EH55: 68339.51885 | EI55: 69706.30923 | EJ55: 71100.43541 | EK55: 72522.44412 | EL55: 73972.893 | EM55: 75452.35086 | EN55: 76961.39788 | EO55: 78500.62583 | EP55: 80070.63835 | EQ55: 81672.05112 | ER55: 83305.49214 | ES55: 84971.60198 | ET55: 86671.03402 | EU55: 88404.4547 | EV55: 90172.5438 | EW55: 91975.99467 | EX55: 93815.51457 | EY55: 95691.82486 | EZ55: 97605.66136 | FA55: 99557.77458 | FB55: 101548.9301 | FC55: 103579.9087 | FD55: 105651.5068 | FE55: 107764.537 | FF55: 109919.8277 | FG55: 112118.2243 | FH55: 114360.5888 | FI55: 116647.8005 | FJ55: 118980.7566 | FK55: 121360.3717 | FL55: 123787.5791 | FM55: 126263.3307 | FN55: 128788.5973 | FO55: 131364.3693 | FP55: 133991.6566 | FQ55: 136671.4898 | FR55: 139404.9196 | FS55: 142193.018 | FT55: 145036.8783 | FU55: 147937.6159 | FV55: 150896.3682 | FW55: 153914.2956 | FX55: 156992.5815 | FY55: 160132.4331 | FZ55: 163335.0818 | GA55: 166601.7834 | GB55: 169933.8191 | GC55: 173332.4955 | GD55: 176799.1454 | GE55: 180335.1283 | GF55: 183941.8308 | GG55: 187620.6675 | GH55: 191373.0808 | GI55: 195200.5424 | GJ55: 199104.5533 | GK55: 203086.6443 | GL55: 207148.3772 | GM55: 211291.3448 | GN55: 215517.1717 | GO55: 219827.5151 | GP55: 224224.0654 | GQ55: =GQ44-GQ53 -> 228708.5467 | GR55: 233282.7176 | GS55: 237948.372 | GT55: 242707.3394 | GU55: 247561.4862 | GV55: 252512.716 | GW55: 257562.9703 | GX55: 262714.2297 | GY55: 267968.5143 | GZ55: 273327.8846 | HA55: 278794.4422 | HB55: 284370.3311 | HC55: 290057.7377 | HD55: 295858.8925 | HE55: 301776.0703 | HF55: 307811.5917 | HG55: 313967.8236 | HH55: 320247.18 | HI55: 326652.1236 | HJ55: 333185.1661 | HK55: 339848.8694 | HL55: 346645.8468 | HM55: 353578.7637 | HN55: 360650.339 | HO55: 367863.3458 | HP55: 375220.6127 | HQ55: 382725.025 | HR55: 390379.5255 | HS55: 398187.116 | HT55: 406150.8583 | HU55: 414273.8755 | HV55: 422559.353 | HW55: 431010.54 | HX55: 439630.7508 | HY55: 448423.3659 | HZ55: 457391.8332 | IA55: 466539.6698 | IB55: 475870.4632 | IC55: 485387.8725 | ID55: 495095.6299 | IE55: 504997.5425 | IF55: 515097.4934 | IG55: 525399.4433 | IH55: 535907.4321 | II55: 546625.5808 | IJ55: 557558.0924 | IK55: 568709.2542 | IL55: 580083.4393 | IM55: 591685.1081 | IN55: 603518.8103 | IO55: 615589.1865 | IP55: 627900.9702 | IQ55: 640458.9896 | IR55: 653268.1694 | IS55: 666333.5328 | IT55: 679660.2034 | IU55: 693253.4075 | IV55: 707118.4757 | IW55: 721260.8452 | IX55: 735686.0621 | IY55: 750399.7833 | IZ55: 765407.779 | JA55: 780715.9346 | JB55: 796330.2533 | JC55: =JC44-JC53 -> 812256.8583 | JD55: 828501.9955 | JE55: 845072.0354 | JF55: 861973.4761 | JG55: 879212.9456 | JH55: 896797.2045 | JI55: 914733.1486 | JJ55: 933027.8116 | JK55: 951688.3678 | JL55: 970722.1352 | JM55: 990136.5779 | JN55: 1009939.309 | JO55: 1030138.096 | JP55: 1050740.858 | JQ55: 1071755.675 | JR55: 1093190.788 | JS55: 1115054.604 | JT55: 1137355.696 | JU55: 1160102.81 | JV55: 1183304.866 | JW55: 1206970.963 | JX55: 1231110.383 | JY55: 1255732.59 | JZ55: 1280847.242 | KA55: 1306464.187 | KB55: 1332593.471 | KC55: 1359245.34 | KD55: 1386430.247 | KE55: 1414158.852 | KF55: 1442442.029 | KG55: 1471290.87 | KH55: 1500716.687 | KI55: 1530731.021 | KJ55: 1561345.641 | KK55: 1592572.554 | KL55: 1624424.005 | KM55: 1656912.485 | KN55: 1690050.735 | KO55: 1723851.75 | KP55: 1758328.785 | KQ55: 1793495.36 | KR55: 1829365.267 | KS55: 1865952.573 | KT55: 1903271.624
B56: Growth in Net Plant | G56: =G55/F55-1 -> 1.018888889 | H56: =H55/G55-1 -> 0.5152504128 | I56: 0.3479274374 | J56: 0.2647299512 | K56: 0.2152229054 | L56: 0.1825970822 | M56: 0.1596506071 | N56: 0.1427842847 | O56: 0.13 | P56: 0.13 | Q56: 0.13 | R56: 0.13 | S56: 0.13 | T56: 0.13 | U56: 0.13 | V56: 0.13 | W56: 0.13 | X56: 0.13 | Y56: 0.13 | Z56: 0.13 | AA56: 0.13 | AB56: 0.13 | AC56: 0.13 | AD56: 0.1005574841 | AE56: 0.07893270708 | AF56: 0.06243690403 | AG56: 0.04957687184 | AH56: 0.03949002402 | AI56: 0.03167996049 | AJ56: 0.02588170598 | AK56: 0.02198731573 | AL56: 0.02 | AM56: 0.02 | AN56: 0.02 | AO56: 0.02 | AP56: 0.02 | AQ56: 0.02 | AR56: 0.02 | AS56: 0.02 | AT56: 0.02 | AU56: 0.02 | AV56: 0.02 | AW56: 0.02 | AX56: 0.02 | AY56: 0.02 | AZ56: 0.02 | BA56: 0.02 | BB56: 0.02 | BC56: 0.02 | BD56: 0.02 | BE56: 0.02 | BF56: 0.02 | BG56: 0.02 | BH56: 0.02 | BI56: 0.02 | BJ56: 0.02 | BK56: 0.02 | BL56: 0.02 | BM56: 0.02 | BN56: 0.02 | BO56: 0.02 | BP56: 0.02 | BQ56: 0.02 | BR56: 0.02 | BS56: 0.02 | BT56: =BT55/BS55-1 -> 0.02 | BU56: 0.02 | BV56: 0.02 | BW56: 0.02 | BX56: 0.02 | BY56: 0.02 | BZ56: 0.02 | CA56: 0.02 | CB56: 0.02 | CC56: 0.02 | CD56: 0.02 | CE56: 0.02 | CF56: 0.02 | CG56: 0.02 | CH56: 0.02 | CI56: 0.02 | CJ56: 0.02 | CK56: 0.02 | CL56: 0.02 | CM56: 0.02 | CN56: 0.02 | CO56: 0.02 | CP56: 0.02 | CQ56: 0.02 | CR56: 0.02 | CS56: 0.02 | CT56: 0.02 | CU56: 0.02 | CV56: 0.02 | CW56: 0.02 | CX56: 0.02 | CY56: 0.02 | CZ56: 0.02 | DA56: 0.02 | DB56: 0.02 | DC56: 0.02 | DD56: 0.02 | DE56: 0.02 | DF56: 0.02 | DG56: 0.02 | DH56: 0.02 | DI56: 0.02 | DJ56: 0.02 | DK56: 0.02 | DL56: 0.02 | DM56: 0.02 | DN56: 0.02 | DO56: 0.02 | DP56: 0.02 | DQ56: 0.02 | DR56: 0.02 | DS56: 0.02 | DT56: 0.02 | DU56: 0.02 | DV56: 0.02 | DW56: 0.02 | DX56: 0.02 | DY56: 0.02 | DZ56: 0.02 | EA56: 0.02 | EB56: 0.02 | EC56: 0.02 | ED56: 0.02 | EE56: 0.02 | EF56: =EF55/EE55-1 -> 0.02 | EG56: 0.02 | EH56: 0.02 | EI56: 0.02 | EJ56: 0.02 | EK56: 0.02 | EL56: 0.02 | EM56: 0.02 | EN56: 0.02 | EO56: 0.02 | EP56: 0.02 | EQ56: 0.02 | ER56: 0.02 | ES56: 0.02 | ET56: 0.02 | EU56: 0.02 | EV56: 0.02 | EW56: 0.02 | EX56: 0.02 | EY56: 0.02 | EZ56: 0.02 | FA56: 0.02 | FB56: 0.02 | FC56: 0.02 | FD56: 0.02 | FE56: 0.02 | FF56: 0.02 | FG56: 0.02 | FH56: 0.02 | FI56: 0.02 | FJ56: 0.02 | FK56: 0.02 | FL56: 0.02 | FM56: 0.02 | FN56: 0.02 | FO56: 0.02 | FP56: 0.02 | FQ56: 0.02 | FR56: 0.02 | FS56: 0.02 | FT56: 0.02 | FU56: 0.02 | FV56: 0.02 | FW56: 0.02 | FX56: 0.02 | FY56: 0.02 | FZ56: 0.02 | GA56: 0.02 | GB56: 0.02 | GC56: 0.02 | GD56: 0.02 | GE56: 0.02 | GF56: 0.02 | GG56: 0.02 | GH56: 0.02 | GI56: 0.02 | GJ56: 0.02 | GK56: 0.02 | GL56: 0.02 | GM56: 0.02 | GN56: 0.02 | GO56: 0.02 | GP56: 0.02 | GQ56: 0.02 | GR56: =GR55/GQ55-1 -> 0.02 | GS56: 0.02 | GT56: 0.02 | GU56: 0.02 | GV56: 0.02 | GW56: 0.02 | GX56: 0.02 | GY56: 0.02 | GZ56: 0.02 | HA56: 0.02 | HB56: 0.02 | HC56: 0.02 | HD56: 0.02 | HE56: 0.02 | HF56: 0.02 | HG56: 0.02 | HH56: 0.02 | HI56: 0.02 | HJ56: 0.02 | HK56: 0.02 | HL56: 0.02 | HM56: 0.02 | HN56: 0.02 | HO56: 0.02 | HP56: 0.02 | HQ56: 0.02 | HR56: 0.02 | HS56: 0.02 | HT56: 0.02 | HU56: 0.02 | HV56: 0.02 | HW56: 0.02 | HX56: 0.02 | HY56: 0.02 | HZ56: 0.02 | IA56: 0.02 | IB56: 0.02 | IC56: 0.02 | ID56: 0.02 | IE56: 0.02 | IF56: 0.02 | IG56: 0.02 | IH56: 0.02 | II56: 0.02 | IJ56: 0.02 | IK56: 0.02 | IL56: 0.02 | IM56: 0.02 | IN56: 0.02 | IO56: 0.02 | IP56: 0.02 | IQ56: 0.02 | IR56: 0.02 | IS56: 0.02 | IT56: 0.02 | IU56: 0.02 | IV56: 0.02 | IW56: 0.02 | IX56: 0.02 | IY56: 0.02 | IZ56: 0.02 | JA56: 0.02 | JB56: 0.02 | JC56: 0.02 | JD56: =JD55/JC55-1 -> 0.02 | JE56: 0.02 | JF56: 0.02 | JG56: 0.02 | JH56: 0.02 | JI56: 0.02 | JJ56: 0.02 | JK56: 0.02 | JL56: 0.02 | JM56: 0.02 | JN56: 0.02 | JO56: 0.02 | JP56: 0.02 | JQ56: 0.02 | JR56: 0.02 | JS56: 0.02 | JT56: 0.02 | JU56: 0.02 | JV56: 0.02 | JW56: 0.02 | JX56: 0.02 | JY56: 0.02 | JZ56: 0.02 | KA56: 0.02 | KB56: 0.02 | KC56: 0.02 | KD56: 0.02 | KE56: 0.02 | KF56: 0.02 | KG56: 0.02 | KH56: 0.02 | KI56: 0.02 | KJ56: 0.02 | KK56: 0.02 | KL56: 0.02 | KM56: 0.02 | KN56: 0.02 | KO56: 0.02 | KP56: 0.02 | KQ56: 0.02 | KR56: 0.02 | KS56: 0.02 | KT56: 0.02
B58: Net Plant Depreciation Rate | G58: =G47/F55 -> 0.1111111111 | H58: =H47/G55 -> 0.117226197 | I58: 0.1237428311 | J58: 0.1306825826 | K58: 0.1380668722 | L58: 0.1459166801 | M58: 0.1542522065 | N58: 0.1630924829 | O58: 0.1724549358 | P58: 0.1724549358 | Q58: =Q47/P55 -> 0.1724549358 | R58: =R47/Q55 -> 0.1724549358 | S58: 0.1724549358 | T58: 0.1724549358 | U58: 0.1724549358 | V58: 0.1724549358 | W58: 0.1724549358 | X58: 0.1724549358 | Y58: 0.1724549358 | Z58: 0.1724549358 | AA58: 0.1724549358 | AB58: 0.1724549358 | AC58: 0.1724549358 | AD58: 0.1724549358 | AE58: 0.1740960282 | AF58: 0.1767710728 | AG58: 0.1800764238 | AH58: 0.1836916864 | AI58: 0.1873171818 | AJ58: 0.1906361035 | AK58: 0.1932891283 | AL58: 0.194857826 | AM58: 0.194857826 | AN58: 0.194857826 | AO58: 0.194857826 | AP58: 0.194857826 | AQ58: 0.194857826 | AR58: 0.194857826 | AS58: 0.194857826 | AT58: 0.194857826 | AU58: 0.194857826 | AV58: 0.194857826 | AW58: 0.194857826 | AX58: 0.194857826 | AY58: 0.194857826 | AZ58: 0.194857826 | BA58: 0.194857826 | BB58: 0.194857826 | BC58: 0.194857826 | BD58: 0.194857826 | BE58: 0.194857826 | BF58: 0.194857826 | BG58: 0.194857826 | BH58: 0.194857826 | BI58: 0.194857826 | BJ58: 0.194857826 | BK58: 0.194857826 | BL58: 0.194857826 | BM58: 0.194857826 | BN58: 0.194857826 | BO58: 0.194857826 | BP58: 0.194857826 | BQ58: 0.194857826 | BR58: 0.194857826 | BS58: =BS47/BR55 -> 0.194857826 | BT58: 0.194857826 | BU58: 0.194857826 | BV58: 0.194857826 | BW58: 0.194857826 | BX58: 0.194857826 | BY58: 0.194857826 | BZ58: 0.194857826 | CA58: 0.194857826 | CB58: 0.194857826 | CC58: 0.194857826 | CD58: 0.194857826 | CE58: 0.194857826 | CF58: 0.194857826 | CG58: 0.194857826 | CH58: 0.194857826 | CI58: 0.194857826 | CJ58: 0.194857826 | CK58: 0.194857826 | CL58: 0.194857826 | CM58: 0.194857826 | CN58: 0.194857826 | CO58: 0.194857826 | CP58: 0.194857826 | CQ58: 0.194857826 | CR58: 0.194857826 | CS58: 0.194857826 | CT58: 0.194857826 | CU58: 0.194857826 | CV58: 0.194857826 | CW58: 0.194857826 | CX58: 0.194857826 | CY58: 0.194857826 | CZ58: 0.194857826 | DA58: 0.194857826 | DB58: 0.194857826 | DC58: 0.194857826 | DD58: 0.194857826 | DE58: 0.194857826 | DF58: 0.194857826 | DG58: 0.194857826 | DH58: 0.194857826 | DI58: 0.194857826 | DJ58: 0.194857826 | DK58: 0.194857826 | DL58: 0.194857826 | DM58: 0.194857826 | DN58: 0.194857826 | DO58: 0.194857826 | DP58: 0.194857826 | DQ58: 0.194857826 | DR58: 0.194857826 | DS58: 0.194857826 | DT58: 0.194857826 | DU58: 0.194857826 | DV58: 0.194857826 | DW58: 0.194857826 | DX58: 0.194857826 | DY58: 0.194857826 | DZ58: 0.194857826 | EA58: 0.194857826 | EB58: 0.194857826 | EC58: 0.194857826 | ED58: 0.194857826 | EE58: =EE47/ED55 -> 0.194857826 | EF58: 0.194857826 | EG58: 0.194857826 | EH58: 0.194857826 | EI58: 0.194857826 | EJ58: 0.194857826 | EK58: 0.194857826 | EL58: 0.194857826 | EM58: 0.194857826 | EN58: 0.194857826 | EO58: 0.194857826 | EP58: 0.194857826 | EQ58: 0.194857826 | ER58: 0.194857826 | ES58: 0.194857826 | ET58: 0.194857826 | EU58: 0.194857826 | EV58: 0.194857826 | EW58: 0.194857826 | EX58: 0.194857826 | EY58: 0.194857826 | EZ58: 0.194857826 | FA58: 0.194857826 | FB58: 0.194857826 | FC58: 0.194857826 | FD58: 0.194857826 | FE58: 0.194857826 | FF58: 0.194857826 | FG58: 0.194857826 | FH58: 0.194857826 | FI58: 0.194857826 | FJ58: 0.194857826 | FK58: 0.194857826 | FL58: 0.194857826 | FM58: 0.194857826 | FN58: 0.194857826 | FO58: 0.194857826 | FP58: 0.194857826 | FQ58: 0.194857826 | FR58: 0.194857826 | FS58: 0.194857826 | FT58: 0.194857826 | FU58: 0.194857826 | FV58: 0.194857826 | FW58: 0.194857826 | FX58: 0.194857826 | FY58: 0.194857826 | FZ58: 0.194857826 | GA58: 0.194857826 | GB58: 0.194857826 | GC58: 0.194857826 | GD58: 0.194857826 | GE58: 0.194857826 | GF58: 0.194857826 | GG58: 0.194857826 | GH58: 0.194857826 | GI58: 0.194857826 | GJ58: 0.194857826 | GK58: 0.194857826 | GL58: 0.194857826 | GM58: 0.194857826 | GN58: 0.194857826 | GO58: 0.194857826 | GP58: 0.194857826 | GQ58: =GQ47/GP55 -> 0.194857826 | GR58: 0.194857826 | GS58: 0.194857826 | GT58: 0.194857826 | GU58: 0.194857826 | GV58: 0.194857826 | GW58: 0.194857826 | GX58: 0.194857826 | GY58: 0.194857826 | GZ58: 0.194857826 | HA58: 0.194857826 | HB58: 0.194857826 | HC58: 0.194857826 | HD58: 0.194857826 | HE58: 0.194857826 | HF58: 0.194857826 | HG58: 0.194857826 | HH58: 0.194857826 | HI58: 0.194857826 | HJ58: 0.194857826 | HK58: 0.194857826 | HL58: 0.194857826 | HM58: 0.194857826 | HN58: 0.194857826 | HO58: 0.194857826 | HP58: 0.194857826 | HQ58: 0.194857826 | HR58: 0.194857826 | HS58: 0.194857826 | HT58: 0.194857826 | HU58: 0.194857826 | HV58: 0.194857826 | HW58: 0.194857826 | HX58: 0.194857826 | HY58: 0.194857826 | HZ58: 0.194857826 | IA58: 0.194857826 | IB58: 0.194857826 | IC58: 0.194857826 | ID58: 0.194857826 | IE58: 0.194857826 | IF58: 0.194857826 | IG58: 0.194857826 | IH58: 0.194857826 | II58: 0.194857826 | IJ58: 0.194857826 | IK58: 0.194857826 | IL58: 0.194857826 | IM58: 0.194857826 | IN58: 0.194857826 | IO58: 0.194857826 | IP58: 0.194857826 | IQ58: 0.194857826 | IR58: 0.194857826 | IS58: 0.194857826 | IT58: 0.194857826 | IU58: 0.194857826 | IV58: 0.194857826 | IW58: 0.194857826 | IX58: 0.194857826 | IY58: 0.194857826 | IZ58: 0.194857826 | JA58: 0.194857826 | JB58: 0.194857826 | JC58: =JC47/JB55 -> 0.194857826 | JD58: 0.194857826 | JE58: 0.194857826 | JF58: 0.194857826 | JG58: 0.194857826 | JH58: 0.194857826 | JI58: 0.194857826 | JJ58: 0.194857826 | JK58: 0.194857826 | JL58: 0.194857826 | JM58: 0.194857826 | JN58: 0.194857826 | JO58: 0.194857826 | JP58: 0.194857826 | JQ58: 0.194857826 | JR58: 0.194857826 | JS58: 0.194857826 | JT58: 0.194857826 | JU58: 0.194857826 | JV58: 0.194857826 | JW58: 0.194857826 | JX58: 0.194857826 | JY58: 0.194857826 | JZ58: 0.194857826 | KA58: 0.194857826 | KB58: 0.194857826 | KC58: 0.194857826 | KD58: 0.194857826 | KE58: 0.194857826 | KF58: 0.194857826 | KG58: 0.194857826 | KH58: 0.194857826 | KI58: 0.194857826 | KJ58: 0.194857826 | KK58: 0.194857826 | KL58: 0.194857826 | KM58: 0.194857826 | KN58: 0.194857826 | KO58: 0.194857826 | KP58: 0.194857826 | KQ58: 0.194857826 | KR58: 0.194857826 | KS58: 0.194857826 | KT58: 0.194857826
B59: Capital Expenditures to Depreciation | G59: =IF(G47,G42/G47) -> 10.17 | H59: 5.395352113 | I59: 3.811697731 | J59: 3.025747777 | K59: 2.55883089 | L59: 2.251379088 | M59: 2.034997235 | N59: 1.875480477 | O59: 1.753820118 | P59: 1.753820118 | Q59: 1.753820118 | R59: 1.753820118 | S59: 1.753820118 | T59: 1.753820118 | U59: 1.753820118 | V59: 1.753820118 | W59: 1.753820118 | X59: 1.753820118 | Y59: 1.753820118 | Z59: 1.753820118 | AA59: 1.753820118 | AB59: 1.753820118 | AC59: 1.753820118 | AD59: 1.583094265 | AE59: 1.45338603 | AF59: 1.3532077 | AG59: 1.275310176 | AH59: 1.21497992 | AI59: 1.169124691 | AJ59: 1.135764976 | AK59: 1.113753505 | AL59: 1.102638936 | AM59: 1.102638936 | AN59: 1.102638936 | AO59: 1.102638936 | AP59: 1.102638936 | AQ59: 1.102638936 | AR59: 1.102638936 | AS59: 1.102638936 | AT59: 1.102638936 | AU59: 1.102638936 | AV59: 1.102638936 | AW59: 1.102638936 | AX59: 1.102638936 | AY59: 1.102638936 | AZ59: 1.102638936 | BA59: 1.102638936 | BB59: 1.102638936 | BC59: 1.102638936 | BD59: 1.102638936 | BE59: 1.102638936 | BF59: 1.102638936 | BG59: 1.102638936 | BH59: 1.102638936 | BI59: 1.102638936 | BJ59: 1.102638936 | BK59: 1.102638936 | BL59: 1.102638936 | BM59: 1.102638936 | BN59: 1.102638936 | BO59: 1.102638936 | BP59: 1.102638936 | BQ59: 1.102638936 | BR59: 1.102638936 | BS59: =IF(BS47,BS42/BS47) -> 1.102638936 | BT59: 1.102638936 | BU59: 1.102638936 | BV59: 1.102638936 | BW59: 1.102638936 | BX59: 1.102638936 | BY59: 1.102638936 | BZ59: 1.102638936 | CA59: 1.102638936 | CB59: 1.102638936 | CC59: 1.102638936 | CD59: 1.102638936 | CE59: 1.102638936 | CF59: 1.102638936 | CG59: 1.102638936 | CH59: 1.102638936 | CI59: 1.102638936 | CJ59: 1.102638936 | CK59: 1.102638936 | CL59: 1.102638936 | CM59: 1.102638936 | CN59: 1.102638936 | CO59: 1.102638936 | CP59: 1.102638936 | CQ59: 1.102638936 | CR59: 1.102638936 | CS59: 1.102638936 | CT59: 1.102638936 | CU59: 1.102638936 | CV59: 1.102638936 | CW59: 1.102638936 | CX59: 1.102638936 | CY59: 1.102638936 | CZ59: 1.102638936 | DA59: 1.102638936 | DB59: 1.102638936 | DC59: 1.102638936 | DD59: 1.102638936 | DE59: 1.102638936 | DF59: 1.102638936 | DG59: 1.102638936 | DH59: 1.102638936 | DI59: 1.102638936 | DJ59: 1.102638936 | DK59: 1.102638936 | DL59: 1.102638936 | DM59: 1.102638936 | DN59: 1.102638936 | DO59: 1.102638936 | DP59: 1.102638936 | DQ59: 1.102638936 | DR59: 1.102638936 | DS59: 1.102638936 | DT59: 1.102638936 | DU59: 1.102638936 | DV59: 1.102638936 | DW59: 1.102638936 | DX59: 1.102638936 | DY59: 1.102638936 | DZ59: 1.102638936 | EA59: 1.102638936 | EB59: 1.102638936 | EC59: 1.102638936 | ED59: 1.102638936 | EE59: =IF(EE47,EE42/EE47) -> 1.102638936 | EF59: 1.102638936 | EG59: 1.102638936 | EH59: 1.102638936 | EI59: 1.102638936 | EJ59: 1.102638936 | EK59: 1.102638936 | EL59: 1.102638936 | EM59: 1.102638936 | EN59: 1.102638936 | EO59: 1.102638936 | EP59: 1.102638936 | EQ59: 1.102638936 | ER59: 1.102638936 | ES59: 1.102638936 | ET59: 1.102638936 | EU59: 1.102638936 | EV59: 1.102638936 | EW59: 1.102638936 | EX59: 1.102638936 | EY59: 1.102638936 | EZ59: 1.102638936 | FA59: 1.102638936 | FB59: 1.102638936 | FC59: 1.102638936 | FD59: 1.102638936 | FE59: 1.102638936 | FF59: 1.102638936 | FG59: 1.102638936 | FH59: 1.102638936 | FI59: 1.102638936 | FJ59: 1.102638936 | FK59: 1.102638936 | FL59: 1.102638936 | FM59: 1.102638936 | FN59: 1.102638936 | FO59: 1.102638936 | FP59: 1.102638936 | FQ59: 1.102638936 | FR59: 1.102638936 | FS59: 1.102638936 | FT59: 1.102638936 | FU59: 1.102638936 | FV59: 1.102638936 | FW59: 1.102638936 | FX59: 1.102638936 | FY59: 1.102638936 | FZ59: 1.102638936 | GA59: 1.102638936 | GB59: 1.102638936 | GC59: 1.102638936 | GD59: 1.102638936 | GE59: 1.102638936 | GF59: 1.102638936 | GG59: 1.102638936 | GH59: 1.102638936 | GI59: 1.102638936 | GJ59: 1.102638936 | GK59: 1.102638936 | GL59: 1.102638936 | GM59: 1.102638936 | GN59: 1.102638936 | GO59: 1.102638936 | GP59: 1.102638936 | GQ59: =IF(GQ47,GQ42/GQ47) -> 1.102638936 | GR59: 1.102638936 | GS59: 1.102638936 | GT59: 1.102638936 | GU59: 1.102638936 | GV59: 1.102638936 | GW59: 1.102638936 | GX59: 1.102638936 | GY59: 1.102638936 | GZ59: 1.102638936 | HA59: 1.102638936 | HB59: 1.102638936 | HC59: 1.102638936 | HD59: 1.102638936 | HE59: 1.102638936 | HF59: 1.102638936 | HG59: 1.102638936 | HH59: 1.102638936 | HI59: 1.102638936 | HJ59: 1.102638936 | HK59: 1.102638936 | HL59: 1.102638936 | HM59: 1.102638936 | HN59: 1.102638936 | HO59: 1.102638936 | HP59: 1.102638936 | HQ59: 1.102638936 | HR59: 1.102638936 | HS59: 1.102638936 | HT59: 1.102638936 | HU59: 1.102638936 | HV59: 1.102638936 | HW59: 1.102638936 | HX59: 1.102638936 | HY59: 1.102638936 | HZ59: 1.102638936 | IA59: 1.102638936 | IB59: 1.102638936 | IC59: 1.102638936 | ID59: 1.102638936 | IE59: 1.102638936 | IF59: 1.102638936 | IG59: 1.102638936 | IH59: 1.102638936 | II59: 1.102638936 | IJ59: 1.102638936 | IK59: 1.102638936 | IL59: 1.102638936 | IM59: 1.102638936 | IN59: 1.102638936 | IO59: 1.102638936 | IP59: 1.102638936 | IQ59: 1.102638936 | IR59: 1.102638936 | IS59: 1.102638936 | IT59: 1.102638936 | IU59: 1.102638936 | IV59: 1.102638936 | IW59: 1.102638936 | IX59: 1.102638936 | IY59: 1.102638936 | IZ59: 1.102638936 | JA59: 1.102638936 | JB59: 1.102638936 | JC59: =IF(JC47,JC42/JC47) -> 1.102638936 | JD59: 1.102638936 | JE59: 1.102638936 | JF59: 1.102638936 | JG59: 1.102638936 | JH59: 1.102638936 | JI59: 1.102638936 | JJ59: 1.102638936 | JK59: 1.102638936 | JL59: 1.102638936 | JM59: 1.102638936 | JN59: 1.102638936 | JO59: 1.102638936 | JP59: 1.102638936 | JQ59: 1.102638936 | JR59: 1.102638936 | JS59: 1.102638936 | JT59: 1.102638936 | JU59: 1.102638936 | JV59: 1.102638936 | JW59: 1.102638936 | JX59: 1.102638936 | JY59: 1.102638936 | JZ59: 1.102638936 | KA59: 1.102638936 | KB59: 1.102638936 | KC59: 1.102638936 | KD59: 1.102638936 | KE59: 1.102638936 | KF59: 1.102638936 | KG59: 1.102638936 | KH59: 1.102638936 | KI59: 1.102638936 | KJ59: 1.102638936 | KK59: 1.102638936 | KL59: 1.102638936 | KM59: 1.102638936 | KN59: 1.102638936 | KO59: 1.102638936 | KP59: 1.102638936 | KQ59: 1.102638936 | KR59: 1.102638936 | KS59: 1.102638936 | KT59: 1.102638936
B60: Net Plant Depreciation Rate to Gross Depreciation | G60: =G58/G46 -> 1 | H60: 1.055035773 | I60: 1.11368548 | J60: 1.176143244 | K60: 1.24260185 | L60: 1.313250121 | M60: 1.388269858 | N60: 1.467832347 | O60: 1.552094422 | P60: 1.552094422 | Q60: 1.552094422 | R60: 1.552094422 | S60: 1.552094422 | T60: 1.552094422 | U60: 1.552094422 | V60: 1.552094422 | W60: 1.552094422 | X60: 1.552094422 | Y60: 1.552094422 | Z60: 1.552094422 | AA60: 1.552094422 | AB60: 1.552094422 | AC60: 1.552094422 | AD60: 1.552094422 | AE60: 1.566864254 | AF60: 1.590939655 | AG60: 1.620687814 | AH60: 1.653225178 | AI60: 1.685854636 | AJ60: 1.715724931 | AK60: 1.739602155 | AL60: 1.753720434 | AM60: 1.753720434 | AN60: 1.753720434 | AO60: 1.753720434 | AP60: 1.753720434 | AQ60: 1.753720434 | AR60: 1.753720434 | AS60: 1.753720434 | AT60: 1.753720434 | AU60: 1.753720434 | AV60: 1.753720434 | AW60: 1.753720434 | AX60: 1.753720434 | AY60: 1.753720434 | AZ60: 1.753720434 | BA60: 1.753720434 | BB60: 1.753720434 | BC60: 1.753720434 | BD60: 1.753720434 | BE60: 1.753720434 | BF60: 1.753720434 | BG60: 1.753720434 | BH60: 1.753720434 | BI60: 1.753720434 | BJ60: 1.753720434 | BK60: 1.753720434 | BL60: 1.753720434 | BM60: 1.753720434 | BN60: 1.753720434 | BO60: 1.753720434 | BP60: 1.753720434 | BQ60: 1.753720434 | BR60: 1.753720434 | BS60: =BS58/BS46 -> 1.753720434 | BT60: 1.753720434 | BU60: 1.753720434 | BV60: 1.753720434 | BW60: 1.753720434 | BX60: 1.753720434 | BY60: 1.753720434 | BZ60: 1.753720434 | CA60: 1.753720434 | CB60: 1.753720434 | CC60: 1.753720434 | CD60: 1.753720434 | CE60: 1.753720434 | CF60: 1.753720434 | CG60: 1.753720434 | CH60: 1.753720434 | CI60: 1.753720434 | CJ60: 1.753720434 | CK60: 1.753720434 | CL60: 1.753720434 | CM60: 1.753720434 | CN60: 1.753720434 | CO60: 1.753720434 | CP60: 1.753720434 | CQ60: 1.753720434 | CR60: 1.753720434 | CS60: 1.753720434 | CT60: 1.753720434 | CU60: 1.753720434 | CV60: 1.753720434 | CW60: 1.753720434 | CX60: 1.753720434 | CY60: 1.753720434 | CZ60: 1.753720434 | DA60: 1.753720434 | DB60: 1.753720434 | DC60: 1.753720434 | DD60: 1.753720434 | DE60: 1.753720434 | DF60: 1.753720434 | DG60: 1.753720434 | DH60: 1.753720434 | DI60: 1.753720434 | DJ60: 1.753720434 | DK60: 1.753720434 | DL60: 1.753720434 | DM60: 1.753720434 | DN60: 1.753720434 | DO60: 1.753720434 | DP60: 1.753720434 | DQ60: 1.753720434 | DR60: 1.753720434 | DS60: 1.753720434 | DT60: 1.753720434 | DU60: 1.753720434 | DV60: 1.753720434 | DW60: 1.753720434 | DX60: 1.753720434 | DY60: 1.753720434 | DZ60: 1.753720434 | EA60: 1.753720434 | EB60: 1.753720434 | EC60: 1.753720434 | ED60: 1.753720434 | EE60: =EE58/EE46 -> 1.753720434 | EF60: 1.753720434 | EG60: 1.753720434 | EH60: 1.753720434 | EI60: 1.753720434 | EJ60: 1.753720434 | EK60: 1.753720434 | EL60: 1.753720434 | EM60: 1.753720434 | EN60: 1.753720434 | EO60: 1.753720434 | EP60: 1.753720434 | EQ60: 1.753720434 | ER60: 1.753720434 | ES60: 1.753720434 | ET60: 1.753720434 | EU60: 1.753720434 | EV60: 1.753720434 | EW60: 1.753720434 | EX60: 1.753720434 | EY60: 1.753720434 | EZ60: 1.753720434 | FA60: 1.753720434 | FB60: 1.753720434 | FC60: 1.753720434 | FD60: 1.753720434 | FE60: 1.753720434 | FF60: 1.753720434 | FG60: 1.753720434 | FH60: 1.753720434 | FI60: 1.753720434 | FJ60: 1.753720434 | FK60: 1.753720434 | FL60: 1.753720434 | FM60: 1.753720434 | FN60: 1.753720434 | FO60: 1.753720434 | FP60: 1.753720434 | FQ60: 1.753720434 | FR60: 1.753720434 | FS60: 1.753720434 | FT60: 1.753720434 | FU60: 1.753720434 | FV60: 1.753720434 | FW60: 1.753720434 | FX60: 1.753720434 | FY60: 1.753720434 | FZ60: 1.753720434 | GA60: 1.753720434 | GB60: 1.753720434 | GC60: 1.753720434 | GD60: 1.753720434 | GE60: 1.753720434 | GF60: 1.753720434 | GG60: 1.753720434 | GH60: 1.753720434 | GI60: 1.753720434 | GJ60: 1.753720434 | GK60: 1.753720434 | GL60: 1.753720434 | GM60: 1.753720434 | GN60: 1.753720434 | GO60: 1.753720434 | GP60: 1.753720434 | GQ60: =GQ58/GQ46 -> 1.753720434 | GR60: 1.753720434 | GS60: 1.753720434 | GT60: 1.753720434 | GU60: 1.753720434 | GV60: 1.753720434 | GW60: 1.753720434 | GX60: 1.753720434 | GY60: 1.753720434 | GZ60: 1.753720434 | HA60: 1.753720434 | HB60: 1.753720434 | HC60: 1.753720434 | HD60: 1.753720434 | HE60: 1.753720434 | HF60: 1.753720434 | HG60: 1.753720434 | HH60: 1.753720434 | HI60: 1.753720434 | HJ60: 1.753720434 | HK60: 1.753720434 | HL60: 1.753720434 | HM60: 1.753720434 | HN60: 1.753720434 | HO60: 1.753720434 | HP60: 1.753720434 | HQ60: 1.753720434 | HR60: 1.753720434 | HS60: 1.753720434 | HT60: 1.753720434 | HU60: 1.753720434 | HV60: 1.753720434 | HW60: 1.753720434 | HX60: 1.753720434 | HY60: 1.753720434 | HZ60: 1.753720434 | IA60: 1.753720434 | IB60: 1.753720434 | IC60: 1.753720434 | ID60: 1.753720434 | IE60: 1.753720434 | IF60: 1.753720434 | IG60: 1.753720434 | IH60: 1.753720434 | II60: 1.753720434 | IJ60: 1.753720434 | IK60: 1.753720434 | IL60: 1.753720434 | IM60: 1.753720434 | IN60: 1.753720434 | IO60: 1.753720434 | IP60: 1.753720434 | IQ60: 1.753720434 | IR60: 1.753720434 | IS60: 1.753720434 | IT60: 1.753720434 | IU60: 1.753720434 | IV60: 1.753720434 | IW60: 1.753720434 | IX60: 1.753720434 | IY60: 1.753720434 | IZ60: 1.753720434 | JA60: 1.753720434 | JB60: 1.753720434 | JC60: =JC58/JC46 -> 1.753720434 | JD60: 1.753720434 | JE60: 1.753720434 | JF60: 1.753720434 | JG60: 1.753720434 | JH60: 1.753720434 | JI60: 1.753720434 | JJ60: 1.753720434 | JK60: 1.753720434 | JL60: 1.753720434 | JM60: 1.753720434 | JN60: 1.753720434 | JO60: 1.753720434 | JP60: 1.753720434 | JQ60: 1.753720434 | JR60: 1.753720434 | JS60: 1.753720434 | JT60: 1.753720434 | JU60: 1.753720434 | JV60: 1.753720434 | JW60: 1.753720434 | JX60: 1.753720434 | JY60: 1.753720434 | JZ60: 1.753720434 | KA60: 1.753720434 | KB60: 1.753720434 | KC60: 1.753720434 | KD60: 1.753720434 | KE60: 1.753720434 | KF60: 1.753720434 | KG60: 1.753720434 | KH60: 1.753720434 | KI60: 1.753720434 | KJ60: 1.753720434 | KK60: 1.753720434 | KL60: 1.753720434 | KM60: 1.753720434 | KN60: 1.753720434 | KO60: 1.753720434 | KP60: 1.753720434 | KQ60: 1.753720434 | KR60: 1.753720434 | KS60: 1.753720434 | KT60: 1.753720434
B61: Accumulated Depreciation to Gross Plant | F61: =F53/F44 -> 0 | G61: =G53/G44 -> 0.0521648409 | H61: 0.1020804185 | I61: 0.1497634277 | J61: 0.1952369942 | K61: 0.2385304339 | L61: 0.2796789514 | M61: 0.3187232845 | N61: 0.3557093012 | O61: 0.3557093012 | P61: 0.3557093012 | Q61: 0.3557093012 | R61: 0.3557093012 | S61: 0.3557093012 | T61: 0.3557093012 | U61: 0.3557093012 | V61: 0.3557093012 | W61: 0.3557093012 | X61: 0.3557093012 | Y61: 0.3557093012 | Z61: 0.3557093012 | AA61: 0.3557093012 | AB61: 0.3557093012 | AC61: 0.3557093012 | AD61: 0.3617826193 | AE61: 0.3714406472 | AF61: 0.3829780224 | AG61: 0.3951217212 | AH61: 0.4068290476 | AI61: 0.4171559894 | AJ61: 0.4251559201 | AK61: 0.429783687 | AL61: 0.429783687 | AM61: 0.429783687 | AN61: 0.429783687 | AO61: 0.429783687 | AP61: 0.429783687 | AQ61: 0.429783687 | AR61: 0.429783687 | AS61: 0.429783687 | AT61: 0.429783687 | AU61: 0.429783687 | AV61: 0.429783687 | AW61: 0.429783687 | AX61: 0.429783687 | AY61: 0.429783687 | AZ61: 0.429783687 | BA61: 0.429783687 | BB61: 0.429783687 | BC61: 0.429783687 | BD61: 0.429783687 | BE61: 0.429783687 | BF61: 0.429783687 | BG61: 0.429783687 | BH61: 0.429783687 | BI61: 0.429783687 | BJ61: 0.429783687 | BK61: 0.429783687 | BL61: 0.429783687 | BM61: 0.429783687 | BN61: 0.429783687 | BO61: 0.429783687 | BP61: 0.429783687 | BQ61: 0.429783687 | BR61: 0.429783687 | BS61: =BS53/BS44 -> 0.429783687 | BT61: 0.429783687 | BU61: 0.429783687 | BV61: 0.429783687 | BW61: 0.429783687 | BX61: 0.429783687 | BY61: 0.429783687 | BZ61: 0.429783687 | CA61: 0.429783687 | CB61: 0.429783687 | CC61: 0.429783687 | CD61: 0.429783687 | CE61: 0.429783687 | CF61: 0.429783687 | CG61: 0.429783687 | CH61: 0.429783687 | CI61: 0.429783687 | CJ61: 0.429783687 | CK61: 0.429783687 | CL61: 0.429783687 | CM61: 0.429783687 | CN61: 0.429783687 | CO61: 0.429783687 | CP61: 0.429783687 | CQ61: 0.429783687 | CR61: 0.429783687 | CS61: 0.429783687 | CT61: 0.429783687 | CU61: 0.429783687 | CV61: 0.429783687 | CW61: 0.429783687 | CX61: 0.429783687 | CY61: 0.429783687 | CZ61: 0.429783687 | DA61: 0.429783687 | DB61: 0.429783687 | DC61: 0.429783687 | DD61: 0.429783687 | DE61: 0.429783687 | DF61: 0.429783687 | DG61: 0.429783687 | DH61: 0.429783687 | DI61: 0.429783687 | DJ61: 0.429783687 | DK61: 0.429783687 | DL61: 0.429783687 | DM61: 0.429783687 | DN61: 0.429783687 | DO61: 0.429783687 | DP61: 0.429783687 | DQ61: 0.429783687 | DR61: 0.429783687 | DS61: 0.429783687 | DT61: 0.429783687 | DU61: 0.429783687 | DV61: 0.429783687 | DW61: 0.429783687 | DX61: 0.429783687 | DY61: 0.429783687 | DZ61: 0.429783687 | EA61: 0.429783687 | EB61: 0.429783687 | EC61: 0.429783687 | ED61: 0.429783687 | EE61: =EE53/EE44 -> 0.429783687 | EF61: 0.429783687 | EG61: 0.429783687 | EH61: 0.429783687 | EI61: 0.429783687 | EJ61: 0.429783687 | EK61: 0.429783687 | EL61: 0.429783687 | EM61: 0.429783687 | EN61: 0.429783687 | EO61: 0.429783687 | EP61: 0.429783687 | EQ61: 0.429783687 | ER61: 0.429783687 | ES61: 0.429783687 | ET61: 0.429783687 | EU61: 0.429783687 | EV61: 0.429783687 | EW61: 0.429783687 | EX61: 0.429783687 | EY61: 0.429783687 | EZ61: 0.429783687 | FA61: 0.429783687 | FB61: 0.429783687 | FC61: 0.429783687 | FD61: 0.429783687 | FE61: 0.429783687 | FF61: 0.429783687 | FG61: 0.429783687 | FH61: 0.429783687 | FI61: 0.429783687 | FJ61: 0.429783687 | FK61: 0.429783687 | FL61: 0.429783687 | FM61: 0.429783687 | FN61: 0.429783687 | FO61: 0.429783687 | FP61: 0.429783687 | FQ61: 0.429783687 | FR61: 0.429783687 | FS61: 0.429783687 | FT61: 0.429783687 | FU61: 0.429783687 | FV61: 0.429783687 | FW61: 0.429783687 | FX61: 0.429783687 | FY61: 0.429783687 | FZ61: 0.429783687 | GA61: 0.429783687 | GB61: 0.429783687 | GC61: 0.429783687 | GD61: 0.429783687 | GE61: 0.429783687 | GF61: 0.429783687 | GG61: 0.429783687 | GH61: 0.429783687 | GI61: 0.429783687 | GJ61: 0.429783687 | GK61: 0.429783687 | GL61: 0.429783687 | GM61: 0.429783687 | GN61: 0.429783687 | GO61: 0.429783687 | GP61: 0.429783687 | GQ61: =GQ53/GQ44 -> 0.429783687 | GR61: 0.429783687 | GS61: 0.429783687 | GT61: 0.429783687 | GU61: 0.429783687 | GV61: 0.429783687 | GW61: 0.429783687 | GX61: 0.429783687 | GY61: 0.429783687 | GZ61: 0.429783687 | HA61: 0.429783687 | HB61: 0.429783687 | HC61: 0.429783687 | HD61: 0.429783687 | HE61: 0.429783687 | HF61: 0.429783687 | HG61: 0.429783687 | HH61: 0.429783687 | HI61: 0.429783687 | HJ61: 0.429783687 | HK61: 0.429783687 | HL61: 0.429783687 | HM61: 0.429783687 | HN61: 0.429783687 | HO61: 0.429783687 | HP61: 0.429783687 | HQ61: 0.429783687 | HR61: 0.429783687 | HS61: 0.429783687 | HT61: 0.429783687 | HU61: 0.429783687 | HV61: 0.429783687 | HW61: 0.429783687 | HX61: 0.429783687 | HY61: 0.429783687 | HZ61: 0.429783687 | IA61: 0.429783687 | IB61: 0.429783687 | IC61: 0.429783687 | ID61: 0.429783687 | IE61: 0.429783687 | IF61: 0.429783687 | IG61: 0.429783687 | IH61: 0.429783687 | II61: 0.429783687 | IJ61: 0.429783687 | IK61: 0.429783687 | IL61: 0.429783687 | IM61: 0.429783687 | IN61: 0.429783687 | IO61: 0.429783687 | IP61: 0.429783687 | IQ61: 0.429783687 | IR61: 0.429783687 | IS61: 0.429783687 | IT61: 0.429783687 | IU61: 0.429783687 | IV61: 0.429783687 | IW61: 0.429783687 | IX61: 0.429783687 | IY61: 0.429783687 | IZ61: 0.429783687 | JA61: 0.429783687 | JB61: 0.429783687 | JC61: =JC53/JC44 -> 0.429783687 | JD61: 0.429783687 | JE61: 0.429783687 | JF61: 0.429783687 | JG61: 0.429783687 | JH61: 0.429783687 | JI61: 0.429783687 | JJ61: 0.429783687 | JK61: 0.429783687 | JL61: 0.429783687 | JM61: 0.429783687 | JN61: 0.429783687 | JO61: 0.429783687 | JP61: 0.429783687 | JQ61: 0.429783687 | JR61: 0.429783687 | JS61: 0.429783687 | JT61: 0.429783687 | JU61: 0.429783687 | JV61: 0.429783687 | JW61: 0.429783687 | JX61: 0.429783687 | JY61: 0.429783687 | JZ61: 0.429783687 | KA61: 0.429783687 | KB61: 0.429783687 | KC61: 0.429783687 | KD61: 0.429783687 | KE61: 0.429783687 | KF61: 0.429783687 | KG61: 0.429783687 | KH61: 0.429783687 | KI61: 0.429783687 | KJ61: 0.429783687 | KK61: 0.429783687 | KL61: 0.429783687 | KM61: 0.429783687 | KN61: 0.429783687 | KO61: 0.429783687 | KP61: 0.429783687 | KQ61: 0.429783687 | KR61: 0.429783687 | KS61: 0.429783687 | KT61: 0.429783687
B63: Acc Dep to Gross Plant | F63: =F53/F44 -> 0 | G63: =G53/G44 -> 0.0521648409 | H63: 0.1020804185 | I63: 0.1497634277 | J63: 0.1952369942 | K63: 0.2385304339 | L63: 0.2796789514 | M63: 0.3187232845 | N63: 0.3557093012 | O63: 0.3557093012 | P63: 0.3557093012 | Q63: 0.3557093012 | R63: 0.3557093012 | S63: 0.3557093012 | T63: 0.3557093012 | U63: 0.3557093012 | V63: 0.3557093012 | W63: 0.3557093012 | X63: 0.3557093012 | Y63: 0.3557093012 | Z63: 0.3557093012 | AA63: 0.3557093012 | AB63: 0.3557093012 | AC63: 0.3557093012 | AD63: 0.3617826193 | AE63: 0.3714406472 | AF63: 0.3829780224 | AG63: 0.3951217212 | AH63: 0.4068290476 | AI63: 0.4171559894 | AJ63: 0.4251559201 | AK63: 0.429783687 | AL63: 0.429783687 | AM63: 0.429783687 | AN63: 0.429783687 | AO63: 0.429783687 | AP63: 0.429783687 | AQ63: 0.429783687 | AR63: 0.429783687 | AS63: 0.429783687 | AT63: 0.429783687 | AU63: 0.429783687 | AV63: 0.429783687 | AW63: 0.429783687 | AX63: 0.429783687 | AY63: 0.429783687 | AZ63: 0.429783687 | BA63: 0.429783687 | BB63: 0.429783687 | BC63: 0.429783687 | BD63: 0.429783687 | BE63: 0.429783687 | BF63: 0.429783687 | BG63: 0.429783687 | BH63: 0.429783687 | BI63: 0.429783687 | BJ63: 0.429783687 | BK63: 0.429783687 | BL63: 0.429783687 | BM63: 0.429783687 | BN63: 0.429783687 | BO63: 0.429783687 | BP63: 0.429783687 | BQ63: 0.429783687 | BR63: 0.429783687 | BS63: =BS53/BS44 -> 0.429783687 | BT63: 0.429783687 | BU63: 0.429783687 | BV63: 0.429783687 | BW63: 0.429783687 | BX63: 0.429783687 | BY63: 0.429783687 | BZ63: 0.429783687 | CA63: 0.429783687 | CB63: 0.429783687 | CC63: 0.429783687 | CD63: 0.429783687 | CE63: 0.429783687 | CF63: 0.429783687 | CG63: 0.429783687 | CH63: 0.429783687 | CI63: 0.429783687 | CJ63: 0.429783687 | CK63: 0.429783687 | CL63: 0.429783687 | CM63: 0.429783687 | CN63: 0.429783687 | CO63: 0.429783687 | CP63: 0.429783687 | CQ63: 0.429783687 | CR63: 0.429783687 | CS63: 0.429783687 | CT63: 0.429783687 | CU63: 0.429783687 | CV63: 0.429783687 | CW63: 0.429783687 | CX63: 0.429783687 | CY63: 0.429783687 | CZ63: 0.429783687 | DA63: 0.429783687 | DB63: 0.429783687 | DC63: 0.429783687 | DD63: 0.429783687 | DE63: 0.429783687 | DF63: 0.429783687 | DG63: 0.429783687 | DH63: 0.429783687 | DI63: 0.429783687 | DJ63: 0.429783687 | DK63: 0.429783687 | DL63: 0.429783687 | DM63: 0.429783687 | DN63: 0.429783687 | DO63: 0.429783687 | DP63: 0.429783687 | DQ63: 0.429783687 | DR63: 0.429783687 | DS63: 0.429783687 | DT63: 0.429783687 | DU63: 0.429783687 | DV63: 0.429783687 | DW63: 0.429783687 | DX63: 0.429783687 | DY63: 0.429783687 | DZ63: 0.429783687 | EA63: 0.429783687 | EB63: 0.429783687 | EC63: 0.429783687 | ED63: 0.429783687 | EE63: =EE53/EE44 -> 0.429783687 | EF63: 0.429783687 | EG63: 0.429783687 | EH63: 0.429783687 | EI63: 0.429783687 | EJ63: 0.429783687 | EK63: 0.429783687 | EL63: 0.429783687 | EM63: 0.429783687 | EN63: 0.429783687 | EO63: 0.429783687 | EP63: 0.429783687 | EQ63: 0.429783687 | ER63: 0.429783687 | ES63: 0.429783687 | ET63: 0.429783687 | EU63: 0.429783687 | EV63: 0.429783687 | EW63: 0.429783687 | EX63: 0.429783687 | EY63: 0.429783687 | EZ63: 0.429783687 | FA63: 0.429783687 | FB63: 0.429783687 | FC63: 0.429783687 | FD63: 0.429783687 | FE63: 0.429783687 | FF63: 0.429783687 | FG63: 0.429783687 | FH63: 0.429783687 | FI63: 0.429783687 | FJ63: 0.429783687 | FK63: 0.429783687 | FL63: 0.429783687 | FM63: 0.429783687 | FN63: 0.429783687 | FO63: 0.429783687 | FP63: 0.429783687 | FQ63: 0.429783687 | FR63: 0.429783687 | FS63: 0.429783687 | FT63: 0.429783687 | FU63: 0.429783687 | FV63: 0.429783687 | FW63: 0.429783687 | FX63: 0.429783687 | FY63: 0.429783687 | FZ63: 0.429783687 | GA63: 0.429783687 | GB63: 0.429783687 | GC63: 0.429783687 | GD63: 0.429783687 | GE63: 0.429783687 | GF63: 0.429783687 | GG63: 0.429783687 | GH63: 0.429783687 | GI63: 0.429783687 | GJ63: 0.429783687 | GK63: 0.429783687 | GL63: 0.429783687 | GM63: 0.429783687 | GN63: 0.429783687 | GO63: 0.429783687 | GP63: 0.429783687 | GQ63: =GQ53/GQ44 -> 0.429783687 | GR63: 0.429783687 | GS63: 0.429783687 | GT63: 0.429783687 | GU63: 0.429783687 | GV63: 0.429783687 | GW63: 0.429783687 | GX63: 0.429783687 | GY63: 0.429783687 | GZ63: 0.429783687 | HA63: 0.429783687 | HB63: 0.429783687 | HC63: 0.429783687 | HD63: 0.429783687 | HE63: 0.429783687 | HF63: 0.429783687 | HG63: 0.429783687 | HH63: 0.429783687 | HI63: 0.429783687 | HJ63: 0.429783687 | HK63: 0.429783687 | HL63: 0.429783687 | HM63: 0.429783687 | HN63: 0.429783687 | HO63: 0.429783687 | HP63: 0.429783687 | HQ63: 0.429783687 | HR63: 0.429783687 | HS63: 0.429783687 | HT63: 0.429783687 | HU63: 0.429783687 | HV63: 0.429783687 | HW63: 0.429783687 | HX63: 0.429783687 | HY63: 0.429783687 | HZ63: 0.429783687 | IA63: 0.429783687 | IB63: 0.429783687 | IC63: 0.429783687 | ID63: 0.429783687 | IE63: 0.429783687 | IF63: 0.429783687 | IG63: 0.429783687 | IH63: 0.429783687 | II63: 0.429783687 | IJ63: 0.429783687 | IK63: 0.429783687 | IL63: 0.429783687 | IM63: 0.429783687 | IN63: 0.429783687 | IO63: 0.429783687 | IP63: 0.429783687 | IQ63: 0.429783687 | IR63: 0.429783687 | IS63: 0.429783687 | IT63: 0.429783687 | IU63: 0.429783687 | IV63: 0.429783687 | IW63: 0.429783687 | IX63: 0.429783687 | IY63: 0.429783687 | IZ63: 0.429783687 | JA63: 0.429783687 | JB63: 0.429783687 | JC63: =JC53/JC44 -> 0.429783687 | JD63: 0.429783687 | JE63: 0.429783687 | JF63: 0.429783687 | JG63: 0.429783687 | JH63: 0.429783687 | JI63: 0.429783687 | JJ63: 0.429783687 | JK63: 0.429783687 | JL63: 0.429783687 | JM63: 0.429783687 | JN63: 0.429783687 | JO63: 0.429783687 | JP63: 0.429783687 | JQ63: 0.429783687 | JR63: 0.429783687 | JS63: 0.429783687 | JT63: 0.429783687 | JU63: 0.429783687 | JV63: 0.429783687 | JW63: 0.429783687 | JX63: 0.429783687 | JY63: 0.429783687 | JZ63: 0.429783687 | KA63: 0.429783687 | KB63: 0.429783687 | KC63: 0.429783687 | KD63: 0.429783687 | KE63: 0.429783687 | KF63: 0.429783687 | KG63: 0.429783687 | KH63: 0.429783687 | KI63: 0.429783687 | KJ63: 0.429783687 | KK63: 0.429783687 | KL63: 0.429783687 | KM63: 0.429783687 | KN63: 0.429783687 | KO63: 0.429783687 | KP63: 0.429783687 | KQ63: 0.429783687 | KR63: 0.429783687 | KS63: 0.429783687 | KT63: 0.429783687
B64: ROIC | F64: =F35*$E$23+F36*$E$24 -> 0.1 | G64: 0.1 | H64: 0.1 | I64: 0.1 | J64: 0.1 | K64: 0.1 | L64: 0.1 | M64: 0.1 | N64: 0.1 | O64: 0.1 | P64: 0.1 | Q64: 0.1 | R64: 0.1 | S64: 0.1 | T64: 0.1 | U64: 0.1 | V64: 0.1 | W64: 0.1 | X64: 0.1 | Y64: 0.1 | Z64: 0.1 | AA64: 0.1 | AB64: 0.1 | AC64: 0.1 | AD64: 0.1 | AE64: 0.1 | AF64: 0.1 | AG64: 0.1 | AH64: 0.1 | AI64: 0.1 | AJ64: 0.1 | AK64: 0.1 | AL64: 0.1 | AM64: 0.1 | AN64: 0.1 | AO64: 0.1 | AP64: 0.1 | AQ64: 0.1 | AR64: 0.1 | AS64: 0.1 | AT64: 0.1 | AU64: 0.1 | AV64: 0.1 | AW64: 0.1 | AX64: 0.1 | AY64: 0.1 | AZ64: 0.1 | BA64: 0.1 | BB64: 0.1 | BC64: 0.1 | BD64: 0.1 | BE64: 0.1 | BF64: 0.1 | BG64: 0.1 | BH64: 0.1 | BI64: 0.1 | BJ64: 0.1 | BK64: 0.1 | BL64: 0.1 | BM64: 0.1 | BN64: 0.1 | BO64: 0.1 | BP64: 0.1 | BQ64: 0.1 | BR64: =BR35*$E$23+BR36*$E$24 -> 0.1 | BS64: 0.1 | BT64: 0.1 | BU64: 0.1 | BV64: 0.1 | BW64: 0.1 | BX64: 0.1 | BY64: 0.1 | BZ64: 0.1 | CA64: 0.1 | CB64: 0.1 | CC64: 0.1 | CD64: 0.1 | CE64: 0.1 | CF64: 0.1 | CG64: 0.1 | CH64: 0.1 | CI64: 0.1 | CJ64: 0.1 | CK64: 0.1 | CL64: 0.1 | CM64: 0.1 | CN64: 0.1 | CO64: 0.1 | CP64: 0.1 | CQ64: 0.1 | CR64: 0.1 | CS64: 0.1 | CT64: 0.1 | CU64: 0.1 | CV64: 0.1 | CW64: 0.1 | CX64: 0.1 | CY64: 0.1 | CZ64: 0.1 | DA64: 0.1 | DB64: 0.1 | DC64: 0.1 | DD64: 0.1 | DE64: 0.1 | DF64: 0.1 | DG64: 0.1 | DH64: 0.1 | DI64: 0.1 | DJ64: 0.1 | DK64: 0.1 | DL64: 0.1 | DM64: 0.1 | DN64: 0.1 | DO64: 0.1 | DP64: 0.1 | DQ64: 0.1 | DR64: 0.1 | DS64: 0.1 | DT64: 0.1 | DU64: 0.1 | DV64: 0.1 | DW64: 0.1 | DX64: 0.1 | DY64: 0.1 | DZ64: 0.1 | EA64: 0.1 | EB64: 0.1 | EC64: 0.1 | ED64: =ED35*$E$23+ED36*$E$24 -> 0.1 | EE64: 0.1 | EF64: 0.1 | EG64: 0.1 | EH64: 0.1 | EI64: 0.1 | EJ64: 0.1 | EK64: 0.1 | EL64: 0.1 | EM64: 0.1 | EN64: 0.1 | EO64: 0.1 | EP64: 0.1 | EQ64: 0.1 | ER64: 0.1 | ES64: 0.1 | ET64: 0.1 | EU64: 0.1 | EV64: 0.1 | EW64: 0.1 | EX64: 0.1 | EY64: 0.1 | EZ64: 0.1 | FA64: 0.1 | FB64: 0.1 | FC64: 0.1 | FD64: 0.1 | FE64: 0.1 | FF64: 0.1 | FG64: 0.1 | FH64: 0.1 | FI64: 0.1 | FJ64: 0.1 | FK64: 0.1 | FL64: 0.1 | FM64: 0.1 | FN64: 0.1 | FO64: 0.1 | FP64: 0.1 | FQ64: 0.1 | FR64: 0.1 | FS64: 0.1 | FT64: 0.1 | FU64: 0.1 | FV64: 0.1 | FW64: 0.1 | FX64: 0.1 | FY64: 0.1 | FZ64: 0.1 | GA64: 0.1 | GB64: 0.1 | GC64: 0.1 | GD64: 0.1 | GE64: 0.1 | GF64: 0.1 | GG64: 0.1 | GH64: 0.1 | GI64: 0.1 | GJ64: 0.1 | GK64: 0.1 | GL64: 0.1 | GM64: 0.1 | GN64: 0.1 | GO64: 0.1 | GP64: =GP35*$E$23+GP36*$E$24 -> 0.1 | GQ64: 0.1 | GR64: 0.1 | GS64: 0.1 | GT64: 0.1 | GU64: 0.1 | GV64: 0.1 | GW64: 0.1 | GX64: 0.1 | GY64: 0.1 | GZ64: 0.1 | HA64: 0.1 | HB64: 0.1 | HC64: 0.1 | HD64: 0.1 | HE64: 0.1 | HF64: 0.1 | HG64: 0.1 | HH64: 0.1 | HI64: 0.1 | HJ64: 0.1 | HK64: 0.1 | HL64: 0.1 | HM64: 0.1 | HN64: 0.1 | HO64: 0.1 | HP64: 0.1 | HQ64: 0.1 | HR64: 0.1 | HS64: 0.1 | HT64: 0.1 | HU64: 0.1 | HV64: 0.1 | HW64: 0.1 | HX64: 0.1 | HY64: 0.1 | HZ64: 0.1 | IA64: 0.1 | IB64: 0.1 | IC64: 0.1 | ID64: 0.1 | IE64: 0.1 | IF64: 0.1 | IG64: 0.1 | IH64: 0.1 | II64: 0.1 | IJ64: 0.1 | IK64: 0.1 | IL64: 0.1 | IM64: 0.1 | IN64: 0.1 | IO64: 0.1 | IP64: 0.1 | IQ64: 0.1 | IR64: 0.1 | IS64: 0.1 | IT64: 0.1 | IU64: 0.1 | IV64: 0.1 | IW64: 0.1 | IX64: 0.1 | IY64: 0.1 | IZ64: 0.1 | JA64: 0.1 | JB64: =JB35*$E$23+JB36*$E$24 -> 0.1 | JC64: 0.1 | JD64: 0.1 | JE64: 0.1 | JF64: 0.1 | JG64: 0.1 | JH64: 0.1 | JI64: 0.1 | JJ64: 0.1 | JK64: 0.1 | JL64: 0.1 | JM64: 0.1 | JN64: 0.1 | JO64: 0.1 | JP64: 0.1 | JQ64: 0.1 | JR64: 0.1 | JS64: 0.1 | JT64: 0.1 | JU64: 0.1 | JV64: 0.1 | JW64: 0.1 | JX64: 0.1 | JY64: 0.1 | JZ64: 0.1 | KA64: 0.1 | KB64: 0.1 | KC64: 0.1 | KD64: 0.1 | KE64: 0.1 | KF64: 0.1 | KG64: 0.1 | KH64: 0.1 | KI64: 0.1 | KJ64: 0.1 | KK64: 0.1 | KL64: 0.1 | KM64: 0.1 | KN64: 0.1 | KO64: 0.1 | KP64: 0.1 | KQ64: 0.1 | KR64: 0.1 | KS64: 0.1 | KT64: 0.1
B66: Net Plant | F66: =D55 -> 0 | G66: =F55 -> 100 | H66: 201.8888889 | I66: 305.9122222 | J66: 412.3474778 | K66: 521.5082054 | L66: 633.7487166 | M66: 749.4693831 | N66: 869.1226251 | O66: 993.2196775 | P66: 1122.338236 | Q66: 1268.242206 | R66: 1433.113693 | S66: 1619.418473 | T66: 1829.942875 | U66: 2067.835448 | V66: 2336.654057 | W66: 2640.419084 | X66: 2983.673565 | Y66: 3371.551128 | Z66: 3809.852775 | AA66: 4305.133636 | AB66: 4864.801008 | AC66: 5497.225139 | AD66: 6211.864407 | AE66: 6836.513864 | AF66: 7376.13841 | AG66: 7836.681656 | AH66: 8225.199819 | AI66: 8550.013157 | AJ66: 8820.877236 | AK66: 9049.176587 | AL66: 9248.14369 | AM66: 9433.106563 | AN66: 9621.768695 | AO66: 9814.204069 | AP66: 10010.48815 | AQ66: 10210.69791 | AR66: 10414.91187 | AS66: 10623.21011 | AT66: 10835.67431 | AU66: 11052.3878 | AV66: 11273.43555 | AW66: 11498.90426 | AX66: 11728.88235 | AY66: 11963.46 | AZ66: 12202.7292 | BA66: 12446.78378 | BB66: 12695.71946 | BC66: 12949.63384 | BD66: 13208.62652 | BE66: 13472.79905 | BF66: 13742.25503 | BG66: 14017.10013 | BH66: 14297.44214 | BI66: 14583.39098 | BJ66: 14875.0588 | BK66: 15172.55997 | BL66: 15476.01117 | BM66: 15785.5314 | BN66: 16101.24203 | BO66: 16423.26687 | BP66: 16751.7322 | BQ66: 17086.76685 | BR66: 17428.50218 | BS66: =BR55 -> 17777.07223 | BT66: 18132.61367 | BU66: 18495.26595 | BV66: 18865.17127 | BW66: 19242.47469 | BX66: 19627.32418 | BY66: 20019.87067 | BZ66: 20420.26808 | CA66: 20828.67344 | CB66: 21245.24691 | CC66: 21670.15185 | CD66: 22103.55489 | CE66: 22545.62599 | CF66: 22996.5385 | CG66: 23456.46927 | CH66: 23925.59866 | CI66: 24404.11063 | CJ66: 24892.19285 | CK66: 25390.0367 | CL66: 25897.83744 | CM66: 26415.79419 | CN66: 26944.11007 | CO66: 27482.99227 | CP66: 28032.65212 | CQ66: 28593.30516 | CR66: 29165.17126 | CS66: 29748.47469 | CT66: 30343.44418 | CU66: 30950.31306 | CV66: 31569.31933 | CW66: 32200.70571 | CX66: 32844.71983 | CY66: 33501.61422 | CZ66: 34171.64651 | DA66: 34855.07944 | DB66: 35552.18103 | DC66: 36263.22465 | DD66: 36988.48914 | DE66: 37728.25892 | DF66: 38482.8241 | DG66: 39252.48058 | DH66: 40037.5302 | DI66: 40838.2808 | DJ66: 41655.04641 | DK66: 42488.14734 | DL66: 43337.91029 | DM66: 44204.6685 | DN66: 45088.76187 | DO66: 45990.5371 | DP66: 46910.34785 | DQ66: 47848.5548 | DR66: 48805.5259 | DS66: 49781.63642 | DT66: 50777.26914 | DU66: 51792.81453 | DV66: 52828.67082 | DW66: 53885.24423 | DX66: 54962.94912 | DY66: 56062.2081 | DZ66: 57183.45226 | EA66: 58327.12131 | EB66: 59493.66373 | EC66: 60683.53701 | ED66: 61897.20775 | EE66: =ED55 -> 63135.1519 | EF66: 64397.85494 | EG66: 65685.81204 | EH66: 66999.52828 | EI66: 68339.51885 | EJ66: 69706.30923 | EK66: 71100.43541 | EL66: 72522.44412 | EM66: 73972.893 | EN66: 75452.35086 | EO66: 76961.39788 | EP66: 78500.62583 | EQ66: 80070.63835 | ER66: 81672.05112 | ES66: 83305.49214 | ET66: 84971.60198 | EU66: 86671.03402 | EV66: 88404.4547 | EW66: 90172.5438 | EX66: 91975.99467 | EY66: 93815.51457 | EZ66: 95691.82486 | FA66: 97605.66136 | FB66: 99557.77458 | FC66: 101548.9301 | FD66: 103579.9087 | FE66: 105651.5068 | FF66: 107764.537 | FG66: 109919.8277 | FH66: 112118.2243 | FI66: 114360.5888 | FJ66: 116647.8005 | FK66: 118980.7566 | FL66: 121360.3717 | FM66: 123787.5791 | FN66: 126263.3307 | FO66: 128788.5973 | FP66: 131364.3693 | FQ66: 133991.6566 | FR66: 136671.4898 | FS66: 139404.9196 | FT66: 142193.018 | FU66: 145036.8783 | FV66: 147937.6159 | FW66: 150896.3682 | FX66: 153914.2956 | FY66: 156992.5815 | FZ66: 160132.4331 | GA66: 163335.0818 | GB66: 166601.7834 | GC66: 169933.8191 | GD66: 173332.4955 | GE66: 176799.1454 | GF66: 180335.1283 | GG66: 183941.8308 | GH66: 187620.6675 | GI66: 191373.0808 | GJ66: 195200.5424 | GK66: 199104.5533 | GL66: 203086.6443 | GM66: 207148.3772 | GN66: 211291.3448 | GO66: 215517.1717 | GP66: 219827.5151 | GQ66: =GP55 -> 224224.0654 | GR66: 228708.5467 | GS66: 233282.7176 | GT66: 237948.372 | GU66: 242707.3394 | GV66: 247561.4862 | GW66: 252512.716 | GX66: 257562.9703 | GY66: 262714.2297 | GZ66: 267968.5143 | HA66: 273327.8846 | HB66: 278794.4422 | HC66: 284370.3311 | HD66: 290057.7377 | HE66: 295858.8925 | HF66: 301776.0703 | HG66: 307811.5917 | HH66: 313967.8236 | HI66: 320247.18 | HJ66: 326652.1236 | HK66: 333185.1661 | HL66: 339848.8694 | HM66: 346645.8468 | HN66: 353578.7637 | HO66: 360650.339 | HP66: 367863.3458 | HQ66: 375220.6127 | HR66: 382725.025 | HS66: 390379.5255 | HT66: 398187.116 | HU66: 406150.8583 | HV66: 414273.8755 | HW66: 422559.353 | HX66: 431010.54 | HY66: 439630.7508 | HZ66: 448423.3659 | IA66: 457391.8332 | IB66: 466539.6698 | IC66: 475870.4632 | ID66: 485387.8725 | IE66: 495095.6299 | IF66: 504997.5425 | IG66: 515097.4934 | IH66: 525399.4433 | II66: 535907.4321 | IJ66: 546625.5808 | IK66: 557558.0924 | IL66: 568709.2542 | IM66: 580083.4393 | IN66: 591685.1081 | IO66: 603518.8103 | IP66: 615589.1865 | IQ66: 627900.9702 | IR66: 640458.9896 | IS66: 653268.1694 | IT66: 666333.5328 | IU66: 679660.2034 | IV66: 693253.4075 | IW66: 707118.4757 | IX66: 721260.8452 | IY66: 735686.0621 | IZ66: 750399.7833 | JA66: 765407.779 | JB66: 780715.9346 | JC66: =JB55 -> 796330.2533 | JD66: 812256.8583 | JE66: 828501.9955 | JF66: 845072.0354 | JG66: 861973.4761 | JH66: 879212.9456 | JI66: 896797.2045 | JJ66: 914733.1486 | JK66: 933027.8116 | JL66: 951688.3678 | JM66: 970722.1352 | JN66: 990136.5779 | JO66: 1009939.309 | JP66: 1030138.096 | JQ66: 1050740.858 | JR66: 1071755.675 | JS66: 1093190.788 | JT66: 1115054.604 | JU66: 1137355.696 | JV66: 1160102.81 | JW66: 1183304.866 | JX66: 1206970.963 | JY66: 1231110.383 | JZ66: 1255732.59 | KA66: 1280847.242 | KB66: 1306464.187 | KC66: 1332593.471 | KD66: 1359245.34 | KE66: 1386430.247 | KF66: 1414158.852 | KG66: 1442442.029 | KH66: 1471290.87 | KI66: 1500716.687 | KJ66: 1530731.021 | KK66: 1561345.641 | KL66: 1592572.554 | KM66: 1624424.005 | KN66: 1656912.485 | KO66: 1690050.735 | KP66: 1723851.75 | KQ66: 1758328.785 | KR66: 1793495.36 | KS66: 1829365.267 | KT66: 1865952.573
B67: Plus Working Capital | F67: =working_capital(F64,F66,F68,$E$26,F47,$E$27) -> 0 | G67: =F78 -> 0 | H67: =G78 -> 0 | I67: 0 | J67: 0 | K67: 0 | L67: 0 | M67: 0 | N67: 0 | O67: 0 | P67: 0 | Q67: 0 | R67: 0 | S67: 0 | T67: 0 | U67: 0 | V67: 0 | W67: 0 | X67: 0 | Y67: 0 | Z67: 0 | AA67: 0 | AB67: 0 | AC67: 0 | AD67: 0 | AE67: 0 | AF67: 0 | AG67: 0 | AH67: 0 | AI67: 0 | AJ67: 0 | AK67: 0 | AL67: 0 | AM67: 0 | AN67: 0 | AO67: 0 | AP67: 0 | AQ67: 0 | AR67: 0 | AS67: 0 | AT67: 0 | AU67: 0 | AV67: 0 | AW67: 0 | AX67: 0 | AY67: 0 | AZ67: 0 | BA67: 0 | BB67: 0 | BC67: 0 | BD67: 0 | BE67: 0 | BF67: 0 | BG67: 0 | BH67: 0 | BI67: 0 | BJ67: 0 | BK67: 0 | BL67: 0 | BM67: 0 | BN67: 0 | BO67: 0 | BP67: 0 | BQ67: 0 | BR67: 0 | BS67: 0 | BT67: =BS78 -> 0 | BU67: 0 | BV67: 0 | BW67: 0 | BX67: 0 | BY67: 0 | BZ67: 0 | CA67: 0 | CB67: 0 | CC67: 0 | CD67: 0 | CE67: 0 | CF67: 0 | CG67: 0 | CH67: 0 | CI67: 0 | CJ67: 0 | CK67: 0 | CL67: 0 | CM67: 0 | CN67: 0 | CO67: 0 | CP67: 0 | CQ67: 0 | CR67: 0 | CS67: 0 | CT67: 0 | CU67: 0 | CV67: 0 | CW67: 0 | CX67: 0 | CY67: 0 | CZ67: 0 | DA67: 0 | DB67: 0 | DC67: 0 | DD67: 0 | DE67: 0 | DF67: 0 | DG67: 0 | DH67: 0 | DI67: 0 | DJ67: 0 | DK67: 0 | DL67: 0 | DM67: 0 | DN67: 0 | DO67: 0 | DP67: 0 | DQ67: 0 | DR67: 0 | DS67: 0 | DT67: 0 | DU67: 0 | DV67: 0 | DW67: 0 | DX67: 0 | DY67: 0 | DZ67: 0 | EA67: 0 | EB67: 0 | EC67: 0 | ED67: 0 | EE67: 0 | EF67: =EE78 -> 0 | EG67: 0 | EH67: 0 | EI67: 0 | EJ67: 0 | EK67: 0 | EL67: 0 | EM67: 0 | EN67: 0 | EO67: 0 | EP67: 0 | EQ67: 0 | ER67: 0 | ES67: 0 | ET67: 0 | EU67: 0 | EV67: 0 | EW67: 0 | EX67: 0 | EY67: 0 | EZ67: 0 | FA67: 0 | FB67: 0 | FC67: 0 | FD67: 0 | FE67: 0 | FF67: 0 | FG67: 0 | FH67: 0 | FI67: 0 | FJ67: 0 | FK67: 0 | FL67: 0 | FM67: 0 | FN67: 0 | FO67: 0 | FP67: 0 | FQ67: 0 | FR67: 0 | FS67: 0 | FT67: 0 | FU67: 0 | FV67: 0 | FW67: 0 | FX67: 0 | FY67: 0 | FZ67: 0 | GA67: 0 | GB67: 0 | GC67: 0 | GD67: 0 | GE67: 0 | GF67: 0 | GG67: 0 | GH67: 0 | GI67: 0 | GJ67: 0 | GK67: 0 | GL67: 0 | GM67: 0 | GN67: 0 | GO67: 0 | GP67: 0 | GQ67: 0 | GR67: =GQ78 -> 0 | GS67: 0 | GT67: 0 | GU67: 0 | GV67: 0 | GW67: 0 | GX67: 0 | GY67: 0 | GZ67: 0 | HA67: 0 | HB67: 0 | HC67: 0 | HD67: 0 | HE67: 0 | HF67: 0 | HG67: 0 | HH67: 0 | HI67: 0 | HJ67: 0 | HK67: 0 | HL67: 0 | HM67: 0 | HN67: 0 | HO67: 0 | HP67: 0 | HQ67: 0 | HR67: 0 | HS67: 0 | HT67: 0 | HU67: 0 | HV67: 0 | HW67: 0 | HX67: 0 | HY67: 0 | HZ67: 0 | IA67: 0 | IB67: 0 | IC67: 0 | ID67: 0 | IE67: 0 | IF67: 0 | IG67: 0 | IH67: 0 | II67: 0 | IJ67: 0 | IK67: 0 | IL67: 0 | IM67: 0 | IN67: 0 | IO67: 0 | IP67: 0 | IQ67: 0 | IR67: 0 | IS67: 0 | IT67: 0 | IU67: 0 | IV67: 0 | IW67: 0 | IX67: 0 | IY67: 0 | IZ67: 0 | JA67: 0 | JB67: 0 | JC67: 0 | JD67: =JC78 -> 0 | JE67: 0 | JF67: 0 | JG67: 0 | JH67: 0 | JI67: 0 | JJ67: 0 | JK67: 0 | JL67: 0 | JM67: 0 | JN67: 0 | JO67: 0 | JP67: 0 | JQ67: 0 | JR67: 0 | JS67: 0 | JT67: 0 | JU67: 0 | JV67: 0 | JW67: 0 | JX67: 0 | JY67: 0 | JZ67: 0 | KA67: 0 | KB67: 0 | KC67: 0 | KD67: 0 | KE67: 0 | KF67: 0 | KG67: 0 | KH67: 0 | KI67: 0 | KJ67: 0 | KK67: 0 | KL67: 0 | KM67: 0 | KN67: 0 | KO67: 0 | KP67: 0 | KQ67: 0 | KR67: 0 | KS67: 0 | KT67: 0
B68: Less: Deferred Taxes
B69: Toal | F69: =SUM(F66:F68) -> 0 | G69: =SUM(G66:G68) -> 100 | H69: 201.8888889 | I69: 305.9122222 | J69: 412.3474778 | K69: 521.5082054 | L69: 633.7487166 | M69: 749.4693831 | N69: 869.1226251 | O69: 993.2196775 | P69: 1122.338236 | Q69: 1268.242206 | R69: 1433.113693 | S69: 1619.418473 | T69: 1829.942875 | U69: 2067.835448 | V69: 2336.654057 | W69: 2640.419084 | X69: 2983.673565 | Y69: 3371.551128 | Z69: 3809.852775 | AA69: 4305.133636 | AB69: 4864.801008 | AC69: 5497.225139 | AD69: 6211.864407 | AE69: 6836.513864 | AF69: 7376.13841 | AG69: 7836.681656 | AH69: 8225.199819 | AI69: 8550.013157 | AJ69: 8820.877236 | AK69: 9049.176587 | AL69: 9248.14369 | AM69: 9433.106563 | AN69: 9621.768695 | AO69: 9814.204069 | AP69: 10010.48815 | AQ69: 10210.69791 | AR69: 10414.91187 | AS69: 10623.21011 | AT69: 10835.67431 | AU69: 11052.3878 | AV69: 11273.43555 | AW69: 11498.90426 | AX69: 11728.88235 | AY69: 11963.46 | AZ69: 12202.7292 | BA69: 12446.78378 | BB69: 12695.71946 | BC69: 12949.63384 | BD69: 13208.62652 | BE69: 13472.79905 | BF69: 13742.25503 | BG69: 14017.10013 | BH69: 14297.44214 | BI69: 14583.39098 | BJ69: 14875.0588 | BK69: 15172.55997 | BL69: 15476.01117 | BM69: 15785.5314 | BN69: 16101.24203 | BO69: 16423.26687 | BP69: 16751.7322 | BQ69: 17086.76685 | BR69: 17428.50218 | BS69: =SUM(BS66:BS68) -> 17777.07223 | BT69: 18132.61367 | BU69: 18495.26595 | BV69: 18865.17127 | BW69: 19242.47469 | BX69: 19627.32418 | BY69: 20019.87067 | BZ69: 20420.26808 | CA69: 20828.67344 | CB69: 21245.24691 | CC69: 21670.15185 | CD69: 22103.55489 | CE69: 22545.62599 | CF69: 22996.5385 | CG69: 23456.46927 | CH69: 23925.59866 | CI69: 24404.11063 | CJ69: 24892.19285 | CK69: 25390.0367 | CL69: 25897.83744 | CM69: 26415.79419 | CN69: 26944.11007 | CO69: 27482.99227 | CP69: 28032.65212 | CQ69: 28593.30516 | CR69: 29165.17126 | CS69: 29748.47469 | CT69: 30343.44418 | CU69: 30950.31306 | CV69: 31569.31933 | CW69: 32200.70571 | CX69: 32844.71983 | CY69: 33501.61422 | CZ69: 34171.64651 | DA69: 34855.07944 | DB69: 35552.18103 | DC69: 36263.22465 | DD69: 36988.48914 | DE69: 37728.25892 | DF69: 38482.8241 | DG69: 39252.48058 | DH69: 40037.5302 | DI69: 40838.2808 | DJ69: 41655.04641 | DK69: 42488.14734 | DL69: 43337.91029 | DM69: 44204.6685 | DN69: 45088.76187 | DO69: 45990.5371 | DP69: 46910.34785 | DQ69: 47848.5548 | DR69: 48805.5259 | DS69: 49781.63642 | DT69: 50777.26914 | DU69: 51792.81453 | DV69: 52828.67082 | DW69: 53885.24423 | DX69: 54962.94912 | DY69: 56062.2081 | DZ69: 57183.45226 | EA69: 58327.12131 | EB69: 59493.66373 | EC69: 60683.53701 | ED69: 61897.20775 | EE69: =SUM(EE66:EE68) -> 63135.1519 | EF69: 64397.85494 | EG69: 65685.81204 | EH69: 66999.52828 | EI69: 68339.51885 | EJ69: 69706.30923 | EK69: 71100.43541 | EL69: 72522.44412 | EM69: 73972.893 | EN69: 75452.35086 | EO69: 76961.39788 | EP69: 78500.62583 | EQ69: 80070.63835 | ER69: 81672.05112 | ES69: 83305.49214 | ET69: 84971.60198 | EU69: 86671.03402 | EV69: 88404.4547 | EW69: 90172.5438 | EX69: 91975.99467 | EY69: 93815.51457 | EZ69: 95691.82486 | FA69: 97605.66136 | FB69: 99557.77458 | FC69: 101548.9301 | FD69: 103579.9087 | FE69: 105651.5068 | FF69: 107764.537 | FG69: 109919.8277 | FH69: 112118.2243 | FI69: 114360.5888 | FJ69: 116647.8005 | FK69: 118980.7566 | FL69: 121360.3717 | FM69: 123787.5791 | FN69: 126263.3307 | FO69: 128788.5973 | FP69: 131364.3693 | FQ69: 133991.6566 | FR69: 136671.4898 | FS69: 139404.9196 | FT69: 142193.018 | FU69: 145036.8783 | FV69: 147937.6159 | FW69: 150896.3682 | FX69: 153914.2956 | FY69: 156992.5815 | FZ69: 160132.4331 | GA69: 163335.0818 | GB69: 166601.7834 | GC69: 169933.8191 | GD69: 173332.4955 | GE69: 176799.1454 | GF69: 180335.1283 | GG69: 183941.8308 | GH69: 187620.6675 | GI69: 191373.0808 | GJ69: 195200.5424 | GK69: 199104.5533 | GL69: 203086.6443 | GM69: 207148.3772 | GN69: 211291.3448 | GO69: 215517.1717 | GP69: 219827.5151 | GQ69: =SUM(GQ66:GQ68) -> 224224.0654 | GR69: 228708.5467 | GS69: 233282.7176 | GT69: 237948.372 | GU69: 242707.3394 | GV69: 247561.4862 | GW69: 252512.716 | GX69: 257562.9703 | GY69: 262714.2297 | GZ69: 267968.5143 | HA69: 273327.8846 | HB69: 278794.4422 | HC69: 284370.3311 | HD69: 290057.7377 | HE69: 295858.8925 | HF69: 301776.0703 | HG69: 307811.5917 | HH69: 313967.8236 | HI69: 320247.18 | HJ69: 326652.1236 | HK69: 333185.1661 | HL69: 339848.8694 | HM69: 346645.8468 | HN69: 353578.7637 | HO69: 360650.339 | HP69: 367863.3458 | HQ69: 375220.6127 | HR69: 382725.025 | HS69: 390379.5255 | HT69: 398187.116 | HU69: 406150.8583 | HV69: 414273.8755 | HW69: 422559.353 | HX69: 431010.54 | HY69: 439630.7508 | HZ69: 448423.3659 | IA69: 457391.8332 | IB69: 466539.6698 | IC69: 475870.4632 | ID69: 485387.8725 | IE69: 495095.6299 | IF69: 504997.5425 | IG69: 515097.4934 | IH69: 525399.4433 | II69: 535907.4321 | IJ69: 546625.5808 | IK69: 557558.0924 | IL69: 568709.2542 | IM69: 580083.4393 | IN69: 591685.1081 | IO69: 603518.8103 | IP69: 615589.1865 | IQ69: 627900.9702 | IR69: 640458.9896 | IS69: 653268.1694 | IT69: 666333.5328 | IU69: 679660.2034 | IV69: 693253.4075 | IW69: 707118.4757 | IX69: 721260.8452 | IY69: 735686.0621 | IZ69: 750399.7833 | JA69: 765407.779 | JB69: 780715.9346 | JC69: =SUM(JC66:JC68) -> 796330.2533 | JD69: 812256.8583 | JE69: 828501.9955 | JF69: 845072.0354 | JG69: 861973.4761 | JH69: 879212.9456 | JI69: 896797.2045 | JJ69: 914733.1486 | JK69: 933027.8116 | JL69: 951688.3678 | JM69: 970722.1352 | JN69: 990136.5779 | JO69: 1009939.309 | JP69: 1030138.096 | JQ69: 1050740.858 | JR69: 1071755.675 | JS69: 1093190.788 | JT69: 1115054.604 | JU69: 1137355.696 | JV69: 1160102.81 | JW69: 1183304.866 | JX69: 1206970.963 | JY69: 1231110.383 | JZ69: 1255732.59 | KA69: 1280847.242 | KB69: 1306464.187 | KC69: 1332593.471 | KD69: 1359245.34 | KE69: 1386430.247 | KF69: 1414158.852 | KG69: 1442442.029 | KH69: 1471290.87 | KI69: 1500716.687 | KJ69: 1530731.021 | KK69: 1561345.641 | KL69: 1592572.554 | KM69: 1624424.005 | KN69: 1656912.485 | KO69: 1690050.735 | KP69: 1723851.75 | KQ69: 1758328.785 | KR69: 1793495.36 | KS69: 1829365.267 | KT69: 1865952.573
B70: NOPLAT | F70: =F69*F64 -> 0 | G70: 10 | H70: 20.18888889 | I70: 30.59122222 | J70: 41.23474778 | K70: 52.15082054 | L70: 63.37487166 | M70: 74.94693831 | N70: 86.91226251 | O70: 99.32196775 | P70: 112.2338236 | Q70: 126.8242206 | R70: 143.3113693 | S70: 161.9418473 | T70: 182.9942875 | U70: 206.7835448 | V70: 233.6654057 | W70: 264.0419084 | X70: 298.3673565 | Y70: 337.1551128 | Z70: 380.9852775 | AA70: 430.5133636 | AB70: 486.4801008 | AC70: 549.7225139 | AD70: 621.1864407 | AE70: 683.6513864 | AF70: 737.613841 | AG70: 783.6681656 | AH70: 822.5199819 | AI70: 855.0013157 | AJ70: 882.0877236 | AK70: 904.9176587 | AL70: 924.814369 | AM70: 943.3106563 | AN70: 962.1768695 | AO70: 981.4204069 | AP70: 1001.048815 | AQ70: 1021.069791 | AR70: 1041.491187 | AS70: 1062.321011 | AT70: 1083.567431 | AU70: 1105.23878 | AV70: 1127.343555 | AW70: 1149.890426 | AX70: 1172.888235 | AY70: 1196.346 | AZ70: 1220.27292 | BA70: 1244.678378 | BB70: 1269.571946 | BC70: 1294.963384 | BD70: 1320.862652 | BE70: 1347.279905 | BF70: 1374.225503 | BG70: 1401.710013 | BH70: 1429.744214 | BI70: 1458.339098 | BJ70: 1487.50588 | BK70: 1517.255997 | BL70: 1547.601117 | BM70: 1578.55314 | BN70: 1610.124203 | BO70: 1642.326687 | BP70: 1675.17322 | BQ70: 1708.676685 | BR70: =BR69*BR64 -> 1742.850218 | BS70: 1777.707223 | BT70: 1813.261367 | BU70: 1849.526595 | BV70: 1886.517127 | BW70: 1924.247469 | BX70: 1962.732418 | BY70: 2001.987067 | BZ70: 2042.026808 | CA70: 2082.867344 | CB70: 2124.524691 | CC70: 2167.015185 | CD70: 2210.355489 | CE70: 2254.562599 | CF70: 2299.65385 | CG70: 2345.646927 | CH70: 2392.559866 | CI70: 2440.411063 | CJ70: 2489.219285 | CK70: 2539.00367 | CL70: 2589.783744 | CM70: 2641.579419 | CN70: 2694.411007 | CO70: 2748.299227 | CP70: 2803.265212 | CQ70: 2859.330516 | CR70: 2916.517126 | CS70: 2974.847469 | CT70: 3034.344418 | CU70: 3095.031306 | CV70: 3156.931933 | CW70: 3220.070571 | CX70: 3284.471983 | CY70: 3350.161422 | CZ70: 3417.164651 | DA70: 3485.507944 | DB70: 3555.218103 | DC70: 3626.322465 | DD70: 3698.848914 | DE70: 3772.825892 | DF70: 3848.28241 | DG70: 3925.248058 | DH70: 4003.75302 | DI70: 4083.82808 | DJ70: 4165.504641 | DK70: 4248.814734 | DL70: 4333.791029 | DM70: 4420.46685 | DN70: 4508.876187 | DO70: 4599.05371 | DP70: 4691.034785 | DQ70: 4784.85548 | DR70: 4880.55259 | DS70: 4978.163642 | DT70: 5077.726914 | DU70: 5179.281453 | DV70: 5282.867082 | DW70: 5388.524423 | DX70: 5496.294912 | DY70: 5606.22081 | DZ70: 5718.345226 | EA70: 5832.712131 | EB70: 5949.366373 | EC70: 6068.353701 | ED70: =ED69*ED64 -> 6189.720775 | EE70: 6313.51519 | EF70: 6439.785494 | EG70: 6568.581204 | EH70: 6699.952828 | EI70: 6833.951885 | EJ70: 6970.630923 | EK70: 7110.043541 | EL70: 7252.244412 | EM70: 7397.2893 | EN70: 7545.235086 | EO70: 7696.139788 | EP70: 7850.062583 | EQ70: 8007.063835 | ER70: 8167.205112 | ES70: 8330.549214 | ET70: 8497.160198 | EU70: 8667.103402 | EV70: 8840.44547 | EW70: 9017.25438 | EX70: 9197.599467 | EY70: 9381.551457 | EZ70: 9569.182486 | FA70: 9760.566136 | FB70: 9955.777458 | FC70: 10154.89301 | FD70: 10357.99087 | FE70: 10565.15068 | FF70: 10776.4537 | FG70: 10991.98277 | FH70: 11211.82243 | FI70: 11436.05888 | FJ70: 11664.78005 | FK70: 11898.07566 | FL70: 12136.03717 | FM70: 12378.75791 | FN70: 12626.33307 | FO70: 12878.85973 | FP70: 13136.43693 | FQ70: 13399.16566 | FR70: 13667.14898 | FS70: 13940.49196 | FT70: 14219.3018 | FU70: 14503.68783 | FV70: 14793.76159 | FW70: 15089.63682 | FX70: 15391.42956 | FY70: 15699.25815 | FZ70: 16013.24331 | GA70: 16333.50818 | GB70: 16660.17834 | GC70: 16993.38191 | GD70: 17333.24955 | GE70: 17679.91454 | GF70: 18033.51283 | GG70: 18394.18308 | GH70: 18762.06675 | GI70: 19137.30808 | GJ70: 19520.05424 | GK70: 19910.45533 | GL70: 20308.66443 | GM70: 20714.83772 | GN70: 21129.13448 | GO70: 21551.71717 | GP70: =GP69*GP64 -> 21982.75151 | GQ70: 22422.40654 | GR70: 22870.85467 | GS70: 23328.27176 | GT70: 23794.8372 | GU70: 24270.73394 | GV70: 24756.14862 | GW70: 25251.2716 | GX70: 25756.29703 | GY70: 26271.42297 | GZ70: 26796.85143 | HA70: 27332.78846 | HB70: 27879.44422 | HC70: 28437.03311 | HD70: 29005.77377 | HE70: 29585.88925 | HF70: 30177.60703 | HG70: 30781.15917 | HH70: 31396.78236 | HI70: 32024.718 | HJ70: 32665.21236 | HK70: 33318.51661 | HL70: 33984.88694 | HM70: 34664.58468 | HN70: 35357.87637 | HO70: 36065.0339 | HP70: 36786.33458 | HQ70: 37522.06127 | HR70: 38272.5025 | HS70: 39037.95255 | HT70: 39818.7116 | HU70: 40615.08583 | HV70: 41427.38755 | HW70: 42255.9353 | HX70: 43101.054 | HY70: 43963.07508 | HZ70: 44842.33659 | IA70: 45739.18332 | IB70: 46653.96698 | IC70: 47587.04632 | ID70: 48538.78725 | IE70: 49509.56299 | IF70: 50499.75425 | IG70: 51509.74934 | IH70: 52539.94433 | II70: 53590.74321 | IJ70: 54662.55808 | IK70: 55755.80924 | IL70: 56870.92542 | IM70: 58008.34393 | IN70: 59168.51081 | IO70: 60351.88103 | IP70: 61558.91865 | IQ70: 62790.09702 | IR70: 64045.89896 | IS70: 65326.81694 | IT70: 66633.35328 | IU70: 67966.02034 | IV70: 69325.34075 | IW70: 70711.84757 | IX70: 72126.08452 | IY70: 73568.60621 | IZ70: 75039.97833 | JA70: 76540.7779 | JB70: =JB69*JB64 -> 78071.59346 | JC70: 79633.02533 | JD70: 81225.68583 | JE70: 82850.19955 | JF70: 84507.20354 | JG70: 86197.34761 | JH70: 87921.29456 | JI70: 89679.72045 | JJ70: 91473.31486 | JK70: 93302.78116 | JL70: 95168.83678 | JM70: 97072.21352 | JN70: 99013.65779 | JO70: 100993.9309 | JP70: 103013.8096 | JQ70: 105074.0858 | JR70: 107175.5675 | JS70: 109319.0788 | JT70: 111505.4604 | JU70: 113735.5696 | JV70: 116010.281 | JW70: 118330.4866 | JX70: 120697.0963 | JY70: 123111.0383 | JZ70: 125573.259 | KA70: 128084.7242 | KB70: 130646.4187 | KC70: 133259.3471 | KD70: 135924.534 | KE70: 138643.0247 | KF70: 141415.8852 | KG70: 144244.2029 | KH70: 147129.087 | KI70: 150071.6687 | KJ70: 153073.1021 | KK70: 156134.5641 | KL70: 159257.2554 | KM70: 162442.4005 | KN70: 165691.2485 | KO70: 169005.0735 | KP70: 172385.175 | KQ70: 175832.8785 | KR70: 179349.536 | KS70: 182936.5267 | KT70: 186595.2573
B71: EBIT | F71: =F70/(1-$E$26) -> 0 | G71: 10 | H71: 20.18888889 | I71: 30.59122222 | J71: 41.23474778 | K71: 52.15082054 | L71: 63.37487166 | M71: 74.94693831 | N71: 86.91226251 | O71: 99.32196775 | P71: 112.2338236 | Q71: 126.8242206 | R71: 143.3113693 | S71: 161.9418473 | T71: 182.9942875 | U71: 206.7835448 | V71: 233.6654057 | W71: 264.0419084 | X71: 298.3673565 | Y71: 337.1551128 | Z71: 380.9852775 | AA71: 430.5133636 | AB71: 486.4801008 | AC71: 549.7225139 | AD71: 621.1864407 | AE71: 683.6513864 | AF71: 737.613841 | AG71: 783.6681656 | AH71: 822.5199819 | AI71: 855.0013157 | AJ71: 882.0877236 | AK71: 904.9176587 | AL71: 924.814369 | AM71: 943.3106563 | AN71: 962.1768695 | AO71: 981.4204069 | AP71: 1001.048815 | AQ71: 1021.069791 | AR71: 1041.491187 | AS71: 1062.321011 | AT71: 1083.567431 | AU71: 1105.23878 | AV71: 1127.343555 | AW71: 1149.890426 | AX71: 1172.888235 | AY71: 1196.346 | AZ71: 1220.27292 | BA71: 1244.678378 | BB71: 1269.571946 | BC71: 1294.963384 | BD71: 1320.862652 | BE71: 1347.279905 | BF71: 1374.225503 | BG71: 1401.710013 | BH71: 1429.744214 | BI71: 1458.339098 | BJ71: 1487.50588 | BK71: 1517.255997 | BL71: 1547.601117 | BM71: 1578.55314 | BN71: 1610.124203 | BO71: 1642.326687 | BP71: 1675.17322 | BQ71: 1708.676685 | BR71: =BR70/(1-$E$26) -> 1742.850218 | BS71: 1777.707223 | BT71: 1813.261367 | BU71: 1849.526595 | BV71: 1886.517127 | BW71: 1924.247469 | BX71: 1962.732418 | BY71: 2001.987067 | BZ71: 2042.026808 | CA71: 2082.867344 | CB71: 2124.524691 | CC71: 2167.015185 | CD71: 2210.355489 | CE71: 2254.562599 | CF71: 2299.65385 | CG71: 2345.646927 | CH71: 2392.559866 | CI71: 2440.411063 | CJ71: 2489.219285 | CK71: 2539.00367 | CL71: 2589.783744 | CM71: 2641.579419 | CN71: 2694.411007 | CO71: 2748.299227 | CP71: 2803.265212 | CQ71: 2859.330516 | CR71: 2916.517126 | CS71: 2974.847469 | CT71: 3034.344418 | CU71: 3095.031306 | CV71: 3156.931933 | CW71: 3220.070571 | CX71: 3284.471983 | CY71: 3350.161422 | CZ71: 3417.164651 | DA71: 3485.507944 | DB71: 3555.218103 | DC71: 3626.322465 | DD71: 3698.848914 | DE71: 3772.825892 | DF71: 3848.28241 | DG71: 3925.248058 | DH71: 4003.75302 | DI71: 4083.82808 | DJ71: 4165.504641 | DK71: 4248.814734 | DL71: 4333.791029 | DM71: 4420.46685 | DN71: 4508.876187 | DO71: 4599.05371 | DP71: 4691.034785 | DQ71: 4784.85548 | DR71: 4880.55259 | DS71: 4978.163642 | DT71: 5077.726914 | DU71: 5179.281453 | DV71: 5282.867082 | DW71: 5388.524423 | DX71: 5496.294912 | DY71: 5606.22081 | DZ71: 5718.345226 | EA71: 5832.712131 | EB71: 5949.366373 | EC71: 6068.353701 | ED71: =ED70/(1-$E$26) -> 6189.720775 | EE71: 6313.51519 | EF71: 6439.785494 | EG71: 6568.581204 | EH71: 6699.952828 | EI71: 6833.951885 | EJ71: 6970.630923 | EK71: 7110.043541 | EL71: 7252.244412 | EM71: 7397.2893 | EN71: 7545.235086 | EO71: 7696.139788 | EP71: 7850.062583 | EQ71: 8007.063835 | ER71: 8167.205112 | ES71: 8330.549214 | ET71: 8497.160198 | EU71: 8667.103402 | EV71: 8840.44547 | EW71: 9017.25438 | EX71: 9197.599467 | EY71: 9381.551457 | EZ71: 9569.182486 | FA71: 9760.566136 | FB71: 9955.777458 | FC71: 10154.89301 | FD71: 10357.99087 | FE71: 10565.15068 | FF71: 10776.4537 | FG71: 10991.98277 | FH71: 11211.82243 | FI71: 11436.05888 | FJ71: 11664.78005 | FK71: 11898.07566 | FL71: 12136.03717 | FM71: 12378.75791 | FN71: 12626.33307 | FO71: 12878.85973 | FP71: 13136.43693 | FQ71: 13399.16566 | FR71: 13667.14898 | FS71: 13940.49196 | FT71: 14219.3018 | FU71: 14503.68783 | FV71: 14793.76159 | FW71: 15089.63682 | FX71: 15391.42956 | FY71: 15699.25815 | FZ71: 16013.24331 | GA71: 16333.50818 | GB71: 16660.17834 | GC71: 16993.38191 | GD71: 17333.24955 | GE71: 17679.91454 | GF71: 18033.51283 | GG71: 18394.18308 | GH71: 18762.06675 | GI71: 19137.30808 | GJ71: 19520.05424 | GK71: 19910.45533 | GL71: 20308.66443 | GM71: 20714.83772 | GN71: 21129.13448 | GO71: 21551.71717 | GP71: =GP70/(1-$E$26) -> 21982.75151 | GQ71: 22422.40654 | GR71: 22870.85467 | GS71: 23328.27176 | GT71: 23794.8372 | GU71: 24270.73394 | GV71: 24756.14862 | GW71: 25251.2716 | GX71: 25756.29703 | GY71: 26271.42297 | GZ71: 26796.85143 | HA71: 27332.78846 | HB71: 27879.44422 | HC71: 28437.03311 | HD71: 29005.77377 | HE71: 29585.88925 | HF71: 30177.60703 | HG71: 30781.15917 | HH71: 31396.78236 | HI71: 32024.718 | HJ71: 32665.21236 | HK71: 33318.51661 | HL71: 33984.88694 | HM71: 34664.58468 | HN71: 35357.87637 | HO71: 36065.0339 | HP71: 36786.33458 | HQ71: 37522.06127 | HR71: 38272.5025 | HS71: 39037.95255 | HT71: 39818.7116 | HU71: 40615.08583 | HV71: 41427.38755 | HW71: 42255.9353 | HX71: 43101.054 | HY71: 43963.07508 | HZ71: 44842.33659 | IA71: 45739.18332 | IB71: 46653.96698 | IC71: 47587.04632 | ID71: 48538.78725 | IE71: 49509.56299 | IF71: 50499.75425 | IG71: 51509.74934 | IH71: 52539.94433 | II71: 53590.74321 | IJ71: 54662.55808 | IK71: 55755.80924 | IL71: 56870.92542 | IM71: 58008.34393 | IN71: 59168.51081 | IO71: 60351.88103 | IP71: 61558.91865 | IQ71: 62790.09702 | IR71: 64045.89896 | IS71: 65326.81694 | IT71: 66633.35328 | IU71: 67966.02034 | IV71: 69325.34075 | IW71: 70711.84757 | IX71: 72126.08452 | IY71: 73568.60621 | IZ71: 75039.97833 | JA71: 76540.7779 | JB71: =JB70/(1-$E$26) -> 78071.59346 | JC71: 79633.02533 | JD71: 81225.68583 | JE71: 82850.19955 | JF71: 84507.20354 | JG71: 86197.34761 | JH71: 87921.29456 | JI71: 89679.72045 | JJ71: 91473.31486 | JK71: 93302.78116 | JL71: 95168.83678 | JM71: 97072.21352 | JN71: 99013.65779 | JO71: 100993.9309 | JP71: 103013.8096 | JQ71: 105074.0858 | JR71: 107175.5675 | JS71: 109319.0788 | JT71: 111505.4604 | JU71: 113735.5696 | JV71: 116010.281 | JW71: 118330.4866 | JX71: 120697.0963 | JY71: 123111.0383 | JZ71: 125573.259 | KA71: 128084.7242 | KB71: 130646.4187 | KC71: 133259.3471 | KD71: 135924.534 | KE71: 138643.0247 | KF71: 141415.8852 | KG71: 144244.2029 | KH71: 147129.087 | KI71: 150071.6687 | KJ71: 153073.1021 | KK71: 156134.5641 | KL71: 159257.2554 | KM71: 162442.4005 | KN71: 165691.2485 | KO71: 169005.0735 | KP71: 172385.175 | KQ71: 175832.8785 | KR71: 179349.536 | KS71: 182936.5267 | KT71: 186595.2573
B72: EBITDA | F72: =F71+F47 -> 0 | G72: 21.11111111 | H72: 43.85555556 | I72: 68.44566667 | J72: 95.12138111 | K72: 124.1538273 | L72: 155.8493804 | M72: 190.5542443 | N72: 228.6596294 | O72: 270.6076035 | P72: 305.7865919 | Q72: 345.5388489 | R72: 390.4588992 | S72: 441.2185561 | T72: 498.5769684 | U72: 563.3919743 | V72: 636.632931 | W72: 719.395212 | X72: 812.9165896 | Y72: 918.5957462 | Z72: 1038.013193 | AA72: 1172.954908 | AB72: 1325.439046 | AC72: 1497.746122 | AD72: 1692.453118 | AE72: 1873.861297 | AF72: 2041.501741 | AG72: 2194.869772 | AH72: 2333.420808 | AI72: 2456.565684 | AJ72: 2563.665389 | AK72: 2654.025113 | AL72: 2726.887543 | AM72: 2781.425294 | AN72: 2837.0538 | AO72: 2893.794876 | AP72: 2951.670773 | AQ72: 3010.704189 | AR72: 3070.918273 | AS72: 3132.336638 | AT72: 3194.983371 | AU72: 3258.883038 | AV72: 3324.060699 | AW72: 3390.541913 | AX72: 3458.352751 | AY72: 3527.519806 | AZ72: 3598.070202 | BA72: 3670.031607 | BB72: 3743.432239 | BC72: 3818.300883 | BD72: 3894.666901 | BE72: 3972.560239 | BF72: 4052.011444 | BG72: 4133.051673 | BH72: 4215.712706 | BI72: 4300.02696 | BJ72: 4386.0275 | BK72: 4473.74805 | BL72: 4563.223011 | BM72: 4654.487471 | BN72: 4747.57722 | BO72: 4842.528765 | BP72: 4939.37934 | BQ72: 5038.166927 | BR72: =BR71+BR47 -> 5138.930265 | BS72: 5241.708871 | BT72: 5346.543048 | BU72: 5453.473909 | BV72: 5562.543387 | BW72: 5673.794255 | BX72: 5787.27014 | BY72: 5903.015543 | BZ72: 6021.075854 | CA72: 6141.497371 | CB72: 6264.327318 | CC72: 6389.613864 | CD72: 6517.406142 | CE72: 6647.754265 | CF72: 6780.70935 | CG72: 6916.323537 | CH72: 7054.650008 | CI72: 7195.743008 | CJ72: 7339.657868 | CK72: 7486.451025 | CL72: 7636.180046 | CM72: 7788.903647 | CN72: 7944.68172 | CO72: 8103.575354 | CP72: 8265.646861 | CQ72: 8430.959798 | CR72: 8599.578994 | CS72: 8771.570574 | CT72: 8947.001986 | CU72: 9125.942025 | CV72: 9308.460866 | CW72: 9494.630083 | CX72: 9684.522685 | CY72: 9878.213138 | CZ72: 10075.7774 | DA72: 10277.29295 | DB72: 10482.83881 | DC72: 10692.49558 | DD72: 10906.3455 | DE72: 11124.47241 | DF72: 11346.96185 | DG72: 11573.90109 | DH72: 11805.37911 | DI72: 12041.4867 | DJ72: 12282.31643 | DK72: 12527.96276 | DL72: 12778.52201 | DM72: 13034.09245 | DN72: 13294.7743 | DO72: 13560.66979 | DP72: 13831.88318 | DQ72: 14108.52085 | DR72: 14390.69126 | DS72: 14678.50509 | DT72: 14972.07519 | DU72: 15271.5167 | DV72: 15576.94703 | DW72: 15888.48597 | DX72: 16206.25569 | DY72: 16530.3808 | DZ72: 16860.98842 | EA72: 17198.20819 | EB72: 17542.17235 | EC72: 17893.0158 | ED72: =ED71+ED47 -> 18250.87611 | EE72: 18615.89364 | EF72: 18988.21151 | EG72: 19367.97574 | EH72: 19755.33525 | EI72: 20150.44196 | EJ72: 20553.4508 | EK72: 20964.51981 | EL72: 21383.81021 | EM72: 21811.48642 | EN72: 22247.71614 | EO72: 22692.67047 | EP72: 23146.52388 | EQ72: 23609.45435 | ER72: 24081.64344 | ES72: 24563.27631 | ET72: 25054.54184 | EU72: 25555.63267 | EV72: 26066.74533 | EW72: 26588.08023 | EX72: 27119.84184 | EY72: 27662.23867 | EZ72: 28215.48345 | FA72: 28779.79312 | FB72: 29355.38898 | FC72: 29942.49676 | FD72: 30541.34669 | FE72: 31152.17363 | FF72: 31775.2171 | FG72: 32410.72144 | FH72: 33058.93587 | FI72: 33720.11459 | FJ72: 34394.51688 | FK72: 35082.40722 | FL72: 35784.05536 | FM72: 36499.73647 | FN72: 37229.7312 | FO72: 37974.32582 | FP72: 38733.81234 | FQ72: 39508.48859 | FR72: 40298.65836 | FS72: 41104.63152 | FT72: 41926.72415 | FU72: 42765.25864 | FV72: 43620.56381 | FW72: 44492.97509 | FX72: 45382.83459 | FY72: 46290.49128 | FZ72: 47216.30111 | GA72: 48160.62713 | GB72: 49123.83967 | GC72: 50106.31646 | GD72: 51108.44279 | GE72: 52130.61165 | GF72: 53173.22388 | GG72: 54236.68836 | GH72: 55321.42213 | GI72: 56427.85057 | GJ72: 57556.40758 | GK72: 58707.53573 | GL72: 59881.68645 | GM72: 61079.32018 | GN72: 62300.90658 | GO72: 63546.92471 | GP72: =GP71+GP47 -> 64817.8632 | GQ72: 66114.22047 | GR72: 67436.50488 | GS72: 68785.23498 | GT72: 70160.93968 | GU72: 71564.15847 | GV72: 72995.44164 | GW72: 74455.35047 | GX72: 75944.45748 | GY72: 77463.34663 | GZ72: 79012.61356 | HA72: 80592.86583 | HB72: 82204.72315 | HC72: 83848.81761 | HD72: 85525.79397 | HE72: 87236.30985 | HF72: 88981.03604 | HG72: 90760.65676 | HH72: 92575.8699 | HI72: 94427.3873 | HJ72: 96315.93504 | HK72: 98242.25374 | HL72: 100207.0988 | HM72: 102211.2408 | HN72: 104255.4656 | HO72: 106340.5749 | HP72: 108467.3864 | HQ72: 110636.7341 | HR72: 112849.4688 | HS72: 115106.4582 | HT72: 117408.5874 | HU72: 119756.7591 | HV72: 122151.8943 | HW72: 124594.9322 | HX72: 127086.8308 | HY72: 129628.5674 | HZ72: 132221.1388 | IA72: 134865.5616 | IB72: 137562.8728 | IC72: 140314.1303 | ID72: 143120.4129 | IE72: 145982.8211 | IF72: 148902.4775 | IG72: 151880.5271 | IH72: 154918.1376 | II72: 158016.5004 | IJ72: 161176.8304 | IK72: 164400.367 | IL72: 167688.3743 | IM72: 171042.1418 | IN72: 174462.9847 | IO72: 177952.2444 | IP72: 181511.2893 | IQ72: 185141.515 | IR72: 188844.3453 | IS72: 192621.2322 | IT72: 196473.6569 | IU72: 200403.13 | IV72: 204411.1926 | IW72: 208499.4165 | IX72: 212669.4048 | IY72: 216922.7929 | IZ72: 221261.2488 | JA72: 225686.4737 | JB72: =JB71+JB47 -> 230200.2032 | JC72: 234804.2073 | JD72: 239500.2914 | JE72: 244290.2973 | JF72: 249176.1032 | JG72: 254159.6253 | JH72: 259242.8178 | JI72: 264427.6741 | JJ72: 269716.2276 | JK72: 275110.5522 | JL72: 280612.7632 | JM72: 286225.0185 | JN72: 291949.5188 | JO72: 297788.5092 | JP72: 303744.2794 | JQ72: 309819.165 | JR72: 316015.5483 | JS72: 322335.8592 | JT72: 328782.5764 | JU72: 335358.228 | JV72: 342065.3925 | JW72: 348906.7004 | JX72: 355884.8344 | JY72: 363002.5311 | JZ72: 370262.5817 | KA72: 377667.8333 | KB72: 385221.19 | KC72: 392925.6138 | KD72: 400784.1261 | KE72: 408799.8086 | KF72: 416975.8048 | KG72: 425315.3209 | KH72: 433821.6273 | KI72: 442498.0598 | KJ72: 451348.021 | KK72: 460374.9814 | KL72: 469582.4811 | KM72: 478974.1307 | KN72: 488553.6133 | KO72: 498324.6856 | KP72: 508291.1793 | KQ72: 518457.0029 | KR72: 528826.1429 | KS72: 539402.6658 | KT72: 550190.7191
B73: Depreciation to EBITDA | G73: =G51/G72 -> 0.5263157895 | H73: 0.5396503674 | I73: 0.5530583058 | J73: 0.5665038996 | K73: 0.5799499567 | L73: 0.5933582059 | M73: 0.6066897456 | N73: 0.6199055219 | O73: 0.6329668255 | P73: 0.6329668255 | Q73: 0.6329668255 | R73: 0.6329668255 | S73: 0.6329668255 | T73: 0.6329668255 | U73: 0.6329668255 | V73: 0.6329668255 | W73: 0.6329668255 | X73: 0.6329668255 | Y73: 0.6329668255 | Z73: 0.6329668255 | AA73: 0.6329668255 | AB73: 0.6329668255 | AC73: 0.6329668255 | AD73: 0.6329668255 | AE73: 0.6351643595 | AF73: 0.6386905648 | AG73: 0.6429545955 | AH73: 0.6475046511 | AI73: 0.6519525933 | AJ73: 0.655927124 | AK73: 0.6590395267 | AL73: 0.660853499 | AM73: 0.660853499 | AN73: 0.660853499 | AO73: 0.660853499 | AP73: 0.660853499 | AQ73: 0.660853499 | AR73: 0.660853499 | AS73: 0.660853499 | AT73: 0.660853499 | AU73: 0.660853499 | AV73: 0.660853499 | AW73: 0.660853499 | AX73: 0.660853499 | AY73: 0.660853499 | AZ73: 0.660853499 | BA73: 0.660853499 | BB73: 0.660853499 | BC73: 0.660853499 | BD73: 0.660853499 | BE73: 0.660853499 | BF73: 0.660853499 | BG73: 0.660853499 | BH73: 0.660853499 | BI73: 0.660853499 | BJ73: 0.660853499 | BK73: 0.660853499 | BL73: 0.660853499 | BM73: 0.660853499 | BN73: 0.660853499 | BO73: 0.660853499 | BP73: 0.660853499 | BQ73: 0.660853499 | BR73: =BR51/BR72 -> 0.660853499 | BS73: 0.660853499 | BT73: 0.660853499 | BU73: 0.660853499 | BV73: 0.660853499 | BW73: 0.660853499 | BX73: 0.660853499 | BY73: 0.660853499 | BZ73: 0.660853499 | CA73: 0.660853499 | CB73: 0.660853499 | CC73: 0.660853499 | CD73: 0.660853499 | CE73: 0.660853499 | CF73: 0.660853499 | CG73: 0.660853499 | CH73: 0.660853499 | CI73: 0.660853499 | CJ73: 0.660853499 | CK73: 0.660853499 | CL73: 0.660853499 | CM73: 0.660853499 | CN73: 0.660853499 | CO73: 0.660853499 | CP73: 0.660853499 | CQ73: 0.660853499 | CR73: 0.660853499 | CS73: 0.660853499 | CT73: 0.660853499 | CU73: 0.660853499 | CV73: 0.660853499 | CW73: 0.660853499 | CX73: 0.660853499 | CY73: 0.660853499 | CZ73: 0.660853499 | DA73: 0.660853499 | DB73: 0.660853499 | DC73: 0.660853499 | DD73: 0.660853499 | DE73: 0.660853499 | DF73: 0.660853499 | DG73: 0.660853499 | DH73: 0.660853499 | DI73: 0.660853499 | DJ73: 0.660853499 | DK73: 0.660853499 | DL73: 0.660853499 | DM73: 0.660853499 | DN73: 0.660853499 | DO73: 0.660853499 | DP73: 0.660853499 | DQ73: 0.660853499 | DR73: 0.660853499 | DS73: 0.660853499 | DT73: 0.660853499 | DU73: 0.660853499 | DV73: 0.660853499 | DW73: 0.660853499 | DX73: 0.660853499 | DY73: 0.660853499 | DZ73: 0.660853499 | EA73: 0.660853499 | EB73: 0.660853499 | EC73: 0.660853499 | ED73: =ED51/ED72 -> 0.660853499 | EE73: 0.660853499 | EF73: 0.660853499 | EG73: 0.660853499 | EH73: 0.660853499 | EI73: 0.660853499 | EJ73: 0.660853499 | EK73: 0.660853499 | EL73: 0.660853499 | EM73: 0.660853499 | EN73: 0.660853499 | EO73: 0.660853499 | EP73: 0.660853499 | EQ73: 0.660853499 | ER73: 0.660853499 | ES73: 0.660853499 | ET73: 0.660853499 | EU73: 0.660853499 | EV73: 0.660853499 | EW73: 0.660853499 | EX73: 0.660853499 | EY73: 0.660853499 | EZ73: 0.660853499 | FA73: 0.660853499 | FB73: 0.660853499 | FC73: 0.660853499 | FD73: 0.660853499 | FE73: 0.660853499 | FF73: 0.660853499 | FG73: 0.660853499 | FH73: 0.660853499 | FI73: 0.660853499 | FJ73: 0.660853499 | FK73: 0.660853499 | FL73: 0.660853499 | FM73: 0.660853499 | FN73: 0.660853499 | FO73: 0.660853499 | FP73: 0.660853499 | FQ73: 0.660853499 | FR73: 0.660853499 | FS73: 0.660853499 | FT73: 0.660853499 | FU73: 0.660853499 | FV73: 0.660853499 | FW73: 0.660853499 | FX73: 0.660853499 | FY73: 0.660853499 | FZ73: 0.660853499 | GA73: 0.660853499 | GB73: 0.660853499 | GC73: 0.660853499 | GD73: 0.660853499 | GE73: 0.660853499 | GF73: 0.660853499 | GG73: 0.660853499 | GH73: 0.660853499 | GI73: 0.660853499 | GJ73: 0.660853499 | GK73: 0.660853499 | GL73: 0.660853499 | GM73: 0.660853499 | GN73: 0.660853499 | GO73: 0.660853499 | GP73: =GP51/GP72 -> 0.660853499 | GQ73: 0.660853499 | GR73: 0.660853499 | GS73: 0.660853499 | GT73: 0.660853499 | GU73: 0.660853499 | GV73: 0.660853499 | GW73: 0.660853499 | GX73: 0.660853499 | GY73: 0.660853499 | GZ73: 0.660853499 | HA73: 0.660853499 | HB73: 0.660853499 | HC73: 0.660853499 | HD73: 0.660853499 | HE73: 0.660853499 | HF73: 0.660853499 | HG73: 0.660853499 | HH73: 0.660853499 | HI73: 0.660853499 | HJ73: 0.660853499 | HK73: 0.660853499 | HL73: 0.660853499 | HM73: 0.660853499 | HN73: 0.660853499 | HO73: 0.660853499 | HP73: 0.660853499 | HQ73: 0.660853499 | HR73: 0.660853499 | HS73: 0.660853499 | HT73: 0.660853499 | HU73: 0.660853499 | HV73: 0.660853499 | HW73: 0.660853499 | HX73: 0.660853499 | HY73: 0.660853499 | HZ73: 0.660853499 | IA73: 0.660853499 | IB73: 0.660853499 | IC73: 0.660853499 | ID73: 0.660853499 | IE73: 0.660853499 | IF73: 0.660853499 | IG73: 0.660853499 | IH73: 0.660853499 | II73: 0.660853499 | IJ73: 0.660853499 | IK73: 0.660853499 | IL73: 0.660853499 | IM73: 0.660853499 | IN73: 0.660853499 | IO73: 0.660853499 | IP73: 0.660853499 | IQ73: 0.660853499 | IR73: 0.660853499 | IS73: 0.660853499 | IT73: 0.660853499 | IU73: 0.660853499 | IV73: 0.660853499 | IW73: 0.660853499 | IX73: 0.660853499 | IY73: 0.660853499 | IZ73: 0.660853499 | JA73: 0.660853499 | JB73: =JB51/JB72 -> 0.660853499 | JC73: 0.660853499 | JD73: 0.660853499 | JE73: 0.660853499 | JF73: 0.660853499 | JG73: 0.660853499 | JH73: 0.660853499 | JI73: 0.660853499 | JJ73: 0.660853499 | JK73: 0.660853499 | JL73: 0.660853499 | JM73: 0.660853499 | JN73: 0.660853499 | JO73: 0.660853499 | JP73: 0.660853499 | JQ73: 0.660853499 | JR73: 0.660853499 | JS73: 0.660853499 | JT73: 0.660853499 | JU73: 0.660853499 | JV73: 0.660853499 | JW73: 0.660853499 | JX73: 0.660853499 | JY73: 0.660853499 | JZ73: 0.660853499 | KA73: 0.660853499 | KB73: 0.660853499 | KC73: 0.660853499 | KD73: 0.660853499 | KE73: 0.660853499 | KF73: 0.660853499 | KG73: 0.660853499 | KH73: 0.660853499 | KI73: 0.660853499 | KJ73: 0.660853499 | KK73: 0.660853499 | KL73: 0.660853499 | KM73: 0.660853499 | KN73: 0.660853499 | KO73: 0.660853499 | KP73: 0.660853499 | KQ73: 0.660853499 | KR73: 0.660853499 | KS73: 0.660853499 | KT73: 0.660853499
B75: EBITDA Growth | H75: =H72/G72-1 -> 1.077368421 | I75: 0.560706866 | J75: 0.3897356216 | K75: 0.3052147254 | L75: 0.2552925978 | M75: 0.2226820781 | N75: 0.199971327 | O75: 0.1834515964 | P75: 0.13 | Q75: 0.13 | R75: 0.13 | S75: 0.13 | T75: 0.13 | U75: 0.13 | V75: 0.13 | W75: 0.13 | X75: 0.13 | Y75: 0.13 | Z75: 0.13 | AA75: 0.13 | AB75: 0.13 | AC75: 0.13 | AD75: 0.13 | AE75: 0.107186531 | AF75: 0.08946256815 | AG75: 0.07512510441 | AH75: 0.06312494578 | AI75: 0.05277439719 | AJ75: 0.04359732995 | AK75: 0.03524630176 | AL75: 0.02745355722 | AM75: 0.02 | AN75: 0.02 | AO75: 0.02 | AP75: 0.02 | AQ75: 0.02 | AR75: 0.02 | AS75: 0.02 | AT75: 0.02 | AU75: 0.02 | AV75: 0.02 | AW75: 0.02 | AX75: 0.02 | AY75: 0.02 | AZ75: 0.02 | BA75: 0.02 | BB75: 0.02 | BC75: 0.02 | BD75: 0.02 | BE75: 0.02 | BF75: 0.02 | BG75: 0.02 | BH75: 0.02 | BI75: 0.02 | BJ75: 0.02 | BK75: 0.02 | BL75: 0.02 | BM75: 0.02 | BN75: 0.02 | BO75: 0.02 | BP75: 0.02 | BQ75: 0.02 | BR75: 0.02 | BS75: 0.02 | BT75: =BT72/BS72-1 -> 0.02 | BU75: 0.02 | BV75: 0.02 | BW75: 0.02 | BX75: 0.02 | BY75: 0.02 | BZ75: 0.02 | CA75: 0.02 | CB75: 0.02 | CC75: 0.02 | CD75: 0.02 | CE75: 0.02 | CF75: 0.02 | CG75: 0.02 | CH75: 0.02 | CI75: 0.02 | CJ75: 0.02 | CK75: 0.02 | CL75: 0.02 | CM75: 0.02 | CN75: 0.02 | CO75: 0.02 | CP75: 0.02 | CQ75: 0.02 | CR75: 0.02 | CS75: 0.02 | CT75: 0.02 | CU75: 0.02 | CV75: 0.02 | CW75: 0.02 | CX75: 0.02 | CY75: 0.02 | CZ75: 0.02 | DA75: 0.02 | DB75: 0.02 | DC75: 0.02 | DD75: 0.02 | DE75: 0.02 | DF75: 0.02 | DG75: 0.02 | DH75: 0.02 | DI75: 0.02 | DJ75: 0.02 | DK75: 0.02 | DL75: 0.02 | DM75: 0.02 | DN75: 0.02 | DO75: 0.02 | DP75: 0.02 | DQ75: 0.02 | DR75: 0.02 | DS75: 0.02 | DT75: 0.02 | DU75: 0.02 | DV75: 0.02 | DW75: 0.02 | DX75: 0.02 | DY75: 0.02 | DZ75: 0.02 | EA75: 0.02 | EB75: 0.02 | EC75: 0.02 | ED75: 0.02 | EE75: 0.02 | EF75: =EF72/EE72-1 -> 0.02 | EG75: 0.02 | EH75: 0.02 | EI75: 0.02 | EJ75: 0.02 | EK75: 0.02 | EL75: 0.02 | EM75: 0.02 | EN75: 0.02 | EO75: 0.02 | EP75: 0.02 | EQ75: 0.02 | ER75: 0.02 | ES75: 0.02 | ET75: 0.02 | EU75: 0.02 | EV75: 0.02 | EW75: 0.02 | EX75: 0.02 | EY75: 0.02 | EZ75: 0.02 | FA75: 0.02 | FB75: 0.02 | FC75: 0.02 | FD75: 0.02 | FE75: 0.02 | FF75: 0.02 | FG75: 0.02 | FH75: 0.02 | FI75: 0.02 | FJ75: 0.02 | FK75: 0.02 | FL75: 0.02 | FM75: 0.02 | FN75: 0.02 | FO75: 0.02 | FP75: 0.02 | FQ75: 0.02 | FR75: 0.02 | FS75: 0.02 | FT75: 0.02 | FU75: 0.02 | FV75: 0.02 | FW75: 0.02 | FX75: 0.02 | FY75: 0.02 | FZ75: 0.02 | GA75: 0.02 | GB75: 0.02 | GC75: 0.02 | GD75: 0.02 | GE75: 0.02 | GF75: 0.02 | GG75: 0.02 | GH75: 0.02 | GI75: 0.02 | GJ75: 0.02 | GK75: 0.02 | GL75: 0.02 | GM75: 0.02 | GN75: 0.02 | GO75: 0.02 | GP75: 0.02 | GQ75: 0.02 | GR75: =GR72/GQ72-1 -> 0.02 | GS75: 0.02 | GT75: 0.02 | GU75: 0.02 | GV75: 0.02 | GW75: 0.02 | GX75: 0.02 | GY75: 0.02 | GZ75: 0.02 | HA75: 0.02 | HB75: 0.02 | HC75: 0.02 | HD75: 0.02 | HE75: 0.02 | HF75: 0.02 | HG75: 0.02 | HH75: 0.02 | HI75: 0.02 | HJ75: 0.02 | HK75: 0.02 | HL75: 0.02 | HM75: 0.02 | HN75: 0.02 | HO75: 0.02 | HP75: 0.02 | HQ75: 0.02 | HR75: 0.02 | HS75: 0.02 | HT75: 0.02 | HU75: 0.02 | HV75: 0.02 | HW75: 0.02 | HX75: 0.02 | HY75: 0.02 | HZ75: 0.02 | IA75: 0.02 | IB75: 0.02 | IC75: 0.02 | ID75: 0.02 | IE75: 0.02 | IF75: 0.02 | IG75: 0.02 | IH75: 0.02 | II75: 0.02 | IJ75: 0.02 | IK75: 0.02 | IL75: 0.02 | IM75: 0.02 | IN75: 0.02 | IO75: 0.02 | IP75: 0.02 | IQ75: 0.02 | IR75: 0.02 | IS75: 0.02 | IT75: 0.02 | IU75: 0.02 | IV75: 0.02 | IW75: 0.02 | IX75: 0.02 | IY75: 0.02 | IZ75: 0.02 | JA75: 0.02 | JB75: 0.02 | JC75: 0.02 | JD75: =JD72/JC72-1 -> 0.02 | JE75: 0.02 | JF75: 0.02 | JG75: 0.02 | JH75: 0.02 | JI75: 0.02 | JJ75: 0.02 | JK75: 0.02 | JL75: 0.02 | JM75: 0.02 | JN75: 0.02 | JO75: 0.02 | JP75: 0.02 | JQ75: 0.02 | JR75: 0.02 | JS75: 0.02 | JT75: 0.02 | JU75: 0.02 | JV75: 0.02 | JW75: 0.02 | JX75: 0.02 | JY75: 0.02 | JZ75: 0.02 | KA75: 0.02 | KB75: 0.02 | KC75: 0.02 | KD75: 0.02 | KE75: 0.02 | KF75: 0.02 | KG75: 0.02 | KH75: 0.02 | KI75: 0.02 | KJ75: 0.02 | KK75: 0.02 | KL75: 0.02 | KM75: 0.02 | KN75: 0.02 | KO75: 0.02 | KP75: 0.02 | KQ75: 0.02 | KR75: 0.02 | KS75: 0.02 | KT75: 0.02
B77: WC Ratio | F77: =$E$27 -> 0 | G77: 0 | H77: 0 | I77: 0 | J77: 0 | K77: 0 | L77: 0 | M77: 0 | N77: 0 | O77: 0 | P77: 0 | Q77: 0 | R77: 0 | S77: 0 | T77: 0 | U77: 0 | V77: 0 | W77: 0 | X77: 0 | Y77: 0 | Z77: 0 | AA77: 0 | AB77: 0 | AC77: 0 | AD77: 0 | AE77: 0 | AF77: 0 | AG77: 0 | AH77: 0 | AI77: 0 | AJ77: 0 | AK77: 0 | AL77: 0 | AM77: 0 | AN77: 0 | AO77: 0 | AP77: 0 | AQ77: 0 | AR77: 0 | AS77: 0 | AT77: 0 | AU77: 0 | AV77: 0 | AW77: 0 | AX77: 0 | AY77: 0 | AZ77: 0 | BA77: 0 | BB77: 0 | BC77: 0 | BD77: 0 | BE77: 0 | BF77: 0 | BG77: 0 | BH77: 0 | BI77: 0 | BJ77: 0 | BK77: 0 | BL77: 0 | BM77: 0 | BN77: 0 | BO77: 0 | BP77: 0 | BQ77: 0 | BR77: =$E$27 -> 0 | BS77: 0 | BT77: 0 | BU77: 0 | BV77: 0 | BW77: 0 | BX77: 0 | BY77: 0 | BZ77: 0 | CA77: 0 | CB77: 0 | CC77: 0 | CD77: 0 | CE77: 0 | CF77: 0 | CG77: 0 | CH77: 0 | CI77: 0 | CJ77: 0 | CK77: 0 | CL77: 0 | CM77: 0 | CN77: 0 | CO77: 0 | CP77: 0 | CQ77: 0 | CR77: 0 | CS77: 0 | CT77: 0 | CU77: 0 | CV77: 0 | CW77: 0 | CX77: 0 | CY77: 0 | CZ77: 0 | DA77: 0 | DB77: 0 | DC77: 0 | DD77: 0 | DE77: 0 | DF77: 0 | DG77: 0 | DH77: 0 | DI77: 0 | DJ77: 0 | DK77: 0 | DL77: 0 | DM77: 0 | DN77: 0 | DO77: 0 | DP77: 0 | DQ77: 0 | DR77: 0 | DS77: 0 | DT77: 0 | DU77: 0 | DV77: 0 | DW77: 0 | DX77: 0 | DY77: 0 | DZ77: 0 | EA77: 0 | EB77: 0 | EC77: 0 | ED77: =$E$27 -> 0 | EE77: 0 | EF77: 0 | EG77: 0 | EH77: 0 | EI77: 0 | EJ77: 0 | EK77: 0 | EL77: 0 | EM77: 0 | EN77: 0 | EO77: 0 | EP77: 0 | EQ77: 0 | ER77: 0 | ES77: 0 | ET77: 0 | EU77: 0 | EV77: 0 | EW77: 0 | EX77: 0 | EY77: 0 | EZ77: 0 | FA77: 0 | FB77: 0 | FC77: 0 | FD77: 0 | FE77: 0 | FF77: 0 | FG77: 0 | FH77: 0 | FI77: 0 | FJ77: 0 | FK77: 0 | FL77: 0 | FM77: 0 | FN77: 0 | FO77: 0 | FP77: 0 | FQ77: 0 | FR77: 0 | FS77: 0 | FT77: 0 | FU77: 0 | FV77: 0 | FW77: 0 | FX77: 0 | FY77: 0 | FZ77: 0 | GA77: 0 | GB77: 0 | GC77: 0 | GD77: 0 | GE77: 0 | GF77: 0 | GG77: 0 | GH77: 0 | GI77: 0 | GJ77: 0 | GK77: 0 | GL77: 0 | GM77: 0 | GN77: 0 | GO77: 0 | GP77: =$E$27 -> 0 | GQ77: 0 | GR77: 0 | GS77: 0 | GT77: 0 | GU77: 0 | GV77: 0 | GW77: 0 | GX77: 0 | GY77: 0 | GZ77: 0 | HA77: 0 | HB77: 0 | HC77: 0 | HD77: 0 | HE77: 0 | HF77: 0 | HG77: 0 | HH77: 0 | HI77: 0 | HJ77: 0 | HK77: 0 | HL77: 0 | HM77: 0 | HN77: 0 | HO77: 0 | HP77: 0 | HQ77: 0 | HR77: 0 | HS77: 0 | HT77: 0 | HU77: 0 | HV77: 0 | HW77: 0 | HX77: 0 | HY77: 0 | HZ77: 0 | IA77: 0 | IB77: 0 | IC77: 0 | ID77: 0 | IE77: 0 | IF77: 0 | IG77: 0 | IH77: 0 | II77: 0 | IJ77: 0 | IK77: 0 | IL77: 0 | IM77: 0 | IN77: 0 | IO77: 0 | IP77: 0 | IQ77: 0 | IR77: 0 | IS77: 0 | IT77: 0 | IU77: 0 | IV77: 0 | IW77: 0 | IX77: 0 | IY77: 0 | IZ77: 0 | JA77: 0 | JB77: =$E$27 -> 0 | JC77: 0 | JD77: 0 | JE77: 0 | JF77: 0 | JG77: 0 | JH77: 0 | JI77: 0 | JJ77: 0 | JK77: 0 | JL77: 0 | JM77: 0 | JN77: 0 | JO77: 0 | JP77: 0 | JQ77: 0 | JR77: 0 | JS77: 0 | JT77: 0 | JU77: 0 | JV77: 0 | JW77: 0 | JX77: 0 | JY77: 0 | JZ77: 0 | KA77: 0 | KB77: 0 | KC77: 0 | KD77: 0 | KE77: 0 | KF77: 0 | KG77: 0 | KH77: 0 | KI77: 0 | KJ77: 0 | KK77: 0 | KL77: 0 | KM77: 0 | KN77: 0 | KO77: 0 | KP77: 0 | KQ77: 0 | KR77: 0 | KS77: 0 | KT77: 0
F78: =F72*F77 -> 0 | G78: 0 | H78: 0 | I78: 0 | J78: 0 | K78: 0 | L78: 0 | M78: 0 | N78: 0 | O78: 0 | P78: 0 | Q78: 0 | R78: 0 | S78: 0 | T78: 0 | U78: 0 | V78: 0 | W78: 0 | X78: 0 | Y78: 0 | Z78: 0 | AA78: 0 | AB78: 0 | AC78: 0 | AD78: 0 | AE78: 0 | AF78: 0 | AG78: 0 | AH78: 0 | AI78: 0 | AJ78: 0 | AK78: 0 | AL78: =AL72*AL77 -> 0 | AM78: 0 | AN78: 0 | AO78: 0 | AP78: 0 | AQ78: 0 | AR78: 0 | AS78: 0 | AT78: 0 | AU78: 0 | AV78: 0 | AW78: 0 | AX78: 0 | AY78: 0 | AZ78: 0 | BA78: 0 | BB78: 0 | BC78: 0 | BD78: 0 | BE78: 0 | BF78: 0 | BG78: 0 | BH78: 0 | BI78: 0 | BJ78: 0 | BK78: 0 | BL78: 0 | BM78: 0 | BN78: 0 | BO78: 0 | BP78: 0 | BQ78: 0 | BR78: =BR72*BR77 -> 0 | BS78: =BS72*BS77 -> 0 | BT78: 0 | BU78: 0 | BV78: 0 | BW78: 0 | BX78: 0 | BY78: 0 | BZ78: 0 | CA78: 0 | CB78: 0 | CC78: 0 | CD78: 0 | CE78: 0 | CF78: 0 | CG78: 0 | CH78: 0 | CI78: 0 | CJ78: 0 | CK78: 0 | CL78: 0 | CM78: 0 | CN78: 0 | CO78: 0 | CP78: 0 | CQ78: 0 | CR78: 0 | CS78: 0 | CT78: 0 | CU78: 0 | CV78: 0 | CW78: 0 | CX78: 0 | CY78: 0 | CZ78: 0 | DA78: 0 | DB78: 0 | DC78: 0 | DD78: 0 | DE78: 0 | DF78: 0 | DG78: 0 | DH78: 0 | DI78: 0 | DJ78: 0 | DK78: 0 | DL78: 0 | DM78: 0 | DN78: 0 | DO78: 0 | DP78: 0 | DQ78: 0 | DR78: 0 | DS78: 0 | DT78: 0 | DU78: 0 | DV78: 0 | DW78: 0 | DX78: 0 | DY78: 0 | DZ78: 0 | EA78: 0 | EB78: 0 | EC78: 0 | ED78: 0 | EE78: =EE72*EE77 -> 0 | EF78: 0 | EG78: 0 | EH78: 0 | EI78: 0 | EJ78: 0 | EK78: 0 | EL78: 0 | EM78: 0 | EN78: 0 | EO78: 0 | EP78: 0 | EQ78: 0 | ER78: 0 | ES78: 0 | ET78: 0 | EU78: 0 | EV78: 0 | EW78: 0 | EX78: 0 | EY78: 0 | EZ78: 0 | FA78: 0 | FB78: 0 | FC78: 0 | FD78: 0 | FE78: 0 | FF78: 0 | FG78: 0 | FH78: 0 | FI78: 0 | FJ78: 0 | FK78: 0 | FL78: 0 | FM78: 0 | FN78: 0 | FO78: 0 | FP78: 0 | FQ78: 0 | FR78: 0 | FS78: 0 | FT78: 0 | FU78: 0 | FV78: 0 | FW78: 0 | FX78: 0 | FY78: 0 | FZ78: 0 | GA78: 0 | GB78: 0 | GC78: 0 | GD78: 0 | GE78: 0 | GF78: 0 | GG78: 0 | GH78: 0 | GI78: 0 | GJ78: 0 | GK78: 0 | GL78: 0 | GM78: 0 | GN78: 0 | GO78: 0 | GP78: 0 | GQ78: =GQ72*GQ77 -> 0 | GR78: 0 | GS78: 0 | GT78: 0 | GU78: 0 | GV78: 0 | GW78: 0 | GX78: 0 | GY78: 0 | GZ78: 0 | HA78: 0 | HB78: 0 | HC78: 0 | HD78: 0 | HE78: 0 | HF78: 0 | HG78: 0 | HH78: 0 | HI78: 0 | HJ78: 0 | HK78: 0 | HL78: 0 | HM78: 0 | HN78: 0 | HO78: 0 | HP78: 0 | HQ78: 0 | HR78: 0 | HS78: 0 | HT78: 0 | HU78: 0 | HV78: 0 | HW78: 0 | HX78: 0 | HY78: 0 | HZ78: 0 | IA78: 0 | IB78: 0 | IC78: 0 | ID78: 0 | IE78: 0 | IF78: 0 | IG78: 0 | IH78: 0 | II78: 0 | IJ78: 0 | IK78: 0 | IL78: 0 | IM78: 0 | IN78: 0 | IO78: 0 | IP78: 0 | IQ78: 0 | IR78: 0 | IS78: 0 | IT78: 0 | IU78: 0 | IV78: 0 | IW78: 0 | IX78: 0 | IY78: 0 | IZ78: 0 | JA78: 0 | JB78: 0 | JC78: =JC72*JC77 -> 0 | JD78: 0 | JE78: 0 | JF78: 0 | JG78: 0 | JH78: 0 | JI78: 0 | JJ78: 0 | JK78: 0 | JL78: 0 | JM78: 0 | JN78: 0 | JO78: 0 | JP78: 0 | JQ78: 0 | JR78: 0 | JS78: 0 | JT78: 0 | JU78: 0 | JV78: 0 | JW78: 0 | JX78: 0 | JY78: 0 | JZ78: 0 | KA78: 0 | KB78: 0 | KC78: 0 | KD78: 0 | KE78: 0 | KF78: 0 | KG78: 0 | KH78: 0 | KI78: 0 | KJ78: 0 | KK78: 0 | KL78: 0 | KM78: 0 | KN78: 0 | KO78: 0 | KP78: 0 | KQ78: 0 | KR78: 0 | KS78: 0 | KT78: 0
